Workbook

Sheet Overzicht project
A1: Projectgegevens waarvoor VIPA-subsidie worden aangevraagd
A3: Vlaams Infrastructuurfonds voor Persoonsgebonden Aangelegenheden (VIPA)
A4: Ellipsgebouw | H4: Dossier nummer
A5: Koning Albert II-laan 35 bus 34, 1030 BRUSSEL | I5: Het dossier nummer dient ingevuld te worden door de bevoegde instantie.
A6: Tel. 02 553 32 41 – Fax 02 553 34 80
A7: E-mail: vipa@vlaanderen.be | H7: Versie | I7: EVIPA_2026_V2
I8: De versie dient ingevuld te worden door de bevoegde instantie.
A9: Waarvoor dient dit document?
A10: Met dit document bezorgt de aanvrager het Vlaams Infrastructuurfonds voor Persoonsgebonden Aangelegenheden (VIPA) de nodige identificatiegegevens van het project zodat het VIPA over de juiste gegevens beschikt om het project te beoordelen met het oog op een subsidiebelofte en om het subsidiebedrag te berekenen.
A11: Aan wie bezorgt u dit document?
A12: Upload dit document bij het indienen van het dossier in E-loket van het Vlaams Infrastructuurfonds voor Persoonsgebonden Aangelegenheden (VIPA). De indiening van de subsidieaanvraag gebeurt digitaal via het E-loket van het VIPA.
A13: Hoe gebruikt u dit document?
A14: Enkel de blauwe velden dienen ingevuld te worden, alle andere velden worden berekend of ingevuld door VIPA.
A15: Dit document kan gewijzigd worden gedurende de verschillende fase van het VIPA traject. Zowel u als de toegewezen bouwtechnisch adviseur zullen dit rekenblad kunnen gebruiken.
A16: De tabbladen Overzicht project, Oppervlakte-afdelingen, Oppervlakte - Ond. dienst, ZH - capaciteiten en Bouwkost "kostensoort" dienen ingevuld te zijn wanneer u uw dossier indient bij VIPA. De raming van het project dient opgesplitst te worden per kostensoort. Wanneer u de kostensoort onder punt D invult zullen de bijhorende tabbladden voor de bouwkost verschijnen.
A17: Wanneer u een wijziging van de belofte hebt aangevraagd zullen de tabbladden 'Overzicht project_gewijzigd', 'Oppervlakte_afdelingen_gewijz' en 'Oppervlakte_Ond. dienst_gewijz' beschikbaar worden gesteld door VIPA. In de tabbladen voor de bouwkost zal de kolom Raming SB gewijzigd verschijnen. Hier kan u de gewijzigde gegevens van het project invullen.
A18: Zowel bij de opstartbeslissing als bij de eindevaluatie dient u de tabbladen Bouwkost "kostensoort" verder aan te vullen met de prijs bij aanbesteding, gunning en eindafrekening.
B20: Reeds gesubsidieerde projecten
A21: A | B21: Geef de naam, gesubsidieerde oppervlakte en het jaar van ingebruikname van de reeds in het verleden door VIPA gesubsidieerde projecten voor uw voorziening.
C22: Naam | D22: Gesubsidieerde oppervlakte | H22: Jaar van ingebruikname | J22: Zorgvorm
B23: 1 | C23: Project 1 | D23: 0 | H23: 2020 | J23: Kies de zorgvorm
B24: 2 | D24: 0 | J24: Kies de zorgvorm
B25: 3 | D25: 0 | J25: Kies de zorgvorm
B26: 4 | D26: 0 | J26: Kies de zorgvorm
B27: 5 | D27: 0 | J27: Kies de zorgvorm
B28: 6 | D28: 0 | J28: Kies de zorgvorm
B29: 7 | D29: 0 | J29: Kies de zorgvorm
C30: Totale oppervlakte | D30: =ROUND(SUM(D23:E29),2) -> 0
B32: Identificatie van het project
A33: A | B33: Geef de naam van het project met aanduiding van de aanvrager en de capaciteit van het project.
A35: B | B35: Geef de gemeente waar het project is gelegen.
B36: Geef de gemeente/stad van het project in
A37: C | B37: Vul de verschillende zorgvormen in die in het project aanwezig zijn en de daarbij horende totale capaciteit van het project voor deze zorgvorm.
C39: Type | H39: Totale capaciteit van het project voor de zorgvorm
B40: Zorgvorm 1 | C40: Algemeen ziekenhuis | H40: 0 | I40: =IF(ISNUMBER(SEARCH("kinderzorg",$C40)),"opvangplaatsen/VTE",IF(ISNUMBER(SEARCH("welzijnswerk",$C40)),"opvangplaatsen/VTE",VLOOKUP($C40,'Capaciteiten & forfaits'!$B$4:$H$75,3,FALSE))) -> bed/plaats | J40: De eenheid van de erkende capaciteit past automatisch aan wanneer u de zorgvorm kiest.
B41: Zorgvorm 2 | C41: Kies de zorgvorm | H41: 0 | I41: =IF(ISNUMBER(SEARCH("kinderzorg",$C41)),"opvangplaatsen/VTE",IF(ISNUMBER(SEARCH("welzijnswerk",$C41)),"opvangplaatsen/VTE",VLOOKUP($C41,'Capaciteiten & forfaits'!$B$4:$H$75,3,FALSE))) -> 
B42: Zorgvorm 3 | C42: Kies de zorgvorm | H42: 0 | I42: =IF(ISNUMBER(SEARCH("kinderzorg",$C42)),"opvangplaatsen/VTE",IF(ISNUMBER(SEARCH("welzijnswerk",$C42)),"opvangplaatsen/VTE",VLOOKUP($C42,'Capaciteiten & forfaits'!$B$4:$H$75,3,FALSE))) -> 
A44: D | B44: Geef voor elke zorgvorm de verschillende kostensoorten van het project, het bijhorende BTW-stelsel, de bruto oppervlakte en de capaciteitsuitbreiding of -vervanging.
B46: Zorgvorm 1 | C46: =C40 -> Algemeen ziekenhuis | J46: De zorgvorm wordt automatisch overgenomen uit C.
C47: Type | D47: BTW-stelsel | E47: Bruto oppervlakte* | F47: BTW-stelsel 2 | G47: Bruto oppervlakte 2 | H47: Capaciteitsuitbreiding | I47: Capaciteitsvervanging
B48: Kostensoort 1 | C48: Nieuwbouw 21% BTW | D48: 0.21 | E48: 0 | F48: 0.21 | G48: 0 | H48: 0 | I48: 0
B49: Kostensoort 2 | C49: Herconditionering | D49: 0.21 | E49: 0 | F49: 0.21 | G49: 0 | H49: 0 | I49: 0
B50: Kostensoort 3 | C50: Kies kostensoort | D50: 0.21 | E50: 0 | F50: 0.21 | G50: 0 | H50: 0 | I50: 0
B51: Kostensoort 4 | C51: Kies kostensoort | D51: 0.21 | E51: 0 | F51: 0.21 | G51: 0 | H51: 0 | I51: 0
B53: Zorgvorm 2 | C53: =C41 -> Kies de zorgvorm | J53: De zorgvorm wordt automatisch overgenomen uit C.
C54: Type | D54: BTW-stelsel | E54: Bruto oppervlakte* | F54: BTW-stelsel 2 | G54: Bruto oppervlakte | H54: Capaciteitsuitbreiding | I54: Capaciteitsvervanging
B55: Kostensoort 1 | C55: Kies kostensoort | D55: 0.21 | E55: 0 | F55: 0.21 | G55: 0 | H55: 0 | I55: 0
B56: Kostensoort 2 | C56: Kies kostensoort | D56: 0.21 | E56: 0 | F56: 0.21 | G56: 0 | H56: 0 | I56: 0
B57: Kostensoort 3 | C57: Kies kostensoort | D57: 0.21 | E57: 0 | F57: 0.21 | G57: 0 | H57: 0 | I57: 0
B58: Kostensoort 4 | C58: Kies kostensoort | D58: 0.21 | E58: 0 | F58: 0.21 | G58: 0 | H58: 0 | I58: 0
B60: Zorgvorm 3 | C60: =C42 -> Kies de zorgvorm | J60: De zorgvorm wordt automatisch overgenomen uit C.
C61: Type | D61: BTW-stelsel | E61: Bruto oppervlakte* | F61: BTW-stelsel 2 | G61: Bruto oppervlakte | H61: Capaciteitsuitbreiding | I61: Capaciteitsvervanging
B62: Kostensoort 1 | C62: Kies kostensoort | D62: 0.21 | E62: 0 | F62: 0.21 | G62: 0 | H62: 0 | I62: 0
B63: Kostensoort 2 | C63: Kies kostensoort | D63: 0.21 | E63: 0 | F63: 0.21 | G63: 0 | H63: 0 | I63: 0
B64: Kostensoort 3 | C64: Kies kostensoort | D64: 0.21 | E64: 0 | F64: 0.21 | G64: 0 | H64: 0 | I64: 0
B65: Kostensoort 4 | C65: Kies kostensoort | D65: 0.21 | E65: 0 | F65: 0.21 | G65: 0 | H65: 0 | I65: 0
C66: Totale oppervlakte project | E66: =ROUND(SUM(E62:E65,E55:E58,E48:E51),2) -> 0 | I66: =SUM(I48:I51,I55:I58,I62:I65) -> 0
E68: *Bruto oppervlakte van het project voor de bijhorende zorgvorm en kostensoort zonder ondergronde parking

Sheet Overzicht project_gewijzigd (hidden)
A1: Identificatie van het project waarvoor een wijziging belofte worden aangevraagd
B4: Identificatie van het project
A6: A | B6: Geef voor elke zorgvorm de verschillende kostensoorten van het project, het bijhorende BTW-stelsel, de bruto oppervlakte en de capaciteitsuitbreiding of -vervanging.
B8: Zorgvorm 1 | C8: ='Overzicht project'!C46 -> Algemeen ziekenhuis | J8: De zorgvorm wordt automatisch overgenomen uit C.
C9: Type | D9: BTW-stelsel | E9: Bruto oppervlakte* | F9: BTW-stelsel | G9: Bruto oppervlakte | H9: Capaciteitsuitbreiding | I9: Capaciteitsvervanging
B10: Kostensoort 1 | C10: ='Overzicht project'!C48 -> Nieuwbouw 21% BTW | D10: ='Overzicht project'!D48 -> 0.21 | E10: ='Overzicht project'!E48 -> 0 | F10: ='Overzicht project'!F48 -> 0.21 | G10: ='Overzicht project'!G48 -> 0 | H10: ='Overzicht project'!H48 -> 0 | I10: ='Overzicht project'!I48 -> 0
B11: Kostensoort 2 | C11: ='Overzicht project'!C49 -> Herconditionering | D11: ='Overzicht project'!D49 -> 0.21 | E11: ='Overzicht project'!E49 -> 0 | F11: ='Overzicht project'!F49 -> 0.21 | G11: ='Overzicht project'!G49 -> 0 | H11: ='Overzicht project'!H49 -> 0 | I11: ='Overzicht project'!I49 -> 0
B12: Kostensoort 3 | C12: ='Overzicht project'!C50 -> Kies kostensoort | D12: ='Overzicht project'!D50 -> 0.21 | E12: ='Overzicht project'!E50 -> 0 | F12: ='Overzicht project'!F50 -> 0.21 | G12: ='Overzicht project'!G50 -> 0 | H12: ='Overzicht project'!H50 -> 0 | I12: ='Overzicht project'!I50 -> 0
B13: Kostensoort 4 | C13: ='Overzicht project'!C51 -> Kies kostensoort | D13: ='Overzicht project'!D51 -> 0.21 | E13: ='Overzicht project'!E51 -> 0 | F13: ='Overzicht project'!F51 -> 0.21 | G13: ='Overzicht project'!G51 -> 0 | H13: ='Overzicht project'!H51 -> 0 | I13: ='Overzicht project'!I51 -> 0
B15: Zorgvorm 2 | C15: ='Overzicht project'!C53 -> Kies de zorgvorm | J15: De zorgvorm wordt automatisch overgenomen uit C.
C16: Type | D16: BTW-stelsel | E16: Bruto oppervlakte* | F16: BTW-stelsel | G16: Bruto oppervlakte | H16: Capaciteitsuitbreiding | I16: Capaciteitsvervanging
B17: Kostensoort 1 | C17: ='Overzicht project'!C55 -> Kies kostensoort | D17: ='Overzicht project'!D55 -> 0.21 | E17: ='Overzicht project'!E55 -> 0 | F17: ='Overzicht project'!F55 -> 0.21 | G17: ='Overzicht project'!G55 -> 0 | H17: ='Overzicht project'!H55 -> 0 | I17: ='Overzicht project'!I55 -> 0
B18: Kostensoort 2 | C18: ='Overzicht project'!C56 -> Kies kostensoort | D18: ='Overzicht project'!D56 -> 0.21 | E18: ='Overzicht project'!E56 -> 0 | F18: ='Overzicht project'!F56 -> 0.21 | G18: ='Overzicht project'!G56 -> 0 | H18: ='Overzicht project'!H56 -> 0 | I18: ='Overzicht project'!I56 -> 0
B19: Kostensoort 3 | C19: ='Overzicht project'!C57 -> Kies kostensoort | D19: ='Overzicht project'!D57 -> 0.21 | E19: ='Overzicht project'!E57 -> 0 | F19: ='Overzicht project'!F57 -> 0.21 | G19: ='Overzicht project'!G57 -> 0 | H19: ='Overzicht project'!H57 -> 0 | I19: ='Overzicht project'!I57 -> 0
B20: Kostensoort 4 | C20: ='Overzicht project'!C58 -> Kies kostensoort | D20: ='Overzicht project'!D58 -> 0.21 | E20: ='Overzicht project'!E58 -> 0 | F20: ='Overzicht project'!F58 -> 0.21 | G20: ='Overzicht project'!G58 -> 0 | H20: ='Overzicht project'!H58 -> 0 | I20: ='Overzicht project'!I58 -> 0
B22: Zorgvorm 3 | C22: ='Overzicht project'!C60 -> Kies de zorgvorm | J22: De zorgvorm wordt automatisch overgenomen uit C.
C23: Type | D23: BTW-stelsel | E23: Bruto oppervlakte* | F23: BTW-stelsel | G23: Bruto oppervlakte | H23: Capaciteitsuitbreiding | I23: Capaciteitsvervanging
B24: Kostensoort 1 | C24: ='Overzicht project'!C62 -> Kies kostensoort | D24: ='Overzicht project'!D62 -> 0.21 | E24: ='Overzicht project'!E62 -> 0 | F24: ='Overzicht project'!F62 -> 0.21 | G24: ='Overzicht project'!G62 -> 0 | H24: ='Overzicht project'!H62 -> 0 | I24: ='Overzicht project'!I62 -> 0
B25: Kostensoort 2 | C25: ='Overzicht project'!C63 -> Kies kostensoort | D25: ='Overzicht project'!D63 -> 0.21 | E25: ='Overzicht project'!E63 -> 0 | F25: ='Overzicht project'!F63 -> 0.21 | G25: ='Overzicht project'!G63 -> 0 | H25: ='Overzicht project'!H63 -> 0 | I25: ='Overzicht project'!I63 -> 0
B26: Kostensoort 3 | C26: ='Overzicht project'!C64 -> Kies kostensoort | D26: ='Overzicht project'!D64 -> 0.21 | E26: ='Overzicht project'!E64 -> 0 | F26: ='Overzicht project'!F64 -> 0.21 | G26: ='Overzicht project'!G64 -> 0 | H26: ='Overzicht project'!H64 -> 0 | I26: ='Overzicht project'!I64 -> 0
B27: Kostensoort 4 | C27: ='Overzicht project'!C65 -> Kies kostensoort | D27: ='Overzicht project'!D65 -> 0.21 | E27: ='Overzicht project'!E65 -> 0 | F27: ='Overzicht project'!F65 -> 0.21 | G27: ='Overzicht project'!G65 -> 0 | H27: ='Overzicht project'!H65 -> 0 | I27: ='Overzicht project'!I65 -> 0
C28: Totale oppervlakte project | E28: =ROUND(SUM(E24:E27,E17:E20,E10:E13),2) -> 0
E30: *Bruto oppervlakte van het project voor de bijhorende zorgvorm en kostensoort zonder ondergronde parking

Sheet Overzicht BTA (hidden)
A2: 1 | B2: Zorgvorm project | C2: Zorgvorm 1 | H2: Zorgvorm 2 | N2: Zorgvorm 3
B3: Vul de zorgvorm in | C3: ='Overzicht project'!C40 -> Algemeen ziekenhuis | H3: ='Overzicht project'!C41 -> Kies de zorgvorm | N3: ='Overzicht project'!C42 -> Kies de zorgvorm
B4: link naar regelgeving | C4: =HYPERLINK(VLOOKUP(C3,'Capaciteiten & forfaits'!$B$4:$J$76,9,FALSE)) -> https://codex.vlaanderen.be/PrintDocument.ashx?id=1028580&datum=&geannoteerd=false&print=false#H1083013 | H4: =HYPERLINK(VLOOKUP(H3,'Capaciteiten & forfaits'!$B$4:$J$76,9,FALSE)) ->  | N4: =HYPERLINK(VLOOKUP(N3,'Capaciteiten & forfaits'!$B$4:$J$76,9,FALSE)) -> 
A6: 2 | B6: Kostensoort(en) | C6: Oppervlakte | E6: Capaciteitsuitbreiding | F6: Capaciteitsvervanging | H6: Kostensoort(en) | I6: Oppervlakte | J6: opp. beperkt | K6: Capaciteitsuitbreiding | L6: Capaciteitsvervanging | N6: Kostensoort(en) | O6: Oppervlakte | P6: opp. Beperkt | Q6: Capaciteitsuitbreiding | R6: Capaciteitsvervanging
B7: =VLOOKUP('Overzicht project'!$C48,Bron!$A$7:$B$19,2,FALSE) -> Nieuwbouw 21% | C7: =IF(OR(B7=Bron!$B$9,B7=Bron!$B$14),'Overzicht project'!E48+'Overzicht project'!G48,'Overzicht project'!E48) -> 0 | E7: ='Overzicht project'!H48 -> 0 | F7: ='Overzicht project'!I48 -> 0 | H7: =VLOOKUP('Overzicht project'!$C55,Bron!$A$7:$B$19,2,FALSE) -> Kies kostensoort | I7: =IF(OR(H7=Bron!$B$9,H7=Bron!$B$14),'Overzicht project'!E55,'Overzicht project'!E55) -> 0 | J7: 0 | K7: ='Overzicht project'!$H55 -> 0 | L7: ='Overzicht project'!$I55 -> 0 | N7: =VLOOKUP('Overzicht project'!$C62,Bron!$A$7:$B$19,2,FALSE) -> Kies kostensoort | O7: =IF(OR(B7=Bron!$B$9,B7=Bron!$B$14),'Overzicht project'!$E62,'Overzicht project'!$E62) -> 0 | P7: 0 | Q7: ='Overzicht project'!$H62 -> 0 | R7: ='Overzicht project'!$I62 -> 0
B8: =VLOOKUP('Overzicht project'!$C49,Bron!$A$7:$B$19,2,FALSE) -> Herconditionering | C8: =IF(OR(B8=Bron!$B$9,B8=Bron!$B$14),'Overzicht project'!E49,'Overzicht project'!E49) -> 0 | E8: ='Overzicht project'!$H49 -> 0 | F8: ='Overzicht project'!$I49 -> 0 | H8: =VLOOKUP('Overzicht project'!$C56,Bron!$A$7:$B$19,2,FALSE) -> Kies kostensoort | I8: =IF(OR(H8=Bron!$B$9,H8=Bron!$B$14),'Overzicht project'!E56,'Overzicht project'!E56) -> 0 | J8: 0 | K8: ='Overzicht project'!$H56 -> 0 | L8: ='Overzicht project'!$I56 -> 0 | N8: =VLOOKUP('Overzicht project'!$C63,Bron!$A$7:$B$19,2,FALSE) -> Kies kostensoort | O8: =IF(OR(B8=Bron!$B$9,B8=Bron!$B$14),'Overzicht project'!$E63,'Overzicht project'!$E63) -> 0 | P8: 0 | Q8: ='Overzicht project'!$H63 -> 0 | R8: ='Overzicht project'!$I63 -> 0
B9: =VLOOKUP('Overzicht project'!$C50,Bron!$A$7:$B$19,2,FALSE) -> Kies kostensoort | C9: =IF(OR(B9=Bron!$B$9,B9=Bron!$B$14),'Overzicht project'!E50,'Overzicht project'!E50) -> 0 | E9: ='Overzicht project'!$H50 -> 0 | F9: ='Overzicht project'!$I50 -> 0 | H9: =VLOOKUP('Overzicht project'!$C57,Bron!$A$7:$B$19,2,FALSE) -> Kies kostensoort | I9: =IF(OR(H9=Bron!$B$9,H9=Bron!$B$14),'Overzicht project'!E57,'Overzicht project'!E57) -> 0 | J9: 0 | K9: ='Overzicht project'!$H57 -> 0 | L9: ='Overzicht project'!$I57 -> 0 | N9: =VLOOKUP('Overzicht project'!$C64,Bron!$A$7:$B$19,2,FALSE) -> Kies kostensoort | O9: =IF(OR(B9=Bron!$B$9,B9=Bron!$B$14),'Overzicht project'!$E64,'Overzicht project'!$E64) -> 0 | P9: 0 | Q9: ='Overzicht project'!$H64 -> 0 | R9: ='Overzicht project'!$I64 -> 0 | T9: =SUM(P7:P10,J7:J10,D7:D10) -> 0
B10: =VLOOKUP('Overzicht project'!$C51,Bron!$A$7:$B$16,2,FALSE) -> Kies kostensoort | C10: =IF(OR(B10=Bron!$B$9,B10=Bron!$B$14),'Overzicht project'!E51,'Overzicht project'!E51) -> 0 | D10: 0 | E10: ='Overzicht project'!$H51 -> 0 | F10: ='Overzicht project'!$I51 -> 0 | H10: =VLOOKUP('Overzicht project'!$C58,Bron!$A$7:$B$16,2,FALSE) -> Kies kostensoort | I10: =IF(OR(H10=Bron!$B$9,H10=Bron!$B$14),'Overzicht project'!E58,'Overzicht project'!E58) -> 0 | J10: 0 | K10: ='Overzicht project'!$H58 -> 0 | L10: ='Overzicht project'!$I58 -> 0 | N10: =VLOOKUP('Overzicht project'!$C65,Bron!$A$7:$B$16,2,FALSE) -> Kies kostensoort | O10: =IF(OR(B10=Bron!$B$9,B10=Bron!$B$14),'Overzicht project'!$E65,'Overzicht project'!$E65) -> 0 | P10: 0 | Q10: ='Overzicht project'!$H65 -> 0 | R10: ='Overzicht project'!$I65 -> 0
A12: 3 | B12: BTW | C12: BTW tarief 1 | D12: OPP-BTW1 | E12: BTW tarief 2 | F12: OPP-BTW2 | H12: Kostensoort(en) | I12: BTW tarief 1 | J12: OPP-BTW1 | K12: BTW tarief 2 | L12: OPP-BTW2 | O12: BTW tarief 1 | P12: OPP-BTW1 | Q12: BTW tarief 1 | R12: OPP-BTW1
B13: Nieuwbouw 21% | C13: =IF($B13=$B$7,'Overzicht project'!$D$48,IF($B13=$B$8,'Overzicht project'!$D$49,IF($B13=$B$9,'Overzicht project'!$D$50,IF($B13=$B$10,'Overzicht project'!$D$51,0)))) -> 0.21 | D13: =IF(B$7=Bron!$B$8,'Overzicht BTA'!C7,IF('Overzicht BTA'!B$8=Bron!$B$8,'Overzicht BTA'!C8,IF('Overzicht BTA'!B$9=Bron!$B$8,'Overzicht BTA'!C9,IF('Overzicht BTA'!B$10=Bron!$B$8,'Overzicht BTA'!C10,0)))) -> 0 | H13: Nieuwbouw 21% | I13: =IF(H13=$H$7,'Overzicht project'!$D$55,IF(H13=$H$8,'Overzicht project'!$D$56,IF(H13=$H$9,'Overzicht project'!$D$57,IF(H13=$H$10,'Overzicht project'!$D$58,0)))) -> 0 | J13: =IF(H$7=Bron!$B$8,'Overzicht BTA'!I7,IF('Overzicht BTA'!H$8=Bron!$B$8,'Overzicht BTA'!I8,IF('Overzicht BTA'!H$9=Bron!$B$8,'Overzicht BTA'!I9,IF('Overzicht BTA'!H$10=Bron!$B$8,'Overzicht BTA'!I10,0)))) -> 0 | N13: Nieuwbouw 21% | O13: =IF($N13=$N$7,'Overzicht project'!$D$62,IF($N13=$N$8,'Overzicht project'!$D$63,IF($N13=$N$9,'Overzicht project'!$D$64,IF($N13=$N$10,'Overzicht project'!$D$65,0)))) -> 0 | P13: =IF(N$7=Bron!$B$8,'Overzicht BTA'!O7,IF('Overzicht BTA'!N$8=Bron!$B$8,'Overzicht BTA'!O8,IF('Overzicht BTA'!N$9=Bron!$B$8,'Overzicht BTA'!O9,IF('Overzicht BTA'!N$10=Bron!$B$8,'Overzicht BTA'!O10,0)))) -> 0
B14: Herconditionering | C14: =IF(OR($B14=$B$7,$B$7=Bron!$B$16),'Overzicht project'!$D$48,IF(OR($B14=$B$8,$B$8=Bron!$B$16),'Overzicht project'!$D$49,IF(OR($B14=$B$9,$B$9=Bron!$B$16),'Overzicht project'!$D$50,IF(OR($B14=$B$10,$B$10=Bron!$B$16),'Overzicht project'!$D$51,0)))) -> 0.21 | D14: =IF(B$7=Bron!$B$11,'Overzicht BTA'!C7,IF('Overzicht BTA'!B$8=Bron!$B$11,'Overzicht BTA'!C8,IF('Overzicht BTA'!B$9=Bron!$B$11,'Overzicht BTA'!C9,IF('Overzicht BTA'!B$10=Bron!$B$11,'Overzicht BTA'!C10,0)))) -> 0 | H14: Herconditionering | I14: =IF(OR($H14=$H$7,$H$7=Bron!$B$16),'Overzicht project'!$D$55,IF(OR($H14=$H$8,$H$8=Bron!$B$16),'Overzicht project'!$D$56,IF(OR($H14=$H$9,$H$9=Bron!$B$16),'Overzicht project'!$D$57,IF(OR($H14=$H$10,$H$10=Bron!$B$16),'Overzicht project'!$D$58,0)))) -> 0 | J14: =IF(H$7=Bron!$B$11,'Overzicht BTA'!I7,IF('Overzicht BTA'!H$8=Bron!$B$11,'Overzicht BTA'!I8,IF('Overzicht BTA'!H$9=Bron!$B$11,'Overzicht BTA'!I9,IF('Overzicht BTA'!H$10=Bron!$B$11,'Overzicht BTA'!I10,0)))) -> 0 | N14: Herconditionering | O14: =IF(OR($N14=$N$7,$N$7=Bron!$B$16),'Overzicht project'!$D$62,IF(OR($N14=$N$8,$N$8=Bron!$B$16),'Overzicht project'!$D$63,IF(OR($N14=$N$9,$N$9=Bron!$B$16),'Overzicht project'!$D$64,IF(OR($N14=$N$10,$N$10=Bron!$B$16),'Overzicht project'!$D$65,0)))) -> 0 | P14: =IF(N$7=Bron!$B$11,'Overzicht BTA'!O7,IF('Overzicht BTA'!N$8=Bron!$B$11,'Overzicht BTA'!O8,IF('Overzicht BTA'!N$9=Bron!$B$11,'Overzicht BTA'!O9,IF('Overzicht BTA'!N$10=Bron!$B$11,'Overzicht BTA'!O10,0)))) -> 0 | V14: =ROUND(IF(ISNUMBER((SEARCH("kinderzorg",A3))),#REF!,IF(ISNUMBER(SEARCH("categorie 8",A3)),#REF!,IF(ISNUMBER(SEARCH("beveiligd verblijf",A3)),#REF!,IF(OR(ISNUMBER(SEARCH("jeugdzorg",A3)),ISNUMBER(SEARCH("afhandeling",A3)),ISNUMBER(SEARCH("gezinszorg",A3)),ISNUMBER(SEARCH("oriëntatie",A3))),#REF!,IF(ISNUMBER(SEARCH("welzijnswerk",A3)),#REF!,"0"))))),2) -> 0
A16: 2 | B16: Centrumstad?
A17: Het gaat om een grootstad, centrumstad of de Brusselse-Hoofdstad | C17: FALSE
A19: 4 | B19: Capaciteit voorziening | H19: Capaciteit voorziening | N19: Capaciteit voorziening
B20: Totale erkende capaciteit voorziening | C20: =SUM('ZH - capaciteiten'!C6:C9)+SUM('ZH - capaciteiten'!C11:C15)+SUM('ZH - capaciteiten'!C17:C24) -> 0 | D20: =IF(ISNUMBER(SEARCH("kinderzorg",$C$3)),"opvangplaatsen/VTE",VLOOKUP($C$3,'Capaciteiten & forfaits'!$B$4:$H$79,3,FALSE)) -> bed/plaats | E20: enkel invullen wanneer het niet gaat over gezinnen met kinderen, BJB, PH, preventie en ambulante of CAW. Anders de bijhorende tabbladden openen en invullen. | I20: Totale erkende capaciteit | J20: =ROUND(IF(ISNUMBER((SEARCH("kinderzorg",H3))),#REF!,IF(ISNUMBER((SEARCH("Vertrouwenscentra",H3))),#REF!,IF(ISNUMBER((SEARCH("Kinderopvang",H3))),#REF!,IF(ISNUMBER(SEARCH("categorie 8",H3)),#REF!,IF(ISNUMBER(SEARCH("beveiligend verblijf",H3)),#REF!,IF(OR(ISNUMBER(SEARCH("jeugdzorg",H3)),ISNUMBER(SEARCH("afhandeling",H3)),ISNUMBER(SEARCH("gezinszorg",H3)),ISNUMBER(SEARCH("oriëntatie",H3))),#REF!,IF(ISNUMBER(SEARCH("welzijnswerk",H3)),#REF!,IF(ISNUMBER(SEARCH("geestelijke",H3)),#REF!,IF(ISNUMBER(SEARCH("Aanloopadres",H3)),#REF!+#REF!,IF(ISNUMBER(SEARCH("Observatie",H3)),#REF!,IF(ISNUMBER(SEARCH("geïnterneerde",H3)),#REF!,IF(ISNUMBER(SEARCH("Personen met een handicap",H3)),#REF!-#REF!-#REF!,IF(ISNUMBER(SEARCH("Revalidatieovereenkomst",H3)),#REF!,IF(H3="Woonzorg - Centra voor dagverzorging",1,IF(H3="Woonzorg - Lokaal dienstencentrum",1,0))))))))))))))),2) -> 0 | K20: =IF(ISNUMBER(SEARCH("kinderzorg",$H$3)),"opvangplaatsen/VTE",VLOOKUP($H$3,'Capaciteiten & forfaits'!$B$4:$H$66,3,FALSE)) ->  | O20: Totale erkende capaciteit | P20: =ROUND(IF(ISNUMBER((SEARCH("kinderzorg",N3))),#REF!,IF(ISNUMBER((SEARCH("Vertrouwenscentra",N3))),#REF!,IF(ISNUMBER((SEARCH("Kinderopvang",N3))),#REF!,IF(ISNUMBER(SEARCH("categorie 8",N3)),#REF!,IF(ISNUMBER(SEARCH("beveiligend verblijf",N3)),#REF!,IF(OR(ISNUMBER(SEARCH("jeugdzorg",N3)),ISNUMBER(SEARCH("afhandeling",N3)),ISNUMBER(SEARCH("gezinszorg",N3)),ISNUMBER(SEARCH("oriëntatie",N3))),#REF!,IF(ISNUMBER(SEARCH("welzijnswerk",N3)),#REF!,IF(ISNUMBER(SEARCH("geestelijke",N3)),#REF!,IF(ISNUMBER(SEARCH("Aanloopadres",N3)),#REF!+#REF!,IF(ISNUMBER(SEARCH("Observatie",N3)),#REF!,IF(ISNUMBER(SEARCH("geïnterneerde",N3)),#REF!,IF(ISNUMBER(SEARCH("Personen met een handicap",N3)),#REF!-#REF!-#REF!,IF(ISNUMBER(SEARCH("Revalidatieovereenkomst",N3)),#REF!,IF(N3="Woonzorg - Centra voor dagverzorging",1,IF(N3="Woonzorg - Lokaal dienstencentrum",1,0))))))))))))))),2) -> 0 | Q20: =IF(ISNUMBER(SEARCH("kinderzorg",$N$3)),"opvangplaatsen/VTE",VLOOKUP($N$3,'Capaciteiten & forfaits'!$B$4:$H$66,3,FALSE)) -> 
B21: Capaciteitsuitbreiding | C21: =SUM(E7:E10) -> 0 | D21: =IF(ISNUMBER(SEARCH("kinderzorg",$C$3)),"opvangplaatsen/VTE",VLOOKUP($C$3,'Capaciteiten & forfaits'!$B$4:$H$79,3,FALSE)) -> bed/plaats | I21: Capaciteitsuitbreiding | J21: =SUM(K7:K10) -> 0 | K21: =IF(ISNUMBER(SEARCH("kinderzorg",$H$3)),"opvangplaatsen/VTE",VLOOKUP($H$3,'Capaciteiten & forfaits'!$B$4:$H$66,3,FALSE)) ->  | O21: Capaciteitsuitbreiding | P21: =SUM(Q7:Q10) -> 0 | Q21: =IF(ISNUMBER(SEARCH("kinderzorg",$N$3)),"opvangplaatsen/VTE",VLOOKUP($N$3,'Capaciteiten & forfaits'!$B$4:$H$66,3,FALSE)) -> 
B22: Capaciteitsvervanging | C22: FALSE | D22: =IF(ISNUMBER(SEARCH("kinderzorg",$C$3)),"opvangplaatsen/VTE",VLOOKUP($C$3,'Capaciteiten & forfaits'!$B$4:$H$79,3,FALSE)) -> bed/plaats | I22: Capaciteitsvervanging | J22: =SUM(L7:L10) -> 0 | K22: =IF(ISNUMBER(SEARCH("kinderzorg",$H$3)),"opvangplaatsen/VTE",VLOOKUP($H$3,'Capaciteiten & forfaits'!$B$4:$H$66,3,FALSE)) ->  | O22: Capaciteitsvervanging | P22: =SUM(R7:R10) -> 0 | Q22: =IF(ISNUMBER(SEARCH("kinderzorg",$N$3)),"opvangplaatsen/VTE",VLOOKUP($N$3,'Capaciteiten & forfaits'!$B$4:$H$66,3,FALSE)) -> 
A24: 5 | B24: Subsidiabele oppervlakte | H24: Subsidiabele oppervlakte | N24: Subsidiabele oppervlakte
B25: Bruto opp. project | C25: =SUM(C7:C10) -> 0 | I25: Bruto opp. project | J25: =SUM(I7:I10) -> 0 | O25: Bruto opp. project | P25: =SUM(O7:O10) -> 0
B26: Maximaal subsidiabele opp. | C26: 0 | I26: Maximaal subsidiabele opp. | J26: =IF(ISNUMBER((SEARCH("kinderzorg",H3))),#REF!,IF(ISNUMBER(SEARCH("categorie 8",H3)),#REF!,IF(ISNUMBER(SEARCH("beveiligend verblijf",H3)),#REF!,IF(OR(ISNUMBER(SEARCH("jeugdzorg",H3)),ISNUMBER(SEARCH("afhandeling",H3)),ISNUMBER(SEARCH("gezinszorg",H3)),ISNUMBER(SEARCH("oriëntatie",H3)),ISNUMBER(SEARCH("dienst voor",H3))),#REF!,IF(ISNUMBER(SEARCH("welzijnswerk",H3)),#REF!,IF(ISNUMBER(SEARCH("geestelijke",H3)),#REF!,IF(ISNUMBER(SEARCH("Aanloopadres",H3)),#REF!+#REF!,IF(ISNUMBER(SEARCH("Observatie",H3)),#REF!,IF(ISNUMBER(SEARCH("geïnterneerde",H3)),#REF!,IF(ISNUMBER(SEARCH("Personen met een handicap",H3)),#REF!-#REF!-#REF!,VLOOKUP(H3,'Capaciteiten & forfaits'!$B$3:$H$73,2,FALSE)*J20)))))))))) -> 0 | O26: Maximaal subsidiabele opp. | P26: =IF(ISNUMBER((SEARCH("kinderzorg",N3))),#REF!,IF(ISNUMBER(SEARCH("categorie 8",N3)),#REF!,IF(ISNUMBER(SEARCH("beveiligend verblijf",N3)),#REF!,IF(OR(ISNUMBER(SEARCH("jeugdzorg",N3)),ISNUMBER(SEARCH("afhandeling",N3)),ISNUMBER(SEARCH("gezinszorg",N3)),ISNUMBER(SEARCH("oriëntatie",N3)),ISNUMBER(SEARCH("dienst voor",N3))),#REF!,IF(ISNUMBER(SEARCH("welzijnswerk",N3)),#REF!,IF(ISNUMBER(SEARCH("geestelijke",N3)),#REF!,IF(ISNUMBER(SEARCH("Aanloopadres",N3)),#REF!+#REF!,IF(ISNUMBER(SEARCH("Observatie",N3)),#REF!,IF(ISNUMBER(SEARCH("geïnterneerde",N3)),#REF!,IF(ISNUMBER(SEARCH("Personen met een handicap",N3)),#REF!-#REF!-#REF!,VLOOKUP(N3,'Capaciteiten & forfaits'!$B$3:$H$73,2,FALSE)*P20)))))))))) -> 0
B27: Bestaande gesubsidieerde opp. | C27: =IF('Overzicht project'!$J$23='Overzicht BTA'!C3,'Overzicht project'!$D$23,0)+IF('Overzicht project'!$J$24='Overzicht BTA'!C3,'Overzicht project'!$D$24,0)+IF('Overzicht project'!$J$25='Overzicht BTA'!C3,'Overzicht project'!$D$25,0)+IF('Overzicht project'!$J$26='Overzicht BTA'!C3,'Overzicht project'!$D$26,0)+IF('Overzicht project'!$J$27='Overzicht BTA'!C3,'Overzicht project'!$D$27,0)+IF('Overzicht project'!$J$28='Overzicht BTA'!C3,'Overzicht project'!$D$28,0)+IF('Overzicht project'!$J$29='Overzicht BTA'!C3,'Overzicht project'!$D$29,0) -> 0 | I27: Bestaande gesubsidieerde opp. | J27: =IF('Overzicht project'!$J$23='Overzicht BTA'!H3,'Overzicht project'!$D$23,0)+IF('Overzicht project'!$J$24='Overzicht BTA'!H3,'Overzicht project'!$D$24,0)+IF('Overzicht project'!$J$25='Overzicht BTA'!H3,'Overzicht project'!$D$25,0)+IF('Overzicht project'!$J$26='Overzicht BTA'!H3,'Overzicht project'!$D$26,0)+IF('Overzicht project'!$J$27='Overzicht BTA'!H3,'Overzicht project'!$D$27,0)+IF('Overzicht project'!$J$28='Overzicht BTA'!H3,'Overzicht project'!$D$28,0)+IF('Overzicht project'!$J$29='Overzicht BTA'!H3,'Overzicht project'!$D$29,0) -> 0 | K27: per zorgvorm bekijken uit overzicht project | O27: Bestaande gesubsidieerde opp. | P27: =IF('Overzicht project'!$J$23='Overzicht BTA'!N3,'Overzicht project'!$D$23,0)+IF('Overzicht project'!$J$24='Overzicht BTA'!N3,'Overzicht project'!$D$24,0)+IF('Overzicht project'!$J$25='Overzicht BTA'!N3,'Overzicht project'!$D$25,0)+IF('Overzicht project'!$J$26='Overzicht BTA'!N3,'Overzicht project'!$D$26,0)+IF('Overzicht project'!$J$27='Overzicht BTA'!N3,'Overzicht project'!$D$27,0)+IF('Overzicht project'!$J$28='Overzicht BTA'!N3,'Overzicht project'!$D$28,0)+IF('Overzicht project'!$J$29='Overzicht BTA'!N3,'Overzicht project'!$D$29,0) -> 0 | Q27: per zorgvorm bekijken uit overzicht project
B28: Subsidiabele oppervlakte | C28: =IF(MIN(C26-C27,C25)<0,0,MIN(C26-C27,C25)) -> 0 | I28: Subsidiabele oppervlakte | J28: =IF(MIN(J26-J27,J25)<0,0,MIN(J26-J27,J25)) -> 0 | O28: Subsidiabele oppervlakte | P28: =IF(MIN(P26-P27,P25)<0,0,MIN(P26-P27,P25)) -> 0
A30: 6 | B30: Bouwindex | C30: Jaar | D30: Index | H30: Jaar | I30: Index | N30: Jaar | O30: Index
B31: Jaar van BTA/COCO | C31: 2024 | D31: =VLOOKUP('Overzicht BTA'!C31,Bouwindex_ABEX!$L$3:$M$63,2,FALSE) -> 2.28638 | H31: 2024 | I31: =VLOOKUP('Overzicht BTA'!H31,Bouwindex_ABEX!$L$3:$M$63,2,FALSE) -> 2.28638 | N31: 2024 | O31: =VLOOKUP('Overzicht BTA'!N31,Bouwindex_ABEX!$L$3:$M$63,2,FALSE) -> 2.28638
B32: Wijziging belofte | C32: =C31 -> 2024 | D32: =VLOOKUP('Overzicht BTA'!C32,Bouwindex_ABEX!$L$3:$M$63,2,FALSE) -> 2.28638 | E32: FALSE | H32: =H31 -> 2024 | I32: =VLOOKUP('Overzicht BTA'!H32,Bouwindex_ABEX!$L$3:$M$63,2,FALSE) -> 2.28638 | N32: =N31 -> 2024 | O32: =VLOOKUP('Overzicht BTA'!N32,Bouwindex_ABEX!$L$3:$M$63,2,FALSE) -> 2.28638
B33: Indexatie bevel van aanvang | C33: =C32 -> 2024 | D33: =VLOOKUP('Overzicht BTA'!C33,Bouwindex_ABEX!$L$3:$M$63,2,FALSE) -> 2.28638 | E33: FALSE | H33: =H32 -> 2024 | I33: =VLOOKUP('Overzicht BTA'!H33,Bouwindex_ABEX!$L$3:$M$63,2,FALSE) -> 2.28638 | N33: =N32 -> 2024 | O33: =VLOOKUP('Overzicht BTA'!N33,Bouwindex_ABEX!$L$3:$M$63,2,FALSE) -> 2.28638
C34: FALSE
A35: 7 | B35: Raming
B36: Totale bruto kostprijs project | C36: ='uitgebreide raming'!J27 -> 0 | H36: ='uitgebreide raming'!J55 -> 0 | N36: ='uitgebreide raming'!J83 -> 0
A38: 8 | B38: Indienen EVA 3 toegestaan | C38: FALSE
A40: 9 | B40: Wijziging belofte
A41: 9a | B41: Kostensoort(en) | C41: Oppervlakte | E41: Capaciteitsuitbreiding | F41: Capaciteitsvervanging | H41: Kostensoort(en) | I41: Oppervlakte | J41: opp. beperkt | K41: Capaciteitsuitbreiding | L41: Capaciteitsvervanging | N41: Kostensoort(en) | O41: Oppervlakte | P41: opp. Beperkt | Q41: Capaciteitsuitbreiding | R41: Capaciteitsvervanging
B42: =VLOOKUP('Overzicht project_gewijzigd'!C10,Bron!$A$7:$B$19,2,FALSE) -> Nieuwbouw 21% | C42: =IF(OR(B42=Bron!$B$9,B42=Bron!$B$14),'Overzicht project_gewijzigd'!E10,'Overzicht project_gewijzigd'!E10) -> 0 | E42: ='Overzicht project_gewijzigd'!H10 -> 0 | F42: ='Overzicht project_gewijzigd'!I10 -> 0 | H42: =VLOOKUP('Overzicht project_gewijzigd'!C17,Bron!$A$7:$B$16,2,FALSE) -> Kies kostensoort | I42: =IF(OR(H42=Bron!$B$9,H42=Bron!$B$14),'Overzicht project_gewijzigd'!E17,'Overzicht project_gewijzigd'!E17) -> 0 | J42: 0 | K42: ='Overzicht project_gewijzigd'!H17 -> 0 | L42: ='Overzicht project_gewijzigd'!I17 -> 0 | N42: =VLOOKUP('Overzicht project_gewijzigd'!C24,Bron!$A$7:$B$16,2,FALSE) -> Kies kostensoort | O42: =IF(OR(B42=Bron!$B$9,B42=Bron!$B$14),'Overzicht project_gewijzigd'!E24,'Overzicht project_gewijzigd'!E24) -> 0 | P42: 0 | Q42: ='Overzicht project_gewijzigd'!H24 -> 0 | R42: ='Overzicht project_gewijzigd'!I24 -> 0
B43: =VLOOKUP('Overzicht project_gewijzigd'!C11,Bron!$A$7:$B$19,2,FALSE) -> Herconditionering | C43: =IF(OR(B43=Bron!$B$9,B43=Bron!$B$14),'Overzicht project_gewijzigd'!E11,'Overzicht project_gewijzigd'!E11) -> 0 | E43: ='Overzicht project_gewijzigd'!H11 -> 0 | F43: ='Overzicht project_gewijzigd'!I11 -> 0 | H43: =VLOOKUP('Overzicht project_gewijzigd'!C18,Bron!$A$7:$B$16,2,FALSE) -> Kies kostensoort | I43: =IF(OR(H43=Bron!$B$9,H43=Bron!$B$14),'Overzicht project_gewijzigd'!E18,'Overzicht project_gewijzigd'!E18) -> 0 | J43: 0 | K43: ='Overzicht project_gewijzigd'!H18 -> 0 | L43: ='Overzicht project_gewijzigd'!I18 -> 0 | N43: =VLOOKUP('Overzicht project_gewijzigd'!C25,Bron!$A$7:$B$16,2,FALSE) -> Kies kostensoort | O43: =IF(OR(B43=Bron!$B$9,B43=Bron!$B$14),'Overzicht project_gewijzigd'!E25,'Overzicht project_gewijzigd'!E25) -> 0 | P43: 0 | Q43: ='Overzicht project_gewijzigd'!H25 -> 0 | R43: ='Overzicht project_gewijzigd'!I25 -> 0
B44: =VLOOKUP('Overzicht project_gewijzigd'!C12,Bron!$A$7:$B$19,2,FALSE) -> Kies kostensoort | C44: =IF(OR(B44=Bron!$B$9,B44=Bron!$B$14),'Overzicht project_gewijzigd'!E12,'Overzicht project_gewijzigd'!E12) -> 0 | E44: ='Overzicht project_gewijzigd'!H12 -> 0 | F44: ='Overzicht project_gewijzigd'!I12 -> 0 | H44: =VLOOKUP('Overzicht project_gewijzigd'!C19,Bron!$A$7:$B$16,2,FALSE) -> Kies kostensoort | I44: =IF(OR(H44=Bron!$B$9,H44=Bron!$B$14),'Overzicht project_gewijzigd'!E19,'Overzicht project_gewijzigd'!E19) -> 0 | J44: 0 | K44: ='Overzicht project_gewijzigd'!H19 -> 0 | L44: ='Overzicht project_gewijzigd'!I19 -> 0 | N44: =VLOOKUP('Overzicht project_gewijzigd'!C26,Bron!$A$7:$B$16,2,FALSE) -> Kies kostensoort | O44: =IF(OR(B44=Bron!$B$9,B44=Bron!$B$14),'Overzicht project_gewijzigd'!E26,'Overzicht project_gewijzigd'!E26) -> 0 | P44: 0 | Q44: ='Overzicht project_gewijzigd'!H26 -> 0 | R44: ='Overzicht project_gewijzigd'!I26 -> 0
B45: =VLOOKUP('Overzicht project_gewijzigd'!C13,Bron!$A$7:$B$19,2,FALSE) -> Kies kostensoort | C45: =IF(OR(B45=Bron!$B$9,B45=Bron!$B$14),'Overzicht project_gewijzigd'!E13,'Overzicht project_gewijzigd'!E13) -> 0 | E45: ='Overzicht project_gewijzigd'!H13 -> 0 | F45: ='Overzicht project_gewijzigd'!I13 -> 0 | H45: =VLOOKUP('Overzicht project_gewijzigd'!C20,Bron!$A$7:$B$16,2,FALSE) -> Kies kostensoort | I45: =IF(OR(H45=Bron!$B$9,H45=Bron!$B$14),'Overzicht project_gewijzigd'!E20,'Overzicht project_gewijzigd'!E20) -> 0 | J45: 0 | K45: ='Overzicht project_gewijzigd'!H20 -> 0 | L45: ='Overzicht project_gewijzigd'!I20 -> 0 | N45: =VLOOKUP('Overzicht project_gewijzigd'!C27,Bron!$A$7:$B$16,2,FALSE) -> Kies kostensoort | O45: =IF(OR(B45=Bron!$B$9,B45=Bron!$B$14),'Overzicht project_gewijzigd'!E27,'Overzicht project_gewijzigd'!E27) -> 0 | P45: 0 | Q45: ='Overzicht project_gewijzigd'!H27 -> 0 | R45: ='Overzicht project_gewijzigd'!I27 -> 0
A47: 9b | B47: BTW | C47: BTW tarief 1 | D47: OPP-BTW1 | E47: BTW tarief 1 | F47: OPP-BTW1 | H47: Kostensoort(en) | I47: BTW tarief 1 | J47: OPP-BTW1 | K47: BTW tarief 1 | L47: OPP-BTW1 | O47: BTW tarief 1 | P47: OPP-BTW1 | Q47: BTW tarief 1 | R47: OPP-BTW1
B48: Nieuwbouw 21% | C48: =IF(B48=$B$42,'Overzicht project_gewijzigd'!$D$10,IF(B48=$B$43,'Overzicht project_gewijzigd'!$D$11,IF(B48=$B$44,'Overzicht project_gewijzigd'!$D$12,IF(B48=$B$45,'Overzicht project_gewijzigd'!$D$13,0)))) -> 0.21 | D48: =IF(B48=$B$42,'Overzicht project_gewijzigd'!$E$10,IF(B48=$B$43,'Overzicht project_gewijzigd'!$E$11,IF(B48=$B$44,'Overzicht project_gewijzigd'!$E$12,IF(B48=$B$45,'Overzicht project_gewijzigd'!$E$13,0)))) -> 0 | H48: Nieuwbouw 21% | I48: =IF(H48=$H$42,'Overzicht project_gewijzigd'!$D$17,IF(H48=$H$43,'Overzicht project_gewijzigd'!$D$18,IF(H48=$H$44,'Overzicht project_gewijzigd'!$D$19,IF(H48=$H$45,'Overzicht project_gewijzigd'!$D$20,0)))) -> 0 | J48: =IF(H48=$H$42,'Overzicht project_gewijzigd'!$E$17,IF(H48=$H$43,'Overzicht project_gewijzigd'!$E$18,IF(H48=$H$44,'Overzicht project_gewijzigd'!$E$19,IF(H48=$H$45,'Overzicht project_gewijzigd'!$E$20,0)))) -> 0 | N48: Nieuwbouw 21% | O48: =IF(N48=$N$42,'Overzicht project_gewijzigd'!$D$24,IF(N48=$N$43,'Overzicht project_gewijzigd'!$D$25,IF(N48=$N$44,'Overzicht project_gewijzigd'!$D$26,IF(N48=$N$45,'Overzicht project_gewijzigd'!$D$27,0)))) -> 0 | P48: =IF(N48=$N$42,'Overzicht project_gewijzigd'!$E$24,IF(N48=$N$43,'Overzicht project_gewijzigd'!$E$25,IF(N48=$N$44,'Overzicht project_gewijzigd'!$E$26,IF(N48=$N$45,'Overzicht project_gewijzigd'!$E$27,0)))) -> 0
B49: Herconditionering | C49: =IF(OR(B49=$B$42,B42=Bron!$A$16),'Overzicht project_gewijzigd'!$D$10,IF(OR(B49=$B$43,B43=Bron!$A$16),'Overzicht project_gewijzigd'!$D$11,IF(OR(B49=$B$44,B44=Bron!$A$16),'Overzicht project_gewijzigd'!$D$12,IF(OR(B49=$B$45,B45=Bron!$A$16),'Overzicht project_gewijzigd'!$D$13,0)))) -> 0.21 | D49: =IF(B49=$B$42,'Overzicht project_gewijzigd'!$E$10,IF(B49=$B$43,'Overzicht project_gewijzigd'!$E$11,IF(B49=$B$44,'Overzicht project_gewijzigd'!$E$12,IF(B49=$B$45,'Overzicht project_gewijzigd'!$E$13,0)))) -> 0 | H49: Herconditionering | I49: =IF(H49=$H$42,'Overzicht project_gewijzigd'!$D$17,IF(H49=$H$43,'Overzicht project_gewijzigd'!$D$18,IF(H49=$H$44,'Overzicht project_gewijzigd'!$D$19,IF(H49=$H$45,'Overzicht project_gewijzigd'!$D$20,0)))) -> 0 | J49: =IF(H49=$H$42,'Overzicht project_gewijzigd'!$E$17,IF(H49=$H$43,'Overzicht project_gewijzigd'!$E$18,IF(H49=$H$44,'Overzicht project_gewijzigd'!$E$19,IF(H49=$H$45,'Overzicht project_gewijzigd'!$E$20,0)))) -> 0 | N49: Herconditionering | O49: =IF(N49=$N$42,'Overzicht project_gewijzigd'!$D$24,IF(N49=$N$43,'Overzicht project_gewijzigd'!$D$25,IF(N49=$N$44,'Overzicht project_gewijzigd'!$D$26,IF(N49=$N$45,'Overzicht project_gewijzigd'!$D$27,0)))) -> 0 | P49: =IF(N49=$N$42,'Overzicht project_gewijzigd'!$E$24,IF(N49=$N$43,'Overzicht project_gewijzigd'!$E$25,IF(N49=$N$44,'Overzicht project_gewijzigd'!$E$26,IF(N49=$N$45,'Overzicht project_gewijzigd'!$E$27,0)))) -> 0 | V49: =ROUND(IF(ISNUMBER((SEARCH("kinderzorg",A38))),#REF!,IF(ISNUMBER(SEARCH("categorie 8",A38)),#REF!,IF(ISNUMBER(SEARCH("beveiligd verblijf",A38)),#REF!,IF(OR(ISNUMBER(SEARCH("jeugdzorg",A38)),ISNUMBER(SEARCH("afhandeling",A38)),ISNUMBER(SEARCH("gezinszorg",A38)),ISNUMBER(SEARCH("oriëntatie",A38))),#REF!,IF(ISNUMBER(SEARCH("welzijnswerk",A38)),#REF!,"0"))))),2) -> 0
A51: 9c | B51: Capaciteit voorziening | H51: Capaciteit voorziening | N51: Capaciteit voorziening
B52: Totale erkende capaciteit voorziening | C52: =C20 -> 0 | D52: =IF(ISNUMBER(SEARCH("kinderzorg",$C$3)),"opvangplaatsen/VTE",VLOOKUP($C$3,'Capaciteiten & forfaits'!$B$4:$H$76,3,FALSE)) -> bed/plaats | E52: enkel in te vullen wanneer het niet gaat over gezinnen met kinderen, BJB of CAW. In deze gevallen de bijhorende tabbladden openen en invullen | I52: Totale erkende capaciteit | J52: =ROUND(IF(ISNUMBER((SEARCH("kinderzorg",H3))),#REF!,IF(ISNUMBER(SEARCH("categorie 8",H3)),#REF!,IF(ISNUMBER(SEARCH("beveiligend verblijf",H3)),#REF!,IF(OR(ISNUMBER(SEARCH("jeugdzorg",H3)),ISNUMBER(SEARCH("afhandeling",H3)),ISNUMBER(SEARCH("gezinszorg",H3)),ISNUMBER(SEARCH("oriëntatie",H3))),#REF!,IF(ISNUMBER(SEARCH("welzijnswerk",H3)),#REF!,IF(ISNUMBER(SEARCH("geestelijke",H3)),#REF!,IF(ISNUMBER(SEARCH("Aanloopadres",H3)),#REF!+#REF!,IF(ISNUMBER(SEARCH("Personen met een handicap",H3)),#REF!-#REF!-#REF!,IF(ISNUMBER(SEARCH("Observatie",H3)),#REF!,IF(ISNUMBER(SEARCH("geïnterneerde",H3)),#REF!,J20)))))))))),2) -> 0 | K52: =IF(ISNUMBER(SEARCH("kinderzorg",$H$3)),"opvangplaatsen/VTE",VLOOKUP($H$3,'Capaciteiten & forfaits'!$B$4:$H$76,3,FALSE)) ->  | O52: Totale erkende capaciteit | P52: =ROUND(IF(ISNUMBER((SEARCH("kinderzorg",N3))),#REF!,IF(ISNUMBER(SEARCH("categorie 8",N3)),#REF!,IF(ISNUMBER(SEARCH("beveiligend verblijf",N3)),#REF!,IF(OR(ISNUMBER(SEARCH("jeugdzorg",N3)),ISNUMBER(SEARCH("afhandeling",N3)),ISNUMBER(SEARCH("gezinszorg",N3)),ISNUMBER(SEARCH("oriëntatie",N3))),#REF!,IF(ISNUMBER(SEARCH("welzijnswerk",N3)),#REF!,IF(ISNUMBER(SEARCH("geestelijke",N3)),#REF!,IF(ISNUMBER(SEARCH("Aanloopadres",N3)),#REF!+#REF!,IF(ISNUMBER(SEARCH("Personen met een handicap",N3)),#REF!-#REF!-#REF!,IF(ISNUMBER(SEARCH("Observatie",N3)),#REF!,IF(ISNUMBER(SEARCH("geïnterneerde",N3)),#REF!,P20)))))))))),2) -> 0 | Q52: =IF(ISNUMBER(SEARCH("kinderzorg",$N$3)),"opvangplaatsen/VTE",VLOOKUP($N$3,'Capaciteiten & forfaits'!$B$4:$H$76,3,FALSE)) -> 
B53: Capaciteitsuitbreiding | C53: =SUM(E42:E45) -> 0 | D53: =IF(ISNUMBER(SEARCH("kinderzorg",$C$3)),"opvangplaatsen/VTE",VLOOKUP($C$3,'Capaciteiten & forfaits'!$B$4:$H$76,3,FALSE)) -> bed/plaats | I53: Capaciteitsuitbreiding | J53: =SUM(K42:K45) -> 0 | K53: =IF(ISNUMBER(SEARCH("kinderzorg",$H$3)),"opvangplaatsen/VTE",VLOOKUP($H$3,'Capaciteiten & forfaits'!$B$4:$H$76,3,FALSE)) ->  | O53: Capaciteitsuitbreiding | P53: =SUM(Q42:Q45) -> 0 | Q53: =IF(ISNUMBER(SEARCH("kinderzorg",$N$3)),"opvangplaatsen/VTE",VLOOKUP($N$3,'Capaciteiten & forfaits'!$B$4:$H$76,3,FALSE)) -> 
B54: Capaciteitsvervanging | C54: =SUM(F42:F45) -> 0 | D54: =IF(ISNUMBER(SEARCH("kinderzorg",$C$3)),"opvangplaatsen/VTE",VLOOKUP($C$3,'Capaciteiten & forfaits'!$B$4:$H$76,3,FALSE)) -> bed/plaats | I54: Capaciteitsvervanging | J54: =SUM(L42:L45) -> 0 | K54: =IF(ISNUMBER(SEARCH("kinderzorg",$H$3)),"opvangplaatsen/VTE",VLOOKUP($H$3,'Capaciteiten & forfaits'!$B$4:$H$76,3,FALSE)) ->  | O54: Capaciteitsvervanging | P54: =SUM(R42:R45) -> 0 | Q54: =IF(ISNUMBER(SEARCH("kinderzorg",$N$3)),"opvangplaatsen/VTE",VLOOKUP($N$3,'Capaciteiten & forfaits'!$B$4:$H$76,3,FALSE)) -> 
A56: 9d | B56: Subsidiabele oppervlakte | H56: Subsidiabele oppervlakte | N56: Subsidiabele oppervlakte
B57: Bruto opp. project | C57: =SUM(C42:C45) -> 0 | I57: Bruto opp. project | J57: =SUM(I42:I45) -> 0 | O57: Bruto opp. project | P57: =SUM(O42:O45) -> 0
B58: Maximaal subsidiabele opp. | C58: 0 | I58: Maximaal subsidiabele opp. | J58: =ROUND(IF(ISNUMBER(SEARCH("kinderzorg",H3)),#REF!,IF(ISNUMBER(SEARCH("categorie 8",H3)),#REF!,IF(ISNUMBER(SEARCH("beveiligend verblijf",H3)),#REF!,IF(OR(ISNUMBER(SEARCH("jeugdzorg",H3)),ISNUMBER(SEARCH("afhandeling",H3)),ISNUMBER(SEARCH("gezinszorg",H3)),ISNUMBER(SEARCH("oriëntatie",H3))),#REF!,IF(ISNUMBER(SEARCH("welzijnswerk",H3)),#REF!,IF(ISNUMBER(SEARCH("geestelijke",H3)),#REF!,IF(ISNUMBER(SEARCH("Aanloopadres",H3)),#REF!+#REF!,IF(ISNUMBER(SEARCH("Personen met een handicap",H3)),#REF!-#REF!-#REF!,IF(ISNUMBER(SEARCH("Observatie",H3)),#REF!,IF(ISNUMBER(SEARCH("geïnterneerde",H3)),#REF!,VLOOKUP(H3,'Capaciteiten & forfaits'!$B$3:$H$73,2,FALSE)*J52)))))))))),2) -> 0 | O58: Maximaal subsidiabele opp. | P58: =ROUND(IF(ISNUMBER(SEARCH("kinderzorg",N3)),#REF!,IF(ISNUMBER(SEARCH("categorie 8",N3)),#REF!,IF(ISNUMBER(SEARCH("beveiligend verblijf",N3)),#REF!,IF(OR(ISNUMBER(SEARCH("jeugdzorg",N3)),ISNUMBER(SEARCH("afhandeling",N3)),ISNUMBER(SEARCH("gezinszorg",N3)),ISNUMBER(SEARCH("oriëntatie",N3))),#REF!,IF(ISNUMBER(SEARCH("welzijnswerk",N3)),#REF!,IF(ISNUMBER(SEARCH("geestelijke",N3)),#REF!,IF(ISNUMBER(SEARCH("Aanloopadres",N3)),#REF!+#REF!,IF(ISNUMBER(SEARCH("Personen met een handicap",N3)),#REF!-#REF!-#REF!,IF(ISNUMBER(SEARCH("Observatie",N3)),#REF!,IF(ISNUMBER(SEARCH("geïnterneerde",N3)),#REF!,VLOOKUP(N3,'Capaciteiten & forfaits'!$B$3:$H$73,2,FALSE)*P52)))))))))),2) -> 0
B59: Bestaande gesubsidieerde opp. | C59: =C27 -> 0 | I59: Bestaande gesubsidieerde opp. | J59: =J27 -> 0 | O59: Bestaande gesubsidieerde opp. | P59: =P27 -> 0
B60: Subsidiabele oppervlakte | C60: =IF(MIN(C58-C59,C57)<0,0,MIN(C58-C59,C57)) -> 0 | I60: Subsidiabele oppervlakte | J60: =IF(MIN(J58-J59,J57)<0,0,MIN(J58-J59,J57)) -> 0 | O60: Subsidiabele oppervlakte | P60: =IF(MIN(P58-P59,P57)<0,0,MIN(P58-P59,P57)) -> 0
A61: 7 | B61: Raming
B62: Totale bruto kostprijs project | C62: ='uitgebreide raming_gewijzigd'!J26 -> 0 | H62: ='uitgebreide raming_gewijzigd'!J53 -> 0 | N62: ='uitgebreide raming_gewijzigd'!J80 -> 0

Sheet Oppervlakte - afdelingen
B2: Bruto-oppervlakten | C2: Globale opp ZH | D2: Uitgebruik *** | E2: Bestaand en te behouden van ZH | H2: Project - TOTAAL | K2: Project - nieuwe m² | N2: Project - verbouwing | R2: Totale oppervlakte project
B3: GEBOUW | C3: Bruto opp. | D3: Bruto opp. | E3: Bruto opp. | F3: # bd/pls | G3: Opp/eenh | H3: Bruto opp. | I3: # bd/pls | J3: Opp/eenh | K3: Bruto opp. | L3: # bd/pls | M3: Opp/eenh | N3: Bruto opp. | O3: # bd/pls | P3: Opp/eenh | R3: Bruto opp.
B4: Zorg (verpleegafdelingen)* | C4: 0 | E4: 0 | F4: 0 | G4: =E4/F4 ->  | H4: =K4+N4 -> 0 | I4: 0 | J4: =H4/I4 ->  | K4: 0 | L4: 0 | M4: =K4/L4 ->  | N4: 0 | O4: 0 | P4: =N4/O4 ->  | R4: =MAX(H34,'Overzicht project'!E66) -> 0 | S4: Netto opp.
B5: Algemene zorg ** | C5: 0 | E5: 0 | F5: 0 | G5: =E5/F5 ->  | H5: 0 | I5: 0 | J5: =H5/I5 ->  | K5: 0 | L5: 0 | M5: =K5/L5 ->  | N5: 0 | O5: 0 | P5: =N5/O5 -> 
B6: Materniteit ** | C6: 0 | E6: 0 | F6: 0 | H6: 0 | I6: 0 | K6: 0 | L6: 0 | N6: 0 | O6: 0
B7: Intensieve geneeskunde ** | C7: 0 | E7: 0 | F7: 0 | H7: 0 | I7: 0 | K7: 0 | L7: 0 | N7: 0 | O7: 0
B8: Dialyse ** | C8: 0 | E8: 0 | F8: 0 | H8: 0 | I8: 0 | K8: 0 | L8: 0 | N8: 0 | O8: 0
B9: Pediatrie** | C9: 0 | E9: 0 | F9: 0 | H9: 0 | I9: 0 | K9: 0 | L9: 0 | N9: 0 | O9: 0
B10: Psychiatrie** | C10: 0 | E10: 0 | F10: 0 | H10: 0 | I10: 0 | K10: 0 | L10: 0 | N10: 0 | O10: 0
B11: Geriatrie** | C11: 0 | E11: 0 | F11: 0 | H11: 0 | I11: 0 | K11: 0 | L11: 0 | N11: 0 | O11: 0
B12: Palliatieve zorgen ** | C12: 0 | E12: 0 | F12: 0 | H12: 0 | I12: 0 | K12: 0 | L12: 0 | N12: 0 | O12: 0
B13: Revalidatie ** | C13: 0 | E13: 0 | F13: 0 | H13: 0 | I13: 0 | K13: 0 | L13: 0 | N13: 0 | O13: 0
B14: Circulatie | C14: 0 | E14: 0 | F14: 0 | H14: 0 | I14: 0 | K14: 0 | L14: 0 | N14: 0 | O14: 0
B15: Technische ruimte | C15: 0 | E15: 0 | F15: 0 | H15: 0 | I15: 0 | K15: 0 | L15: 0 | N15: 0 | O15: 0
B16: Zorg (dagziekenhuis)* | C16: 0 | E16: 0 | F16: 0 | G16: =E16/F16 ->  | H16: 0 | I16: 0 | J16: =H16/I16 ->  | K16: 0 | L16: 0 | M16: =K16/L16 ->  | N16: 0 | O16: 0 | P16: =N16/O16 ->  | S16: =H16+L16+P16+D16 -> 
B17: Dagziekenhuis ** | C17: 0 | E17: 0 | F17: 0 | G17: =E17/F17 ->  | H17: 0 | I17: 0 | J17: =H17/I17 ->  | K17: 0 | L17: 0 | M17: =K17/L17 ->  | N17: 0 | O17: 0 | P17: =N17/O17 -> 
B18: Circulatie | C18: 0 | E18: 0 | F18: 0 | H18: 0 | I18: 0 | K18: 0 | L18: 0 | N18: 0 | O18: 0
B19: Technische ruimte | C19: 0 | E19: 0 | F19: 0 | H19: 0 | I19: 0 | K19: 0 | L19: 0 | N19: 0 | O19: 0
B20: Diagnose/behandeling * | C20: 0 | E20: 0 | H20: 0 | K20: 0 | N20: 0
B21: Functionele onderzoeken | C21: 0 | E21: 0 | H21: 0 | K21: 0 | N21: 0
B22: Endoscopie | C22: 0 | E22: 0 | H22: 0 | K22: 0 | N22: 0
B23: Verloskwartier | C23: 0 | E23: 0 | H23: 0 | K23: 0 | N23: 0
B24: Radiotherapie | C24: 0 | E24: 0 | H24: 0 | K24: 0 | N24: 0
B25: Operatiezalen | C25: 0 | E25: 0 | H25: 0 | K25: 0 | N25: 0
B26: Technische lokalen OK | C26: 0 | E26: 0 | H26: 0 | K26: 0 | N26: 0
B27: Circulatie | C27: 0 | E27: 0 | H27: 0 | K27: 0 | N27: 0
B28: Technische ruimte | C28: 0 | E28: 0 | H28: 0 | K28: 0 | N28: 0
B29: Polikliniek / consultaties * | C29: 0 | E29: 0 | H29: 0 | K29: 0 | N29: 0
B30: Uitgebaat door derden * | C30: 0 | E30: 0 | H30: 0 | K30: 0 | N30: 0
B31: Ondersteunende diensten * / *** | C31: 0 | E31: 0 | H31: 0 | K31: 0 | N31: 0
B32: Centrale sterilisatie (AZ/UZ) * | C32: 0 | E32: 0 | H32: 0 | K32: 0 | N32: 0
B34: TOTAAL GEBOUW | C34: =SUM(C4:C32) -> 0 | D34: =SUM(D4:D32) -> 0 | E34: =SUM(E4:E32) -> 0 | F34: =SUM(F4:F32) -> 0 | H34: =SUM(H4:H32) -> 0 | I34: =SUM(I4:I32) -> 0 | K34: =SUM(K4:K32) -> 0 | L34: =SUM(L4:L32) -> 0 | N34: =SUM(N4:N32) -> 0 | O34: =SUM(O4:O32) -> 0
B36: Parking | C36: 0 | D36: 0 | E36: 0 | H36: 0 | K36: 0 | N36: 0
B38: BUITENRUIMTE
B39: gebouwgebonden (terrassen…) | H39: 0 | K39: 0 | N39: 0
B40: omgevingsaanleg | H40: 0 | K40: 0 | N40: 0
B42: TOTAAL BUITENRUIMTE | H42: =SUM(H39:H40) -> 0 | K42: =SUM(K39:K40) -> 0 | N42: =SUM(N39:N40) -> 0
B43: * inclusief aandeel aan circulatie
B44: ** In de oppervlakte die bij deze diensten horen worden de bergingen, sanitair, kleedkamers, … bij deze diensten meegenomen.
B45: *** zie tabblad 2 voor definitie
B47: *** uitgebruikname:
B48: leegstand
B49: afbraak
B50: verkoop
B51: naar derden (bv. verhuur)
B52: andere (vb. mobiele containerunits):

Sheet Oppervlakte_afdelingen_gewijz (hidden)
B2: Bruto-oppervlakten | C2: Globale opp ZH | D2: Uitgebruik *** | E2: Bestaand en te behouden van ZH | H2: Project - TOTAAL | K2: Project - nieuwe m² | N2: Project - verbouwing | R2: Totale oppervlakte project
B3: GEBOUW | C3: Bruto opp. | D3: Bruto opp. | E3: Bruto opp. | F3: # bd/pls | G3: Opp/eenh | H3: Bruto opp. | I3: # bd/pls | J3: Opp/eenh | K3: Bruto opp. | L3: # bd/pls | M3: Opp/eenh | N3: Bruto opp. | O3: # bd/pls | P3: Opp/eenh | R3: Bruto opp.
B4: Zorg (verpleegafdelingen)* | C4: 0 | E4: 0 | F4: 0 | G4: =E4/F4 ->  | H4: =K4+N4 -> 0 | I4: 0 | J4: =H4/I4 ->  | K4: 0 | L4: 0 | M4: =K4/L4 ->  | N4: 0 | O4: 0 | P4: =N4/O4 ->  | R4: =MAX(H34,'Overzicht project'!E66) -> 0 | S4: Netto opp.
B5: Algemene zorg ** | C5: 0 | E5: 0 | F5: 0 | G5: =E5/F5 ->  | H5: 0 | I5: 0 | J5: =H5/I5 ->  | K5: 0 | L5: 0 | M5: =K5/L5 ->  | N5: 0 | O5: 0 | P5: =N5/O5 -> 
B6: Materniteit ** | C6: 0 | E6: 0 | F6: 0 | H6: 0 | I6: 0 | K6: 0 | L6: 0 | N6: 0 | O6: 0
B7: Intensieve geneeskunde ** | C7: 0 | E7: 0 | F7: 0 | H7: 0 | I7: 0 | K7: 0 | L7: 0 | N7: 0 | O7: 0
B8: Dialyse ** | C8: 0 | E8: 0 | F8: 0 | H8: 0 | I8: 0 | K8: 0 | L8: 0 | N8: 0 | O8: 0
B9: Pediatrie** | C9: 0 | E9: 0 | F9: 0 | H9: 0 | I9: 0 | K9: 0 | L9: 0 | N9: 0 | O9: 0
B10: Psychiatrie** | C10: 0 | E10: 0 | F10: 0 | H10: 0 | I10: 0 | K10: 0 | L10: 0 | N10: 0 | O10: 0
B11: Geriatrie** | C11: 0 | E11: 0 | F11: 0 | H11: 0 | I11: 0 | K11: 0 | L11: 0 | N11: 0 | O11: 0
B12: Palliatieve zorgen ** | C12: 0 | E12: 0 | F12: 0 | H12: 0 | I12: 0 | K12: 0 | L12: 0 | N12: 0 | O12: 0
B13: Revalidatie ** | C13: 0 | E13: 0 | F13: 0 | H13: 0 | I13: 0 | K13: 0 | L13: 0 | N13: 0 | O13: 0
B14: Circulatie | C14: 0 | E14: 0 | F14: 0 | H14: 0 | I14: 0 | K14: 0 | L14: 0 | N14: 0 | O14: 0
B15: Technische ruimte | C15: 0 | E15: 0 | F15: 0 | H15: 0 | I15: 0 | K15: 0 | L15: 0 | N15: 0 | O15: 0
B16: Zorg (dagziekenhuis)* | C16: 0 | E16: 0 | F16: 0 | G16: =E16/F16 ->  | H16: 0 | I16: 0 | J16: =H16/I16 ->  | K16: 0 | L16: 0 | M16: =K16/L16 ->  | N16: 0 | O16: 0 | P16: =N16/O16 ->  | S16: =H16+L16+P16+D16 -> 
B17: Dagziekenhuis ** | C17: 0 | E17: 0 | F17: 0 | G17: =E17/F17 ->  | H17: 0 | I17: 0 | J17: =H17/I17 ->  | K17: 0 | L17: 0 | M17: =K17/L17 ->  | N17: 0 | O17: 0 | P17: =N17/O17 -> 
B18: Circulatie | C18: 0 | E18: 0 | F18: 0 | H18: 0 | I18: 0 | K18: 0 | L18: 0 | N18: 0 | O18: 0
B19: Technische ruimte | C19: 0 | E19: 0 | F19: 0 | H19: 0 | I19: 0 | K19: 0 | L19: 0 | N19: 0 | O19: 0
B20: Diagnose/behandeling * | C20: 0 | E20: 0 | H20: 0 | K20: 0 | N20: 0
B21: Functionele onderzoeken | C21: 0 | E21: 0 | H21: 0 | K21: 0 | N21: 0
B22: Endoscopie | C22: 0 | E22: 0 | H22: 0 | K22: 0 | N22: 0
B23: Verloskwartier | C23: 0 | E23: 0 | H23: 0 | K23: 0 | N23: 0
B24: Radiotherapie | C24: 0 | E24: 0 | H24: 0 | K24: 0 | N24: 0
B25: Operatiezalen | C25: 0 | E25: 0 | H25: 0 | K25: 0 | N25: 0
B26: Technische lokalen OK | C26: 0 | E26: 0 | H26: 0 | K26: 0 | N26: 0
B27: Circulatie | C27: 0 | E27: 0 | H27: 0 | K27: 0 | N27: 0
B28: Technische ruimte | C28: 0 | E28: 0 | H28: 0 | K28: 0 | N28: 0
B29: Polikliniek / consultaties * | C29: 0 | E29: 0 | H29: 0 | K29: 0 | N29: 0
B30: Uitgebaat door derden * | C30: 0 | E30: 0 | H30: 0 | K30: 0 | N30: 0
B31: Ondersteunende diensten * / *** | C31: 0 | E31: 0 | H31: 0 | K31: 0 | N31: 0
B32: Centrale sterilisatie (AZ/UZ) * | C32: 0 | E32: 0 | H32: 0 | K32: 0 | N32: 0
B34: TOTAAL GEBOUW | C34: =SUM(C4:C32) -> 0 | D34: =SUM(D4:D32) -> 0 | E34: =SUM(E4:E32) -> 0 | F34: =SUM(F4:F32) -> 0 | H34: =SUM(H4:H32) -> 0 | I34: =SUM(I4:I32) -> 0 | K34: =SUM(K4:K32) -> 0 | L34: =SUM(L4:L32) -> 0 | N34: =SUM(N4:N32) -> 0 | O34: =SUM(O4:O32) -> 0
B36: Parking | C36: 0 | D36: 0 | E36: 0 | H36: 0 | K36: 0 | N36: 0
B38: BUITENRUIMTE
B39: gebouwgebonden (terrassen…) | H39: 0 | K39: 0 | N39: 0
B40: omgevingsaanleg | H40: 0 | K40: 0 | N40: 0
B42: TOTAAL BUITENRUIMTE | H42: =SUM(H39:H40) -> 0 | K42: =SUM(K39:K40) -> 0 | N42: =SUM(N39:N40) -> 0
B43: * inclusief aandeel aan circulatie
B44: ** In de oppervlakte die bij deze diensten horen worden de bergingen, sanitair, kleedkamers, … bij deze diensten meegenomen.
B45: *** zie tabblad 2 voor definitie
B47: *** uitgebruikname:
B48: leegstand
B49: afbraak
B50: verkoop
B51: naar derden (bv. verhuur)
B52: andere (vb. mobiele containerunits):

Sheet Oppervlakte - Ond. dienst
A1: Ondersteunende diensten | B1: Bruto - ZH bestaand en te behouden | C1: Bruto - project | D1: Totaal | G1: In het project | H1: Buiten het project * | I1: Totaal ZH
A2: Administratie | B2: 0 | C2: 0 | D2: =C2+B2 -> 0 | F2: aantal bedden (excl. IZ, MIC, NIC)
A3: Apotheek | B3: 0 | C3: 0 | D3: =C3+B3 -> 0 | F3: Algemene ziekenhuisdiensten | G3: 0 | H3: 0 | I3: 0
A4: Archief | B4: 0 | C4: 0 | D4: 0 | F4: Psychiatrische ziekenhuisbedden | G4: 0 | H4: 0 | I4: 0
A5: Centrale inkomhal, onthaal, inschrijvingen, cafetaria | B5: 0 | C5: 0 | D5: 0 | F5: Sp en geïsoleerde G | G5: 0 | H5: 0 | I5: 0
A6: Centrale keuken | B6: 0 | C6: 0 | D6: 0 | F6: aantal bedden IC, MIC, NIC | G6: 0 | H6: 0 | I6: 0
A7: Ergotherapie | B7: 0 | C7: 0 | D7: 0 | F7: aantal bedden NIC | G7: 0 | H7: 0 | I7: 0
A8: Fysiotherapie | B8: 0 | C8: 0 | D8: 0 | F8: *aantal bedden waarvoor de OD worden gebruikt die geen deel van het investeringsproject zijn | G8: 0 | H8: 0 | I8: 0
A9: Informatica (incl. serverlokalen en datalokalen) | B9: 0 | C9: 0 | D9: 0
A10: Kleedkamers en overnachtingsruimten personeel | B10: 0 | C10: 0 | D10: 0
A11: Laboratorium | B11: 0 | C11: 0 | D11: 0
A12: Logistiek * | B12: 0 | C12: 0 | D12: 0
A13: Medische beeldvorming (excl. MR) | B13: 0 | C13: 0 | D13: 0
A14: Mortuarium-autopsie | B14: 0 | C14: 0 | D14: 0
A15: Nucleaire geneeskunde (excl. PET) | B15: 0 | C15: 0 | D15: 0
A16: Spoeddienst | B16: 0 | C16: 0 | D16: 0
A17: Vergaderruimten** | B17: 0 | C17: 0 | D17: 0
A18: Technische ruimte (excl. Technieken OK) *** | B18: 0 | C18: 0 | D18: 0
A19: Circulatie (liften, trappen, hoofdgangen) *** | B19: 0 | C19: 0 | D19: 0
A20: PZ: Sporthal | B20: 0 | C20: 0 | D20: 0
A21: Recovery | B21: 0 | C21: 0 | D21: 0
A22: Technische ruimten van de operatiezalen | B22: 0 | C22: 0 | D22: 0
A23: Preoperatieve ruimten | B23: 0 | C23: 0 | D23: 0
A24: Centrale sterilisatieafdeling | B24: 0 | C24: 0 | D24: 0
B25: =SUM(B2:B24) -> 0 | C25: =SUM(C2:C24) -> 0 | D25: =SUM(D2:D24) -> 0
A27: * Logistiek kan bestaan uit:
A28: Levering en opslag
A29: Sterilisatie
A30: Linnen
A31: Technische dienst
A32: Afval
A33: Schoonmaakdienst
A35: **Vergaderruimten kan bestaan uit:
A36: Vergaderruimte
A37: Leslokaal
A38: Polyvalent lokaal (oa stille ruimte)
A40: *** horende bij de ondersteunende diensten

Sheet Oppervlakte_Ond. dienst_gewijz (hidden)
A1: Ondersteunende diensten | B1: Bruto - ZH bestaand en te behouden | C1: Bruto - project | D1: Totaal | G1: In het project | H1: Buiten het project * | I1: Totaal ZH
A2: Administratie | B2: 0 | C2: 0 | F2: aantal bedden (excl. IZ, MIC, NIC)
A3: Apotheek | B3: 0 | C3: 0 | F3: Algemene ziekenhuisdiensten | G3: 0 | H3: 0 | I3: 0
A4: Archief | B4: 0 | C4: 0 | F4: Psychiatrische ziekenhuisbedden | G4: 0 | H4: 0 | I4: 0
A5: Centrale inkomhal, onthaal, inschrijvingen, cafetaria | B5: 0 | C5: 0 | F5: Sp en geïsoleerde G | G5: 0 | H5: 0 | I5: 0
A6: Centrale keuken | B6: 0 | C6: 0 | F6: aantal bedden IC, MIC, NIC | G6: 0 | H6: 0 | I6: 0
A7: Ergotherapie | B7: 0 | C7: 0 | F7: aantal bedden NIC | G7: 0 | H7: 0 | I7: 0
A8: Fysiotherapie | B8: 0 | C8: 0 | F8: *aantal bedden waarvoor de OD worden gebruikt die geen deel van het investeringsproject zijn | G8: 0 | H8: 0 | I8: 0
A9: Informatica (incl. serverlokalen en datalokalen) | B9: 0 | C9: 0
A10: Kleedkamers en overnachtingsruimten personeel | B10: 0 | C10: 0
A11: Laboratorium | B11: 0 | C11: 0
A12: Logistiek * | B12: 0 | C12: 0
A13: Medische beeldvorming (excl. MR) | B13: 0 | C13: 0
A14: Mortuarium-autopsie | B14: 0 | C14: 0
A15: Nucleaire geneeskunde (excl. PET) | B15: 0 | C15: 0
A16: Spoeddienst | B16: 0 | C16: 0
A17: Vergaderruimten** | B17: 0 | C17: 0
A18: Technische ruimte (excl. Technieken OK) *** | B18: 0 | C18: 0
A19: Circulatie (liften, trappen, hoofdgangen) *** | B19: 0 | C19: 0
A20: PZ: Sporthal | B20: 0 | C20: 0
B21: 0 | C21: 0 | D21: 0
A23: * Logistiek kan bestaan uit:
A24: Levering en opslag
A25: Sterilisatie
A26: Linnen
A27: Technische dienst
A28: Afval
A29: Schoonmaakdienst
A31: **Vergaderruimten kan bestaan uit:
A32: Vergaderruimte
A33: Leslokaal
A34: Polyvalent lokaal (oa stille ruimte)
A36: *** horende bij de ondersteunende diensten

Sheet ZH - capaciteiten
B2: AZ/UZ | C2: Erkenning AZ/UZ | D2: Capaciteiten van het project | F2: Capaciteiten van het GEWIJZIGDE project
C3: Aantal op basis van de erkenning of verantwoorde capaciteit | D3: Vervangingscapciteit van het project | E3: Uitbreidingscapaciteit van het project | F3: Vervangingscapciteit van het project | G3: Uitbreidingscapaciteit van het project
B4: 1° bedden
B5: verantwoorde bedden, waarvan
B6: - CD1,3:
B7: - G1,3:
B8: - M1,3:
B9: - E1,3:
B10: erkende en vergunde bedden, waarvan
B11: - SP2:
B12: - A2:
B13: - K2:
B14: bedden FOR-K2
B15: 2° verantwoorden bedden NIC1
B16: 3° plaatsen dagziekenhuis (excl. forfait oncologische basiszorg)1
B17: som verantwoorde plaatsen1
B18: erkende en vergunde a(d) + k(d)2
B19: geriatrisch dagziekenhuis2
B20: 4° verantwoorde OK-zalen1,3
B21: 5° erkende en vergunde bedden IZ2
B22: 6° aantal posten dialyse2
B23: 7° aantal verlossingen per 1001
B24: 8° aantal lineaire versnellers1
B25: Ondersteunende diensten voor bedden buiten het project (m²)
B26: Centrale sterilisatie voor operatiezalen buiten het project (m²)
B28: RZ | C28: Erkenning RZ | D28: Capaciteiten van het project | F28: Capaciteiten van het project
C29: Aantal op basis van de erkenning | D29: Vervangingscapciteit van het project | E29: Uitbreidingscapaciteit van het project | F29: Vervangingscapciteit van het project | G29: Uitbreidingscapaciteit van het project
B30: 1° erkende en vergunde bedden
B31: 2° erkende en vergunde plaatsen dagziekenhuis
B32: Ondersteunende diensten voor bedden buiten het project (m²)
B34: PZ | C34: Erkenning PZ | D34: Capaciteiten van het project | F34: Capaciteiten van het project
C35: Aantal op basis van de erkenning | D35: Vervangingscapciteit van het project | E35: Uitbreidingscapaciteit van het project | F35: Vervangingscapciteit van het project | G35: Uitbreidingscapaciteit van het project
B36: 1° bedden (exclusief bevroren bedden)
B37: erkende en vergunde bedden
B38: bedden FOR-K2
B39: 2° erkende en vergunde plaatsen dagziekenhuis
B40: Ondersteunende diensten voor bedden buiten het project (m²)

Sheet uitgebreide raming (hidden)
A1: PROGRAMMA | B1: ='Overzicht BTA'!C3 -> Algemeen ziekenhuis
A2: Raming aanvraag subsidie | B2: ='Overzicht BTA'!B7 -> Nieuwbouw 21% | C2: % | D2: ='Overzicht BTA'!B8 -> Herconditionering | E2: % | F2: ='Overzicht BTA'!B9 -> Kies kostensoort | G2: % | H2: ='Overzicht BTA'!B10 -> Kies kostensoort | I2: % | J2: Totaal | K2: %
A3: Aankoopbedrag | B3: =IF(OR(B2=Bron!$B$8,B2=Bron!$B$9,B2=Bron!$B$15),'Bouwkost NB'!$C$14,IF(B2=Bron!$B$10,'Bouwkost UITB'!$C$16,IF(B2=Bron!$B$19,'Bouwkost VERB'!$C$16,IF(B2=Bron!$B$12,'Bouwkost IER'!$C$15,IF(B2=Bron!$B$16,'Bouwkost AK+VERB'!$C$16,IF(OR(B2=Bron!$B$13,B2=Bron!$B$14),'Bouwkost VOLT'!$C$16,0))))))-B4 -> 0 | D3: =IF(OR(D2=Bron!$B$8,D2=Bron!$B$9,D2=Bron!$B$15),'Bouwkost NB'!$C$14,IF(D2=Bron!$B$10,'Bouwkost UITB'!$C$16,IF(D2=Bron!$B$19,'Bouwkost VERB'!$C$16,IF(D2=Bron!$B$12,'Bouwkost IER'!$C$15,IF(D2=Bron!$B$16,'Bouwkost AK+VERB'!$C$16,IF(OR(D2=Bron!$B$13,D2=Bron!$B$14),'Bouwkost VOLT'!$C$16,0))))))-D4 -> 0 | F3: =IF(OR(F2=Bron!$B$8,F2=Bron!$B$9,F2=Bron!$B$15),'Bouwkost NB'!$C$15,IF(F2=Bron!$B$10,'Bouwkost UITB'!$C$16,IF(F2=Bron!$B$19,'Bouwkost VERB'!$C$16,IF(F2=Bron!$B$12,'Bouwkost IER'!$C$15,IF(F2=Bron!$B$16,'Bouwkost AK+VERB'!$C$16,IF(OR(F2=Bron!$B$13,F2=Bron!$B$14),'Bouwkost VOLT'!$C$16,0))))))-F4 -> 0 | H3: =IF(OR(H2=Bron!$B$8,H2=Bron!$B$9,H2=Bron!$B$15),'Bouwkost NB'!$C$15,IF(H2=Bron!$B$10,'Bouwkost UITB'!$C$16,IF(H2=Bron!$B$19,'Bouwkost VERB'!$C$16,IF(H2=Bron!$B$12,'Bouwkost IER'!$C$15,IF(H2=Bron!$B$16,'Bouwkost AK+VERB'!$C$16,IF(OR(H2=Bron!$B$13,H2=Bron!$B$14),'Bouwkost VOLT'!$C$16,0))))))-H4 -> 0 | J3: =B3+D3+F3+H3 -> 0
A4: Registratie- /notariskosten of BTW | B4: =IF(OR(B2=Bron!$B$8,B2=Bron!$B$9,B2=Bron!$B$15),'Bouwkost NB'!$C$17,IF(B2=Bron!$B$10,'Bouwkost UITB'!$C$19,IF(B2=Bron!$B$19,'Bouwkost VERB'!$C$19,IF(B2=Bron!$B$12,'Bouwkost IER'!$C$18,IF(B2=Bron!$B$16,'Bouwkost AK+VERB'!$C$19,IF(OR(B2=Bron!$B$13,B2=Bron!$B$14),'Bouwkost VOLT'!$C$19,0)))))) -> 0 | D4: =IF(OR(D2=Bron!$B$8,D2=Bron!$B$9,D2=Bron!$B$15),'Bouwkost NB'!$C$17,IF(D2=Bron!$B$10,'Bouwkost UITB'!$C$19,IF(D2=Bron!$B$19,'Bouwkost VERB'!$C$19,IF(D2=Bron!$B$12,'Bouwkost IER'!$C$18,IF(D2=Bron!$B$16,'Bouwkost AK+VERB'!$C$19,IF(OR(D2=Bron!$B$13,D2=Bron!$B$14),'Bouwkost VOLT'!$C$19,0)))))) -> 0 | F4: =IF(OR(F$2=Bron!$B$8,F$2=Bron!$B$9,F$2=Bron!$B$15),'Bouwkost NB'!$C$18,IF(F$2=Bron!$B$10,'Bouwkost UITB'!$C$19,IF(F$2=Bron!$B$19,'Bouwkost VERB'!$C$19,IF(F$2=Bron!$B$12,'Bouwkost IER'!$C$18,IF(F$2=Bron!$B$16,'Bouwkost AK+VERB'!$C$19,IF(OR(F$2=Bron!$B$13,F$2=Bron!$B$14),'Bouwkost VOLT'!$C$19,0)))))) -> 0 | H4: =IF(OR(H$2=Bron!$B$8,H$2=Bron!$B$9,H$2=Bron!$B$15),'Bouwkost NB'!$C$18,IF(H$2=Bron!$B$10,'Bouwkost UITB'!$C$19,IF(H$2=Bron!$B$19,'Bouwkost VERB'!$C$19,IF(H$2=Bron!$B$12,'Bouwkost IER'!$C$18,IF(H$2=Bron!$B$16,'Bouwkost AK+VERB'!$C$19,IF(OR(H$2=Bron!$B$13,H$2=Bron!$B$14),'Bouwkost VOLT'!$C$19,0)))))) -> 0 | J4: 0
A5: voorbereidende werken (incl. afbraak) | B5: =IF(OR(B2=Bron!$B$8,B2=Bron!$B$9,B2=Bron!$B$15),'Bouwkost NB'!$C$53,IF(B2=Bron!$B$10,'Bouwkost UITB'!$C$54,IF(B2=Bron!$B$19,'Bouwkost VERB'!$C$55,IF(B2=Bron!$B$12,'Bouwkost IER'!$C$53,IF(B2=Bron!$B$16,'Bouwkost AK+VERB'!$C$54,IF(OR(B2=Bron!$B$13,B2=Bron!$B$14),'Bouwkost VOLT'!$C$54,0)))))) -> 0 | D5: =IF(OR(D2=Bron!$B$8,D2=Bron!$B$9,D2=Bron!$B$15),'Bouwkost NB'!$C$53,IF(D2=Bron!$B$10,'Bouwkost UITB'!$C$54,IF(D2=Bron!$B$19,'Bouwkost VERB'!$C$55,IF(D2=Bron!$B$12,'Bouwkost IER'!$C$53,IF(D2=Bron!$B$16,'Bouwkost AK+VERB'!$C$54,IF(OR(D2=Bron!$B$13,D2=Bron!$B$14),'Bouwkost VOLT'!$C$54,0)))))) -> 0 | F5: =IF(OR(F$2=Bron!$B$8,F$2=Bron!$B$9,F$2=Bron!$B$15),'Bouwkost NB'!$C$54,IF(F$2=Bron!$B$10,'Bouwkost UITB'!$C$54,IF(F$2=Bron!$B$19,'Bouwkost VERB'!$C$55,IF(F$2=Bron!$B$12,'Bouwkost IER'!$C$53,IF(F$2=Bron!$B$16,'Bouwkost AK+VERB'!$C$54,IF(OR(F$2=Bron!$B$13,F$2=Bron!$B$14),'Bouwkost VOLT'!$C$54,0)))))) -> 0 | H5: =IF(OR(H$2=Bron!$B$8,H$2=Bron!$B$9,H$2=Bron!$B$15),'Bouwkost NB'!$C$54,IF(H$2=Bron!$B$10,'Bouwkost UITB'!$C$54,IF(H$2=Bron!$B$19,'Bouwkost VERB'!$C$55,IF(H$2=Bron!$B$12,'Bouwkost IER'!$C$53,IF(H$2=Bron!$B$16,'Bouwkost AK+VERB'!$C$54,IF(OR(H$2=Bron!$B$13,H$2=Bron!$B$14),'Bouwkost VOLT'!$C$54,0)))))) -> 0 | J5: =B5+D5+F5+H5 -> 0
A6: PF1 Ruwbouw | B6: =IF(OR(B2=Bron!$B$8,B2=Bron!$B$9,B2=Bron!$B$15),'Bouwkost NB'!$C$22,IF(B2=Bron!$B$10,'Bouwkost UITB'!$C$24,IF(B2=Bron!$B$19,'Bouwkost VERB'!$C$24,IF(B2=Bron!$B$12,'Bouwkost IER'!$C$23,IF(B2=Bron!$B$16,'Bouwkost AK+VERB'!$C$24,IF(OR(B2=Bron!$B$13,B2=Bron!$B$14),'Bouwkost VOLT'!$C$24,0)))))) -> 0 | C6: =IF($B$12=0,0,B6/$B$12) -> 0 | D6: =IF(OR(D2=Bron!$B$8,D2=Bron!$B$9,D2=Bron!$B$15),'Bouwkost NB'!$C$22,IF(D2=Bron!$B$10,'Bouwkost UITB'!$C$24,IF(D2=Bron!$B$19,'Bouwkost VERB'!$C$24,IF(D2=Bron!$B$12,'Bouwkost IER'!$C$23,IF(D2=Bron!$B$16,'Bouwkost AK+VERB'!$C$24,IF(OR(D2=Bron!$B$13,D2=Bron!$B$14),'Bouwkost VOLT'!$C$24,0)))))) -> 0 | E6: =IF($D$12=0,0,D6/$D$12) -> 0 | F6: =IF(OR(F$2=Bron!$B$8,F$2=Bron!$B$9,F$2=Bron!$B$15),'Bouwkost NB'!$C$23,IF(F$2=Bron!$B$10,'Bouwkost UITB'!$C$24,IF(F$2=Bron!$B$19,'Bouwkost VERB'!$C$24,IF(F$2=Bron!$B$12,'Bouwkost IER'!$C$23,IF(F$2=Bron!$B$16,'Bouwkost AK+VERB'!$C$24,IF(OR(F$2=Bron!$B$13,F$2=Bron!$B$14),'Bouwkost VOLT'!$C$24,0)))))) -> 0 | G6: =IF($F$12=0,0,F6/$F$12) -> 0 | H6: =IF(OR(H$2=Bron!$B$8,H$2=Bron!$B$9,H$2=Bron!$B$15),'Bouwkost NB'!$C$23,IF(H$2=Bron!$B$10,'Bouwkost UITB'!$C$24,IF(H$2=Bron!$B$19,'Bouwkost VERB'!$C$24,IF(H$2=Bron!$B$12,'Bouwkost IER'!$C$23,IF(H$2=Bron!$B$16,'Bouwkost AK+VERB'!$C$24,IF(OR(H$2=Bron!$B$13,H$2=Bron!$B$14),'Bouwkost VOLT'!$C$24,0)))))) -> 0 | I6: =IF($H$12=0,0,H6/$H$12) -> 0 | J6: =B6+D6+F6+H6 -> 0 | K6: =J6/J12 -> 
A7: PF2 Techn. Uitrusting | B7: =IF(OR(B2=Bron!$B$8,B2=Bron!$B$9,B2=Bron!$B$15),'Bouwkost NB'!$C$29,IF(B2=Bron!$B$10,'Bouwkost UITB'!$C$31,IF(B2=Bron!$B$19,'Bouwkost VERB'!$C$31,IF(B2=Bron!$B$12,'Bouwkost IER'!$C$30,IF(B2=Bron!$B$16,'Bouwkost AK+VERB'!$C$31,IF(OR(B2=Bron!$B$13,B2=Bron!$B$14),'Bouwkost VOLT'!$C$31,0)))))) -> 0 | C7: =IF($B$12=0,0,B7/$B$12) -> 0 | D7: =IF(OR(D2=Bron!$B$8,D2=Bron!$B$9,D2=Bron!$B$15),'Bouwkost NB'!$C$29,IF(D2=Bron!$B$10,'Bouwkost UITB'!$C$31,IF(D2=Bron!$B$19,'Bouwkost VERB'!$C$31,IF(D2=Bron!$B$12,'Bouwkost IER'!$C$30,IF(D2=Bron!$B$16,'Bouwkost AK+VERB'!$C$31,IF(OR(D2=Bron!$B$13,D2=Bron!$B$14),'Bouwkost VOLT'!$C$31,0)))))) -> 0 | E7: =IF($D$12=0,0,D7/$D$12) -> 0 | F7: =IF(OR(F$2=Bron!$B$8,F$2=Bron!$B$9,F$2=Bron!$B$15),'Bouwkost NB'!$C$30,IF(F$2=Bron!$B$10,'Bouwkost UITB'!$C$31,IF(F$2=Bron!$B$19,'Bouwkost VERB'!$C$31,IF(F$2=Bron!$B$12,'Bouwkost IER'!$C$30,IF(F$2=Bron!$B$16,'Bouwkost AK+VERB'!$C$31,IF(OR(F$2=Bron!$B$13,F$2=Bron!$B$14),'Bouwkost VOLT'!$C$31,0)))))) -> 0 | G7: =IF($F$12=0,0,F7/$F$12) -> 0 | H7: =IF(OR(H$2=Bron!$B$8,H$2=Bron!$B$9,H$2=Bron!$B$15),'Bouwkost NB'!$C$30,IF(H$2=Bron!$B$10,'Bouwkost UITB'!$C$31,IF(H$2=Bron!$B$19,'Bouwkost VERB'!$C$31,IF(H$2=Bron!$B$12,'Bouwkost IER'!$C$30,IF(H$2=Bron!$B$16,'Bouwkost AK+VERB'!$C$31,IF(OR(H$2=Bron!$B$13,H$2=Bron!$B$14),'Bouwkost VOLT'!$C$31,0)))))) -> 0 | I7: =IF($H$12=0,0,H7/$H$12) -> 0 | J7: 0 | K7: =J7/J12 -> 
A8: PF3 Afwerking | B8: =IF(OR(B2=Bron!$B$8,B2=Bron!$B$9,B2=Bron!$B$15),'Bouwkost NB'!$C$37,IF(B2=Bron!$B$10,'Bouwkost UITB'!$C$39,IF(B2=Bron!$B$19,'Bouwkost VERB'!$C$39,IF(B2=Bron!$B$12,'Bouwkost IER'!$C$38,IF(B2=Bron!$B$16,'Bouwkost AK+VERB'!$C$39,IF(OR(B2=Bron!$B$13,B2=Bron!$B$14),'Bouwkost VOLT'!$C$39,0)))))) -> 0 | C8: 0 | D8: =IF(OR(D2=Bron!$B$8,D2=Bron!$B$9,D2=Bron!$B$15),'Bouwkost NB'!$C$37,IF(D2=Bron!$B$10,'Bouwkost UITB'!$C$39,IF(D2=Bron!$B$19,'Bouwkost VERB'!$C$39,IF(D2=Bron!$B$12,'Bouwkost IER'!$C$38,IF(D2=Bron!$B$16,'Bouwkost AK+VERB'!$C$39,IF(OR(D2=Bron!$B$13,D2=Bron!$B$14),'Bouwkost VOLT'!$C$39,0)))))) -> 0 | E8: 0 | F8: =IF(OR(F$2=Bron!$B$8,F$2=Bron!$B$9,F$2=Bron!$B$15),'Bouwkost NB'!$C$38,IF(F$2=Bron!$B$10,'Bouwkost UITB'!$C$39,IF(F$2=Bron!$B$19,'Bouwkost VERB'!$C$39,IF(F$2=Bron!$B$12,'Bouwkost IER'!$C$38,IF(F$2=Bron!$B$16,'Bouwkost AK+VERB'!$C$39,IF(OR(F$2=Bron!$B$13,F$2=Bron!$B$14),'Bouwkost VOLT'!$C$39,0)))))) -> 0 | G8: 0 | H8: =IF(OR(H$2=Bron!$B$8,H$2=Bron!$B$9,H$2=Bron!$B$15),'Bouwkost NB'!$C$38,IF(H$2=Bron!$B$10,'Bouwkost UITB'!$C$39,IF(H$2=Bron!$B$19,'Bouwkost VERB'!$C$39,IF(H$2=Bron!$B$12,'Bouwkost IER'!$C$38,IF(H$2=Bron!$B$16,'Bouwkost AK+VERB'!$C$39,IF(OR(H$2=Bron!$B$13,H$2=Bron!$B$14),'Bouwkost VOLT'!$C$39,0)))))) -> 0 | I8: 0 | J8: 0 | K8: =J8/J12 -> 
A9: Subtotaal PF1-2-3 | B9: =SUM(B6:B8) -> 0 | C9: 0 | D9: =SUM(D6:D8) -> 0 | E9: 0 | F9: =SUM(F6:F8) -> 0 | G9: 0 | H9: =SUM(H6:H8) -> 0 | I9: 0 | J9: 0 | K9: =J9/J12 -> 
A10: PF4 Losse uitrusting en meubilering - medische uitrusting | B10: =IF(OR(B2=Bron!$B$8,B2=Bron!$B$9,B2=Bron!$B$15),'Bouwkost NB'!$C$47,IF(B2=Bron!$B$10,'Bouwkost UITB'!$C$49,IF(B2=Bron!$B$19,'Bouwkost VERB'!$C$49,IF(B2=Bron!$B$12,'Bouwkost IER'!$C$48,IF(B2=Bron!$B$16,'Bouwkost AK+VERB'!$C$49,IF(OR(B2=Bron!$B$13,B2=Bron!$B$14),'Bouwkost VOLT'!$C$49,0)))))) -> 0 | C10: =IF($B$12=0,0,B10/$B$12) -> 0 | D10: =IF(OR(D2=Bron!$B$8,D2=Bron!$B$9,D2=Bron!$B$15),'Bouwkost NB'!$C$47,IF(D2=Bron!$B$10,'Bouwkost UITB'!$C$49,IF(D2=Bron!$B$19,'Bouwkost VERB'!$C$49,IF(D2=Bron!$B$12,'Bouwkost IER'!$C$48,IF(D2=Bron!$B$16,'Bouwkost AK+VERB'!$C$49,IF(OR(D2=Bron!$B$13,D2=Bron!$B$14),'Bouwkost VOLT'!$C$49,0)))))) -> 0 | E10: 0 | F10: =IF(OR(F$2=Bron!$B$8,F$2=Bron!$B$9,F$2=Bron!$B$15),'Bouwkost NB'!$C$49,IF(F$2=Bron!$B$10,'Bouwkost UITB'!$C$49,IF(F$2=Bron!$B$19,'Bouwkost VERB'!$C$49,IF(F$2=Bron!$B$12,'Bouwkost IER'!$C$48,IF(F$2=Bron!$B$16,'Bouwkost AK+VERB'!$C$49,IF(OR(F$2=Bron!$B$13,F$2=Bron!$B$14),'Bouwkost VOLT'!$C$49,0)))))) -> 0 | G10: 0 | H10: =IF(OR(H$2=Bron!$B$8,H$2=Bron!$B$9,H$2=Bron!$B$15),'Bouwkost NB'!$C$49,IF(H$2=Bron!$B$10,'Bouwkost UITB'!$C$49,IF(H$2=Bron!$B$19,'Bouwkost VERB'!$C$49,IF(H$2=Bron!$B$12,'Bouwkost IER'!$C$48,IF(H$2=Bron!$B$16,'Bouwkost AK+VERB'!$C$49,IF(OR(H$2=Bron!$B$13,H$2=Bron!$B$14),'Bouwkost VOLT'!$C$49,0)))))) -> 0 | I10: 0 | J10: 0 | K10: =J10/J12 -> 
A11: PF4 Losse uitrusting en meubilering - niet medische uitrusting | B11: =IF(OR(B2=Bron!$B$8,B2=Bron!$B$9,B2=Bron!$B$15),'Bouwkost NB'!$C$48,IF(B2=Bron!$B$10,'Bouwkost UITB'!$C$49,IF(B2=Bron!$B$19,'Bouwkost VERB'!$C$49,IF(B2=Bron!$B$12,'Bouwkost IER'!$C$48,IF(B2=Bron!$B$16,'Bouwkost AK+VERB'!$C$49,IF(OR(B2=Bron!$B$13,B2=Bron!$B$14),'Bouwkost VOLT'!$C$49,0)))))) -> 0 | C11: =IF($B$12=0,0,B11/$B$12) -> 0 | D11: =IF(OR(D2=Bron!$B$8,D2=Bron!$B$9,D2=Bron!$B$15),'Bouwkost NB'!$C$48,IF(D2=Bron!$B$10,'Bouwkost UITB'!$C$49,IF(D2=Bron!$B$19,'Bouwkost VERB'!$C$49,IF(D2=Bron!$B$12,'Bouwkost IER'!$C$48,IF(D2=Bron!$B$16,'Bouwkost AK+VERB'!$C$49,IF(OR(D2=Bron!$B$13,D2=Bron!$B$14),'Bouwkost VOLT'!$C$49,0)))))) -> 0 | E11: 0
A12: Totaal | B12: =B9+B10+B11 -> 0 | C12: 0 | D12: =D9+D10+D11 -> 0 | E12: 0 | F12: =F9+F10 -> 0 | G12: 0 | H12: =H9+H10 -> 0 | I12: 0 | J12: 0 | K12: =SUM(K6:K8)+K10 -> 
A13: kunstwerk | B13: =IFERROR(IF('Overzicht project'!$E$66=0,0,$B$87*('Overzicht BTA'!C$7/'Overzicht BTA'!$C$25)),0) -> 0 | D13: =IFERROR(IF('Overzicht project'!$E$66=0,0,$B$87*('Overzicht BTA'!C$8/'Overzicht BTA'!$C$25)),0) -> 0 | F13: =IFERROR(IF('Overzicht project'!$E$66=0,0,$B$87*('Overzicht BTA'!C$9/'Overzicht BTA'!$C$25)),0) -> 0 | H13: =IFERROR(IF('Overzicht project'!$E$66=0,0,$B$87*('Overzicht BTA'!C$10/'Overzicht BTA'!$C$25)),0) -> 0 | J13: =IF('Overzicht project'!$E$66=0,0,kunst!$B$11*('Overzicht BTA'!C25/'Overzicht project'!$E$66)) -> 0
A14: omgevingswerken | B14: =IF(OR(B2=Bron!$B$8,B2=Bron!$B$9,B2=Bron!$B$15),'Bouwkost NB'!$C$50,IF(B2=Bron!$B$10,'Bouwkost UITB'!$C$51,IF(B2=Bron!$B$19,'Bouwkost VERB'!$C$52,IF(B2=Bron!$B$12,'Bouwkost IER'!$C$50,IF(B2=Bron!$B$16,'Bouwkost AK+VERB'!$C$51,IF(OR(B2=Bron!$B$13,B2=Bron!$B$14),'Bouwkost VOLT'!$C$51,0)))))) -> 0 | D14: =IF(OR(D2=Bron!$B$8,D2=Bron!$B$9,D2=Bron!$B$15),'Bouwkost NB'!$C$50,IF(D2=Bron!$B$10,'Bouwkost UITB'!$C$51,IF(D2=Bron!$B$19,'Bouwkost VERB'!$C$52,IF(D2=Bron!$B$12,'Bouwkost IER'!$C$50,IF(D2=Bron!$B$16,'Bouwkost AK+VERB'!$C$51,IF(OR(D2=Bron!$B$13,D2=Bron!$B$14),'Bouwkost VOLT'!$C$51,0)))))) -> 0 | F14: =IF(OR(F$2=Bron!$B$8,F$2=Bron!$B$9,F$2=Bron!$B$15),'Bouwkost NB'!$C$51,IF(F$2=Bron!$B$10,'Bouwkost UITB'!$C$51,IF(F$2=Bron!$B$19,'Bouwkost VERB'!$C$52,IF(F$2=Bron!$B$12,'Bouwkost IER'!$C$50,IF(F$2=Bron!$B$16,'Bouwkost AK+VERB'!$C$51,IF(OR(F$2=Bron!$B$13,F$2=Bron!$B$14),'Bouwkost VOLT'!$C$51,0)))))) -> 0 | H14: =IF(OR(H$2=Bron!$B$8,H$2=Bron!$B$9,H$2=Bron!$B$15),'Bouwkost NB'!$C$51,IF(H$2=Bron!$B$10,'Bouwkost UITB'!$C$51,IF(H$2=Bron!$B$19,'Bouwkost VERB'!$C$52,IF(H$2=Bron!$B$12,'Bouwkost IER'!$C$50,IF(H$2=Bron!$B$16,'Bouwkost AK+VERB'!$C$51,IF(OR(H$2=Bron!$B$13,H$2=Bron!$B$14),'Bouwkost VOLT'!$C$51,0)))))) -> 0 | J14: 0
A15: ondergrondse parking | B15: =IF(OR(B2=Bron!$B$8,B2=Bron!$B$9,B2=Bron!$B$15),'Bouwkost NB'!$C$55,IF(B2=Bron!$B$10,'Bouwkost UITB'!$C$56,IF(B2=Bron!$B$19,'Bouwkost VERB'!$C$57,IF(B2=Bron!$B$12,'Bouwkost IER'!$C$55,IF(B2=Bron!$B$16,'Bouwkost AK+VERB'!$C$56,IF(OR(B2=Bron!$B$13,B2=Bron!$B$14),'Bouwkost VOLT'!$C$56,0)))))) -> 0 | D15: =IF(OR(D2=Bron!$B$8,D2=Bron!$B$9,D2=Bron!$B$15),'Bouwkost NB'!$C$55,IF(D2=Bron!$B$10,'Bouwkost UITB'!$C$56,IF(D2=Bron!$B$19,'Bouwkost VERB'!$C$57,IF(D2=Bron!$B$12,'Bouwkost IER'!$C$55,IF(D2=Bron!$B$16,'Bouwkost AK+VERB'!$C$56,IF(OR(D2=Bron!$B$13,D2=Bron!$B$14),'Bouwkost VOLT'!$C$56,0)))))) -> 0 | F15: =IF(OR(F$2=Bron!$B$8,F$2=Bron!$B$9,F$2=Bron!$B$15),'Bouwkost NB'!$C$56,IF(F$2=Bron!$B$10,'Bouwkost UITB'!$C$56,IF(F$2=Bron!$B$19,'Bouwkost VERB'!$C$57,IF(F$2=Bron!$B$12,'Bouwkost IER'!$C$55,IF(F$2=Bron!$B$16,'Bouwkost AK+VERB'!$C$56,IF(OR(F$2=Bron!$B$13,F$2=Bron!$B$14),'Bouwkost VOLT'!$C$56,0)))))) -> 0 | H15: =IF(OR(H$2=Bron!$B$8,H$2=Bron!$B$9,H$2=Bron!$B$15),'Bouwkost NB'!$C$56,IF(H$2=Bron!$B$10,'Bouwkost UITB'!$C$56,IF(H$2=Bron!$B$19,'Bouwkost VERB'!$C$57,IF(H$2=Bron!$B$12,'Bouwkost IER'!$C$55,IF(H$2=Bron!$B$16,'Bouwkost AK+VERB'!$C$56,IF(OR(H$2=Bron!$B$13,H$2=Bron!$B$14),'Bouwkost VOLT'!$C$56,0)))))) -> 0 | J15: 0
A16: totaal bouwwerken | B16: =B5+B9+B14+B15 -> 0 | D16: =D5+D9+D14+D15 -> 0 | J16: =J5+J9+J14+J15 -> 0
A17: Diverse kosten (meerwerken, prijsherzieningen, nutsaansluitingen) | B17: =IF(OR(B2=Bron!$B$8,B2=Bron!$B$9,B2=Bron!$B$15),SUM('Bouwkost NB'!$C$57:$C$59),IF(B2=Bron!$B$19,SUM('Bouwkost VERB'!$C$59:$C$61),)) -> 0 | D17: =IF(OR(D2=Bron!$B$8,D2=Bron!$B$9,D2=Bron!$B$15),SUM('Bouwkost NB'!$C$57:$C$69),IF(D2=Bron!$B$19,SUM('Bouwkost VERB'!$C$59:$C$61),)) -> 0 | F17: =IF(OR(F2=Bron!$B$8,F2=Bron!$B$9,F2=Bron!$B$15),SUM('Bouwkost NB'!$C$58:$C$60),IF(F2=Bron!$B$19,SUM('Bouwkost VERB'!$C$59:$C$61),)) -> 0 | H17: =IF(OR(H2=Bron!$B$8,H2=Bron!$B$9,H2=Bron!$B$15),SUM('Bouwkost NB'!$C$58:$C$60),IF(H2=Bron!$B$19,SUM('Bouwkost VERB'!$C$59:$C$61),)) -> 0 | J17: =B17+D17+F17+H17 -> 0
A18: algemeen totaal | B18: =B17+B10+B13+B11 -> 0 | D18: =D17+D10+D13+D11 -> 0 | F18: =F17+F10+F13 -> 0 | H18: =H17+H10+H13 -> 0 | J18: =B18+D18+F18+H18 -> 0
A19: alle bedragen zonder BTW en AO
A20: BTW op gebouw deel A | B20: =B16*C20 -> 0 | C20: =IF(ISNUMBER(MATCH(B2,'Overzicht BTA'!$B$13:$B$14,0)),VLOOKUP(B2,'Overzicht BTA'!$B$13:$C$14,2,FALSE),0.21) -> 0.21 | D20: =D16*E20 -> 0 | E20: =IF(ISNUMBER(MATCH(D2,'Overzicht BTA'!$B$13:$B$14,0)),VLOOKUP(D2,'Overzicht BTA'!$B$13:$C$14,2,FALSE),0.21) -> 0.21 | F20: =IF(OR(F2=Bron!$B$9),ROUND(('uitgebreide raming'!F5+'uitgebreide raming'!F9+'uitgebreide raming'!F15)*'Overzicht BTA'!#REF!*('Overzicht BTA'!#REF!/('Overzicht BTA'!#REF!+'Overzicht BTA'!#REF!))+('uitgebreide raming'!F5+'uitgebreide raming'!F9+'uitgebreide raming'!F15)*'Overzicht BTA'!#REF!*('Overzicht BTA'!#REF!/('Overzicht BTA'!#REF!+'Overzicht BTA'!#REF!)),2),IF(Bron!$B$14='uitgebreide raming'!F2,ROUND(('uitgebreide raming'!F5+'uitgebreide raming'!F9+'uitgebreide raming'!F15)*'Overzicht BTA'!#REF!*('Overzicht BTA'!#REF!/('Overzicht BTA'!#REF!+'Overzicht BTA'!#REF!))+('uitgebreide raming'!F5+'uitgebreide raming'!F9+'uitgebreide raming'!F15)*'Overzicht BTA'!#REF!*('Overzicht BTA'!#REF!/('Overzicht BTA'!#REF!+'Overzicht BTA'!#REF!)),2),ROUND((F5+F9+F15)*G20,2))) -> 0 | G20: =IF(ISNUMBER(MATCH(F2,'Overzicht BTA'!$B$13:$B$14,0)),VLOOKUP(F2,'Overzicht BTA'!$B$13:$C$14,2,FALSE),0.21) -> 0.21 | H20: =IF(OR(H2=Bron!$B$9),ROUND(('uitgebreide raming'!H5+'uitgebreide raming'!H9+'uitgebreide raming'!H15)*'Overzicht BTA'!#REF!*('Overzicht BTA'!#REF!/('Overzicht BTA'!#REF!+'Overzicht BTA'!#REF!))+('uitgebreide raming'!H5+'uitgebreide raming'!H9+'uitgebreide raming'!H15)*'Overzicht BTA'!#REF!*('Overzicht BTA'!#REF!/('Overzicht BTA'!#REF!+'Overzicht BTA'!#REF!)),2),IF(Bron!$B$14='uitgebreide raming'!H2,ROUND(('uitgebreide raming'!H5+'uitgebreide raming'!H9+'uitgebreide raming'!H15)*'Overzicht BTA'!#REF!*('Overzicht BTA'!#REF!/('Overzicht BTA'!#REF!+'Overzicht BTA'!#REF!))+('uitgebreide raming'!H5+'uitgebreide raming'!H9+'uitgebreide raming'!H15)*'Overzicht BTA'!#REF!*('Overzicht BTA'!#REF!/('Overzicht BTA'!#REF!+'Overzicht BTA'!#REF!)),2),ROUND((H5+H9+H15)*I20,2))) -> 0 | I20: =IF(ISNUMBER(MATCH(H2,'Overzicht BTA'!$B$13:$B$14,0)),VLOOKUP(H2,'Overzicht BTA'!$B$13:$C$14,2,FALSE),0.21) -> 0.21 | J20: =B20+D20+F20+H20 -> 0
A21: BTW op kunst | B21: =ROUND(B13*C21,2) -> 0 | C21: 0.06 | D21: =ROUND(D13*E21,2) -> 0 | E21: 0.06 | F21: =ROUND(F13*G21,2) -> 0 | G21: 0.06 | H21: =ROUND(H13*I21,2) -> 0 | I21: 0.06 | J21: =B21+D21+F21+H21 -> 0
A22: BTW op roerend en omgevingswerken | B22: =ROUND((B10+B14+B11)*C22,2) -> 0 | C22: 0.21 | D22: =ROUND((D10+D14+D11)*E22,2) -> 0 | E22: 0.21 | F22: =ROUND((F10+F14)*G22,2) -> 0 | G22: 0.21 | H22: =ROUND((H10+H14)*I22,2) -> 0 | I22: 0.21 | J22: 0
A23: AO op bouwwerken | B23: =ROUND(IF(OR(B2=Bron!$B$8,B2=Bron!$B$9,B2=Bron!$B$15),'Bouwkost NB'!$C$62,IF(B2=Bron!$B$10,'Bouwkost UITB'!$C$63,IF(B2=Bron!$B$19,'Bouwkost VERB'!$C$64,IF(B2=Bron!$B$12,'Bouwkost IER'!$C$62,IF(B2=Bron!$B$16,'Bouwkost AK+VERB'!$C$63,IF(OR(B2=Bron!$B$13,B2=Bron!$B$14),'Bouwkost VOLT'!$C$63,0)))))),2) -> 0 | C23: =IFERROR(B23/(B18-B13-B10),0) -> 0 | D23: =ROUND(IF(OR(D2=Bron!$B$8,D2=Bron!$B$9,D2=Bron!$B$15),'Bouwkost NB'!$C$62,IF(D2=Bron!$B$10,'Bouwkost UITB'!$C$63,IF(D2=Bron!$B$19,'Bouwkost VERB'!$C$64,IF(D2=Bron!$B$12,'Bouwkost IER'!$C$62,IF(D2=Bron!$B$16,'Bouwkost AK+VERB'!$C$63,IF(OR(D2=Bron!$B$13,D2=Bron!$B$14),'Bouwkost VOLT'!$C$63,0)))))),2) -> 0 | E23: =IFERROR(D23/(D18-D13-D10),0) -> 0 | F23: =ROUND(IF(OR(F$2=Bron!$B$8,F$2=Bron!$B$9,F$2=Bron!$B$15),'Bouwkost NB'!$C$63,IF(F$2=Bron!$B$10,'Bouwkost UITB'!$C$63,IF(F$2=Bron!$B$19,'Bouwkost VERB'!$C$64,IF(F$2=Bron!$B$12,'Bouwkost IER'!$C$62,IF(F$2=Bron!$B$16,'Bouwkost AK+VERB'!$C$63,IF(OR(F$2=Bron!$B$13,F$2=Bron!$B$14),'Bouwkost VOLT'!$C$63,0)))))),2) -> 0 | G23: =IFERROR(F23/(F18-F13-F10),0) -> 0 | H23: =ROUND(IF(OR(H$2=Bron!$B$8,H$2=Bron!$B$9,H$2=Bron!$B$15),'Bouwkost NB'!$C$63,IF(H$2=Bron!$B$10,'Bouwkost UITB'!$C$63,IF(H$2=Bron!$B$19,'Bouwkost VERB'!$C$64,IF(H$2=Bron!$B$12,'Bouwkost IER'!$C$62,IF(H$2=Bron!$B$16,'Bouwkost AK+VERB'!$C$63,IF(OR(H$2=Bron!$B$13,H$2=Bron!$B$14),'Bouwkost VOLT'!$C$63,0)))))),2) -> 0 | I23: =IFERROR(H23/(H18-H13-H10),0) -> 0 | J23: 0
A24: 21% BTW op AO | B24: =ROUND(B23*C24,2) -> 0 | C24: 0.21 | D24: =ROUND(D23*E24,2) -> 0 | E24: 0.21 | F24: =ROUND(F23*G24,2) -> 0 | G24: 0.21 | H24: =ROUND(H23*I24,2) -> 0 | I24: 0.21 | J24: 0
A25: Totaal BTW en AO | B25: =SUM(B20:B24) -> 0 | D25: =SUM(D20:D24) -> 0 | F25: =SUM(F20:F24) -> 0 | H25: =SUM(H20:H24) -> 0 | J25: 0
A26: Aankoopkosten all-in | B26: =B3+B4 -> 0 | D26: =D3+D4 -> 0 | F26: =F3+F4 -> 0 | H26: =H3+H4 -> 0 | J26: 0
A27: bouwkost all-in | B27: =B25+B18 -> 0 | D27: =D25+D18 -> 0 | F27: =F25+F18 -> 0 | H27: =H25+H18 -> 0 | J27: =B27+D27+F27+H27 -> 0
A29: PROGRAMMA | B29: ='Overzicht BTA'!H3 -> Kies de zorgvorm
A30: Raming aanvraag subsidie | B30: ='Overzicht BTA'!H7 -> Kies kostensoort | C30: % | D30: ='Overzicht BTA'!H8 -> Kies kostensoort | E30: % | F30: ='Overzicht BTA'!H9 -> Kies kostensoort | G30: % | H30: ='Overzicht BTA'!H10 -> Kies kostensoort | I30: % | J30: Totaal | K30: %
A31: Aankoopbedrag | B31: =IF(OR(B$30=Bron!$B$8,B$30=Bron!$B$9,B$30=Bron!$B$15),'Bouwkost NB'!$N14,IF(B$30=Bron!$B$10,'Bouwkost UITB'!$N$16,IF(B$30=Bron!$B$19,'Bouwkost VERB'!$N$16,IF(B$30=Bron!$B$12,'Bouwkost IER'!$N$15,IF(B$30=Bron!$B$16,'Bouwkost AK+VERB'!$N$16,IF(OR(B$30=Bron!$B$13,B$30=Bron!$B$14),'Bouwkost VOLT'!$N$16,0))))))-B32 -> 0 | D31: =IF(OR(D$30=Bron!$B$8,D$30=Bron!$B$9,D$30=Bron!$B$15),'Bouwkost NB'!$N14,IF(D$30=Bron!$B$10,'Bouwkost UITB'!$N$16,IF(D$30=Bron!$B$19,'Bouwkost VERB'!$N$16,IF(D$30=Bron!$B$12,'Bouwkost IER'!$N$15,IF(D$30=Bron!$B$16,'Bouwkost AK+VERB'!$N$16,IF(OR(D$30=Bron!$B$13,D$30=Bron!$B$14),'Bouwkost VOLT'!$N$16,0))))))-D32 -> 0 | F31: =IF(OR(F$30=Bron!$B$8,F$30=Bron!$B$9,F$30=Bron!$B$15),'Bouwkost NB'!$N15,IF(F$30=Bron!$B$10,'Bouwkost UITB'!$N$16,IF(F$30=Bron!$B$19,'Bouwkost VERB'!$N$16,IF(F$30=Bron!$B$12,'Bouwkost IER'!$N$15,IF(F$30=Bron!$B$16,'Bouwkost AK+VERB'!$N$16,IF(OR(F$30=Bron!$B$13,F$30=Bron!$B$14),'Bouwkost VOLT'!$N$16,0))))))-F32 -> 0 | H31: =IF(OR(H$30=Bron!$B$8,H$30=Bron!$B$9,H$30=Bron!$B$15),'Bouwkost NB'!$N15,IF(H$30=Bron!$B$10,'Bouwkost UITB'!$N$16,IF(H$30=Bron!$B$19,'Bouwkost VERB'!$N$16,IF(H$30=Bron!$B$12,'Bouwkost IER'!$N$15,IF(H$30=Bron!$B$16,'Bouwkost AK+VERB'!$N$16,IF(OR(H$30=Bron!$B$13,H$30=Bron!$B$14),'Bouwkost VOLT'!$N$16,0))))))-H32 -> 0 | J31: =B31+D31+F31+H31 -> 0
A32: Registratie- /notariskosten of BTW | B32: =IF(OR(B$30=Bron!$B$8,B$30=Bron!$B$9,B$30=Bron!$B$15),'Bouwkost NB'!$N$17,IF(B$30=Bron!$B$10,'Bouwkost UITB'!$N$19,IF(B$30=Bron!$B$19,'Bouwkost VERB'!$N$19,IF(B$30=Bron!$B$12,'Bouwkost IER'!$N$18,IF(B$30=Bron!$B$16,'Bouwkost AK+VERB'!$N$19,IF(OR(B$30=Bron!$B$13,B$30=Bron!$B$14),'Bouwkost VOLT'!$N$19,0)))))) -> 0 | D32: =IF(OR(D$30=Bron!$B$8,D$30=Bron!$B$9,D$30=Bron!$B$15),'Bouwkost NB'!$N$17,IF(D$30=Bron!$B$10,'Bouwkost UITB'!$N$19,IF(D$30=Bron!$B$19,'Bouwkost VERB'!$N$19,IF(D$30=Bron!$B$12,'Bouwkost IER'!$N$18,IF(D$30=Bron!$B$16,'Bouwkost AK+VERB'!$N$19,IF(OR(D$30=Bron!$B$13,D$30=Bron!$B$14),'Bouwkost VOLT'!$N$19,0)))))) -> 0 | F32: =IF(OR(F$30=Bron!$B$8,F$30=Bron!$B$9,F$30=Bron!$B$15),'Bouwkost NB'!$N$18,IF(F$30=Bron!$B$10,'Bouwkost UITB'!$N$19,IF(F$30=Bron!$B$19,'Bouwkost VERB'!$N$19,IF(F$30=Bron!$B$12,'Bouwkost IER'!$N$18,IF(F$30=Bron!$B$16,'Bouwkost AK+VERB'!$N$19,IF(OR(F$30=Bron!$B$13,F$30=Bron!$B$14),'Bouwkost VOLT'!$N$19,0)))))) -> 0 | H32: =IF(OR(H$30=Bron!$B$8,H$30=Bron!$B$9,H$30=Bron!$B$15),'Bouwkost NB'!$N$18,IF(H$30=Bron!$B$10,'Bouwkost UITB'!$N$19,IF(H$30=Bron!$B$19,'Bouwkost VERB'!$N$19,IF(H$30=Bron!$B$12,'Bouwkost IER'!$N$18,IF(H$30=Bron!$B$16,'Bouwkost AK+VERB'!$N$19,IF(OR(H$30=Bron!$B$13,H$30=Bron!$B$14),'Bouwkost VOLT'!$N$19,0)))))) -> 0 | J32: 0
A33: voorbereidende werken (incl. afbraak) | B33: =IF(OR(B$30=Bron!$B$8,B$30=Bron!$B$9,B$30=Bron!$B$15),'Bouwkost NB'!$N$53,IF(B$30=Bron!$B$10,'Bouwkost UITB'!$N$54,IF(B$30=Bron!$B$19,'Bouwkost VERB'!$N$55,IF(B$30=Bron!$B$12,'Bouwkost IER'!$N$53,IF(B$30=Bron!$B$16,'Bouwkost AK+VERB'!$N$54,IF(OR(B$30=Bron!$B$13,B$30=Bron!$B$14),'Bouwkost VOLT'!$N$54,0)))))) -> 0 | D33: =IF(OR(D$30=Bron!$B$8,D$30=Bron!$B$9,D$30=Bron!$B$15),'Bouwkost NB'!$N$53,IF(D$30=Bron!$B$10,'Bouwkost UITB'!$N$54,IF(D$30=Bron!$B$19,'Bouwkost VERB'!$N$55,IF(D$30=Bron!$B$12,'Bouwkost IER'!$N$53,IF(D$30=Bron!$B$16,'Bouwkost AK+VERB'!$N$54,IF(OR(D$30=Bron!$B$13,D$30=Bron!$B$14),'Bouwkost VOLT'!$N$54,0)))))) -> 0 | F33: =IF(OR(F$30=Bron!$B$8,F$30=Bron!$B$9,F$30=Bron!$B$15),'Bouwkost NB'!$N$54,IF(F$30=Bron!$B$10,'Bouwkost UITB'!$N$54,IF(F$30=Bron!$B$19,'Bouwkost VERB'!$N$55,IF(F$30=Bron!$B$12,'Bouwkost IER'!$N$53,IF(F$30=Bron!$B$16,'Bouwkost AK+VERB'!$N$54,IF(OR(F$30=Bron!$B$13,F$30=Bron!$B$14),'Bouwkost VOLT'!$N$54,0)))))) -> 0 | H33: =IF(OR(H$30=Bron!$B$8,H$30=Bron!$B$9,H$30=Bron!$B$15),'Bouwkost NB'!$N$54,IF(H$30=Bron!$B$10,'Bouwkost UITB'!$N$54,IF(H$30=Bron!$B$19,'Bouwkost VERB'!$N$55,IF(H$30=Bron!$B$12,'Bouwkost IER'!$N$53,IF(H$30=Bron!$B$16,'Bouwkost AK+VERB'!$N$54,IF(OR(H$30=Bron!$B$13,H$30=Bron!$B$14),'Bouwkost VOLT'!$N$54,0)))))) -> 0 | J33: =B33+D33+F33+H33 -> 0
A34: PF1 Ruwbouw | B34: =IF(OR(B$30=Bron!$B$8,B$30=Bron!$B$9,B$30=Bron!$B$15),'Bouwkost NB'!$N$22,IF(B$30=Bron!$B$10,'Bouwkost UITB'!$N$24,IF(B$30=Bron!$B$19,'Bouwkost VERB'!$N$24,IF(B$30=Bron!$B$12,'Bouwkost IER'!$N$23,IF(B$30=Bron!$B$16,'Bouwkost AK+VERB'!$N$24,IF(OR(B$30=Bron!$B$13,B$30=Bron!$B$14),'Bouwkost VOLT'!$N$24,0)))))) -> 0 | C34: =IF($B$40=0,0,B34/$B$40) -> 0 | D34: =IF(OR(D$30=Bron!$B$8,D$30=Bron!$B$9,D$30=Bron!$B$15),'Bouwkost NB'!$N$22,IF(D$30=Bron!$B$10,'Bouwkost UITB'!$N$24,IF(D$30=Bron!$B$19,'Bouwkost VERB'!$N$24,IF(D$30=Bron!$B$12,'Bouwkost IER'!$N$23,IF(D$30=Bron!$B$16,'Bouwkost AK+VERB'!$N$24,IF(OR(D$30=Bron!$B$13,D$30=Bron!$B$14),'Bouwkost VOLT'!$N$24,0)))))) -> 0 | E34: =IF($D$40=0,0,D34/$D$40) -> 0 | F34: =IF(OR(F$30=Bron!$B$8,F$30=Bron!$B$9,F$30=Bron!$B$15),'Bouwkost NB'!$N$23,IF(F$30=Bron!$B$10,'Bouwkost UITB'!$N$24,IF(F$30=Bron!$B$19,'Bouwkost VERB'!$N$24,IF(F$30=Bron!$B$12,'Bouwkost IER'!$N$23,IF(F$30=Bron!$B$16,'Bouwkost AK+VERB'!$N$24,IF(OR(F$30=Bron!$B$13,F$30=Bron!$B$14),'Bouwkost VOLT'!$N$24,0)))))) -> 0 | G34: =IF($F$40=0,0,F34/$F$40) -> 0 | H34: =IF(OR(H$30=Bron!$B$8,H$30=Bron!$B$9,H$30=Bron!$B$15),'Bouwkost NB'!$N$23,IF(H$30=Bron!$B$10,'Bouwkost UITB'!$N$24,IF(H$30=Bron!$B$19,'Bouwkost VERB'!$N$24,IF(H$30=Bron!$B$12,'Bouwkost IER'!$N$23,IF(H$30=Bron!$B$16,'Bouwkost AK+VERB'!$N$24,IF(OR(H$30=Bron!$B$13,H$30=Bron!$B$14),'Bouwkost VOLT'!$N$24,0)))))) -> 0 | I34: =IF($H$40=0,0,H34/$H$40) -> 0 | J34: =B34+D34+F34+H34 -> 0 | K34: =J34/J40 -> 
A35: PF2 Techn. Uitrusting | B35: =IF(OR(B$30=Bron!$B$8,B$30=Bron!$B$9,B$30=Bron!$B$15),'Bouwkost NB'!$N$29,IF(B$30=Bron!$B$10,'Bouwkost UITB'!$N$31,IF(B$30=Bron!$B$19,'Bouwkost VERB'!$N$31,IF(B$30=Bron!$B$12,'Bouwkost IER'!$N$30,IF(B$30=Bron!$B$16,'Bouwkost AK+VERB'!$N$31,IF(OR(B$30=Bron!$B$13,B$30=Bron!$B$14),'Bouwkost VOLT'!$N$31,0)))))) -> 0 | C35: =IF($B$40=0,0,B35/$B$40) -> 0 | D35: =IF(OR(D$30=Bron!$B$8,D$30=Bron!$B$9,D$30=Bron!$B$15),'Bouwkost NB'!$N$29,IF(D$30=Bron!$B$10,'Bouwkost UITB'!$N$31,IF(D$30=Bron!$B$19,'Bouwkost VERB'!$N$31,IF(D$30=Bron!$B$12,'Bouwkost IER'!$N$30,IF(D$30=Bron!$B$16,'Bouwkost AK+VERB'!$N$31,IF(OR(D$30=Bron!$B$13,D$30=Bron!$B$14),'Bouwkost VOLT'!$N$31,0)))))) -> 0 | E35: =IF($D$40=0,0,D35/$D$40) -> 0 | F35: =IF(OR(F$30=Bron!$B$8,F$30=Bron!$B$9,F$30=Bron!$B$15),'Bouwkost NB'!$N$30,IF(F$30=Bron!$B$10,'Bouwkost UITB'!$N$31,IF(F$30=Bron!$B$19,'Bouwkost VERB'!$N$31,IF(F$30=Bron!$B$12,'Bouwkost IER'!$N$30,IF(F$30=Bron!$B$16,'Bouwkost AK+VERB'!$N$31,IF(OR(F$30=Bron!$B$13,F$30=Bron!$B$14),'Bouwkost VOLT'!$N$31,0)))))) -> 0 | G35: =IF($F$40=0,0,F35/$F$40) -> 0 | H35: =IF(OR(H$30=Bron!$B$8,H$30=Bron!$B$9,H$30=Bron!$B$15),'Bouwkost NB'!$N$30,IF(H$30=Bron!$B$10,'Bouwkost UITB'!$N$31,IF(H$30=Bron!$B$19,'Bouwkost VERB'!$N$31,IF(H$30=Bron!$B$12,'Bouwkost IER'!$N$30,IF(H$30=Bron!$B$16,'Bouwkost AK+VERB'!$N$31,IF(OR(H$30=Bron!$B$13,H$30=Bron!$B$14),'Bouwkost VOLT'!$N$31,0)))))) -> 0 | I35: =IF($H$40=0,0,H35/$H$40) -> 0 | J35: 0 | K35: =J35/J40 -> 
A36: PF3 Afwerking | B36: =IF(OR(B$30=Bron!$B$8,B$30=Bron!$B$9,B$30=Bron!$B$15),'Bouwkost NB'!$N$37,IF(B$30=Bron!$B$10,'Bouwkost UITB'!$N$39,IF(B$30=Bron!$B$19,'Bouwkost VERB'!$N$39,IF(B$30=Bron!$B$12,'Bouwkost IER'!$N$38,IF(B$30=Bron!$B$16,'Bouwkost AK+VERB'!$N$39,IF(OR(B$30=Bron!$B$13,B$30=Bron!$B$14),'Bouwkost VOLT'!$N$39,0)))))) -> 0 | C36: 0 | D36: =IF(OR(D$30=Bron!$B$8,D$30=Bron!$B$9,D$30=Bron!$B$15),'Bouwkost NB'!$N$37,IF(D$30=Bron!$B$10,'Bouwkost UITB'!$N$39,IF(D$30=Bron!$B$19,'Bouwkost VERB'!$N$39,IF(D$30=Bron!$B$12,'Bouwkost IER'!$N$38,IF(D$30=Bron!$B$16,'Bouwkost AK+VERB'!$N$39,IF(OR(D$30=Bron!$B$13,D$30=Bron!$B$14),'Bouwkost VOLT'!$N$39,0)))))) -> 0 | E36: 0 | F36: =IF(OR(F$30=Bron!$B$8,F$30=Bron!$B$9,F$30=Bron!$B$15),'Bouwkost NB'!$N$38,IF(F$30=Bron!$B$10,'Bouwkost UITB'!$N$39,IF(F$30=Bron!$B$19,'Bouwkost VERB'!$N$39,IF(F$30=Bron!$B$12,'Bouwkost IER'!$N$38,IF(F$30=Bron!$B$16,'Bouwkost AK+VERB'!$N$39,IF(OR(F$30=Bron!$B$13,F$30=Bron!$B$14),'Bouwkost VOLT'!$N$39,0)))))) -> 0 | G36: 0 | H36: =IF(OR(H$30=Bron!$B$8,H$30=Bron!$B$9,H$30=Bron!$B$15),'Bouwkost NB'!$N$38,IF(H$30=Bron!$B$10,'Bouwkost UITB'!$N$39,IF(H$30=Bron!$B$19,'Bouwkost VERB'!$N$39,IF(H$30=Bron!$B$12,'Bouwkost IER'!$N$38,IF(H$30=Bron!$B$16,'Bouwkost AK+VERB'!$N$39,IF(OR(H$30=Bron!$B$13,H$30=Bron!$B$14),'Bouwkost VOLT'!$N$39,0)))))) -> 0 | I36: 0 | J36: 0 | K36: =J36/J40 -> 
A37: Subtotaal PF1-2-3 | B37: =SUM(B34:B36) -> 0 | C37: 0 | D37: =SUM(D34:D36) -> 0 | E37: 0 | F37: =SUM(F34:F36) -> 0 | G37: 0 | H37: =SUM(H34:H36) -> 0 | I37: 0 | J37: 0 | K37: =J37/J40 -> 
A38: PF4 Losse uitrusting en meubilering | B38: =IF(OR(B$30=Bron!$B$8,B$30=Bron!$B$9,B$30=Bron!$B$15),'Bouwkost NB'!$N$47,IF(B$30=Bron!$B$10,'Bouwkost UITB'!$N$49,IF(B$30=Bron!$B$19,'Bouwkost VERB'!$N$49,IF(B$30=Bron!$B$12,'Bouwkost IER'!$N$48,IF(B$30=Bron!$B$16,'Bouwkost AK+VERB'!$N$49,IF(OR(B$30=Bron!$B$13,B$30=Bron!$B$14),'Bouwkost VOLT'!$N$49,0)))))) -> 0 | C38: 0 | D38: =IF(OR(D$30=Bron!$B$8,D$30=Bron!$B$9,D$30=Bron!$B$15),'Bouwkost NB'!$N$47,IF(D$30=Bron!$B$10,'Bouwkost UITB'!$N$49,IF(D$30=Bron!$B$19,'Bouwkost VERB'!$N$49,IF(D$30=Bron!$B$12,'Bouwkost IER'!$N$48,IF(D$30=Bron!$B$16,'Bouwkost AK+VERB'!$N$49,IF(OR(D$30=Bron!$B$13,D$30=Bron!$B$14),'Bouwkost VOLT'!$N$49,0)))))) -> 0 | E38: 0 | F38: =IF(OR(F$30=Bron!$B$8,F$30=Bron!$B$9,F$30=Bron!$B$15),'Bouwkost NB'!$N$49,IF(F$30=Bron!$B$10,'Bouwkost UITB'!$N$49,IF(F$30=Bron!$B$19,'Bouwkost VERB'!$N$49,IF(F$30=Bron!$B$12,'Bouwkost IER'!$N$48,IF(F$30=Bron!$B$16,'Bouwkost AK+VERB'!$N$49,IF(OR(F$30=Bron!$B$13,F$30=Bron!$B$14),'Bouwkost VOLT'!$N$49,0)))))) -> 0 | G38: 0 | H38: =IF(OR(H$30=Bron!$B$8,H$30=Bron!$B$9,H$30=Bron!$B$15),'Bouwkost NB'!$N$49,IF(H$30=Bron!$B$10,'Bouwkost UITB'!$N$49,IF(H$30=Bron!$B$19,'Bouwkost VERB'!$N$49,IF(H$30=Bron!$B$12,'Bouwkost IER'!$N$48,IF(H$30=Bron!$B$16,'Bouwkost AK+VERB'!$N$49,IF(OR(H$30=Bron!$B$13,H$30=Bron!$B$14),'Bouwkost VOLT'!$N$49,0)))))) -> 0 | I38: 0 | J38: 0 | K38: =J38/J40 -> 
A39: PF4 Losse uitrusting en meubilering - niet medische uitrusting | B39: =IF(OR(B$30=Bron!$B$8,B$30=Bron!$B$9,B$30=Bron!$B$15),'Bouwkost NB'!$N$48,IF(B$30=Bron!$B$10,'Bouwkost UITB'!$N$49,IF(B$30=Bron!$B$19,'Bouwkost VERB'!$N$49,IF(B$30=Bron!$B$12,'Bouwkost IER'!$N$48,IF(B$30=Bron!$B$16,'Bouwkost AK+VERB'!$N$49,IF(OR(B$30=Bron!$B$13,B$30=Bron!$B$14),'Bouwkost VOLT'!$N$49,0)))))) -> 0 | C39: 0 | D39: =IF(OR(D$30=Bron!$B$8,D$30=Bron!$B$9,D$30=Bron!$B$15),'Bouwkost NB'!$N$48,IF(D$30=Bron!$B$10,'Bouwkost UITB'!$N$49,IF(D$30=Bron!$B$19,'Bouwkost VERB'!$N$49,IF(D$30=Bron!$B$12,'Bouwkost IER'!$N$48,IF(D$30=Bron!$B$16,'Bouwkost AK+VERB'!$N$49,IF(OR(D$30=Bron!$B$13,D$30=Bron!$B$14),'Bouwkost VOLT'!$N$49,0)))))) -> 0 | E39: 0
A40: Totaal | B40: =B37+B38+B39 -> 0 | C40: 0 | D40: =D37+D38+D39 -> 0 | E40: 0 | F40: =F37+F38 -> 0 | G40: 0 | H40: =H37+H38 -> 0 | I40: 0 | J40: 0 | K40: =SUM(K34:K36)+K38 -> 
A41: kunstwerk | B41: =IFERROR(IF('Overzicht project'!$E$66=0,0,$B$87*('Overzicht BTA'!I$7/'Overzicht BTA'!J25)),0) -> 0 | D41: =IFERROR(IF('Overzicht project'!$E$66=0,0,$B$87*('Overzicht BTA'!K$7/'Overzicht BTA'!L25)),0) -> 0 | F41: =IFERROR(IF('Overzicht project'!$E$66=0,0,$B$87*('Overzicht BTA'!I$9/'Overzicht BTA'!J25)),0) -> 0 | H41: =IFERROR(IF('Overzicht project'!$E$66=0,0,$B$87*('Overzicht BTA'!I$10/'Overzicht BTA'!J25)),0) -> 0 | J41: =IF('Overzicht project'!$E$66=0,0,kunst!$B$11*('Overzicht BTA'!J25/'Overzicht project'!$E$66)) -> 0
A42: omgevingswerken | B42: =IF(OR(B30=Bron!$B$8,B30=Bron!$B$9,B30=Bron!$B$15),'Bouwkost NB'!$N$50,IF(B30=Bron!$B$10,'Bouwkost UITB'!$N$51,IF(B30=Bron!$B$19,'Bouwkost VERB'!$N$52,IF(B30=Bron!$B$12,'Bouwkost IER'!$N$50,IF(B30=Bron!$B$16,'Bouwkost AK+VERB'!$N$51,IF(OR(B30=Bron!$B$13,B30=Bron!$B$14),'Bouwkost VOLT'!$N$51,0)))))) -> 0 | D42: =IF(OR(D30=Bron!$B$8,D30=Bron!$B$9,D30=Bron!$B$15),'Bouwkost NB'!$N$50,IF(D30=Bron!$B$10,'Bouwkost UITB'!$N$51,IF(D30=Bron!$B$19,'Bouwkost VERB'!$N$52,IF(D30=Bron!$B$12,'Bouwkost IER'!$N$50,IF(D30=Bron!$B$16,'Bouwkost AK+VERB'!$N$51,IF(OR(D30=Bron!$B$13,D30=Bron!$B$14),'Bouwkost VOLT'!$N$51,0)))))) -> 0 | F42: =IF(OR(F30=Bron!$B$8,F30=Bron!$B$9,F30=Bron!$B$15),'Bouwkost NB'!$N$51,IF(F30=Bron!$B$10,'Bouwkost UITB'!$N$51,IF(F30=Bron!$B$19,'Bouwkost VERB'!$N$52,IF(F30=Bron!$B$12,'Bouwkost IER'!$N$50,IF(F30=Bron!$B$16,'Bouwkost AK+VERB'!$N$51,IF(OR(F30=Bron!$B$13,F30=Bron!$B$14),'Bouwkost VOLT'!$N$51,0)))))) -> 0 | H42: =IF(OR(H30=Bron!$B$8,H30=Bron!$B$9,H30=Bron!$B$15),'Bouwkost NB'!$N$51,IF(H30=Bron!$B$10,'Bouwkost UITB'!$N$51,IF(H30=Bron!$B$19,'Bouwkost VERB'!$N$52,IF(H30=Bron!$B$12,'Bouwkost IER'!$N$50,IF(H30=Bron!$B$16,'Bouwkost AK+VERB'!$N$51,IF(OR(H30=Bron!$B$13,H30=Bron!$B$14),'Bouwkost VOLT'!$N$51,0)))))) -> 0 | J42: =B42+D42+F42+H42 -> 0
A43: ondergrondse parking | B43: =IF(OR(B30=Bron!$B$8,B30=Bron!$B$9,B30=Bron!$B$15),'Bouwkost NB'!$N$55,IF(B30=Bron!$B$10,'Bouwkost UITB'!$N$56,IF(B30=Bron!$B$19,'Bouwkost VERB'!$N$57,IF(B30=Bron!$B$12,'Bouwkost IER'!$N$55,IF(B30=Bron!$B$16,'Bouwkost AK+VERB'!$N$56,IF(OR(B30=Bron!$B$13,B30=Bron!$B$14),'Bouwkost VOLT'!$N$56,0)))))) -> 0 | D43: =IF(OR(D30=Bron!$B$8,D30=Bron!$B$9,D30=Bron!$B$15),'Bouwkost NB'!$N$55,IF(D30=Bron!$B$10,'Bouwkost UITB'!$N$56,IF(D30=Bron!$B$19,'Bouwkost VERB'!$N$57,IF(D30=Bron!$B$12,'Bouwkost IER'!$N$55,IF(D30=Bron!$B$16,'Bouwkost AK+VERB'!$N$56,IF(OR(D30=Bron!$B$13,D30=Bron!$B$14),'Bouwkost VOLT'!$N$56,0)))))) -> 0 | F43: =IF(OR(F30=Bron!$B$8,F30=Bron!$B$9,F30=Bron!$B$15),'Bouwkost NB'!$N$56,IF(F30=Bron!$B$10,'Bouwkost UITB'!$N$56,IF(F30=Bron!$B$19,'Bouwkost VERB'!$N$57,IF(F30=Bron!$B$12,'Bouwkost IER'!$N$55,IF(F30=Bron!$B$16,'Bouwkost AK+VERB'!$N$56,IF(OR(F30=Bron!$B$13,F30=Bron!$B$14),'Bouwkost VOLT'!$N$56,0)))))) -> 0 | H43: =IF(OR(H30=Bron!$B$8,H30=Bron!$B$9,H30=Bron!$B$15),'Bouwkost NB'!$N$56,IF(H30=Bron!$B$10,'Bouwkost UITB'!$N$56,IF(H30=Bron!$B$19,'Bouwkost VERB'!$N$57,IF(H30=Bron!$B$12,'Bouwkost IER'!$N$55,IF(H30=Bron!$B$16,'Bouwkost AK+VERB'!$N$56,IF(OR(H30=Bron!$B$13,H30=Bron!$B$14),'Bouwkost VOLT'!$N$56,0)))))) -> 0 | J43: 0
A44: totaal bouwwerken | B44: =B33+B37+B42+B43 -> 0 | D44: =D33+D37+D42+D43 -> 0 | F44: =F33+F37+F42+F43 -> 0 | H44: =H33+H37+H42+H43 -> 0 | J44: =B44+D44+F44+H44 -> 0
A45: Diverse kosten (meerwerken, prijsherzieningen, nutsaansluitingen) | B45: =IF(OR(B30=Bron!$B$8,B30=Bron!$B$9,B30=Bron!$B$15),SUM('Bouwkost NB'!$N$57:$N$59),IF(B30=Bron!$B$19,SUM('Bouwkost VERB'!$N$59:$N$61),)) -> 0 | D45: =IF(OR(D30=Bron!$B$8,D30=Bron!$B$9,D30=Bron!$B$15),SUM('Bouwkost NB'!$N$57:$N$59),IF(D30=Bron!$B$19,SUM('Bouwkost VERB'!$N$59:$N$61),)) -> 0 | F45: =IF(OR(F30=Bron!$B$8,F30=Bron!$B$9,F30=Bron!$B$15),SUM('Bouwkost NB'!$N$58:$N$60),IF(F30=Bron!$B$19,SUM('Bouwkost VERB'!$N$59:$N$61),)) -> 0 | H45: =IF(OR(H30=Bron!$B$8,H30=Bron!$B$9,H30=Bron!$B$15),SUM('Bouwkost NB'!$N$58:$N$60),IF(H30=Bron!$B$19,SUM('Bouwkost VERB'!$N$59:$N$61),)) -> 0 | J45: =B45+D45+F45+H45 -> 0
A46: algemeen totaal | B46: =B44+B38+B41+B39 -> 0 | D46: =D44+D38+D41+D39 -> 0 | F46: =F44+F38+F41 -> 0 | H46: =H44+H38+H41 -> 0 | J46: =B46+D46+F46+H46 -> 0
A47: alle bedragen zonder BTW en AO
A48: BTW op gebouw deel A | B48: =B44*C48 -> 0 | C48: =IF(ISNUMBER(MATCH(B30,'Overzicht BTA'!$H$13:$H$14,0)),VLOOKUP(B30,'Overzicht BTA'!$H$13:$I$14,2,FALSE),0.21) -> 0.21 | D48: =D44*E48 -> 0 | E48: =IF(ISNUMBER(MATCH(D30,'Overzicht BTA'!$H$13:$H$14,0)),VLOOKUP(D30,'Overzicht BTA'!$H$13:$I$14,2,FALSE),0.21) -> 0.21 | F48: =IF(OR(F30=Bron!$B$9),ROUND(('uitgebreide raming'!F33+'uitgebreide raming'!F37+'uitgebreide raming'!F43)*'Overzicht BTA'!#REF!*('Overzicht BTA'!#REF!/('Overzicht BTA'!#REF!+'Overzicht BTA'!#REF!))+('uitgebreide raming'!F33+'uitgebreide raming'!F37+'uitgebreide raming'!F43)*'Overzicht BTA'!#REF!*('Overzicht BTA'!#REF!/('Overzicht BTA'!#REF!+'Overzicht BTA'!#REF!)),2),IF(Bron!$B$14='uitgebreide raming'!F30,ROUND(('uitgebreide raming'!F33+'uitgebreide raming'!F37+'uitgebreide raming'!F43)*'Overzicht BTA'!#REF!*('Overzicht BTA'!#REF!/('Overzicht BTA'!#REF!+'Overzicht BTA'!#REF!))+('uitgebreide raming'!F33+'uitgebreide raming'!F37+'uitgebreide raming'!F43)*'Overzicht BTA'!#REF!*('Overzicht BTA'!#REF!/('Overzicht BTA'!#REF!+'Overzicht BTA'!#REF!)),2),ROUND((F33+F37+F43)*G48,2))) -> 0 | G48: =IF(ISNUMBER(MATCH(F30,'Overzicht BTA'!$H$13:$H$14,0)),VLOOKUP(F30,'Overzicht BTA'!$H$13:$I$14,2,FALSE),0.21) -> 0.21 | H48: =IF(OR(H30=Bron!$B$9),ROUND(('uitgebreide raming'!H33+'uitgebreide raming'!H37+'uitgebreide raming'!H43)*'Overzicht BTA'!#REF!*('Overzicht BTA'!#REF!/('Overzicht BTA'!#REF!+'Overzicht BTA'!#REF!))+('uitgebreide raming'!H33+'uitgebreide raming'!H37+'uitgebreide raming'!H43)*'Overzicht BTA'!#REF!*('Overzicht BTA'!#REF!/('Overzicht BTA'!#REF!+'Overzicht BTA'!#REF!)),2),IF(Bron!$B$14='uitgebreide raming'!H30,ROUND(('uitgebreide raming'!H33+'uitgebreide raming'!H37+'uitgebreide raming'!H43)*'Overzicht BTA'!#REF!*('Overzicht BTA'!#REF!/('Overzicht BTA'!#REF!+'Overzicht BTA'!#REF!))+('uitgebreide raming'!H33+'uitgebreide raming'!H37+'uitgebreide raming'!H43)*'Overzicht BTA'!#REF!*('Overzicht BTA'!#REF!/('Overzicht BTA'!#REF!+'Overzicht BTA'!#REF!)),2),ROUND((H33+H37+H43)*I48,2))) -> 0 | I48: =IF(ISNUMBER(MATCH(H30,'Overzicht BTA'!$H$13:$H$14,0)),VLOOKUP(H30,'Overzicht BTA'!$H$13:$I$14,2,FALSE),0.21) -> 0.21 | J48: =B48+D48+F48+H48 -> 0
A49: BTW op kunst | B49: =ROUND(B41*C49,2) -> 0 | C49: 0.06 | D49: =ROUND(D41*E49,2) -> 0 | E49: 0.06 | F49: =ROUND(F41*G49,2) -> 0 | G49: 0.06 | H49: =ROUND(H41*I49,2) -> 0 | I49: 0.06 | J49: =B49+D49+F49+H49 -> 0
A50: BTW op roerend en omgevingswerken | B50: =ROUND((B38+B42+B39)*C50,2) -> 0 | C50: 0.21 | D50: =ROUND((D38+D42+D39)*E50,2) -> 0 | E50: 0.21 | F50: =ROUND((F38+F42)*G50,2) -> 0 | G50: 0.21 | H50: =ROUND((H38+H42)*I50,2) -> 0 | I50: 0.21 | J50: 0
A51: AO op bouwwerken | B51: =ROUND(IF(OR(B30=Bron!$B$8,B30=Bron!$B$9,B30=Bron!$B$15),'Bouwkost NB'!$N$62,IF(B30=Bron!$B$10,'Bouwkost UITB'!$N$63,IF(B30=Bron!$B$19,'Bouwkost VERB'!$N$64,IF(B30=Bron!$B$12,'Bouwkost IER'!$N$62,IF(B30=Bron!$B$16,'Bouwkost AK+VERB'!$N$63,IF(OR(B30=Bron!$B$13,B30=Bron!$B$14),'Bouwkost VOLT'!$N$63,0)))))),2) -> 0 | C51: =IFERROR(B51/(B46-B41-B38),0) -> 0 | D51: =ROUND(IF(OR(D30=Bron!$B$8,D30=Bron!$B$9,D30=Bron!$B$15),'Bouwkost NB'!$C$62,IF(D30=Bron!$B$10,'Bouwkost UITB'!$C$63,IF(D30=Bron!$B$19,'Bouwkost VERB'!$C$64,IF(D30=Bron!$B$12,'Bouwkost IER'!$C$62,IF(D30=Bron!$B$16,'Bouwkost AK+VERB'!$C$63,IF(OR(D30=Bron!$B$13,D30=Bron!$B$14),'Bouwkost VOLT'!$C$63,0)))))),2) -> 0 | E51: =IFERROR(D51/(D46-D41-D38),0) -> 0 | F51: =ROUND(IF(OR(F30=Bron!$B$8,F30=Bron!$B$9,F30=Bron!$B$15),'Bouwkost NB'!$N$63,IF(F30=Bron!$B$10,'Bouwkost UITB'!$N$63,IF(F30=Bron!$B$19,'Bouwkost VERB'!$N$64,IF(F30=Bron!$B$12,'Bouwkost IER'!$N$62,IF(F30=Bron!$B$16,'Bouwkost AK+VERB'!$N$63,IF(OR(F30=Bron!$B$13,F30=Bron!$B$14),'Bouwkost VOLT'!$N$63,0)))))),2) -> 0 | G51: =IFERROR(F51/(F46-F41-F38),0) -> 0 | H51: =ROUND(IF(OR(H30=Bron!$B$8,H30=Bron!$B$9,H30=Bron!$B$15),'Bouwkost NB'!$N$63,IF(H30=Bron!$B$10,'Bouwkost UITB'!$N$63,IF(H30=Bron!$B$19,'Bouwkost VERB'!$N$64,IF(H30=Bron!$B$12,'Bouwkost IER'!$N$62,IF(H30=Bron!$B$16,'Bouwkost AK+VERB'!$N$63,IF(OR(H30=Bron!$B$13,H30=Bron!$B$14),'Bouwkost VOLT'!$N$63,0)))))),2) -> 0 | I51: =IFERROR(H51/(H46-H41-H38),0) -> 0 | J51: 0
A52: 21% BTW op AO | B52: =ROUND(B51*C52,2) -> 0 | C52: 0.21 | D52: =ROUND(D51*E52,2) -> 0 | E52: 0.21 | F52: =ROUND(F51*G52,2) -> 0 | G52: 0.21 | H52: =ROUND(H51*I52,2) -> 0 | I52: 0.21 | J52: 0
A53: Totaal BTW en AO | B53: =SUM(B48:B52) -> 0 | D53: =SUM(D48:D52) -> 0 | F53: =SUM(F48:F52) -> 0 | H53: =SUM(H48:H52) -> 0 | J53: 0
A54: Aankoopkosten all-in | B54: =B31+B32 -> 0 | D54: =D31+D32 -> 0 | F54: =F31+F32 -> 0 | H54: =H31+H32 -> 0 | J54: 0
A55: bouwkost all-in | B55: =B53+B46 -> 0 | D55: =D53+D46 -> 0 | F55: =F53+F46 -> 0 | H55: =H53+H46 -> 0 | J55: =B55+D55+F55+H55 -> 0
A57: PROGRAMMA | B57: ='Overzicht BTA'!N3 -> Kies de zorgvorm
A58: Raming aanvraag subsidie | B58: ='Overzicht BTA'!N7 -> Kies kostensoort | C58: % | D58: ='Overzicht BTA'!N8 -> Kies kostensoort | E58: % | F58: ='Overzicht BTA'!N9 -> Kies kostensoort | G58: % | H58: ='Overzicht BTA'!N10 -> Kies kostensoort | I58: % | J58: Totaal | K58: %
A59: Aankoopbedrag | B59: =IF(OR(B58=Bron!$B$8,B58=Bron!$B$9,B58=Bron!$B$15),'Bouwkost NB'!$Y$14,IF(B58=Bron!$B$10,'Bouwkost UITB'!$Y$16,IF(B58=Bron!$B$19,'Bouwkost VERB'!$Y$16,IF(B58=Bron!$B$12,'Bouwkost IER'!$Y$15,IF(B58=Bron!$B$16,'Bouwkost AK+VERB'!$Y$16,IF(OR(B58=Bron!$B$13,B58=Bron!$B$14),'Bouwkost VOLT'!$Y$16,0))))))-B60 -> 0 | D59: =IF(OR(D58=Bron!$B$8,D58=Bron!$B$9,D58=Bron!$B$15),'Bouwkost NB'!$Y$14,IF(D58=Bron!$B$10,'Bouwkost UITB'!$Y$16,IF(D58=Bron!$B$19,'Bouwkost VERB'!$Y$16,IF(D58=Bron!$B$12,'Bouwkost IER'!$Y$15,IF(D58=Bron!$B$16,'Bouwkost AK+VERB'!$Y$16,IF(OR(D58=Bron!$B$13,D58=Bron!$B$14),'Bouwkost VOLT'!$Y$16,0))))))-D60 -> 0 | F59: =IF(OR(F58=Bron!$B$8,F58=Bron!$B$9,F58=Bron!$B$15),'Bouwkost NB'!$Y$15,IF(F58=Bron!$B$10,'Bouwkost UITB'!$Y$16,IF(F58=Bron!$B$19,'Bouwkost VERB'!$Y$16,IF(F58=Bron!$B$12,'Bouwkost IER'!$Y$15,IF(F58=Bron!$B$16,'Bouwkost AK+VERB'!$Y$16,IF(OR(F58=Bron!$B$13,F58=Bron!$B$14),'Bouwkost VOLT'!$Y$16,0))))))-F60 -> 0 | H59: =IF(OR(H58=Bron!$B$8,H58=Bron!$B$9,H58=Bron!$B$15),'Bouwkost NB'!$Y$15,IF(H58=Bron!$B$10,'Bouwkost UITB'!$Y$16,IF(H58=Bron!$B$19,'Bouwkost VERB'!$Y$16,IF(H58=Bron!$B$12,'Bouwkost IER'!$Y$15,IF(H58=Bron!$B$16,'Bouwkost AK+VERB'!$Y$16,IF(OR(H58=Bron!$B$13,H58=Bron!$B$14),'Bouwkost VOLT'!$Y$16,0))))))-H60 -> 0 | J59: =B59+D59+F59+H59 -> 0
A60: Registratie- /notariskosten of BTW | B60: =IF(OR(B58=Bron!$B$8,B58=Bron!$B$9,B58=Bron!$B$15),'Bouwkost NB'!$Y$17,IF(B58=Bron!$B$10,'Bouwkost UITB'!$Y$19,IF(B58=Bron!$B$19,'Bouwkost VERB'!$Y$19,IF(B58=Bron!$B$12,'Bouwkost IER'!$Y$18,IF(B58=Bron!$B$16,'Bouwkost AK+VERB'!$Y$19,IF(OR(B58=Bron!$B$13,B58=Bron!$B$14),'Bouwkost VOLT'!$Y$19,0)))))) -> 0 | D60: =IF(OR(D58=Bron!$B$8,D58=Bron!$B$9,D58=Bron!$B$15),'Bouwkost NB'!$Y$17,IF(D58=Bron!$B$10,'Bouwkost UITB'!$Y$19,IF(D58=Bron!$B$19,'Bouwkost VERB'!$Y$19,IF(D58=Bron!$B$12,'Bouwkost IER'!$Y$18,IF(D58=Bron!$B$16,'Bouwkost AK+VERB'!$Y$19,IF(OR(D58=Bron!$B$13,D58=Bron!$B$14),'Bouwkost VOLT'!$Y$19,0)))))) -> 0 | F60: =IF(OR(F58=Bron!$B$8,F58=Bron!$B$9,F58=Bron!$B$15),'Bouwkost NB'!$Y$18,IF(F58=Bron!$B$10,'Bouwkost UITB'!$Y$19,IF(F58=Bron!$B$19,'Bouwkost VERB'!$Y$19,IF(F58=Bron!$B$12,'Bouwkost IER'!$Y$18,IF(F58=Bron!$B$16,'Bouwkost AK+VERB'!$Y$19,IF(OR(F58=Bron!$B$13,F58=Bron!$B$14),'Bouwkost VOLT'!$Y$19,0)))))) -> 0 | H60: =IF(OR(H58=Bron!$B$8,H58=Bron!$B$9,H58=Bron!$B$15),'Bouwkost NB'!$Y$18,IF(H58=Bron!$B$10,'Bouwkost UITB'!$Y$19,IF(H58=Bron!$B$19,'Bouwkost VERB'!$Y$19,IF(H58=Bron!$B$12,'Bouwkost IER'!$Y$18,IF(H58=Bron!$B$16,'Bouwkost AK+VERB'!$Y$19,IF(OR(H58=Bron!$B$13,H58=Bron!$B$14),'Bouwkost VOLT'!$Y$19,0)))))) -> 0 | J60: 0
A61: voorbereidende werken (incl. afbraak) | B61: =IF(OR(B58=Bron!$B$8,B58=Bron!$B$9,B58=Bron!$B$15),'Bouwkost NB'!$Y$53,IF(B58=Bron!$B$10,'Bouwkost UITB'!$Y$54,IF(B58=Bron!$B$19,'Bouwkost VERB'!$Y$55,IF(B58=Bron!$B$12,'Bouwkost IER'!$Y$53,IF(B58=Bron!$B$16,'Bouwkost AK+VERB'!$Y$54,IF(OR(B58=Bron!$B$13,B58=Bron!$B$14),'Bouwkost VOLT'!$Y$54,0)))))) -> 0 | D61: =IF(OR(D58=Bron!$B$8,D58=Bron!$B$9,D58=Bron!$B$15),'Bouwkost NB'!$Y$53,IF(D58=Bron!$B$10,'Bouwkost UITB'!$Y$54,IF(D58=Bron!$B$19,'Bouwkost VERB'!$Y$55,IF(D58=Bron!$B$12,'Bouwkost IER'!$Y$53,IF(D58=Bron!$B$16,'Bouwkost AK+VERB'!$Y$54,IF(OR(D58=Bron!$B$13,D58=Bron!$B$14),'Bouwkost VOLT'!$Y$54,0)))))) -> 0 | F61: =IF(OR(F58=Bron!$B$8,F58=Bron!$B$9,F58=Bron!$B$15),'Bouwkost NB'!$Y$54,IF(F58=Bron!$B$10,'Bouwkost UITB'!$Y$54,IF(F58=Bron!$B$19,'Bouwkost VERB'!$Y$55,IF(F58=Bron!$B$12,'Bouwkost IER'!$Y$53,IF(F58=Bron!$B$16,'Bouwkost AK+VERB'!$Y$54,IF(OR(F58=Bron!$B$13,F58=Bron!$B$14),'Bouwkost VOLT'!$Y$54,0)))))) -> 0 | H61: =IF(OR(H58=Bron!$B$8,H58=Bron!$B$9,H58=Bron!$B$15),'Bouwkost NB'!$Y$54,IF(H58=Bron!$B$10,'Bouwkost UITB'!$Y$54,IF(H58=Bron!$B$19,'Bouwkost VERB'!$Y$55,IF(H58=Bron!$B$12,'Bouwkost IER'!$Y$53,IF(H58=Bron!$B$16,'Bouwkost AK+VERB'!$Y$54,IF(OR(H58=Bron!$B$13,H58=Bron!$B$14),'Bouwkost VOLT'!$Y$54,0)))))) -> 0 | J61: =B61+D61+F61+H61 -> 0
A62: PF1 Ruwbouw | B62: =IF(OR(B58=Bron!$B$8,B58=Bron!$B$9,B58=Bron!$B$15),'Bouwkost NB'!$Y$22,IF(B58=Bron!$B$10,'Bouwkost UITB'!$Y$24,IF(B58=Bron!$B$19,'Bouwkost VERB'!$Y$24,IF(B58=Bron!$B$12,'Bouwkost IER'!$Y$23,IF(B58=Bron!$B$16,'Bouwkost AK+VERB'!$Y$24,IF(OR(B58=Bron!$B$13,B58=Bron!$B$14),'Bouwkost VOLT'!$Y$24,0)))))) -> 0 | C62: =IF($B$68=0,0,B62/$B$68) -> 0 | D62: =IF(OR(D58=Bron!$B$8,D58=Bron!$B$9,D58=Bron!$B$15),'Bouwkost NB'!$Y$22,IF(D58=Bron!$B$10,'Bouwkost UITB'!$Y$24,IF(D58=Bron!$B$19,'Bouwkost VERB'!$Y$24,IF(D58=Bron!$B$12,'Bouwkost IER'!$Y$23,IF(D58=Bron!$B$16,'Bouwkost AK+VERB'!$Y$24,IF(OR(D58=Bron!$B$13,D58=Bron!$B$14),'Bouwkost VOLT'!$Y$24,0)))))) -> 0 | E62: =IF($D$68=0,0,D62/$D$68) -> 0 | F62: =IF(OR(F58=Bron!$B$8,F58=Bron!$B$9,F58=Bron!$B$15),'Bouwkost NB'!$Y$23,IF(F58=Bron!$B$10,'Bouwkost UITB'!$Y$24,IF(F58=Bron!$B$19,'Bouwkost VERB'!$Y$24,IF(F58=Bron!$B$12,'Bouwkost IER'!$Y$23,IF(F58=Bron!$B$16,'Bouwkost AK+VERB'!$Y$24,IF(OR(F58=Bron!$B$13,F58=Bron!$B$14),'Bouwkost VOLT'!$Y$24,0)))))) -> 0 | G62: =IF($F$68=0,0,F62/$F$68) -> 0 | H62: =IF(OR(H58=Bron!$B$8,H58=Bron!$B$9,H58=Bron!$B$15),'Bouwkost NB'!$Y$23,IF(H58=Bron!$B$10,'Bouwkost UITB'!$Y$24,IF(H58=Bron!$B$19,'Bouwkost VERB'!$Y$24,IF(H58=Bron!$B$12,'Bouwkost IER'!$Y$23,IF(H58=Bron!$B$16,'Bouwkost AK+VERB'!$Y$24,IF(OR(H58=Bron!$B$13,H58=Bron!$B$14),'Bouwkost VOLT'!$Y$24,0)))))) -> 0 | I62: =IF($H$68=0,0,H62/$H$68) -> 0 | J62: =B62+D62+F62+H62 -> 0 | K62: =J62/J68 -> 
A63: PF2 Techn. Uitrusting | B63: =IF(OR(B58=Bron!$B$8,B58=Bron!$B$9,B58=Bron!$B$15),'Bouwkost NB'!$Y$29,IF(B58=Bron!$B$10,'Bouwkost UITB'!$Y$31,IF(B58=Bron!$B$19,'Bouwkost VERB'!$Y$31,IF(B58=Bron!$B$12,'Bouwkost IER'!$Y$30,IF(B58=Bron!$B$16,'Bouwkost AK+VERB'!$Y$31,IF(OR(B58=Bron!$B$13,B58=Bron!$B$14),'Bouwkost VOLT'!$Y$31,0)))))) -> 0 | C63: =IF($B$68=0,0,B63/$B$68) -> 0 | D63: =IF(OR(D58=Bron!$B$8,D58=Bron!$B$9,D58=Bron!$B$15),'Bouwkost NB'!$Y$29,IF(D58=Bron!$B$10,'Bouwkost UITB'!$Y$31,IF(D58=Bron!$B$19,'Bouwkost VERB'!$Y$31,IF(D58=Bron!$B$12,'Bouwkost IER'!$Y$30,IF(D58=Bron!$B$16,'Bouwkost AK+VERB'!$Y$31,IF(OR(D58=Bron!$B$13,D58=Bron!$B$14),'Bouwkost VOLT'!$Y$31,0)))))) -> 0 | E63: =IF($D$68=0,0,D63/$D$68) -> 0 | F63: =IF(OR(F58=Bron!$B$8,F58=Bron!$B$9,F58=Bron!$B$15),'Bouwkost NB'!$Y$30,IF(F58=Bron!$B$10,'Bouwkost UITB'!$Y$31,IF(F58=Bron!$B$19,'Bouwkost VERB'!$Y$31,IF(F58=Bron!$B$12,'Bouwkost IER'!$Y$30,IF(F58=Bron!$B$16,'Bouwkost AK+VERB'!$Y$31,IF(OR(F58=Bron!$B$13,F58=Bron!$B$14),'Bouwkost VOLT'!$Y$31,0)))))) -> 0 | G63: =IF($F$68=0,0,F63/$F$68) -> 0 | H63: =IF(OR(H58=Bron!$B$8,H58=Bron!$B$9,H58=Bron!$B$15),'Bouwkost NB'!$Y$30,IF(H58=Bron!$B$10,'Bouwkost UITB'!$Y$31,IF(H58=Bron!$B$19,'Bouwkost VERB'!$Y$31,IF(H58=Bron!$B$12,'Bouwkost IER'!$Y$30,IF(H58=Bron!$B$16,'Bouwkost AK+VERB'!$Y$31,IF(OR(H58=Bron!$B$13,H58=Bron!$B$14),'Bouwkost VOLT'!$Y$31,0)))))) -> 0 | I63: =IF($H$68=0,0,H63/$H$68) -> 0 | J63: 0 | K63: =J63/J68 -> 
A64: PF3 Afwerking | B64: =IF(OR(B58=Bron!$B$8,B58=Bron!$B$9,B58=Bron!$B$15),'Bouwkost NB'!$Y$37,IF(B58=Bron!$B$10,'Bouwkost UITB'!$Y$39,IF(B58=Bron!$B$19,'Bouwkost VERB'!$Y$39,IF(B58=Bron!$B$12,'Bouwkost IER'!$Y$38,IF(B58=Bron!$B$16,'Bouwkost AK+VERB'!$Y$39,IF(OR(B58=Bron!$B$13,B58=Bron!$B$14),'Bouwkost VOLT'!$Y$39,0)))))) -> 0 | C64: 0 | D64: =IF(OR(D58=Bron!$B$8,D58=Bron!$B$9,D58=Bron!$B$15),'Bouwkost NB'!$Y$37,IF(D58=Bron!$B$10,'Bouwkost UITB'!$Y$39,IF(D58=Bron!$B$19,'Bouwkost VERB'!$Y$39,IF(D58=Bron!$B$12,'Bouwkost IER'!$Y$38,IF(D58=Bron!$B$16,'Bouwkost AK+VERB'!$Y$39,IF(OR(D58=Bron!$B$13,D58=Bron!$B$14),'Bouwkost VOLT'!$Y$39,0)))))) -> 0 | E64: 0 | F64: =IF(OR(F58=Bron!$B$8,F58=Bron!$B$9,F58=Bron!$B$15),'Bouwkost NB'!$Y$38,IF(F58=Bron!$B$10,'Bouwkost UITB'!$Y$39,IF(F58=Bron!$B$19,'Bouwkost VERB'!$Y$39,IF(F58=Bron!$B$12,'Bouwkost IER'!$Y$38,IF(F58=Bron!$B$16,'Bouwkost AK+VERB'!$Y$39,IF(OR(F58=Bron!$B$13,F58=Bron!$B$14),'Bouwkost VOLT'!$Y$39,0)))))) -> 0 | G64: 0 | H64: =IF(OR(H58=Bron!$B$8,H58=Bron!$B$9,H58=Bron!$B$15),'Bouwkost NB'!$Y$38,IF(H58=Bron!$B$10,'Bouwkost UITB'!$Y$39,IF(H58=Bron!$B$19,'Bouwkost VERB'!$Y$39,IF(H58=Bron!$B$12,'Bouwkost IER'!$Y$38,IF(H58=Bron!$B$16,'Bouwkost AK+VERB'!$Y$39,IF(OR(H58=Bron!$B$13,H58=Bron!$B$14),'Bouwkost VOLT'!$Y$39,0)))))) -> 0 | I64: 0 | J64: 0 | K64: =J64/J68 -> 
A65: Subtotaal PF1-2-3 | B65: =SUM(B62:B64) -> 0 | C65: 0 | D65: =SUM(D62:D64) -> 0 | E65: 0 | F65: =SUM(F62:F64) -> 0 | G65: 0 | H65: =SUM(H62:H64) -> 0 | I65: 0 | J65: 0 | K65: =J65/J68 -> 
A66: PF4 Losse uitrusting en meubilering | B66: =IF(OR(B58=Bron!$B$8,B58=Bron!$B$9,B58=Bron!$B$15),'Bouwkost NB'!$Y$47,IF(B58=Bron!$B$10,'Bouwkost UITB'!$Y$49,IF(B58=Bron!$B$19,'Bouwkost VERB'!$Y$49,IF(B58=Bron!$B$12,'Bouwkost IER'!$Y$48,IF(B58=Bron!$B$16,'Bouwkost AK+VERB'!$Y$49,IF(OR(B58=Bron!$B$13,B58=Bron!$B$14),'Bouwkost VOLT'!$Y$49,0)))))) -> 0 | C66: 0 | D66: =IF(OR(D58=Bron!$B$8,D58=Bron!$B$9,D58=Bron!$B$15),'Bouwkost NB'!$Y$47,IF(D58=Bron!$B$10,'Bouwkost UITB'!$Y$49,IF(D58=Bron!$B$19,'Bouwkost VERB'!$Y$49,IF(D58=Bron!$B$12,'Bouwkost IER'!$Y$48,IF(D58=Bron!$B$16,'Bouwkost AK+VERB'!$Y$49,IF(OR(D58=Bron!$B$13,D58=Bron!$B$14),'Bouwkost VOLT'!$Y$49,0)))))) -> 0 | E66: 0 | F66: =IF(OR(F58=Bron!$B$8,F58=Bron!$B$9,F58=Bron!$B$15),'Bouwkost NB'!$Y$49,IF(F58=Bron!$B$10,'Bouwkost UITB'!$Y$49,IF(F58=Bron!$B$19,'Bouwkost VERB'!$Y$49,IF(F58=Bron!$B$12,'Bouwkost IER'!$Y$48,IF(F58=Bron!$B$16,'Bouwkost AK+VERB'!$Y$49,IF(OR(F58=Bron!$B$13,F58=Bron!$B$14),'Bouwkost VOLT'!$Y$49,0)))))) -> 0 | G66: 0 | H66: =IF(OR(H58=Bron!$B$8,H58=Bron!$B$9,H58=Bron!$B$15),'Bouwkost NB'!$Y$49,IF(H58=Bron!$B$10,'Bouwkost UITB'!$Y$49,IF(H58=Bron!$B$19,'Bouwkost VERB'!$Y$49,IF(H58=Bron!$B$12,'Bouwkost IER'!$Y$48,IF(H58=Bron!$B$16,'Bouwkost AK+VERB'!$Y$49,IF(OR(H58=Bron!$B$13,H58=Bron!$B$14),'Bouwkost VOLT'!$Y$49,0)))))) -> 0 | I66: 0 | J66: 0 | K66: =J66/J68 -> 
A67: PF4 Losse uitrusting en meubilering - niet medische uitrusting | B67: =IF(OR(B59=Bron!$B$8,B59=Bron!$B$9,B59=Bron!$B$15),'Bouwkost NB'!$Y$48,IF(B59=Bron!$B$10,'Bouwkost UITB'!$Y$49,IF(B59=Bron!$B$19,'Bouwkost VERB'!$Y$49,IF(B59=Bron!$B$12,'Bouwkost IER'!$Y$48,IF(B59=Bron!$B$16,'Bouwkost AK+VERB'!$Y$49,IF(OR(B59=Bron!$B$13,B59=Bron!$B$14),'Bouwkost VOLT'!$Y$49,0)))))) -> 0 | C67: 0 | D67: =IF(OR(D59=Bron!$B$8,D59=Bron!$B$9,D59=Bron!$B$15),'Bouwkost NB'!$Y$48,IF(D59=Bron!$B$10,'Bouwkost UITB'!$Y$49,IF(D59=Bron!$B$19,'Bouwkost VERB'!$Y$49,IF(D59=Bron!$B$12,'Bouwkost IER'!$Y$48,IF(D59=Bron!$B$16,'Bouwkost AK+VERB'!$Y$49,IF(OR(D59=Bron!$B$13,D59=Bron!$B$14),'Bouwkost VOLT'!$Y$49,0)))))) -> 0 | E67: 0
A68: Totaal | B68: =B65+B66+B67 -> 0 | C68: 0 | D68: =D65+D66+D67 -> 0 | E68: 0 | F68: =F65+F66 -> 0 | G68: 0 | H68: =H65+H66 -> 0 | I68: 0 | J68: 0 | K68: =SUM(K62:K64)+K66 -> 
A69: kunstwerk | B69: =IFERROR(IF('Overzicht project'!$E$66=0,0,$B$87*('Overzicht BTA'!O$7/'Overzicht BTA'!P25)),0) -> 0 | D69: =IFERROR(IF('Overzicht project'!$E$66=0,0,$B$87*('Overzicht BTA'!Q$7/'Overzicht BTA'!R25)),0) -> 0 | F69: =IFERROR(IF('Overzicht project'!$E$66=0,0,$B$87*('Overzicht BTA'!O$9/'Overzicht BTA'!P25)),0) -> 0 | H69: =IFERROR(IF('Overzicht project'!$E$66=0,0,$B$87*('Overzicht BTA'!O$10/'Overzicht BTA'!P25)),0) -> 0 | J69: =IF('Overzicht project'!$E$66=0,0,kunst!$B$11*('Overzicht BTA'!P25/'Overzicht project'!$E$66)) -> 0
A70: omgevingswerken | B70: =IF(OR(B58=Bron!$B$8,B58=Bron!$B$9,B58=Bron!$B$15),'Bouwkost NB'!$Y$50,IF(B58=Bron!$B$10,'Bouwkost UITB'!$Y$51,IF(B58=Bron!$B$19,'Bouwkost VERB'!$Y$52,IF(B58=Bron!$B$12,'Bouwkost IER'!$Y$50,IF(B58=Bron!$B$16,'Bouwkost AK+VERB'!$Y$51,IF(OR(B58=Bron!$B$13,B58=Bron!$B$14),'Bouwkost VOLT'!$Y$51,0)))))) -> 0 | D70: =IF(OR(D58=Bron!$B$8,D58=Bron!$B$9,D58=Bron!$B$15),'Bouwkost NB'!$Y$50,IF(D58=Bron!$B$10,'Bouwkost UITB'!$Y$51,IF(D58=Bron!$B$19,'Bouwkost VERB'!$Y$52,IF(D58=Bron!$B$12,'Bouwkost IER'!$Y$50,IF(D58=Bron!$B$16,'Bouwkost AK+VERB'!$Y$51,IF(OR(D58=Bron!$B$13,D58=Bron!$B$14),'Bouwkost VOLT'!$Y$51,0)))))) -> 0 | F70: =IF(OR(F58=Bron!$B$8,F58=Bron!$B$9,F58=Bron!$B$15),'Bouwkost NB'!$Y$51,IF(F58=Bron!$B$10,'Bouwkost UITB'!$Y$51,IF(F58=Bron!$B$19,'Bouwkost VERB'!$Y$52,IF(F58=Bron!$B$12,'Bouwkost IER'!$Y$50,IF(F58=Bron!$B$16,'Bouwkost AK+VERB'!$Y$51,IF(OR(F58=Bron!$B$13,F58=Bron!$B$14),'Bouwkost VOLT'!$Y$51,0)))))) -> 0 | H70: =IF(OR(H58=Bron!$B$8,H58=Bron!$B$9,H58=Bron!$B$15),'Bouwkost NB'!$Y$51,IF(H58=Bron!$B$10,'Bouwkost UITB'!$Y$51,IF(H58=Bron!$B$19,'Bouwkost VERB'!$Y$52,IF(H58=Bron!$B$12,'Bouwkost IER'!$Y$50,IF(H58=Bron!$B$16,'Bouwkost AK+VERB'!$Y$51,IF(OR(H58=Bron!$B$13,H58=Bron!$B$14),'Bouwkost VOLT'!$Y$51,0)))))) -> 0 | J70: =B70+D70+F70+H70 -> 0
A71: ondergrondse parking | B71: =IF(OR(B58=Bron!$B$8,B58=Bron!$B$9,B58=Bron!$B$15),'Bouwkost NB'!$Y$55,IF(B58=Bron!$B$10,'Bouwkost UITB'!$Y$56,IF(B58=Bron!$B$19,'Bouwkost VERB'!$Y$57,IF(B58=Bron!$B$12,'Bouwkost IER'!$Y$55,IF(B58=Bron!$B$16,'Bouwkost AK+VERB'!$Y$56,IF(OR(B58=Bron!$B$13,B58=Bron!$B$14),'Bouwkost VOLT'!$Y$56,0)))))) -> 0 | D71: =IF(OR(D58=Bron!$B$8,D58=Bron!$B$9,D58=Bron!$B$15),'Bouwkost NB'!$Y$55,IF(D58=Bron!$B$10,'Bouwkost UITB'!$Y$56,IF(D58=Bron!$B$19,'Bouwkost VERB'!$Y$57,IF(D58=Bron!$B$12,'Bouwkost IER'!$Y$55,IF(D58=Bron!$B$16,'Bouwkost AK+VERB'!$Y$56,IF(OR(D58=Bron!$B$13,D58=Bron!$B$14),'Bouwkost VOLT'!$Y$56,0)))))) -> 0 | F71: =IF(OR(F58=Bron!$B$8,F58=Bron!$B$9,F58=Bron!$B$15),'Bouwkost NB'!$Y$56,IF(F58=Bron!$B$10,'Bouwkost UITB'!$Y$56,IF(F58=Bron!$B$19,'Bouwkost VERB'!$Y$57,IF(F58=Bron!$B$12,'Bouwkost IER'!$Y$55,IF(F58=Bron!$B$16,'Bouwkost AK+VERB'!$Y$56,IF(OR(F58=Bron!$B$13,F58=Bron!$B$14),'Bouwkost VOLT'!$Y$56,0)))))) -> 0 | H71: =IF(OR(H58=Bron!$B$8,H58=Bron!$B$9,H58=Bron!$B$15),'Bouwkost NB'!$Y$56,IF(H58=Bron!$B$10,'Bouwkost UITB'!$Y$56,IF(H58=Bron!$B$19,'Bouwkost VERB'!$Y$57,IF(H58=Bron!$B$12,'Bouwkost IER'!$Y$55,IF(H58=Bron!$B$16,'Bouwkost AK+VERB'!$Y$56,IF(OR(H58=Bron!$B$13,H58=Bron!$B$14),'Bouwkost VOLT'!$Y$56,0)))))) -> 0 | J71: 0
A72: totaal bouwwerken | B72: =B61+B65+B70+B71 -> 0 | D72: =D61+D65+D70+D71 -> 0 | F72: =F61+F65+F70+F71 -> 0 | H72: =H61+H65+H70+H71 -> 0 | J72: =B72+D72+F72+H72 -> 0
A73: Diverse kosten (meerwerken, prijsherzieningen, nutsaansluitingen) | B73: =IF(OR(B58=Bron!$B$8,B58=Bron!$B$9,B58=Bron!$B$15),SUM('Bouwkost NB'!$Y$58:$Y$60),IF(B58=Bron!$B$19,SUM('Bouwkost VERB'!$Y$59:$Y$61),)) -> 0 | D73: =IF(OR(D58=Bron!$B$8,D58=Bron!$B$9,D58=Bron!$B$15),SUM('Bouwkost NB'!$Y$58:$Y$60),IF(D58=Bron!$B$19,SUM('Bouwkost VERB'!$Y$59:$Y$61),)) -> 0 | F73: =IF(OR(F58=Bron!$B$8,F58=Bron!$B$9,F58=Bron!$B$15),SUM('Bouwkost NB'!$Y$58:$Y$60),IF(F58=Bron!$B$19,SUM('Bouwkost VERB'!$Y$59:$Y$61),)) -> 0 | H73: =IF(OR(H58=Bron!$B$8,H58=Bron!$B$9,H58=Bron!$B$15),SUM('Bouwkost NB'!$Y$58:$Y$60),IF(H58=Bron!$B$19,SUM('Bouwkost VERB'!$Y$59:$Y$61),)) -> 0 | J73: =B73+D73+F73+H73 -> 0
A74: algemeen totaal | B74: =B72+B66+B69+B67 -> 0 | D74: =D72+D66+D69 -> 0 | F74: =F72+F66+F69 -> 0 | H74: =H72+H66+H69 -> 0 | J74: =B74+D74+F74+H74 -> 0
A75: alle bedragen zonder BTW en AO
A76: BTW op gebouw deel A | B76: =B72*C76 -> 0 | C76: =IF(ISNUMBER(MATCH(B58,'Overzicht BTA'!$N$13:$N$14,0)),VLOOKUP(B58,'Overzicht BTA'!$N$13:$O$14,2,FALSE),0.21) -> 0.21 | D76: =D72*E76 -> 0 | E76: =IF(ISNUMBER(MATCH(D58,'Overzicht BTA'!$N$13:$N$14,0)),VLOOKUP(D58,'Overzicht BTA'!$N$13:$O$14,2,FALSE),0.21) -> 0.21 | F76: =IF(OR(F58=Bron!$B$9),ROUND(('uitgebreide raming'!F61+'uitgebreide raming'!F65+'uitgebreide raming'!F71)*'Overzicht BTA'!#REF!*('Overzicht BTA'!#REF!/('Overzicht BTA'!#REF!+'Overzicht BTA'!#REF!))+('uitgebreide raming'!F61+'uitgebreide raming'!F65+'uitgebreide raming'!F71)*'Overzicht BTA'!#REF!*('Overzicht BTA'!#REF!/('Overzicht BTA'!#REF!+'Overzicht BTA'!#REF!)),2),IF(Bron!$B$14='uitgebreide raming'!F58,ROUND(('uitgebreide raming'!F61+'uitgebreide raming'!F65+'uitgebreide raming'!F71)*'Overzicht BTA'!#REF!*('Overzicht BTA'!#REF!/('Overzicht BTA'!#REF!+'Overzicht BTA'!#REF!))+('uitgebreide raming'!F61+'uitgebreide raming'!F65+'uitgebreide raming'!F71)*'Overzicht BTA'!#REF!*('Overzicht BTA'!#REF!/('Overzicht BTA'!#REF!+'Overzicht BTA'!#REF!)),2),ROUND((F61+F65+F71)*G76,2))) -> 0 | G76: =IF(ISNUMBER(MATCH(F58,'Overzicht BTA'!$N$13:$N$14,0)),VLOOKUP(F58,'Overzicht BTA'!$N$13:$O$14,2,FALSE),0.21) -> 0.21 | H76: =IF(OR(H58=Bron!$B$9),ROUND(('uitgebreide raming'!H61+'uitgebreide raming'!H65+'uitgebreide raming'!H71)*'Overzicht BTA'!#REF!*('Overzicht BTA'!#REF!/('Overzicht BTA'!#REF!+'Overzicht BTA'!#REF!))+('uitgebreide raming'!H61+'uitgebreide raming'!H65+'uitgebreide raming'!H71)*'Overzicht BTA'!#REF!*('Overzicht BTA'!#REF!/('Overzicht BTA'!#REF!+'Overzicht BTA'!#REF!)),2),IF(Bron!$B$14='uitgebreide raming'!H58,ROUND(('uitgebreide raming'!H61+'uitgebreide raming'!H65+'uitgebreide raming'!H71)*'Overzicht BTA'!#REF!*('Overzicht BTA'!#REF!/('Overzicht BTA'!#REF!+'Overzicht BTA'!#REF!))+('uitgebreide raming'!H61+'uitgebreide raming'!H65+'uitgebreide raming'!H71)*'Overzicht BTA'!#REF!*('Overzicht BTA'!#REF!/('Overzicht BTA'!#REF!+'Overzicht BTA'!#REF!)),2),ROUND((H61+H65+H71)*I76,2))) -> 0 | I76: =IF(ISNUMBER(MATCH(H58,'Overzicht BTA'!$N$13:$N$14,0)),VLOOKUP(H58,'Overzicht BTA'!$N$13:$O$14,2,FALSE),0.21) -> 0.21 | J76: =B76+D76+F76+H76 -> 0
A77: BTW op kunst | B77: =ROUND(B69*C77,2) -> 0 | C77: 0.06 | D77: =ROUND(D69*E77,2) -> 0 | E77: 0.06 | F77: =ROUND(F69*G77,2) -> 0 | G77: 0.06 | H77: =ROUND(H69*I77,2) -> 0 | I77: 0.06 | J77: =B77+D77+F77+H77 -> 0
A78: BTW op roerend en omgevingswerken | B78: =ROUND((B66+B70+B67)*C78,2) -> 0 | C78: 0.21 | D78: =ROUND((D66+D70+D67)*E78,2) -> 0 | E78: 0.21 | F78: =ROUND((F66+F70)*G78,2) -> 0 | G78: 0.21 | H78: =ROUND((H66+H70)*I78,2) -> 0 | I78: 0.21 | J78: 0
A79: AO op bouwwerken | B79: =ROUND(IF(OR(B58=Bron!$B$8,B58=Bron!$B$9,B58=Bron!$B$15),'Bouwkost NB'!$Y$62,IF(B58=Bron!$B$10,'Bouwkost UITB'!$Y$63,IF(B58=Bron!$B$19,'Bouwkost VERB'!$Y$64,IF(B58=Bron!$B$12,'Bouwkost IER'!$Y$62,IF(B58=Bron!$B$16,'Bouwkost AK+VERB'!$Y$63,IF(OR(B58=Bron!$B$13,B58=Bron!$B$14),'Bouwkost VOLT'!$Y$63,0)))))),2) -> 0 | C79: =IFERROR(B79/(B74-B69-B66),0) -> 0 | D79: =ROUND(IF(OR(D58=Bron!$B$8,D58=Bron!$B$9,D58=Bron!$B$15),'Bouwkost NB'!$Y$63,IF(D58=Bron!$B$10,'Bouwkost UITB'!$Y$63,IF(D58=Bron!$B$19,'Bouwkost VERB'!$Y$64,IF(D58=Bron!$B$12,'Bouwkost IER'!$Y$62,IF(D58=Bron!$B$16,'Bouwkost AK+VERB'!$Y$63,IF(OR(D58=Bron!$B$13,D58=Bron!$B$14),'Bouwkost VOLT'!$Y$63,0)))))),2) -> 0 | E79: =IFERROR(D79/(D74-D69-D66),0) -> 0 | F79: =ROUND(IF(OR(F58=Bron!$B$8,F58=Bron!$B$9,F58=Bron!$B$15),'Bouwkost NB'!$Y$63,IF(F58=Bron!$B$10,'Bouwkost UITB'!$Y$63,IF(F58=Bron!$B$19,'Bouwkost VERB'!$Y$64,IF(F58=Bron!$B$12,'Bouwkost IER'!$Y$62,IF(F58=Bron!$B$16,'Bouwkost AK+VERB'!$Y$63,IF(OR(F58=Bron!$B$13,F58=Bron!$B$14),'Bouwkost VOLT'!$Y$63,0)))))),2) -> 0 | G79: =IFERROR(F79/(F74-F69-F66),0) -> 0 | H79: =ROUND(IF(OR(H58=Bron!$B$8,H58=Bron!$B$9,H58=Bron!$B$15),'Bouwkost NB'!$Y$63,IF(H58=Bron!$B$10,'Bouwkost UITB'!$Y$63,IF(H58=Bron!$B$19,'Bouwkost VERB'!$Y$64,IF(H58=Bron!$B$12,'Bouwkost IER'!$Y$62,IF(H58=Bron!$B$16,'Bouwkost AK+VERB'!$Y$63,IF(OR(H58=Bron!$B$13,H58=Bron!$B$14),'Bouwkost VOLT'!$Y$63,0)))))),2) -> 0 | I79: =IFERROR(H79/(H74-H69-H66),0) -> 0 | J79: 0
A80: 21% BTW op AO | B80: =ROUND(B79*C80,2) -> 0 | C80: 0.21 | D80: =ROUND(D79*E80,2) -> 0 | E80: 0.21 | F80: =ROUND(F79*G80,2) -> 0 | G80: 0.21 | H80: =ROUND(H79*I80,2) -> 0 | I80: 0.21 | J80: 0
A81: Totaal BTW en AO | B81: =SUM(B76:B80) -> 0 | D81: =SUM(D76:D80) -> 0 | F81: =SUM(F76:F80) -> 0 | H81: =SUM(H76:H80) -> 0 | J81: 0
A82: Aankoopkosten all-in | B82: =B59+B60 -> 0 | D82: =D59+D60 -> 0 | F82: =F59+F60 -> 0 | H82: =H59+H60 -> 0 | J82: 0
A83: bouwkost all-in | B83: =B81+B74 -> 0 | D83: =D81+D74 -> 0 | F83: =F81+F74 -> 0 | H83: =H81+H74 -> 0 | J83: =B83+D83+F83+H83 -> 0
A85: Totaal project (alle zorgvormen)
A86: AO op bouwwerken | B86: =J79+J51+J23 -> 0
A87: Totaal kunstwerk excl. BTW | B87: =J69+J41+J13 -> 0
A88: Totaal kunstwerk incl. BTW | B88: =J77+J69+J49+J41+J21+J13 -> 0
A89: Bouwkost excl. BTW | B89: =J72+J44+J17 -> 0
A90: Totaal BTW | B90: =J81+J53+J25 -> 0
A91: Aankoopkosten all-in | B91: =J82+J54+J26 -> 0
A92: Bouwkost all-in | B92: =J83+J55+J27 -> 0

Sheet uitgebreide raming_gewijzigd (hidden)
A1: PROGRAMMA | B1: ='Overzicht BTA'!C3 -> Algemeen ziekenhuis
A2: Raming aanvraag subsidie | B2: ='Overzicht BTA'!B42 -> Nieuwbouw 21% | C2: % | D2: ='Overzicht BTA'!B43 -> Herconditionering | E2: % | F2: ='Overzicht BTA'!B44 -> Kies kostensoort | G2: % | H2: ='Overzicht BTA'!B45 -> Kies kostensoort | I2: % | J2: Totaal | K2: %
A3: Aankoopbedrag | B3: =IF(OR(B$2=Bron!$B$8,B$2=Bron!$B$9,B$2=Bron!$B$15),'Bouwkost NB'!$E$15,IF(B$2=Bron!$B$10,'Bouwkost UITB'!$E$16,IF(B$2=Bron!$B$11,'Bouwkost VERB'!$E$16,IF(B$2=Bron!$B$12,'Bouwkost IER'!$E$15,IF(B$2=Bron!$B$16,'Bouwkost AK+VERB'!$E$16,IF(OR(B$2=Bron!$B$13,B$2=Bron!$B$14),'Bouwkost VOLT'!$E$16,0)))))) -> 0 | D3: =IF(OR(D$2=Bron!$B$8,D$2=Bron!$B$9,D$2=Bron!$B$15),'Bouwkost NB'!$E$15,IF(D$2=Bron!$B$10,'Bouwkost UITB'!$E$16,IF(D$2=Bron!$B$11,'Bouwkost VERB'!$E$16,IF(D$2=Bron!$B$12,'Bouwkost IER'!$E$15,IF(D$2=Bron!$B$16,'Bouwkost AK+VERB'!$E$16,IF(OR(D$2=Bron!$B$13,D$2=Bron!$B$14),'Bouwkost VOLT'!$E$16,0)))))) -> 0 | F3: =IF(OR(F$2=Bron!$B$8,F$2=Bron!$B$9,F$2=Bron!$B$15),'Bouwkost NB'!$E$15,IF(F$2=Bron!$B$10,'Bouwkost UITB'!$E$16,IF(F$2=Bron!$B$11,'Bouwkost VERB'!$E$16,IF(F$2=Bron!$B$12,'Bouwkost IER'!$E$15,IF(F$2=Bron!$B$16,'Bouwkost AK+VERB'!$E$16,IF(OR(F$2=Bron!$B$13,F$2=Bron!$B$14),'Bouwkost VOLT'!$E$16,0)))))) -> 0 | H3: =IF(OR(H$2=Bron!$B$8,H$2=Bron!$B$9,H$2=Bron!$B$15),'Bouwkost NB'!$E$15,IF(H$2=Bron!$B$10,'Bouwkost UITB'!$E$16,IF(H$2=Bron!$B$11,'Bouwkost VERB'!$E$16,IF(H$2=Bron!$B$12,'Bouwkost IER'!$E$15,IF(H$2=Bron!$B$16,'Bouwkost AK+VERB'!$E$16,IF(OR(H$2=Bron!$B$13,H$2=Bron!$B$14),'Bouwkost VOLT'!$E$16,0)))))) -> 0 | J3: =B3+D3+F3+H3 -> 0
A4: Registratie- /notariskosten of BTW | B4: =IF(OR(B$2=Bron!$B$8,B$2=Bron!$B$9,B$2=Bron!$B$15),'Bouwkost NB'!$E$18,IF(B$2=Bron!$B$10,'Bouwkost UITB'!$E$19,IF(B$2=Bron!$B$11,'Bouwkost VERB'!$E$19,IF(B$2=Bron!$B$12,'Bouwkost IER'!$E$18,IF(B$2=Bron!$B$16,'Bouwkost AK+VERB'!$E$19,IF(OR(B$2=Bron!$B$13,B$2=Bron!$B$14),'Bouwkost VOLT'!$E$19,0)))))) -> 0 | D4: =IF(OR(D$2=Bron!$B$8,D$2=Bron!$B$9,D$2=Bron!$B$15),'Bouwkost NB'!$E$18,IF(D$2=Bron!$B$10,'Bouwkost UITB'!$E$19,IF(D$2=Bron!$B$11,'Bouwkost VERB'!$E$19,IF(D$2=Bron!$B$12,'Bouwkost IER'!$E$18,IF(D$2=Bron!$B$16,'Bouwkost AK+VERB'!$E$19,IF(OR(D$2=Bron!$B$13,D$2=Bron!$B$14),'Bouwkost VOLT'!$E$19,0)))))) -> 0 | F4: =IF(OR(F$2=Bron!$B$8,F$2=Bron!$B$9,F$2=Bron!$B$15),'Bouwkost NB'!$E$18,IF(F$2=Bron!$B$10,'Bouwkost UITB'!$E$19,IF(F$2=Bron!$B$11,'Bouwkost VERB'!$E$19,IF(F$2=Bron!$B$12,'Bouwkost IER'!$E$18,IF(F$2=Bron!$B$16,'Bouwkost AK+VERB'!$E$19,IF(OR(F$2=Bron!$B$13,F$2=Bron!$B$14),'Bouwkost VOLT'!$E$19,0)))))) -> 0 | H4: =IF(OR(H$2=Bron!$B$8,H$2=Bron!$B$9,H$2=Bron!$B$15),'Bouwkost NB'!$E$18,IF(H$2=Bron!$B$10,'Bouwkost UITB'!$E$19,IF(H$2=Bron!$B$11,'Bouwkost VERB'!$E$19,IF(H$2=Bron!$B$12,'Bouwkost IER'!$E$18,IF(H$2=Bron!$B$16,'Bouwkost AK+VERB'!$E$19,IF(OR(H$2=Bron!$B$13,H$2=Bron!$B$14),'Bouwkost VOLT'!$E$19,0)))))) -> 0 | J4: =B4+D4+F4+H4 -> 0
A5: voorbereidende werken (incl. afbraak) | B5: =IF(OR(B$2=Bron!$B$8,B$2=Bron!$B$9,B$2=Bron!$B$15),'Bouwkost NB'!$E$54,IF(B$2=Bron!$B$10,'Bouwkost UITB'!$E$54,IF(B$2=Bron!$B$11,'Bouwkost VERB'!$E$55,IF(B$2=Bron!$B$12,'Bouwkost IER'!$E$53,IF(B$2=Bron!$B$16,'Bouwkost AK+VERB'!$E$54,IF(OR(B$2=Bron!$B$13,B$2=Bron!$B$14),'Bouwkost VOLT'!$E$54,0)))))) -> 0 | D5: =IF(OR(D$2=Bron!$B$8,D$2=Bron!$B$9,D$2=Bron!$B$15),'Bouwkost NB'!$E$54,IF(D$2=Bron!$B$10,'Bouwkost UITB'!$E$54,IF(D$2=Bron!$B$11,'Bouwkost VERB'!$E$55,IF(D$2=Bron!$B$12,'Bouwkost IER'!$E$53,IF(D$2=Bron!$B$16,'Bouwkost AK+VERB'!$E$54,IF(OR(D$2=Bron!$B$13,D$2=Bron!$B$14),'Bouwkost VOLT'!$E$54,0)))))) -> 0 | F5: =IF(OR(F$2=Bron!$B$8,F$2=Bron!$B$9,F$2=Bron!$B$15),'Bouwkost NB'!$E$54,IF(F$2=Bron!$B$10,'Bouwkost UITB'!$E$54,IF(F$2=Bron!$B$11,'Bouwkost VERB'!$E$55,IF(F$2=Bron!$B$12,'Bouwkost IER'!$E$53,IF(F$2=Bron!$B$16,'Bouwkost AK+VERB'!$E$54,IF(OR(F$2=Bron!$B$13,F$2=Bron!$B$14),'Bouwkost VOLT'!$E$54,0)))))) -> 0 | H5: =IF(OR(H$2=Bron!$B$8,H$2=Bron!$B$9,H$2=Bron!$B$15),'Bouwkost NB'!$E$54,IF(H$2=Bron!$B$10,'Bouwkost UITB'!$E$54,IF(H$2=Bron!$B$11,'Bouwkost VERB'!$E$55,IF(H$2=Bron!$B$12,'Bouwkost IER'!$E$53,IF(H$2=Bron!$B$16,'Bouwkost AK+VERB'!$E$54,IF(OR(H$2=Bron!$B$13,H$2=Bron!$B$14),'Bouwkost VOLT'!$E$54,0)))))) -> 0 | J5: =B5+D5+F5+H5 -> 0
A6: PF1 Ruwbouw | B6: =IF(OR(B$2=Bron!$B$8,B$2=Bron!$B$9,B$2=Bron!$B$15),'Bouwkost NB'!$E$23,IF(B$2=Bron!$B$10,'Bouwkost UITB'!$E$24,IF(B$2=Bron!$B$11,'Bouwkost VERB'!$E$24,IF(B$2=Bron!$B$12,'Bouwkost IER'!$E$23,IF(B$2=Bron!$B$16,'Bouwkost AK+VERB'!$E$24,IF(OR(B$2=Bron!$B$13,B$2=Bron!$B$14),'Bouwkost VOLT'!$E$24,0)))))) -> 0 | C6: =IF($B$11=0,0,B6/$B$11) -> 0 | D6: =IF(OR(D$2=Bron!$B$8,D$2=Bron!$B$9,D$2=Bron!$B$15),'Bouwkost NB'!$E$23,IF(D$2=Bron!$B$10,'Bouwkost UITB'!$E$24,IF(D$2=Bron!$B$11,'Bouwkost VERB'!$E$24,IF(D$2=Bron!$B$12,'Bouwkost IER'!$E$23,IF(D$2=Bron!$B$16,'Bouwkost AK+VERB'!$E$24,IF(OR(D$2=Bron!$B$13,D$2=Bron!$B$14),'Bouwkost VOLT'!$E$24,0)))))) -> 0 | E6: =IF($D$11=0,0,D6/$D$11) -> 0 | F6: =IF(OR(F$2=Bron!$B$8,F$2=Bron!$B$9,F$2=Bron!$B$15),'Bouwkost NB'!$E$23,IF(F$2=Bron!$B$10,'Bouwkost UITB'!$E$24,IF(F$2=Bron!$B$11,'Bouwkost VERB'!$E$24,IF(F$2=Bron!$B$12,'Bouwkost IER'!$E$23,IF(F$2=Bron!$B$16,'Bouwkost AK+VERB'!$E$24,IF(OR(F$2=Bron!$B$13,F$2=Bron!$B$14),'Bouwkost VOLT'!$E$24,0)))))) -> 0 | G6: =IF($F$11=0,0,F6/$F$11) -> 0 | H6: =IF(OR(H$2=Bron!$B$8,H$2=Bron!$B$9,H$2=Bron!$B$15),'Bouwkost NB'!$E$23,IF(H$2=Bron!$B$10,'Bouwkost UITB'!$E$24,IF(H$2=Bron!$B$11,'Bouwkost VERB'!$E$24,IF(H$2=Bron!$B$12,'Bouwkost IER'!$E$23,IF(H$2=Bron!$B$16,'Bouwkost AK+VERB'!$E$24,IF(OR(H$2=Bron!$B$13,H$2=Bron!$B$14),'Bouwkost VOLT'!$E$24,0)))))) -> 0 | I6: =IF($H$11=0,0,H6/$H$11) -> 0 | J6: =B6+D6+F6+H6 -> 0 | K6: =J6/J11 -> 
A7: PF2 Techn. Uitrusting | B7: =IF(OR(B$2=Bron!$B$8,B$2=Bron!$B$9,B$2=Bron!$B$15),'Bouwkost NB'!$E$30,IF(B$2=Bron!$B$10,'Bouwkost UITB'!$E$31,IF(B$2=Bron!$B$11,'Bouwkost VERB'!$E$31,IF(B$2=Bron!$B$12,'Bouwkost IER'!$E$30,IF(B$2=Bron!$B$16,'Bouwkost AK+VERB'!$E$31,IF(OR(B$2=Bron!$B$13,B$2=Bron!$B$14),'Bouwkost VOLT'!$E$31,0)))))) -> 0 | C7: =IF($B$11=0,0,B7/$B$11) -> 0 | D7: =IF(OR(D$2=Bron!$B$8,D$2=Bron!$B$9,D$2=Bron!$B$15),'Bouwkost NB'!$E$30,IF(D$2=Bron!$B$10,'Bouwkost UITB'!$E$31,IF(D$2=Bron!$B$11,'Bouwkost VERB'!$E$31,IF(D$2=Bron!$B$12,'Bouwkost IER'!$E$30,IF(D$2=Bron!$B$16,'Bouwkost AK+VERB'!$E$31,IF(OR(D$2=Bron!$B$13,D$2=Bron!$B$14),'Bouwkost VOLT'!$E$31,0)))))) -> 0 | E7: =IF($D$11=0,0,D7/$D$11) -> 0 | F7: =IF(OR(F$2=Bron!$B$8,F$2=Bron!$B$9,F$2=Bron!$B$15),'Bouwkost NB'!$E$30,IF(F$2=Bron!$B$10,'Bouwkost UITB'!$E$31,IF(F$2=Bron!$B$11,'Bouwkost VERB'!$E$31,IF(F$2=Bron!$B$12,'Bouwkost IER'!$E$30,IF(F$2=Bron!$B$16,'Bouwkost AK+VERB'!$E$31,IF(OR(F$2=Bron!$B$13,F$2=Bron!$B$14),'Bouwkost VOLT'!$E$31,0)))))) -> 0 | G7: =IF($F$11=0,0,F7/$F$11) -> 0 | H7: =IF(OR(H$2=Bron!$B$8,H$2=Bron!$B$9,H$2=Bron!$B$15),'Bouwkost NB'!$E$30,IF(H$2=Bron!$B$10,'Bouwkost UITB'!$E$31,IF(H$2=Bron!$B$11,'Bouwkost VERB'!$E$31,IF(H$2=Bron!$B$12,'Bouwkost IER'!$E$30,IF(H$2=Bron!$B$16,'Bouwkost AK+VERB'!$E$31,IF(OR(H$2=Bron!$B$13,H$2=Bron!$B$14),'Bouwkost VOLT'!$E$31,0)))))) -> 0 | I7: =IF($H$11=0,0,H7/$H$11) -> 0 | J7: 0 | K7: =J7/J11 -> 
A8: PF3 Afwerking | B8: =IF(OR(B$2=Bron!$B$8,B$2=Bron!$B$9,B$2=Bron!$B$15),'Bouwkost NB'!$E$38,IF(B$2=Bron!$B$10,'Bouwkost UITB'!$E$39,IF(B$2=Bron!$B$11,'Bouwkost VERB'!$E$39,IF(B$2=Bron!$B$12,'Bouwkost IER'!$E$38,IF(B$2=Bron!$B$16,'Bouwkost AK+VERB'!$E$39,IF(OR(B$2=Bron!$B$13,B$2=Bron!$B$14),'Bouwkost VOLT'!$E$39,0)))))) -> 0 | C8: 0 | D8: =IF(OR(D$2=Bron!$B$8,D$2=Bron!$B$9,D$2=Bron!$B$15),'Bouwkost NB'!$E$38,IF(D$2=Bron!$B$10,'Bouwkost UITB'!$E$39,IF(D$2=Bron!$B$11,'Bouwkost VERB'!$E$39,IF(D$2=Bron!$B$12,'Bouwkost IER'!$E$38,IF(D$2=Bron!$B$16,'Bouwkost AK+VERB'!$E$39,IF(OR(D$2=Bron!$B$13,D$2=Bron!$B$14),'Bouwkost VOLT'!$E$39,0)))))) -> 0 | E8: 0 | F8: =IF(OR(F$2=Bron!$B$8,F$2=Bron!$B$9,F$2=Bron!$B$15),'Bouwkost NB'!$E$38,IF(F$2=Bron!$B$10,'Bouwkost UITB'!$E$39,IF(F$2=Bron!$B$11,'Bouwkost VERB'!$E$39,IF(F$2=Bron!$B$12,'Bouwkost IER'!$E$38,IF(F$2=Bron!$B$16,'Bouwkost AK+VERB'!$E$39,IF(OR(F$2=Bron!$B$13,F$2=Bron!$B$14),'Bouwkost VOLT'!$E$39,0)))))) -> 0 | G8: 0 | H8: =IF(OR(H$2=Bron!$B$8,H$2=Bron!$B$9,H$2=Bron!$B$15),'Bouwkost NB'!$E$38,IF(H$2=Bron!$B$10,'Bouwkost UITB'!$E$39,IF(H$2=Bron!$B$11,'Bouwkost VERB'!$E$39,IF(H$2=Bron!$B$12,'Bouwkost IER'!$E$38,IF(H$2=Bron!$B$16,'Bouwkost AK+VERB'!$E$39,IF(OR(H$2=Bron!$B$13,H$2=Bron!$B$14),'Bouwkost VOLT'!$E$39,0)))))) -> 0 | I8: 0 | J8: 0 | K8: =J8/J11 -> 
A9: Subtotaal PF1-2-3 | B9: =SUM(B6:B8) -> 0 | C9: 0 | D9: =SUM(D6:D8) -> 0 | E9: 0 | F9: =SUM(F6:F8) -> 0 | G9: 0 | H9: =SUM(H6:H8) -> 0 | I9: 0 | J9: 0 | K9: =J9/J11 -> 
A10: PF4 Losse uitrusting en meubilering | B10: =IF(OR(B$2=Bron!$B$8,B$2=Bron!$B$9,B$2=Bron!$B$15),'Bouwkost NB'!$E$49,IF(B$2=Bron!$B$10,'Bouwkost UITB'!$E$49,IF(B$2=Bron!$B$11,'Bouwkost VERB'!$E$49,IF(B$2=Bron!$B$12,'Bouwkost IER'!$E$48,IF(B$2=Bron!$B$16,'Bouwkost AK+VERB'!$E$49,IF(OR(B$2=Bron!$B$13,B$2=Bron!$B$14),'Bouwkost VOLT'!$E$49,0)))))) -> 0 | C10: 0 | D10: =IF(OR(D$2=Bron!$B$8,D$2=Bron!$B$9,D$2=Bron!$B$15),'Bouwkost NB'!$E$49,IF(D$2=Bron!$B$10,'Bouwkost UITB'!$E$49,IF(D$2=Bron!$B$11,'Bouwkost VERB'!$E$49,IF(D$2=Bron!$B$12,'Bouwkost IER'!$E$48,IF(D$2=Bron!$B$16,'Bouwkost AK+VERB'!$E$49,IF(OR(D$2=Bron!$B$13,D$2=Bron!$B$14),'Bouwkost VOLT'!$E$49,0)))))) -> 0 | E10: 0 | F10: =IF(OR(F$2=Bron!$B$8,F$2=Bron!$B$9,F$2=Bron!$B$15),'Bouwkost NB'!$E$49,IF(F$2=Bron!$B$10,'Bouwkost UITB'!$E$49,IF(F$2=Bron!$B$11,'Bouwkost VERB'!$E$49,IF(F$2=Bron!$B$12,'Bouwkost IER'!$E$48,IF(F$2=Bron!$B$16,'Bouwkost AK+VERB'!$E$49,IF(OR(F$2=Bron!$B$13,F$2=Bron!$B$14),'Bouwkost VOLT'!$E$49,0)))))) -> 0 | G10: 0 | H10: =IF(OR(H$2=Bron!$B$8,H$2=Bron!$B$9,H$2=Bron!$B$15),'Bouwkost NB'!$E$49,IF(H$2=Bron!$B$10,'Bouwkost UITB'!$E$49,IF(H$2=Bron!$B$11,'Bouwkost VERB'!$E$49,IF(H$2=Bron!$B$12,'Bouwkost IER'!$E$48,IF(H$2=Bron!$B$16,'Bouwkost AK+VERB'!$E$49,IF(OR(H$2=Bron!$B$13,H$2=Bron!$B$14),'Bouwkost VOLT'!$E$49,0)))))) -> 0 | I10: 0 | J10: 0 | K10: =J10/J11 -> 
A11: Totaal | B11: =B9+B10 -> 0 | C11: 0 | D11: =D9+D10 -> 0 | E11: 0 | F11: =F9+F10 -> 0 | G11: 0 | H11: =H9+H10 -> 0 | I11: 0 | J11: 0 | K11: =SUM(K6:K8)+K10 -> 
A12: kunstwerk | B12: =IFERROR(IF('Overzicht project'!$E$66=0,0,$B$84*('Overzicht BTA'!D$42/'Overzicht BTA'!C60)),0) -> 0 | D12: =IFERROR(IF('Overzicht project'!$E$66=0,0,$B$84*('Overzicht BTA'!D$43/'Overzicht BTA'!C60)),0) -> 0 | F12: =IFERROR(IF('Overzicht project'!$E$66=0,0,$B$84*('Overzicht BTA'!D$44/'Overzicht BTA'!C60)),0) -> 0 | H12: =IFERROR(IF('Overzicht project'!$E$66=0,0,$B$84*('Overzicht BTA'!D$45/'Overzicht BTA'!C60)),0) -> 0 | J12: =IF('Overzicht project'!$E$66=0,0,kunst!$M$11*('Overzicht BTA'!C25/'Overzicht project'!$E$66)) -> 0
A13: omgevingswerken | B13: =IF(OR(B2=Bron!$B$8,B2=Bron!$B$9,B2=Bron!$B$15),'Bouwkost NB'!$E$51,IF(B2=Bron!$B$10,'Bouwkost UITB'!$E$51,IF(B2=Bron!$B$11,'Bouwkost VERB'!$E$52,IF(B2=Bron!$B$12,'Bouwkost IER'!$E$50,IF(B2=Bron!$B$16,'Bouwkost AK+VERB'!$E$51,IF(OR(B2=Bron!$B$13,B2=Bron!$B$14),'Bouwkost VOLT'!$E$51,0)))))) -> 0 | D13: =IF(OR(D2=Bron!$B$8,D2=Bron!$B$9,D2=Bron!$B$15),'Bouwkost NB'!$E$51,IF(D2=Bron!$B$10,'Bouwkost UITB'!$E$51,IF(D2=Bron!$B$11,'Bouwkost VERB'!$E$52,IF(D2=Bron!$B$12,'Bouwkost IER'!$E$50,IF(D2=Bron!$B$16,'Bouwkost AK+VERB'!$E$51,IF(OR(D2=Bron!$B$13,D2=Bron!$B$14),'Bouwkost VOLT'!$E$51,0)))))) -> 0 | F13: =IF(OR(F2=Bron!$B$8,F2=Bron!$B$9,F2=Bron!$B$15),'Bouwkost NB'!$E$51,IF(F2=Bron!$B$10,'Bouwkost UITB'!$E$51,IF(F2=Bron!$B$11,'Bouwkost VERB'!$E$52,IF(F2=Bron!$B$12,'Bouwkost IER'!$E$50,IF(F2=Bron!$B$16,'Bouwkost AK+VERB'!$E$51,IF(OR(F2=Bron!$B$13,F2=Bron!$B$14),'Bouwkost VOLT'!$E$51,0)))))) -> 0 | H13: =IF(OR(H2=Bron!$B$8,H2=Bron!$B$9,H2=Bron!$B$15),'Bouwkost NB'!$E$51,IF(H2=Bron!$B$10,'Bouwkost UITB'!$E$51,IF(H2=Bron!$B$11,'Bouwkost VERB'!$E$52,IF(H2=Bron!$B$12,'Bouwkost IER'!$E$50,IF(H2=Bron!$B$16,'Bouwkost AK+VERB'!$E$51,IF(OR(H2=Bron!$B$13,H2=Bron!$B$14),'Bouwkost VOLT'!$E$51,0)))))) -> 0 | J13: 0
A14: ondergrondse parking | B14: =IF(OR(B2=Bron!$B$8,B2=Bron!$B$9,B2=Bron!$B$15),'Bouwkost NB'!$E$56,IF(B2=Bron!$B$10,'Bouwkost UITB'!$E$56,IF(B2=Bron!$B$11,'Bouwkost VERB'!$E$57,IF(B2=Bron!$B$12,'Bouwkost IER'!$E$55,IF(B2=Bron!$B$16,'Bouwkost AK+VERB'!$E$56,IF(OR(B2=Bron!$B$13,B2=Bron!$B$14),'Bouwkost VOLT'!$E$56,0)))))) -> 0 | D14: =IF(OR(D2=Bron!$B$8,D2=Bron!$B$9,D2=Bron!$B$15),'Bouwkost NB'!$E$56,IF(D2=Bron!$B$10,'Bouwkost UITB'!$E$56,IF(D2=Bron!$B$11,'Bouwkost VERB'!$E$57,IF(D2=Bron!$B$12,'Bouwkost IER'!$E$55,IF(D2=Bron!$B$16,'Bouwkost AK+VERB'!$E$56,IF(OR(D2=Bron!$B$13,D2=Bron!$B$14),'Bouwkost VOLT'!$E$56,0)))))) -> 0 | F14: =IF(OR(F2=Bron!$B$8,F2=Bron!$B$9,F2=Bron!$B$15),'Bouwkost NB'!$E$56,IF(F2=Bron!$B$10,'Bouwkost UITB'!$E$56,IF(F2=Bron!$B$11,'Bouwkost VERB'!$E$57,IF(F2=Bron!$B$12,'Bouwkost IER'!$E$55,IF(F2=Bron!$B$16,'Bouwkost AK+VERB'!$E$56,IF(OR(F2=Bron!$B$13,F2=Bron!$B$14),'Bouwkost VOLT'!$E$56,0)))))) -> 0 | H14: =IF(OR(H2=Bron!$B$8,H2=Bron!$B$9,H2=Bron!$B$15),'Bouwkost NB'!$E$56,IF(H2=Bron!$B$10,'Bouwkost UITB'!$E$56,IF(H2=Bron!$B$11,'Bouwkost VERB'!$E$57,IF(H2=Bron!$B$12,'Bouwkost IER'!$E$55,IF(H2=Bron!$B$16,'Bouwkost AK+VERB'!$E$56,IF(OR(H2=Bron!$B$13,H2=Bron!$B$14),'Bouwkost VOLT'!$E$56,0)))))) -> 0 | J14: 0
A15: totaal bouwwerken | B15: =B5+B9+B13+B14 -> 0 | D15: =D5+D9+D13+D14 -> 0 | F15: =F5+F9+F13+F14 -> 0 | H15: =H5+H9+H13+H14 -> 0 | J15: =B15+D15+F15+H15 -> 0
A16: Diverse kosten (meerwerken, prijsherzieningen, nutsaansluitingen) | B16: =IF(OR(B2=Bron!$B$8,B2=Bron!$B$9,B2=Bron!$B$15),SUM('Bouwkost NB'!$E$58:$E$60),IF(B2=Bron!$B$11,SUM('Bouwkost VERB'!$E$59:$E$61),)) -> 0 | D16: =IF(OR(D2=Bron!$B$8,D2=Bron!$B$9,D2=Bron!$B$15),SUM('Bouwkost NB'!$E$58:$E$60),IF(D2=Bron!$B$11,SUM('Bouwkost VERB'!$E$59:$E$61),)) -> 0 | F16: =IF(OR(F2=Bron!$B$8,F2=Bron!$B$9,F2=Bron!$B$15),SUM('Bouwkost NB'!$E$58:$E$60),IF(F2=Bron!$B$11,SUM('Bouwkost VERB'!$E$59:$E$61),)) -> 0 | H16: =IF(OR(H2=Bron!$B$8,H2=Bron!$B$9,H2=Bron!$B$15),SUM('Bouwkost NB'!$E$58:$E$60),IF(H2=Bron!$B$11,SUM('Bouwkost VERB'!$E$59:$E$61),)) -> 0 | J16: =B16+D16+F16+H16 -> 0
A17: algemeen totaal | B17: =B15+B10+B12 -> 0 | D17: =D15+D10+D12 -> 0 | F17: =F15+F10+F12 -> 0 | H17: =H15+H10+H12 -> 0 | J17: =B17+D17+F17+H17 -> 0
A18: alle bedragen zonder BTW en AO
A19: BTW op gebouw | B19: =IF(OR(B2=Bron!$B$9),ROUND((B5+B9+B14)*'Overzicht BTA'!#REF!*('Overzicht BTA'!#REF!/('Overzicht BTA'!#REF!+'Overzicht BTA'!#REF!))+(B5+B9+B14)*'Overzicht BTA'!#REF!*('Overzicht BTA'!#REF!/('Overzicht BTA'!#REF!+'Overzicht BTA'!#REF!)),2),IF(Bron!$B$14=B2,ROUND((B5+B9+B14)*'Overzicht BTA'!#REF!*('Overzicht BTA'!#REF!/('Overzicht BTA'!#REF!+'Overzicht BTA'!#REF!))+(B5+B9+B14)*'Overzicht BTA'!#REF!*('Overzicht BTA'!#REF!/('Overzicht BTA'!#REF!+'Overzicht BTA'!#REF!)),2),ROUND((B5+B9+B14)*C19,2))) -> 0 | C19: =IF(ISNUMBER(MATCH(B2,'Overzicht BTA'!$B$48:$B$49,0)),VLOOKUP(B2,'Overzicht BTA'!$B$48:$C$49,2,FALSE),0.21) -> 0.21 | D19: =IF(OR(D2=Bron!$B$9),ROUND((D5+D9+D14)*'Overzicht BTA'!#REF!*('Overzicht BTA'!#REF!/('Overzicht BTA'!#REF!+'Overzicht BTA'!#REF!))+(D5+D9+D14)*'Overzicht BTA'!#REF!*('Overzicht BTA'!#REF!/('Overzicht BTA'!#REF!+'Overzicht BTA'!#REF!)),2),IF(Bron!$B$14=D2,ROUND((D5+D9+D14)*'Overzicht BTA'!#REF!*('Overzicht BTA'!#REF!/('Overzicht BTA'!#REF!+'Overzicht BTA'!#REF!))+(D5+D9+D14)*'Overzicht BTA'!#REF!*('Overzicht BTA'!#REF!/('Overzicht BTA'!#REF!+'Overzicht BTA'!#REF!)),2),ROUND((D5+D9+D14)*E19,2))) -> 0 | E19: =IF(ISNUMBER(MATCH(D2,'Overzicht BTA'!$B$48:$B$49,0)),VLOOKUP(D2,'Overzicht BTA'!$B$48:$C$49,2,FALSE),0.21) -> 0.21 | F19: =IF(OR(F2=Bron!$B$9),ROUND((F5+F9+F13)*'Overzicht BTA'!#REF!*('Overzicht BTA'!#REF!/('Overzicht BTA'!#REF!+'Overzicht BTA'!#REF!))+(F5+F9+F13)*'Overzicht BTA'!#REF!*('Overzicht BTA'!#REF!/('Overzicht BTA'!#REF!+'Overzicht BTA'!#REF!)),2),IF(Bron!$B$14=F2,ROUND((F5+F9+F13)*'Overzicht BTA'!#REF!*('Overzicht BTA'!#REF!/('Overzicht BTA'!#REF!+'Overzicht BTA'!#REF!))+(F5+F9+F13)*'Overzicht BTA'!#REF!*('Overzicht BTA'!#REF!/('Overzicht BTA'!#REF!+'Overzicht BTA'!#REF!)),2),ROUND((F5+F9+F13)*G19,2))) -> 0 | G19: =IF(ISNUMBER(MATCH(F2,'Overzicht BTA'!$B$48:$B$49,0)),VLOOKUP(F2,'Overzicht BTA'!$B$48:$C$49,2,FALSE),0.21) -> 0.21 | H19: =IF(OR(H2=Bron!$B$9),ROUND((H5+H9+H13)*'Overzicht BTA'!#REF!*('Overzicht BTA'!#REF!/('Overzicht BTA'!#REF!+'Overzicht BTA'!#REF!))+(H5+H9+H13)*'Overzicht BTA'!#REF!*('Overzicht BTA'!#REF!/('Overzicht BTA'!#REF!+'Overzicht BTA'!#REF!)),2),IF(Bron!$B$14=H2,ROUND((H5+H9+H13)*'Overzicht BTA'!#REF!*('Overzicht BTA'!#REF!/('Overzicht BTA'!#REF!+'Overzicht BTA'!#REF!))+(H5+H9+H13)*'Overzicht BTA'!#REF!*('Overzicht BTA'!#REF!/('Overzicht BTA'!#REF!+'Overzicht BTA'!#REF!)),2),ROUND((H5+H9+H13)*I19,2))) -> 0 | I19: =IF(ISNUMBER(MATCH(H2,'Overzicht BTA'!$B$48:$B$49,0)),VLOOKUP(H2,'Overzicht BTA'!$B$48:$C$49,2,FALSE),0.21) -> 0.21 | J19: =B19+D19+F19+H19 -> 0
A20: BTW op kunst | B20: =ROUND(B12*C20,2) -> 0 | C20: 0.06 | D20: =ROUND(D12*E20,2) -> 0 | E20: 0.06 | F20: =ROUND(F12*G20,2) -> 0 | G20: 0.06 | H20: =ROUND(H12*I20,2) -> 0 | I20: 0.06 | J20: =B20+D20+F20+H20 -> 0
A21: BTW op roerend en omgevingswerken | B21: =ROUND((B10+B13)*C21,2) -> 0 | C21: 0.21 | D21: =ROUND((D10+D13)*E21,2) -> 0 | E21: 0.21 | F21: =ROUND((F10+F13)*G21,2) -> 0 | G21: 0.21 | H21: =ROUND((H10+H13)*I21,2) -> 0 | I21: 0.21 | J21: =B21+D21+F21+H21 -> 0
A22: AO op bouwwerken | B22: =IF(OR(B2=Bron!$B$8,B2=Bron!$B$9,B2=Bron!$B$15),'Bouwkost NB'!$E$63,IF(B2=Bron!$B$10,'Bouwkost UITB'!$E$63,IF(B2=Bron!$B$11,'Bouwkost VERB'!$E$64,IF(B2=Bron!$B$12,'Bouwkost IER'!$E$62,IF(B2=Bron!$B$16,'Bouwkost AK+VERB'!$E$63,IF(OR(B2=Bron!$B$13,B2=Bron!$B$14),'Bouwkost VOLT'!$E$63,0)))))) -> 0 | C22: =IFERROR(B22/(B17-B12-B10),0) -> 0 | D22: =IF(OR(D2=Bron!$B$8,D2=Bron!$B$9,D2=Bron!$B$15),'Bouwkost NB'!$E$63,IF(D2=Bron!$B$10,'Bouwkost UITB'!$E$63,IF(D2=Bron!$B$11,'Bouwkost VERB'!$E$64,IF(D2=Bron!$B$12,'Bouwkost IER'!$E$62,IF(D2=Bron!$B$16,'Bouwkost AK+VERB'!$E$63,IF(OR(D2=Bron!$B$13,D2=Bron!$B$14),'Bouwkost VOLT'!$E$63,0)))))) -> 0 | E22: =IFERROR(D22/(D17-D12-D10),0) -> 0 | F22: =IF(OR(F2=Bron!$B$8,F2=Bron!$B$9,F2=Bron!$B$15),'Bouwkost NB'!$E$63,IF(F2=Bron!$B$10,'Bouwkost UITB'!$E$63,IF(F2=Bron!$B$11,'Bouwkost VERB'!$E$64,IF(F2=Bron!$B$12,'Bouwkost IER'!$E$62,IF(F2=Bron!$B$16,'Bouwkost AK+VERB'!$E$63,IF(OR(F2=Bron!$B$13,F2=Bron!$B$14),'Bouwkost VOLT'!$E$63,0)))))) -> 0 | G22: =IFERROR(F22/(F17-F12-F10),0) -> 0 | H22: =IF(OR(H2=Bron!$B$8,H2=Bron!$B$9,H2=Bron!$B$15),'Bouwkost NB'!$E$63,IF(H2=Bron!$B$10,'Bouwkost UITB'!$E$63,IF(H2=Bron!$B$11,'Bouwkost VERB'!$E$64,IF(H2=Bron!$B$12,'Bouwkost IER'!$E$62,IF(H2=Bron!$B$16,'Bouwkost AK+VERB'!$E$63,IF(OR(H2=Bron!$B$13,H2=Bron!$B$14),'Bouwkost VOLT'!$E$63,0)))))) -> 0 | I22: =IFERROR(H22/(H17-H12-H10),0) -> 0 | J22: =B22+D22+F22+H22 -> 0
A23: 21% BTW op AO | B23: =ROUND(B22*C23,2) -> 0 | C23: 0.21 | D23: =ROUND(D22*E23,2) -> 0 | E23: 0.21 | F23: =ROUND(F22*G23,2) -> 0 | G23: 0.21 | H23: =ROUND(H22*I23,2) -> 0 | I23: 0.21 | J23: =B23+D23+F23+H23 -> 0
A24: Totaal BTW | B24: =SUM(B19:B23) -> 0 | D24: =SUM(D19:D23) -> 0 | F24: =SUM(F19:F23) -> 0 | H24: =SUM(H19:H23) -> 0 | J24: =B24+D24+F24+H24 -> 0
A25: Aankoopkosten all-in | B25: =B4+B3 -> 0 | D25: =D4+D3 -> 0 | F25: =F4+F3 -> 0 | H25: =H4+H3 -> 0 | J25: =J4+J3 -> 0
A26: bouwkost all-in | B26: =B24+B17 -> 0 | D26: =D24+D17 -> 0 | F26: =F24+F17 -> 0 | H26: =H24+H17 -> 0 | J26: 0
A28: PROGRAMMA | B28: ='Overzicht BTA'!H3 -> Kies de zorgvorm
A29: Raming aanvraag subsidie | B29: ='Overzicht BTA'!H7 -> Kies kostensoort | C29: % | D29: ='Overzicht BTA'!H8 -> Kies kostensoort | E29: % | F29: ='Overzicht BTA'!H9 -> Kies kostensoort | G29: % | H29: ='Overzicht BTA'!H10 -> Kies kostensoort | I29: % | J29: Totaal | K29: %
A30: Aankoopbedrag | B30: =IF(OR(B$29=Bron!$B$8,B$29=Bron!$B$9,B$29=Bron!$B$15),'Bouwkost NB'!$P15,IF(B$29=Bron!$B$10,'Bouwkost UITB'!$P$16,IF(B$29=Bron!$B$11,'Bouwkost VERB'!$P$16,IF(B$29=Bron!$B$12,'Bouwkost IER'!$P$15,IF(B$29=Bron!$B$16,'Bouwkost AK+VERB'!$P$16,IF(OR(B$29=Bron!$B$13,B$29=Bron!$B$14),'Bouwkost VOLT'!$P$16,0)))))) -> 0 | D30: =IF(OR(D$29=Bron!$B$8,D$29=Bron!$B$9,D$29=Bron!$B$15),'Bouwkost NB'!$P15,IF(D$29=Bron!$B$10,'Bouwkost UITB'!$P$16,IF(D$29=Bron!$B$11,'Bouwkost VERB'!$P$16,IF(D$29=Bron!$B$12,'Bouwkost IER'!$P$15,IF(D$29=Bron!$B$16,'Bouwkost AK+VERB'!$P$16,IF(OR(D$29=Bron!$B$13,D$29=Bron!$B$14),'Bouwkost VOLT'!$P$16,0)))))) -> 0 | F30: =IF(OR(F$29=Bron!$B$8,F$29=Bron!$B$9,F$29=Bron!$B$15),'Bouwkost NB'!$P15,IF(F$29=Bron!$B$10,'Bouwkost UITB'!$P$16,IF(F$29=Bron!$B$11,'Bouwkost VERB'!$P$16,IF(F$29=Bron!$B$12,'Bouwkost IER'!$P$15,IF(F$29=Bron!$B$16,'Bouwkost AK+VERB'!$P$16,IF(OR(F$29=Bron!$B$13,F$29=Bron!$B$14),'Bouwkost VOLT'!$P$16,0)))))) -> 0 | H30: =IF(OR(H$29=Bron!$B$8,H$29=Bron!$B$9,H$29=Bron!$B$15),'Bouwkost NB'!$P15,IF(H$29=Bron!$B$10,'Bouwkost UITB'!$P$16,IF(H$29=Bron!$B$11,'Bouwkost VERB'!$P$16,IF(H$29=Bron!$B$12,'Bouwkost IER'!$P$15,IF(H$29=Bron!$B$16,'Bouwkost AK+VERB'!$P$16,IF(OR(H$29=Bron!$B$13,H$29=Bron!$B$14),'Bouwkost VOLT'!$P$16,0)))))) -> 0 | J30: =B30+D30+F30+H30 -> 0
A31: Registratie- /notariskosten of BTW | B31: =IF(OR(B$29=Bron!$B$8,B$29=Bron!$B$9,B$29=Bron!$B$15),'Bouwkost NB'!$P$18,IF(B$29=Bron!$B$10,'Bouwkost UITB'!$P$19,IF(B$29=Bron!$B$11,'Bouwkost VERB'!$P$19,IF(B$29=Bron!$B$12,'Bouwkost IER'!$P$18,IF(B$29=Bron!$B$16,'Bouwkost AK+VERB'!$P$19,IF(OR(B$29=Bron!$B$13,B$29=Bron!$B$14),'Bouwkost VOLT'!$P$19,0)))))) -> 0 | D31: =IF(OR(D$29=Bron!$B$8,D$29=Bron!$B$9,D$29=Bron!$B$15),'Bouwkost NB'!$P$18,IF(D$29=Bron!$B$10,'Bouwkost UITB'!$P$19,IF(D$29=Bron!$B$11,'Bouwkost VERB'!$P$19,IF(D$29=Bron!$B$12,'Bouwkost IER'!$P$18,IF(D$29=Bron!$B$16,'Bouwkost AK+VERB'!$P$19,IF(OR(D$29=Bron!$B$13,D$29=Bron!$B$14),'Bouwkost VOLT'!$P$19,0)))))) -> 0 | F31: =IF(OR(F$29=Bron!$B$8,F$29=Bron!$B$9,F$29=Bron!$B$15),'Bouwkost NB'!$P$18,IF(F$29=Bron!$B$10,'Bouwkost UITB'!$P$19,IF(F$29=Bron!$B$11,'Bouwkost VERB'!$P$19,IF(F$29=Bron!$B$12,'Bouwkost IER'!$P$18,IF(F$29=Bron!$B$16,'Bouwkost AK+VERB'!$P$19,IF(OR(F$29=Bron!$B$13,F$29=Bron!$B$14),'Bouwkost VOLT'!$P$19,0)))))) -> 0 | H31: =IF(OR(H$29=Bron!$B$8,H$29=Bron!$B$9,H$29=Bron!$B$15),'Bouwkost NB'!$P$18,IF(H$29=Bron!$B$10,'Bouwkost UITB'!$P$19,IF(H$29=Bron!$B$11,'Bouwkost VERB'!$P$19,IF(H$29=Bron!$B$12,'Bouwkost IER'!$P$18,IF(H$29=Bron!$B$16,'Bouwkost AK+VERB'!$P$19,IF(OR(H$29=Bron!$B$13,H$29=Bron!$B$14),'Bouwkost VOLT'!$P$19,0)))))) -> 0 | J31: 0
A32: voorbereidende werken (incl. afbraak) | B32: =IF(OR(B$29=Bron!$B$8,B$29=Bron!$B$9,B$29=Bron!$B$15),'Bouwkost NB'!$P$54,IF(B$29=Bron!$B$10,'Bouwkost UITB'!$P$54,IF(B$29=Bron!$B$11,'Bouwkost VERB'!$P$55,IF(B$29=Bron!$B$12,'Bouwkost IER'!$P$53,IF(B$29=Bron!$B$16,'Bouwkost AK+VERB'!$P$54,IF(OR(B$29=Bron!$B$13,B$29=Bron!$B$14),'Bouwkost VOLT'!$P$54,0)))))) -> 0 | D32: =IF(OR(D$29=Bron!$B$8,D$29=Bron!$B$9,D$29=Bron!$B$15),'Bouwkost NB'!$P$54,IF(D$29=Bron!$B$10,'Bouwkost UITB'!$P$54,IF(D$29=Bron!$B$11,'Bouwkost VERB'!$P$55,IF(D$29=Bron!$B$12,'Bouwkost IER'!$P$53,IF(D$29=Bron!$B$16,'Bouwkost AK+VERB'!$P$54,IF(OR(D$29=Bron!$B$13,D$29=Bron!$B$14),'Bouwkost VOLT'!$P$54,0)))))) -> 0 | F32: =IF(OR(F$29=Bron!$B$8,F$29=Bron!$B$9,F$29=Bron!$B$15),'Bouwkost NB'!$P$54,IF(F$29=Bron!$B$10,'Bouwkost UITB'!$P$54,IF(F$29=Bron!$B$11,'Bouwkost VERB'!$P$55,IF(F$29=Bron!$B$12,'Bouwkost IER'!$P$53,IF(F$29=Bron!$B$16,'Bouwkost AK+VERB'!$P$54,IF(OR(F$29=Bron!$B$13,F$29=Bron!$B$14),'Bouwkost VOLT'!$P$54,0)))))) -> 0 | H32: =IF(OR(H$29=Bron!$B$8,H$29=Bron!$B$9,H$29=Bron!$B$15),'Bouwkost NB'!$P$54,IF(H$29=Bron!$B$10,'Bouwkost UITB'!$P$54,IF(H$29=Bron!$B$11,'Bouwkost VERB'!$P$55,IF(H$29=Bron!$B$12,'Bouwkost IER'!$P$53,IF(H$29=Bron!$B$16,'Bouwkost AK+VERB'!$P$54,IF(OR(H$29=Bron!$B$13,H$29=Bron!$B$14),'Bouwkost VOLT'!$P$54,0)))))) -> 0 | J32: =B32+D32+F32+H32 -> 0
A33: PF1 Ruwbouw | B33: =IF(OR(B$29=Bron!$B$8,B$29=Bron!$B$9,B$29=Bron!$B$15),'Bouwkost NB'!$P$23,IF(B$29=Bron!$B$10,'Bouwkost UITB'!$P$24,IF(B$29=Bron!$B$11,'Bouwkost VERB'!$P$24,IF(B$29=Bron!$B$12,'Bouwkost IER'!$P$23,IF(B$29=Bron!$B$16,'Bouwkost AK+VERB'!$P$24,IF(OR(B$29=Bron!$B$13,B$29=Bron!$B$14),'Bouwkost VOLT'!$P$24,0)))))) -> 0 | C33: =IF($B$38=0,0,B33/$B$38) -> 0 | D33: =IF(OR(D$29=Bron!$B$8,D$29=Bron!$B$9,D$29=Bron!$B$15),'Bouwkost NB'!$P$23,IF(D$29=Bron!$B$10,'Bouwkost UITB'!$P$24,IF(D$29=Bron!$B$11,'Bouwkost VERB'!$P$24,IF(D$29=Bron!$B$12,'Bouwkost IER'!$P$23,IF(D$29=Bron!$B$16,'Bouwkost AK+VERB'!$P$24,IF(OR(D$29=Bron!$B$13,D$29=Bron!$B$14),'Bouwkost VOLT'!$P$24,0)))))) -> 0 | E33: =IF($D$38=0,0,D33/$D$38) -> 0 | F33: =IF(OR(F$29=Bron!$B$8,F$29=Bron!$B$9,F$29=Bron!$B$15),'Bouwkost NB'!$P$23,IF(F$29=Bron!$B$10,'Bouwkost UITB'!$P$24,IF(F$29=Bron!$B$11,'Bouwkost VERB'!$P$24,IF(F$29=Bron!$B$12,'Bouwkost IER'!$P$23,IF(F$29=Bron!$B$16,'Bouwkost AK+VERB'!$P$24,IF(OR(F$29=Bron!$B$13,F$29=Bron!$B$14),'Bouwkost VOLT'!$P$24,0)))))) -> 0 | G33: =IF($F$38=0,0,F33/$F$38) -> 0 | H33: =IF(OR(H$29=Bron!$B$8,H$29=Bron!$B$9,H$29=Bron!$B$15),'Bouwkost NB'!$P$23,IF(H$29=Bron!$B$10,'Bouwkost UITB'!$P$24,IF(H$29=Bron!$B$11,'Bouwkost VERB'!$P$24,IF(H$29=Bron!$B$12,'Bouwkost IER'!$P$23,IF(H$29=Bron!$B$16,'Bouwkost AK+VERB'!$P$24,IF(OR(H$29=Bron!$B$13,H$29=Bron!$B$14),'Bouwkost VOLT'!$P$24,0)))))) -> 0 | I33: =IF($H$38=0,0,H33/$H$38) -> 0 | J33: =B33+D33+F33+H33 -> 0 | K33: =J33/J38 -> 
A34: PF2 Techn. Uitrusting | B34: =IF(OR(B$29=Bron!$B$8,B$29=Bron!$B$9,B$29=Bron!$B$15),'Bouwkost NB'!$P$30,IF(B$29=Bron!$B$10,'Bouwkost UITB'!$P$31,IF(B$29=Bron!$B$11,'Bouwkost VERB'!$P$31,IF(B$29=Bron!$B$12,'Bouwkost IER'!$P$30,IF(B$29=Bron!$B$16,'Bouwkost AK+VERB'!$P$31,IF(OR(B$29=Bron!$B$13,B$29=Bron!$B$14),'Bouwkost VOLT'!$P$31,0)))))) -> 0 | C34: =IF($B$38=0,0,B34/$B$38) -> 0 | D34: =IF(OR(D$29=Bron!$B$8,D$29=Bron!$B$9,D$29=Bron!$B$15),'Bouwkost NB'!$P$30,IF(D$29=Bron!$B$10,'Bouwkost UITB'!$P$31,IF(D$29=Bron!$B$11,'Bouwkost VERB'!$P$31,IF(D$29=Bron!$B$12,'Bouwkost IER'!$P$30,IF(D$29=Bron!$B$16,'Bouwkost AK+VERB'!$P$31,IF(OR(D$29=Bron!$B$13,D$29=Bron!$B$14),'Bouwkost VOLT'!$P$31,0)))))) -> 0 | E34: =IF($D$38=0,0,D34/$D$38) -> 0 | F34: =IF(OR(F$29=Bron!$B$8,F$29=Bron!$B$9,F$29=Bron!$B$15),'Bouwkost NB'!$P$30,IF(F$29=Bron!$B$10,'Bouwkost UITB'!$P$31,IF(F$29=Bron!$B$11,'Bouwkost VERB'!$P$31,IF(F$29=Bron!$B$12,'Bouwkost IER'!$P$30,IF(F$29=Bron!$B$16,'Bouwkost AK+VERB'!$P$31,IF(OR(F$29=Bron!$B$13,F$29=Bron!$B$14),'Bouwkost VOLT'!$P$31,0)))))) -> 0 | G34: =IF($F$38=0,0,F34/$F$38) -> 0 | H34: =IF(OR(H$29=Bron!$B$8,H$29=Bron!$B$9,H$29=Bron!$B$15),'Bouwkost NB'!$P$30,IF(H$29=Bron!$B$10,'Bouwkost UITB'!$P$31,IF(H$29=Bron!$B$11,'Bouwkost VERB'!$P$31,IF(H$29=Bron!$B$12,'Bouwkost IER'!$P$30,IF(H$29=Bron!$B$16,'Bouwkost AK+VERB'!$P$31,IF(OR(H$29=Bron!$B$13,H$29=Bron!$B$14),'Bouwkost VOLT'!$P$31,0)))))) -> 0 | I34: =IF($H$38=0,0,H34/$H$38) -> 0 | J34: 0 | K34: =J34/J38 -> 
A35: PF3 Afwerking | B35: =IF(OR(B$29=Bron!$B$8,B$29=Bron!$B$9,B$29=Bron!$B$15),'Bouwkost NB'!$P$38,IF(B$29=Bron!$B$10,'Bouwkost UITB'!$P$39,IF(B$29=Bron!$B$11,'Bouwkost VERB'!$P$39,IF(B$29=Bron!$B$12,'Bouwkost IER'!$P$38,IF(B$29=Bron!$B$16,'Bouwkost AK+VERB'!$P$39,IF(OR(B$29=Bron!$B$13,B$29=Bron!$B$14),'Bouwkost VOLT'!$P$39,0)))))) -> 0 | C35: 0 | D35: =IF(OR(D$29=Bron!$B$8,D$29=Bron!$B$9,D$29=Bron!$B$15),'Bouwkost NB'!$P$38,IF(D$29=Bron!$B$10,'Bouwkost UITB'!$P$39,IF(D$29=Bron!$B$11,'Bouwkost VERB'!$P$39,IF(D$29=Bron!$B$12,'Bouwkost IER'!$P$38,IF(D$29=Bron!$B$16,'Bouwkost AK+VERB'!$P$39,IF(OR(D$29=Bron!$B$13,D$29=Bron!$B$14),'Bouwkost VOLT'!$P$39,0)))))) -> 0 | E35: 0 | F35: =IF(OR(F$29=Bron!$B$8,F$29=Bron!$B$9,F$29=Bron!$B$15),'Bouwkost NB'!$P$38,IF(F$29=Bron!$B$10,'Bouwkost UITB'!$P$39,IF(F$29=Bron!$B$11,'Bouwkost VERB'!$P$39,IF(F$29=Bron!$B$12,'Bouwkost IER'!$P$38,IF(F$29=Bron!$B$16,'Bouwkost AK+VERB'!$P$39,IF(OR(F$29=Bron!$B$13,F$29=Bron!$B$14),'Bouwkost VOLT'!$P$39,0)))))) -> 0 | G35: 0 | H35: =IF(OR(H$29=Bron!$B$8,H$29=Bron!$B$9,H$29=Bron!$B$15),'Bouwkost NB'!$P$38,IF(H$29=Bron!$B$10,'Bouwkost UITB'!$P$39,IF(H$29=Bron!$B$11,'Bouwkost VERB'!$P$39,IF(H$29=Bron!$B$12,'Bouwkost IER'!$P$38,IF(H$29=Bron!$B$16,'Bouwkost AK+VERB'!$P$39,IF(OR(H$29=Bron!$B$13,H$29=Bron!$B$14),'Bouwkost VOLT'!$P$39,0)))))) -> 0 | I35: 0 | J35: 0 | K35: =J35/J38 -> 
A36: Subtotaal PF1-2-3 | B36: =SUM(B33:B35) -> 0 | C36: 0 | D36: =SUM(D33:D35) -> 0 | E36: 0 | F36: =SUM(F33:F35) -> 0 | G36: 0 | H36: =SUM(H33:H35) -> 0 | I36: 0 | J36: 0 | K36: =J36/J38 -> 
A37: PF4 Losse uitrusting en meubilering | B37: =IF(OR(B$29=Bron!$B$8,B$29=Bron!$B$9,B$29=Bron!$B$15),'Bouwkost NB'!$P$49,IF(B$29=Bron!$B$10,'Bouwkost UITB'!$P$49,IF(B$29=Bron!$B$11,'Bouwkost VERB'!$P$49,IF(B$29=Bron!$B$12,'Bouwkost IER'!$P$48,IF(B$29=Bron!$B$16,'Bouwkost AK+VERB'!$P$49,IF(OR(B$29=Bron!$B$13,B$29=Bron!$B$14),'Bouwkost VOLT'!$P$49,0)))))) -> 0 | C37: 0 | D37: =IF(OR(D$29=Bron!$B$8,D$29=Bron!$B$9,D$29=Bron!$B$15),'Bouwkost NB'!$P$49,IF(D$29=Bron!$B$10,'Bouwkost UITB'!$P$49,IF(D$29=Bron!$B$11,'Bouwkost VERB'!$P$49,IF(D$29=Bron!$B$12,'Bouwkost IER'!$P$48,IF(D$29=Bron!$B$16,'Bouwkost AK+VERB'!$P$49,IF(OR(D$29=Bron!$B$13,D$29=Bron!$B$14),'Bouwkost VOLT'!$P$49,0)))))) -> 0 | E37: 0 | F37: =IF(OR(F$29=Bron!$B$8,F$29=Bron!$B$9,F$29=Bron!$B$15),'Bouwkost NB'!$P$49,IF(F$29=Bron!$B$10,'Bouwkost UITB'!$P$49,IF(F$29=Bron!$B$11,'Bouwkost VERB'!$P$49,IF(F$29=Bron!$B$12,'Bouwkost IER'!$P$48,IF(F$29=Bron!$B$16,'Bouwkost AK+VERB'!$P$49,IF(OR(F$29=Bron!$B$13,F$29=Bron!$B$14),'Bouwkost VOLT'!$P$49,0)))))) -> 0 | G37: 0 | H37: =IF(OR(H$29=Bron!$B$8,H$29=Bron!$B$9,H$29=Bron!$B$15),'Bouwkost NB'!$P$49,IF(H$29=Bron!$B$10,'Bouwkost UITB'!$P$49,IF(H$29=Bron!$B$11,'Bouwkost VERB'!$P$49,IF(H$29=Bron!$B$12,'Bouwkost IER'!$P$48,IF(H$29=Bron!$B$16,'Bouwkost AK+VERB'!$P$49,IF(OR(H$29=Bron!$B$13,H$29=Bron!$B$14),'Bouwkost VOLT'!$P$49,0)))))) -> 0 | I37: 0 | J37: 0 | K37: =J37/J38 -> 
A38: Totaal | B38: =B36+B37 -> 0 | C38: 0 | D38: =D36+D37 -> 0 | E38: 0 | F38: =F36+F37 -> 0 | G38: 0 | H38: =H36+H37 -> 0 | I38: 0 | J38: 0 | K38: =SUM(K33:K35)+K37 -> 
A39: kunstwerk | B39: =IFERROR(IF('Overzicht project'!$E$66=0,0,$B$84*('Overzicht BTA'!J$42/'Overzicht BTA'!J60)),0) -> 0 | D39: =IFERROR(IF('Overzicht project'!$E$66=0,0,$B$84*('Overzicht BTA'!J$43/'Overzicht BTA'!J60)),0) -> 0 | F39: =IFERROR(IF('Overzicht project'!$E$66=0,0,$B$84*('Overzicht BTA'!J$44/'Overzicht BTA'!J60)),0) -> 0 | H39: =IFERROR(IF('Overzicht project'!$E$66=0,0,$B$84*('Overzicht BTA'!J$45/'Overzicht BTA'!J60)),0) -> 0 | J39: =IF('Overzicht project'!$E$66=0,0,kunst!$M$11*('Overzicht BTA'!J25/'Overzicht project'!$E$66)) -> 0
A40: omgevingswerken | B40: =IF(OR(B29=Bron!$B$8,B29=Bron!$B$9,B29=Bron!$B$15),'Bouwkost NB'!$P$51,IF(B29=Bron!$B$10,'Bouwkost UITB'!$P$51,IF(B29=Bron!$B$11,'Bouwkost VERB'!$P$52,IF(B29=Bron!$B$12,'Bouwkost IER'!$P$50,IF(B29=Bron!$B$16,'Bouwkost AK+VERB'!$P$51,IF(OR(B29=Bron!$B$13,B29=Bron!$B$14),'Bouwkost VOLT'!$P$51,0)))))) -> 0 | D40: =IF(OR(D29=Bron!$B$8,D29=Bron!$B$9,D29=Bron!$B$15),'Bouwkost NB'!$P$51,IF(D29=Bron!$B$10,'Bouwkost UITB'!$P$51,IF(D29=Bron!$B$11,'Bouwkost VERB'!$P$52,IF(D29=Bron!$B$12,'Bouwkost IER'!$P$50,IF(D29=Bron!$B$16,'Bouwkost AK+VERB'!$P$51,IF(OR(D29=Bron!$B$13,D29=Bron!$B$14),'Bouwkost VOLT'!$P$51,0)))))) -> 0 | F40: =IF(OR(F29=Bron!$B$8,F29=Bron!$B$9,F29=Bron!$B$15),'Bouwkost NB'!$P$51,IF(F29=Bron!$B$10,'Bouwkost UITB'!$P$51,IF(F29=Bron!$B$11,'Bouwkost VERB'!$P$52,IF(F29=Bron!$B$12,'Bouwkost IER'!$P$50,IF(F29=Bron!$B$16,'Bouwkost AK+VERB'!$P$51,IF(OR(F29=Bron!$B$13,F29=Bron!$B$14),'Bouwkost VOLT'!$P$51,0)))))) -> 0 | H40: =IF(OR(H29=Bron!$B$8,H29=Bron!$B$9,H29=Bron!$B$15),'Bouwkost NB'!$P$51,IF(H29=Bron!$B$10,'Bouwkost UITB'!$P$51,IF(H29=Bron!$B$11,'Bouwkost VERB'!$P$52,IF(H29=Bron!$B$12,'Bouwkost IER'!$P$50,IF(H29=Bron!$B$16,'Bouwkost AK+VERB'!$P$51,IF(OR(H29=Bron!$B$13,H29=Bron!$B$14),'Bouwkost VOLT'!$P$51,0)))))) -> 0 | J40: =B40+D40+F40+H40 -> 0
A41: ondergrondse parking | B41: =IF(OR(B29=Bron!$B$8,B29=Bron!$B$9,B29=Bron!$B$15),'Bouwkost NB'!$P$56,IF(B29=Bron!$B$10,'Bouwkost UITB'!$P$56,IF(B29=Bron!$B$11,'Bouwkost VERB'!$P$57,IF(B29=Bron!$B$12,'Bouwkost IER'!$P$55,IF(B29=Bron!$B$16,'Bouwkost AK+VERB'!$P$56,IF(OR(B29=Bron!$B$13,B29=Bron!$B$14),'Bouwkost VOLT'!$P$56,0)))))) -> 0 | D41: =IF(OR(D29=Bron!$B$8,D29=Bron!$B$9,D29=Bron!$B$15),'Bouwkost NB'!$P$56,IF(D29=Bron!$B$10,'Bouwkost UITB'!$P$56,IF(D29=Bron!$B$11,'Bouwkost VERB'!$P$57,IF(D29=Bron!$B$12,'Bouwkost IER'!$P$55,IF(D29=Bron!$B$16,'Bouwkost AK+VERB'!$P$56,IF(OR(D29=Bron!$B$13,D29=Bron!$B$14),'Bouwkost VOLT'!$P$56,0)))))) -> 0 | F41: =IF(OR(F29=Bron!$B$8,F29=Bron!$B$9,F29=Bron!$B$15),'Bouwkost NB'!$P$56,IF(F29=Bron!$B$10,'Bouwkost UITB'!$P$56,IF(F29=Bron!$B$11,'Bouwkost VERB'!$P$57,IF(F29=Bron!$B$12,'Bouwkost IER'!$P$55,IF(F29=Bron!$B$16,'Bouwkost AK+VERB'!$P$56,IF(OR(F29=Bron!$B$13,F29=Bron!$B$14),'Bouwkost VOLT'!$P$56,0)))))) -> 0 | H41: =IF(OR(H29=Bron!$B$8,H29=Bron!$B$9,H29=Bron!$B$15),'Bouwkost NB'!$P$56,IF(H29=Bron!$B$10,'Bouwkost UITB'!$P$56,IF(H29=Bron!$B$11,'Bouwkost VERB'!$P$57,IF(H29=Bron!$B$12,'Bouwkost IER'!$P$55,IF(H29=Bron!$B$16,'Bouwkost AK+VERB'!$P$56,IF(OR(H29=Bron!$B$13,H29=Bron!$B$14),'Bouwkost VOLT'!$P$56,0)))))) -> 0 | J41: 0
A42: totaal bouwwerken | B42: =B32+B36+B40+B41 -> 0 | D42: =D32+D36+D40+D41 -> 0 | F42: =F32+F36+F40+F41 -> 0 | H42: =H32+H36+H40+H41 -> 0 | J42: =B42+D42+F42+H42 -> 0
A43: Diverse kosten (meerwerken, prijsherzieningen, nutsaansluitingen) | B43: =IF(OR(B29=Bron!$B$8,B29=Bron!$B$9,B29=Bron!$B$15),SUM('Bouwkost NB'!$P$58:$P$60),IF(B29=Bron!$B$11,SUM('Bouwkost VERB'!$P$59:$P$61),)) -> 0 | D43: =IF(OR(D29=Bron!$B$8,D29=Bron!$B$9,D29=Bron!$B$15),SUM('Bouwkost NB'!$P$58:$P$60),IF(D29=Bron!$B$11,SUM('Bouwkost VERB'!$P$59:$P$61),)) -> 0 | F43: =IF(OR(F29=Bron!$B$8,F29=Bron!$B$9,F29=Bron!$B$15),SUM('Bouwkost NB'!$P$58:$P$60),IF(F29=Bron!$B$11,SUM('Bouwkost VERB'!$P$59:$P$61),)) -> 0 | H43: =IF(OR(H29=Bron!$B$8,H29=Bron!$B$9,H29=Bron!$B$15),SUM('Bouwkost NB'!$P$58:$P$60),IF(H29=Bron!$B$11,SUM('Bouwkost VERB'!$P$59:$P$61),)) -> 0 | J43: =B43+D43+F43+H43 -> 0
A44: algemeen totaal | B44: =B42+B37+B39 -> 0 | D44: =D42+D37+D39 -> 0 | F44: =F42+F37+F39 -> 0 | H44: =H42+H37+H39 -> 0 | J44: =B44+D44+F44+H44 -> 0
A45: alle bedragen zonder BTW en AO
A46: BTW op gebouw | B46: =IF(OR(B29=Bron!$B$9),ROUND(('uitgebreide raming'!B33+'uitgebreide raming'!B37+'uitgebreide raming'!B43)*'Overzicht BTA'!#REF!*('Overzicht BTA'!#REF!/('Overzicht BTA'!#REF!+'Overzicht BTA'!#REF!))+('uitgebreide raming'!B33+'uitgebreide raming'!B37+'uitgebreide raming'!B43)*'Overzicht BTA'!#REF!*('Overzicht BTA'!#REF!/('Overzicht BTA'!#REF!+'Overzicht BTA'!#REF!)),2),IF(Bron!$B$14='uitgebreide raming'!B30,ROUND(('uitgebreide raming'!B33+'uitgebreide raming'!B37+'uitgebreide raming'!B43)*'Overzicht BTA'!#REF!*('Overzicht BTA'!#REF!/('Overzicht BTA'!#REF!+'Overzicht BTA'!#REF!))+('uitgebreide raming'!B33+'uitgebreide raming'!B37+'uitgebreide raming'!B43)*'Overzicht BTA'!#REF!*('Overzicht BTA'!#REF!/('Overzicht BTA'!#REF!+'Overzicht BTA'!#REF!)),2),ROUND((B32+B36+B41)*C46,2))) -> 0 | C46: =IF(ISNUMBER(MATCH(B29,'Overzicht BTA'!$H$48:$H$49,0)),VLOOKUP(B29,'Overzicht BTA'!$H$48:$I$49,2,FALSE),0.21) -> 0.21 | D46: =IF(OR(D29=Bron!$B$9),ROUND(('uitgebreide raming'!D33+'uitgebreide raming'!D37+'uitgebreide raming'!D43)*'Overzicht BTA'!#REF!*('Overzicht BTA'!#REF!/('Overzicht BTA'!#REF!+'Overzicht BTA'!#REF!))+('uitgebreide raming'!D33+'uitgebreide raming'!D37+'uitgebreide raming'!D43)*'Overzicht BTA'!#REF!*('Overzicht BTA'!#REF!/('Overzicht BTA'!#REF!+'Overzicht BTA'!#REF!)),2),IF(Bron!$B$14='uitgebreide raming'!D30,ROUND(('uitgebreide raming'!D33+'uitgebreide raming'!D37+'uitgebreide raming'!D43)*'Overzicht BTA'!#REF!*('Overzicht BTA'!#REF!/('Overzicht BTA'!#REF!+'Overzicht BTA'!#REF!))+('uitgebreide raming'!D33+'uitgebreide raming'!D37+'uitgebreide raming'!D43)*'Overzicht BTA'!#REF!*('Overzicht BTA'!#REF!/('Overzicht BTA'!#REF!+'Overzicht BTA'!#REF!)),2),ROUND((D32+D36+D41)*E46,2))) -> 0 | E46: =IF(ISNUMBER(MATCH(D29,'Overzicht BTA'!$H$48:$H$49,0)),VLOOKUP(D29,'Overzicht BTA'!$H$48:$I$49,2,FALSE),0.21) -> 0.21 | F46: =IF(OR(F29=Bron!$B$9),ROUND(('uitgebreide raming'!F33+'uitgebreide raming'!F37+'uitgebreide raming'!F43)*'Overzicht BTA'!#REF!*('Overzicht BTA'!#REF!/('Overzicht BTA'!#REF!+'Overzicht BTA'!#REF!))+('uitgebreide raming'!F33+'uitgebreide raming'!F37+'uitgebreide raming'!F43)*'Overzicht BTA'!#REF!*('Overzicht BTA'!#REF!/('Overzicht BTA'!#REF!+'Overzicht BTA'!#REF!)),2),IF(Bron!$B$14='uitgebreide raming'!F30,ROUND(('uitgebreide raming'!F33+'uitgebreide raming'!F37+'uitgebreide raming'!F43)*'Overzicht BTA'!#REF!*('Overzicht BTA'!#REF!/('Overzicht BTA'!#REF!+'Overzicht BTA'!#REF!))+('uitgebreide raming'!F33+'uitgebreide raming'!F37+'uitgebreide raming'!F43)*'Overzicht BTA'!#REF!*('Overzicht BTA'!#REF!/('Overzicht BTA'!#REF!+'Overzicht BTA'!#REF!)),2),ROUND((F32+F36+F41)*G46,2))) -> 0 | G46: =IF(ISNUMBER(MATCH(F29,'Overzicht BTA'!$H$48:$H$49,0)),VLOOKUP(F29,'Overzicht BTA'!$H$48:$I$49,2,FALSE),0.21) -> 0.21 | H46: =IF(OR(H29=Bron!$B$9),ROUND(('uitgebreide raming'!H33+'uitgebreide raming'!H37+'uitgebreide raming'!H43)*'Overzicht BTA'!#REF!*('Overzicht BTA'!#REF!/('Overzicht BTA'!#REF!+'Overzicht BTA'!#REF!))+('uitgebreide raming'!H33+'uitgebreide raming'!H37+'uitgebreide raming'!H43)*'Overzicht BTA'!#REF!*('Overzicht BTA'!#REF!/('Overzicht BTA'!#REF!+'Overzicht BTA'!#REF!)),2),IF(Bron!$B$14='uitgebreide raming'!H30,ROUND(('uitgebreide raming'!H33+'uitgebreide raming'!H37+'uitgebreide raming'!H43)*'Overzicht BTA'!#REF!*('Overzicht BTA'!#REF!/('Overzicht BTA'!#REF!+'Overzicht BTA'!#REF!))+('uitgebreide raming'!H33+'uitgebreide raming'!H37+'uitgebreide raming'!H43)*'Overzicht BTA'!#REF!*('Overzicht BTA'!#REF!/('Overzicht BTA'!#REF!+'Overzicht BTA'!#REF!)),2),ROUND((H32+H36+H41)*I46,2))) -> 0 | I46: =IF(ISNUMBER(MATCH(H29,'Overzicht BTA'!$H$48:$H$49,0)),VLOOKUP(H29,'Overzicht BTA'!$H$48:$I$49,2,FALSE),0.21) -> 0.21 | J46: =B46+D46+F46+H46 -> 0
A47: BTW op kunst | B47: =ROUND(B39*C47,2) -> 0 | C47: 0.06 | D47: =ROUND(D39*E47,2) -> 0 | E47: 0.06 | F47: =ROUND(F39*G47,2) -> 0 | G47: 0.06 | H47: =ROUND(H39*I47,2) -> 0 | I47: 0.06 | J47: =B47+D47+F47+H47 -> 0
A48: BTW op roerend en omgevingswerken | B48: =ROUND((B37+B40)*C48,2) -> 0 | C48: 0.21 | D48: =ROUND((D37+D40)*E48,2) -> 0 | E48: 0.21 | F48: =ROUND((F37+F40)*G48,2) -> 0 | G48: 0.21 | H48: =ROUND((H37+H40)*I48,2) -> 0 | I48: 0.21 | J48: =B48+D48+F48+H48 -> 0
A49: AO op bouwwerken | B49: =ROUND(IF(OR(B29=Bron!$B$8,B29=Bron!$B$9,B29=Bron!$B$15),'Bouwkost NB'!$P$63,IF(B29=Bron!$B$10,'Bouwkost UITB'!$P$63,IF(B29=Bron!$B$11,'Bouwkost VERB'!$P$64,IF(B29=Bron!$B$12,'Bouwkost IER'!$P$62,IF(B29=Bron!$B$16,'Bouwkost AK+VERB'!$P$63,IF(OR(B29=Bron!$B$13,B29=Bron!$B$14),'Bouwkost VOLT'!$P$63,0)))))),2) -> 0 | C49: =IFERROR(B49/(B44-B39-B37),0) -> 0 | D49: =ROUND(IF(OR(D29=Bron!$B$8,D29=Bron!$B$9,D29=Bron!$B$15),'Bouwkost NB'!$P$63,IF(D29=Bron!$B$10,'Bouwkost UITB'!$P$63,IF(D29=Bron!$B$11,'Bouwkost VERB'!$P$64,IF(D29=Bron!$B$12,'Bouwkost IER'!$P$62,IF(D29=Bron!$B$16,'Bouwkost AK+VERB'!$P$63,IF(OR(D29=Bron!$B$13,D29=Bron!$B$14),'Bouwkost VOLT'!$P$63,0)))))),2) -> 0 | E49: =IFERROR(D49/(D44-D39-D37),0) -> 0 | F49: =ROUND(IF(OR(F29=Bron!$B$8,F29=Bron!$B$9,F29=Bron!$B$15),'Bouwkost NB'!$P$63,IF(F29=Bron!$B$10,'Bouwkost UITB'!$P$63,IF(F29=Bron!$B$11,'Bouwkost VERB'!$P$64,IF(F29=Bron!$B$12,'Bouwkost IER'!$P$62,IF(F29=Bron!$B$16,'Bouwkost AK+VERB'!$P$63,IF(OR(F29=Bron!$B$13,F29=Bron!$B$14),'Bouwkost VOLT'!$P$63,0)))))),2) -> 0 | G49: =IFERROR(F49/(F44-F39-F37),0) -> 0 | H49: =ROUND(IF(OR(H29=Bron!$B$8,H29=Bron!$B$9,H29=Bron!$B$15),'Bouwkost NB'!$P$63,IF(H29=Bron!$B$10,'Bouwkost UITB'!$P$63,IF(H29=Bron!$B$11,'Bouwkost VERB'!$P$64,IF(H29=Bron!$B$12,'Bouwkost IER'!$P$62,IF(H29=Bron!$B$16,'Bouwkost AK+VERB'!$P$63,IF(OR(H29=Bron!$B$13,H29=Bron!$B$14),'Bouwkost VOLT'!$P$63,0)))))),2) -> 0 | I49: =IFERROR(H49/(H44-H39-H37),0) -> 0 | J49: =B49+D49+F49+H49 -> 0
A50: 21% BTW op AO | B50: =ROUND(B49*C50,2) -> 0 | C50: 0.21 | D50: =ROUND(D49*E50,2) -> 0 | E50: 0.21 | F50: =ROUND(F49*G50,2) -> 0 | G50: 0.21 | H50: =ROUND(H49*I50,2) -> 0 | I50: 0.21 | J50: =B50+D50+F50+H50 -> 0
A51: Totaal BTW | B51: =SUM(B46:B50) -> 0 | D51: =SUM(D46:D50) -> 0 | F51: =SUM(F46:F50) -> 0 | H51: =SUM(H46:H50) -> 0 | J51: =B51+D51+F51+H51 -> 0
A52: Aankoopkosten all-in | B52: =B31+B30 -> 0 | D52: =D31+D30 -> 0 | F52: =F31+F30 -> 0 | H52: =H31+H30 -> 0 | J52: =J31+J30 -> 0
A53: bouwkost all-in | B53: =B51+B44 -> 0 | D53: =D51+D44 -> 0 | F53: =F51+F44 -> 0 | H53: =H51+H44 -> 0 | J53: =B53+D53+F53+H53 -> 0
A55: PROGRAMMA | B55: ='Overzicht BTA'!N3 -> Kies de zorgvorm
A56: Raming aanvraag subsidie | B56: ='Overzicht BTA'!N7 -> Kies kostensoort | C56: % | D56: ='Overzicht BTA'!N8 -> Kies kostensoort | E56: % | F56: ='Overzicht BTA'!N9 -> Kies kostensoort | G56: % | H56: ='Overzicht BTA'!N10 -> Kies kostensoort | I56: % | J56: Totaal | K56: %
A57: Aankoopbedrag | B57: =IF(OR(B56=Bron!$B$8,B56=Bron!$B$9,B56=Bron!$B$15),'Bouwkost NB'!$AA$15,IF(B56=Bron!$B$10,'Bouwkost UITB'!$AA$16,IF(B56=Bron!$B$11,'Bouwkost VERB'!$AA$16,IF(B56=Bron!$B$12,'Bouwkost IER'!$AA$15,IF(B56=Bron!$B$16,'Bouwkost AK+VERB'!$AA$16,IF(OR(B56=Bron!$B$13,B56=Bron!$B$14),'Bouwkost VOLT'!$AA$16,0)))))) -> 0 | D57: =IF(OR(D56=Bron!$B$8,D56=Bron!$B$9,D56=Bron!$B$15),'Bouwkost NB'!$AA$15,IF(D56=Bron!$B$10,'Bouwkost UITB'!$AA$16,IF(D56=Bron!$B$11,'Bouwkost VERB'!$AA$16,IF(D56=Bron!$B$12,'Bouwkost IER'!$AA$15,IF(D56=Bron!$B$16,'Bouwkost AK+VERB'!$AA$16,IF(OR(D56=Bron!$B$13,D56=Bron!$B$14),'Bouwkost VOLT'!$AA$16,0)))))) -> 0 | F57: =IF(OR(F56=Bron!$B$8,F56=Bron!$B$9,F56=Bron!$B$15),'Bouwkost NB'!$AA$15,IF(F56=Bron!$B$10,'Bouwkost UITB'!$AA$16,IF(F56=Bron!$B$11,'Bouwkost VERB'!$AA$16,IF(F56=Bron!$B$12,'Bouwkost IER'!$AA$15,IF(F56=Bron!$B$16,'Bouwkost AK+VERB'!$AA$16,IF(OR(F56=Bron!$B$13,F56=Bron!$B$14),'Bouwkost VOLT'!$AA$16,0)))))) -> 0 | H57: =IF(OR(H56=Bron!$B$8,H56=Bron!$B$9,H56=Bron!$B$15),'Bouwkost NB'!$AA$15,IF(H56=Bron!$B$10,'Bouwkost UITB'!$AA$16,IF(H56=Bron!$B$11,'Bouwkost VERB'!$AA$16,IF(H56=Bron!$B$12,'Bouwkost IER'!$AA$15,IF(H56=Bron!$B$16,'Bouwkost AK+VERB'!$AA$16,IF(OR(H56=Bron!$B$13,H56=Bron!$B$14),'Bouwkost VOLT'!$AA$16,0)))))) -> 0 | J57: =B57+D57+F57+H57 -> 0
A58: Registratie- /notariskosten of BTW | B58: =IF(OR(B56=Bron!$B$8,B56=Bron!$B$9,B56=Bron!$B$15),'Bouwkost NB'!$AA$18,IF(B56=Bron!$B$10,'Bouwkost UITB'!$AA$19,IF(B56=Bron!$B$11,'Bouwkost VERB'!$AA$19,IF(B56=Bron!$B$12,'Bouwkost IER'!$AA$18,IF(B56=Bron!$B$16,'Bouwkost AK+VERB'!$AA$19,IF(OR(B56=Bron!$B$13,B56=Bron!$B$14),'Bouwkost VOLT'!$AA$19,0)))))) -> 0 | D58: =IF(OR(D56=Bron!$B$8,D56=Bron!$B$9,D56=Bron!$B$15),'Bouwkost NB'!$AA$18,IF(D56=Bron!$B$10,'Bouwkost UITB'!$AA$19,IF(D56=Bron!$B$11,'Bouwkost VERB'!$AA$19,IF(D56=Bron!$B$12,'Bouwkost IER'!$AA$18,IF(D56=Bron!$B$16,'Bouwkost AK+VERB'!$AA$19,IF(OR(D56=Bron!$B$13,D56=Bron!$B$14),'Bouwkost VOLT'!$AA$19,0)))))) -> 0 | F58: =IF(OR(F56=Bron!$B$8,F56=Bron!$B$9,F56=Bron!$B$15),'Bouwkost NB'!$AA$18,IF(F56=Bron!$B$10,'Bouwkost UITB'!$AA$19,IF(F56=Bron!$B$11,'Bouwkost VERB'!$AA$19,IF(F56=Bron!$B$12,'Bouwkost IER'!$AA$18,IF(F56=Bron!$B$16,'Bouwkost AK+VERB'!$AA$19,IF(OR(F56=Bron!$B$13,F56=Bron!$B$14),'Bouwkost VOLT'!$AA$19,0)))))) -> 0 | H58: =IF(OR(H56=Bron!$B$8,H56=Bron!$B$9,H56=Bron!$B$15),'Bouwkost NB'!$AA$18,IF(H56=Bron!$B$10,'Bouwkost UITB'!$AA$19,IF(H56=Bron!$B$11,'Bouwkost VERB'!$AA$19,IF(H56=Bron!$B$12,'Bouwkost IER'!$AA$18,IF(H56=Bron!$B$16,'Bouwkost AK+VERB'!$AA$19,IF(OR(H56=Bron!$B$13,H56=Bron!$B$14),'Bouwkost VOLT'!$AA$19,0)))))) -> 0 | J58: 0
A59: voorbereidende werken (incl. afbraak) | B59: =IF(OR(B56=Bron!$B$8,B56=Bron!$B$9,B56=Bron!$B$15),'Bouwkost NB'!$AA$54,IF(B56=Bron!$B$10,'Bouwkost UITB'!$AA$54,IF(B56=Bron!$B$11,'Bouwkost VERB'!$AA$55,IF(B56=Bron!$B$12,'Bouwkost IER'!$AA$53,IF(B56=Bron!$B$16,'Bouwkost AK+VERB'!$AA$54,IF(OR(B56=Bron!$B$13,B56=Bron!$B$14),'Bouwkost VOLT'!$AA$54,0)))))) -> 0 | D59: =IF(OR(D56=Bron!$B$8,D56=Bron!$B$9,D56=Bron!$B$15),'Bouwkost NB'!$AA$54,IF(D56=Bron!$B$10,'Bouwkost UITB'!$AA$54,IF(D56=Bron!$B$11,'Bouwkost VERB'!$AA$55,IF(D56=Bron!$B$12,'Bouwkost IER'!$AA$53,IF(D56=Bron!$B$16,'Bouwkost AK+VERB'!$AA$54,IF(OR(D56=Bron!$B$13,D56=Bron!$B$14),'Bouwkost VOLT'!$AA$54,0)))))) -> 0 | F59: =IF(OR(F56=Bron!$B$8,F56=Bron!$B$9,F56=Bron!$B$15),'Bouwkost NB'!$AA$54,IF(F56=Bron!$B$10,'Bouwkost UITB'!$AA$54,IF(F56=Bron!$B$11,'Bouwkost VERB'!$AA$55,IF(F56=Bron!$B$12,'Bouwkost IER'!$AA$53,IF(F56=Bron!$B$16,'Bouwkost AK+VERB'!$AA$54,IF(OR(F56=Bron!$B$13,F56=Bron!$B$14),'Bouwkost VOLT'!$AA$54,0)))))) -> 0 | H59: =IF(OR(H56=Bron!$B$8,H56=Bron!$B$9,H56=Bron!$B$15),'Bouwkost NB'!$AA$54,IF(H56=Bron!$B$10,'Bouwkost UITB'!$AA$54,IF(H56=Bron!$B$11,'Bouwkost VERB'!$AA$55,IF(H56=Bron!$B$12,'Bouwkost IER'!$AA$53,IF(H56=Bron!$B$16,'Bouwkost AK+VERB'!$AA$54,IF(OR(H56=Bron!$B$13,H56=Bron!$B$14),'Bouwkost VOLT'!$AA$54,0)))))) -> 0 | J59: =B59+D59+F59+H59 -> 0
A60: PF1 Ruwbouw | B60: =IF(OR(B56=Bron!$B$8,B56=Bron!$B$9,B56=Bron!$B$15),'Bouwkost NB'!$AA$23,IF(B56=Bron!$B$10,'Bouwkost UITB'!$AA$24,IF(B56=Bron!$B$11,'Bouwkost VERB'!$AA$24,IF(B56=Bron!$B$12,'Bouwkost IER'!$AA$23,IF(B56=Bron!$B$16,'Bouwkost AK+VERB'!$AA$24,IF(OR(B56=Bron!$B$13,B56=Bron!$B$14),'Bouwkost VOLT'!$AA$24,0)))))) -> 0 | C60: =IF($B$65=0,0,B60/$B$65) -> 0 | D60: =IF(OR(D56=Bron!$B$8,D56=Bron!$B$9,D56=Bron!$B$15),'Bouwkost NB'!$AA$23,IF(D56=Bron!$B$10,'Bouwkost UITB'!$AA$24,IF(D56=Bron!$B$11,'Bouwkost VERB'!$AA$24,IF(D56=Bron!$B$12,'Bouwkost IER'!$AA$23,IF(D56=Bron!$B$16,'Bouwkost AK+VERB'!$AA$24,IF(OR(D56=Bron!$B$13,D56=Bron!$B$14),'Bouwkost VOLT'!$AA$24,0)))))) -> 0 | E60: =IF($D$65=0,0,D60/$D$65) -> 0 | F60: =IF(OR(F56=Bron!$B$8,F56=Bron!$B$9,F56=Bron!$B$15),'Bouwkost NB'!$AA$23,IF(F56=Bron!$B$10,'Bouwkost UITB'!$AA$24,IF(F56=Bron!$B$11,'Bouwkost VERB'!$AA$24,IF(F56=Bron!$B$12,'Bouwkost IER'!$AA$23,IF(F56=Bron!$B$16,'Bouwkost AK+VERB'!$AA$24,IF(OR(F56=Bron!$B$13,F56=Bron!$B$14),'Bouwkost VOLT'!$AA$24,0)))))) -> 0 | G60: =IF($F$65=0,0,F60/$F$65) -> 0 | H60: =IF(OR(H56=Bron!$B$8,H56=Bron!$B$9,H56=Bron!$B$15),'Bouwkost NB'!$AA$23,IF(H56=Bron!$B$10,'Bouwkost UITB'!$AA$24,IF(H56=Bron!$B$11,'Bouwkost VERB'!$AA$24,IF(H56=Bron!$B$12,'Bouwkost IER'!$AA$23,IF(H56=Bron!$B$16,'Bouwkost AK+VERB'!$AA$24,IF(OR(H56=Bron!$B$13,H56=Bron!$B$14),'Bouwkost VOLT'!$AA$24,0)))))) -> 0 | I60: =IF($H$65=0,0,H60/$H$65) -> 0 | J60: =B60+D60+F60+H60 -> 0 | K60: =J60/J65 -> 
A61: PF2 Techn. Uitrusting | B61: =IF(OR(B56=Bron!$B$8,B56=Bron!$B$9,B56=Bron!$B$15),'Bouwkost NB'!$AA$30,IF(B56=Bron!$B$10,'Bouwkost UITB'!$AA$31,IF(B56=Bron!$B$11,'Bouwkost VERB'!$AA$31,IF(B56=Bron!$B$12,'Bouwkost IER'!$AA$30,IF(B56=Bron!$B$16,'Bouwkost AK+VERB'!$AA$31,IF(OR(B56=Bron!$B$13,B56=Bron!$B$14),'Bouwkost VOLT'!$AA$31,0)))))) -> 0 | C61: =IF($B$65=0,0,B61/$B$65) -> 0 | D61: =IF(OR(D56=Bron!$B$8,D56=Bron!$B$9,D56=Bron!$B$15),'Bouwkost NB'!$AA$30,IF(D56=Bron!$B$10,'Bouwkost UITB'!$AA$31,IF(D56=Bron!$B$11,'Bouwkost VERB'!$AA$31,IF(D56=Bron!$B$12,'Bouwkost IER'!$AA$30,IF(D56=Bron!$B$16,'Bouwkost AK+VERB'!$AA$31,IF(OR(D56=Bron!$B$13,D56=Bron!$B$14),'Bouwkost VOLT'!$AA$31,0)))))) -> 0 | E61: =IF($D$65=0,0,D61/$D$65) -> 0 | F61: =IF(OR(F56=Bron!$B$8,F56=Bron!$B$9,F56=Bron!$B$15),'Bouwkost NB'!$AA$30,IF(F56=Bron!$B$10,'Bouwkost UITB'!$AA$31,IF(F56=Bron!$B$11,'Bouwkost VERB'!$AA$31,IF(F56=Bron!$B$12,'Bouwkost IER'!$AA$30,IF(F56=Bron!$B$16,'Bouwkost AK+VERB'!$AA$31,IF(OR(F56=Bron!$B$13,F56=Bron!$B$14),'Bouwkost VOLT'!$AA$31,0)))))) -> 0 | G61: =IF($F$65=0,0,F61/$F$65) -> 0 | H61: =IF(OR(H56=Bron!$B$8,H56=Bron!$B$9,H56=Bron!$B$15),'Bouwkost NB'!$AA$30,IF(H56=Bron!$B$10,'Bouwkost UITB'!$AA$31,IF(H56=Bron!$B$11,'Bouwkost VERB'!$AA$31,IF(H56=Bron!$B$12,'Bouwkost IER'!$AA$30,IF(H56=Bron!$B$16,'Bouwkost AK+VERB'!$AA$31,IF(OR(H56=Bron!$B$13,H56=Bron!$B$14),'Bouwkost VOLT'!$AA$31,0)))))) -> 0 | I61: =IF($H$65=0,0,H61/$H$65) -> 0 | J61: 0 | K61: =J61/J65 -> 
A62: PF3 Afwerking | B62: =IF(OR(B56=Bron!$B$8,B56=Bron!$B$9,B56=Bron!$B$15),'Bouwkost NB'!$AA$38,IF(B56=Bron!$B$10,'Bouwkost UITB'!$AA$39,IF(B56=Bron!$B$11,'Bouwkost VERB'!$AA$39,IF(B56=Bron!$B$12,'Bouwkost IER'!$AA$38,IF(B56=Bron!$B$16,'Bouwkost AK+VERB'!$AA$39,IF(OR(B56=Bron!$B$13,B56=Bron!$B$14),'Bouwkost VOLT'!$AA$39,0)))))) -> 0 | C62: 0 | D62: =IF(OR(D56=Bron!$B$8,D56=Bron!$B$9,D56=Bron!$B$15),'Bouwkost NB'!$AA$38,IF(D56=Bron!$B$10,'Bouwkost UITB'!$AA$39,IF(D56=Bron!$B$11,'Bouwkost VERB'!$AA$39,IF(D56=Bron!$B$12,'Bouwkost IER'!$AA$38,IF(D56=Bron!$B$16,'Bouwkost AK+VERB'!$AA$39,IF(OR(D56=Bron!$B$13,D56=Bron!$B$14),'Bouwkost VOLT'!$AA$39,0)))))) -> 0 | E62: 0 | F62: =IF(OR(F56=Bron!$B$8,F56=Bron!$B$9,F56=Bron!$B$15),'Bouwkost NB'!$AA$38,IF(F56=Bron!$B$10,'Bouwkost UITB'!$AA$39,IF(F56=Bron!$B$11,'Bouwkost VERB'!$AA$39,IF(F56=Bron!$B$12,'Bouwkost IER'!$AA$38,IF(F56=Bron!$B$16,'Bouwkost AK+VERB'!$AA$39,IF(OR(F56=Bron!$B$13,F56=Bron!$B$14),'Bouwkost VOLT'!$AA$39,0)))))) -> 0 | G62: 0 | H62: =IF(OR(H56=Bron!$B$8,H56=Bron!$B$9,H56=Bron!$B$15),'Bouwkost NB'!$AA$38,IF(H56=Bron!$B$10,'Bouwkost UITB'!$AA$39,IF(H56=Bron!$B$11,'Bouwkost VERB'!$AA$39,IF(H56=Bron!$B$12,'Bouwkost IER'!$AA$38,IF(H56=Bron!$B$16,'Bouwkost AK+VERB'!$AA$39,IF(OR(H56=Bron!$B$13,H56=Bron!$B$14),'Bouwkost VOLT'!$AA$39,0)))))) -> 0 | I62: 0 | J62: 0 | K62: =J62/J65 -> 
A63: Subtotaal PF1-2-3 | B63: =SUM(B60:B62) -> 0 | C63: 0 | D63: =SUM(D60:D62) -> 0 | E63: 0 | F63: =SUM(F60:F62) -> 0 | G63: 0 | H63: =SUM(H60:H62) -> 0 | I63: 0 | J63: 0 | K63: =J63/J65 -> 
A64: PF4 Losse uitrusting en meubilering | B64: =IF(OR(B56=Bron!$B$8,B56=Bron!$B$9,B56=Bron!$B$15),'Bouwkost NB'!$AA$49,IF(B56=Bron!$B$10,'Bouwkost UITB'!$AA$49,IF(B56=Bron!$B$11,'Bouwkost VERB'!$AA$49,IF(B56=Bron!$B$12,'Bouwkost IER'!$AA$48,IF(B56=Bron!$B$16,'Bouwkost AK+VERB'!$AA$49,IF(OR(B56=Bron!$B$13,B56=Bron!$B$14),'Bouwkost VOLT'!$AA$49,0)))))) -> 0 | C64: 0 | D64: =IF(OR(D56=Bron!$B$8,D56=Bron!$B$9,D56=Bron!$B$15),'Bouwkost NB'!$AA$49,IF(D56=Bron!$B$10,'Bouwkost UITB'!$AA$49,IF(D56=Bron!$B$11,'Bouwkost VERB'!$AA$49,IF(D56=Bron!$B$12,'Bouwkost IER'!$AA$48,IF(D56=Bron!$B$16,'Bouwkost AK+VERB'!$AA$49,IF(OR(D56=Bron!$B$13,D56=Bron!$B$14),'Bouwkost VOLT'!$AA$49,0)))))) -> 0 | E64: 0 | F64: =IF(OR(F56=Bron!$B$8,F56=Bron!$B$9,F56=Bron!$B$15),'Bouwkost NB'!$AA$49,IF(F56=Bron!$B$10,'Bouwkost UITB'!$AA$49,IF(F56=Bron!$B$11,'Bouwkost VERB'!$AA$49,IF(F56=Bron!$B$12,'Bouwkost IER'!$AA$48,IF(F56=Bron!$B$16,'Bouwkost AK+VERB'!$AA$49,IF(OR(F56=Bron!$B$13,F56=Bron!$B$14),'Bouwkost VOLT'!$AA$49,0)))))) -> 0 | G64: 0 | H64: =IF(OR(H56=Bron!$B$8,H56=Bron!$B$9,H56=Bron!$B$15),'Bouwkost NB'!$AA$49,IF(H56=Bron!$B$10,'Bouwkost UITB'!$AA$49,IF(H56=Bron!$B$11,'Bouwkost VERB'!$AA$49,IF(H56=Bron!$B$12,'Bouwkost IER'!$AA$48,IF(H56=Bron!$B$16,'Bouwkost AK+VERB'!$AA$49,IF(OR(H56=Bron!$B$13,H56=Bron!$B$14),'Bouwkost VOLT'!$AA$49,0)))))) -> 0 | I64: 0 | J64: 0 | K64: =J64/J65 -> 
A65: Totaal | B65: =B63+B64 -> 0 | C65: 0 | D65: =D63+D64 -> 0 | E65: 0 | F65: =F63+F64 -> 0 | G65: 0 | H65: =H63+H64 -> 0 | I65: 0 | J65: 0 | K65: =SUM(K60:K62)+K64 -> 
A66: kunstwerk | B66: =IFERROR(IF('Overzicht project'!$E$66=0,0,$B$84*('Overzicht BTA'!P$42/'Overzicht project'!$E$66)),0) -> 0 | D66: =IFERROR(IF('Overzicht project'!$E$66=0,0,$B$84*('Overzicht BTA'!P$43/'Overzicht project'!$E$66)),0) -> 0 | F66: =IFERROR(IF('Overzicht project'!$E$66=0,0,$B$84*('Overzicht BTA'!P$44/'Overzicht project'!$E$66)),0) -> 0 | H66: =IFERROR(IF('Overzicht project'!$E$66=0,0,$B$84*('Overzicht BTA'!P$45/'Overzicht project'!$E$66)),0) -> 0 | J66: =IF('Overzicht project'!$E$66=0,0,kunst!$M$11*('Overzicht BTA'!P25/'Overzicht project'!$E$66)) -> 0
A67: omgevingswerken | B67: =IF(OR(B56=Bron!$B$8,B56=Bron!$B$9,B56=Bron!$B$15),'Bouwkost NB'!$AA$51,IF(B56=Bron!$B$10,'Bouwkost UITB'!$AA$51,IF(B56=Bron!$B$11,'Bouwkost VERB'!$AA$52,IF(B56=Bron!$B$12,'Bouwkost IER'!$AA$50,IF(B56=Bron!$B$16,'Bouwkost AK+VERB'!$AA$51,IF(OR(B56=Bron!$B$13,B56=Bron!$B$14),'Bouwkost VOLT'!$AA$51,0)))))) -> 0 | D67: =IF(OR(D56=Bron!$B$8,D56=Bron!$B$9,D56=Bron!$B$15),'Bouwkost NB'!$AA$51,IF(D56=Bron!$B$10,'Bouwkost UITB'!$AA$51,IF(D56=Bron!$B$11,'Bouwkost VERB'!$AA$52,IF(D56=Bron!$B$12,'Bouwkost IER'!$AA$50,IF(D56=Bron!$B$16,'Bouwkost AK+VERB'!$AA$51,IF(OR(D56=Bron!$B$13,D56=Bron!$B$14),'Bouwkost VOLT'!$AA$51,0)))))) -> 0 | F67: =IF(OR(F56=Bron!$B$8,F56=Bron!$B$9,F56=Bron!$B$15),'Bouwkost NB'!$AA$51,IF(F56=Bron!$B$10,'Bouwkost UITB'!$AA$51,IF(F56=Bron!$B$11,'Bouwkost VERB'!$AA$52,IF(F56=Bron!$B$12,'Bouwkost IER'!$AA$50,IF(F56=Bron!$B$16,'Bouwkost AK+VERB'!$AA$51,IF(OR(F56=Bron!$B$13,F56=Bron!$B$14),'Bouwkost VOLT'!$AA$51,0)))))) -> 0 | H67: =IF(OR(H56=Bron!$B$8,H56=Bron!$B$9,H56=Bron!$B$15),'Bouwkost NB'!$AA$51,IF(H56=Bron!$B$10,'Bouwkost UITB'!$AA$51,IF(H56=Bron!$B$11,'Bouwkost VERB'!$AA$52,IF(H56=Bron!$B$12,'Bouwkost IER'!$AA$50,IF(H56=Bron!$B$16,'Bouwkost AK+VERB'!$AA$51,IF(OR(H56=Bron!$B$13,H56=Bron!$B$14),'Bouwkost VOLT'!$AA$51,0)))))) -> 0 | J67: =B67+D67+F67+H67 -> 0
A68: ondergrondse parking | B68: =IF(OR(B56=Bron!$B$8,B56=Bron!$B$9,B56=Bron!$B$15),'Bouwkost NB'!$AA$56,IF(B56=Bron!$B$10,'Bouwkost UITB'!$AA$56,IF(B56=Bron!$B$11,'Bouwkost VERB'!$AA$57,IF(B56=Bron!$B$12,'Bouwkost IER'!$AA$55,IF(B56=Bron!$B$16,'Bouwkost AK+VERB'!$AA$56,IF(OR(B56=Bron!$B$13,B56=Bron!$B$14),'Bouwkost VOLT'!$AA$56,0)))))) -> 0 | D68: =IF(OR(D56=Bron!$B$8,D56=Bron!$B$9,D56=Bron!$B$15),'Bouwkost NB'!$AA$56,IF(D56=Bron!$B$10,'Bouwkost UITB'!$AA$56,IF(D56=Bron!$B$11,'Bouwkost VERB'!$AA$57,IF(D56=Bron!$B$12,'Bouwkost IER'!$AA$55,IF(D56=Bron!$B$16,'Bouwkost AK+VERB'!$AA$56,IF(OR(D56=Bron!$B$13,D56=Bron!$B$14),'Bouwkost VOLT'!$AA$56,0)))))) -> 0 | F68: =IF(OR(F56=Bron!$B$8,F56=Bron!$B$9,F56=Bron!$B$15),'Bouwkost NB'!$AA$56,IF(F56=Bron!$B$10,'Bouwkost UITB'!$AA$56,IF(F56=Bron!$B$11,'Bouwkost VERB'!$AA$57,IF(F56=Bron!$B$12,'Bouwkost IER'!$AA$55,IF(F56=Bron!$B$16,'Bouwkost AK+VERB'!$AA$56,IF(OR(F56=Bron!$B$13,F56=Bron!$B$14),'Bouwkost VOLT'!$AA$56,0)))))) -> 0 | H68: =IF(OR(H56=Bron!$B$8,H56=Bron!$B$9,H56=Bron!$B$15),'Bouwkost NB'!$AA$56,IF(H56=Bron!$B$10,'Bouwkost UITB'!$AA$56,IF(H56=Bron!$B$11,'Bouwkost VERB'!$AA$57,IF(H56=Bron!$B$12,'Bouwkost IER'!$AA$55,IF(H56=Bron!$B$16,'Bouwkost AK+VERB'!$AA$56,IF(OR(H56=Bron!$B$13,H56=Bron!$B$14),'Bouwkost VOLT'!$AA$56,0)))))) -> 0 | J68: 0
A69: totaal bouwwerken | B69: =B59+B63+B67+B68 -> 0 | D69: =D59+D63+D67+D68 -> 0 | F69: =F59+F63+F67+F68 -> 0 | H69: =H59+H63+H67+H68 -> 0 | J69: =B69+D69+F69+H69 -> 0
A70: Diverse kosten (meerwerken, prijsherzieningen, nutsaansluitingen) | B70: =IF(OR(B56=Bron!$B$8,B56=Bron!$B$9,B56=Bron!$B$15),SUM('Bouwkost NB'!$AA$58:$AA$60),IF(B56=Bron!$B$11,SUM('Bouwkost VERB'!$AA$59:$AA$61),)) -> 0 | D70: =IF(OR(D56=Bron!$B$8,D56=Bron!$B$9,D56=Bron!$B$15),SUM('Bouwkost NB'!$AA$58:$AA$60),IF(D56=Bron!$B$11,SUM('Bouwkost VERB'!$AA$59:$AA$61),)) -> 0 | F70: =IF(OR(F56=Bron!$B$8,F56=Bron!$B$9,F56=Bron!$B$15),SUM('Bouwkost NB'!$AA$58:$AA$60),IF(F56=Bron!$B$11,SUM('Bouwkost VERB'!$AA$59:$AA$61),)) -> 0 | H70: =IF(OR(H56=Bron!$B$8,H56=Bron!$B$9,H56=Bron!$B$15),SUM('Bouwkost NB'!$AA$58:$AA$60),IF(H56=Bron!$B$11,SUM('Bouwkost VERB'!$AA$59:$AA$61),)) -> 0 | J70: =B70+D70+F70+H70 -> 0
A71: algemeen totaal | B71: =B69+B64+B66 -> 0 | D71: =D69+D64+D66 -> 0 | F71: =F69+F64+F66 -> 0 | H71: =H69+H64+H66 -> 0 | J71: =B71+D71+F71+H71 -> 0
A72: alle bedragen zonder BTW en AO
A73: BTW op gebouw | B73: =IF(OR(B56=Bron!$B$9),ROUND(('uitgebreide raming'!B61+'uitgebreide raming'!B65+'uitgebreide raming'!B71)*'Overzicht BTA'!#REF!*('Overzicht BTA'!#REF!/('Overzicht BTA'!#REF!+'Overzicht BTA'!#REF!))+('uitgebreide raming'!B61+'uitgebreide raming'!B65+'uitgebreide raming'!B71)*'Overzicht BTA'!#REF!*('Overzicht BTA'!#REF!/('Overzicht BTA'!#REF!+'Overzicht BTA'!#REF!)),2),IF(Bron!$B$40='uitgebreide raming'!B58,ROUND(('uitgebreide raming'!B61+'uitgebreide raming'!B65+'uitgebreide raming'!B71)*'Overzicht BTA'!#REF!*('Overzicht BTA'!#REF!/('Overzicht BTA'!#REF!+'Overzicht BTA'!#REF!))+('uitgebreide raming'!B61+'uitgebreide raming'!B65+'uitgebreide raming'!B71)*'Overzicht BTA'!#REF!*('Overzicht BTA'!#REF!/('Overzicht BTA'!#REF!+'Overzicht BTA'!#REF!)),2),ROUND((B59+B63+B68)*C73,2))) -> 0 | C73: =IF(ISNUMBER(MATCH(B56,'Overzicht BTA'!$N$48:$N$49,0)),VLOOKUP(B56,'Overzicht BTA'!$N$48:$O$49,2,FALSE),0.21) -> 0.21 | D73: =IF(OR(D56=Bron!$B$9),ROUND(('uitgebreide raming'!D61+'uitgebreide raming'!D65+'uitgebreide raming'!D71)*'Overzicht BTA'!#REF!*('Overzicht BTA'!#REF!/('Overzicht BTA'!#REF!+'Overzicht BTA'!#REF!))+('uitgebreide raming'!D61+'uitgebreide raming'!D65+'uitgebreide raming'!D71)*'Overzicht BTA'!#REF!*('Overzicht BTA'!#REF!/('Overzicht BTA'!#REF!+'Overzicht BTA'!#REF!)),2),IF(Bron!$B$40='uitgebreide raming'!D58,ROUND(('uitgebreide raming'!D61+'uitgebreide raming'!D65+'uitgebreide raming'!D71)*'Overzicht BTA'!#REF!*('Overzicht BTA'!#REF!/('Overzicht BTA'!#REF!+'Overzicht BTA'!#REF!))+('uitgebreide raming'!D61+'uitgebreide raming'!D65+'uitgebreide raming'!D71)*'Overzicht BTA'!#REF!*('Overzicht BTA'!#REF!/('Overzicht BTA'!#REF!+'Overzicht BTA'!#REF!)),2),ROUND((D59+D63+D68)*E73,2))) -> 0 | E73: =IF(ISNUMBER(MATCH(D56,'Overzicht BTA'!$N$48:$N$49,0)),VLOOKUP(D56,'Overzicht BTA'!$N$48:$O$49,2,FALSE),0.21) -> 0.21 | F73: =IF(OR(F56=Bron!$B$9),ROUND(('uitgebreide raming'!F61+'uitgebreide raming'!F65+'uitgebreide raming'!F71)*'Overzicht BTA'!#REF!*('Overzicht BTA'!#REF!/('Overzicht BTA'!#REF!+'Overzicht BTA'!#REF!))+('uitgebreide raming'!F61+'uitgebreide raming'!F65+'uitgebreide raming'!F71)*'Overzicht BTA'!#REF!*('Overzicht BTA'!#REF!/('Overzicht BTA'!#REF!+'Overzicht BTA'!#REF!)),2),IF(Bron!$B$40='uitgebreide raming'!F58,ROUND(('uitgebreide raming'!F61+'uitgebreide raming'!F65+'uitgebreide raming'!F71)*'Overzicht BTA'!#REF!*('Overzicht BTA'!#REF!/('Overzicht BTA'!#REF!+'Overzicht BTA'!#REF!))+('uitgebreide raming'!F61+'uitgebreide raming'!F65+'uitgebreide raming'!F71)*'Overzicht BTA'!#REF!*('Overzicht BTA'!#REF!/('Overzicht BTA'!#REF!+'Overzicht BTA'!#REF!)),2),ROUND((F59+F63+F68)*G73,2))) -> 0 | G73: =IF(ISNUMBER(MATCH(F56,'Overzicht BTA'!$N$48:$N$49,0)),VLOOKUP(F56,'Overzicht BTA'!$N$48:$O$49,2,FALSE),0.21) -> 0.21 | H73: =IF(OR(H56=Bron!$B$9),ROUND(('uitgebreide raming'!H61+'uitgebreide raming'!H65+'uitgebreide raming'!H71)*'Overzicht BTA'!#REF!*('Overzicht BTA'!#REF!/('Overzicht BTA'!#REF!+'Overzicht BTA'!#REF!))+('uitgebreide raming'!H61+'uitgebreide raming'!H65+'uitgebreide raming'!H71)*'Overzicht BTA'!#REF!*('Overzicht BTA'!#REF!/('Overzicht BTA'!#REF!+'Overzicht BTA'!#REF!)),2),IF(Bron!$B$40='uitgebreide raming'!H58,ROUND(('uitgebreide raming'!H61+'uitgebreide raming'!H65+'uitgebreide raming'!H71)*'Overzicht BTA'!#REF!*('Overzicht BTA'!#REF!/('Overzicht BTA'!#REF!+'Overzicht BTA'!#REF!))+('uitgebreide raming'!H61+'uitgebreide raming'!H65+'uitgebreide raming'!H71)*'Overzicht BTA'!#REF!*('Overzicht BTA'!#REF!/('Overzicht BTA'!#REF!+'Overzicht BTA'!#REF!)),2),ROUND((H59+H63+H68)*I73,2))) -> 0 | I73: =IF(ISNUMBER(MATCH(H56,'Overzicht BTA'!$N$48:$N$49,0)),VLOOKUP(H56,'Overzicht BTA'!$N$48:$O$49,2,FALSE),0.21) -> 0.21 | J73: =B73+D73+F73+H73 -> 0
A74: BTW op kunst | B74: =ROUND(B66*C74,2) -> 0 | C74: 0.06 | D74: =ROUND(D66*E74,2) -> 0 | E74: 0.06 | F74: =ROUND(F66*G74,2) -> 0 | G74: 0.06 | H74: =ROUND(H66*I74,2) -> 0 | I74: 0.06 | J74: =B74+D74+F74+H74 -> 0
A75: BTW op roerend en omgevingswerken | B75: =ROUND((B64+B67)*C75,2) -> 0 | C75: 0.21 | D75: =ROUND((D64+D67)*E75,2) -> 0 | E75: 0.21 | F75: =ROUND((F64+F67)*G75,2) -> 0 | G75: 0.21 | H75: =ROUND((H64+H67)*I75,2) -> 0 | I75: 0.21 | J75: =B75+D75+F75+H75 -> 0
A76: AO op bouwwerken | B76: =ROUND(IF(OR(B56=Bron!$B$8,B56=Bron!$B$9,B56=Bron!$B$15),'Bouwkost NB'!$AA$63,IF(B56=Bron!$B$10,'Bouwkost UITB'!$AA$63,IF(B56=Bron!$B$11,'Bouwkost VERB'!$AA$64,IF(B56=Bron!$B$12,'Bouwkost IER'!$AA$62,IF(B56=Bron!$B$16,'Bouwkost AK+VERB'!$AA$63,IF(OR(B56=Bron!$B$13,B56=Bron!$B$14),'Bouwkost VOLT'!$AA$63,0)))))),2) -> 0 | C76: =IFERROR(B76/(B71-B66-B64),0) -> 0 | D76: =ROUND(IF(OR(D56=Bron!$B$8,D56=Bron!$B$9,D56=Bron!$B$15),'Bouwkost NB'!$AA$63,IF(D56=Bron!$B$10,'Bouwkost UITB'!$AA$63,IF(D56=Bron!$B$11,'Bouwkost VERB'!$AA$64,IF(D56=Bron!$B$12,'Bouwkost IER'!$AA$62,IF(D56=Bron!$B$16,'Bouwkost AK+VERB'!$AA$63,IF(OR(D56=Bron!$B$13,D56=Bron!$B$14),'Bouwkost VOLT'!$AA$63,0)))))),2) -> 0 | E76: =IFERROR(D76/(D71-D66-D64),0) -> 0 | F76: =ROUND(IF(OR(F56=Bron!$B$8,F56=Bron!$B$9,F56=Bron!$B$15),'Bouwkost NB'!$AA$63,IF(F56=Bron!$B$10,'Bouwkost UITB'!$AA$63,IF(F56=Bron!$B$11,'Bouwkost VERB'!$AA$64,IF(F56=Bron!$B$12,'Bouwkost IER'!$AA$62,IF(F56=Bron!$B$16,'Bouwkost AK+VERB'!$AA$63,IF(OR(F56=Bron!$B$13,F56=Bron!$B$14),'Bouwkost VOLT'!$AA$63,0)))))),2) -> 0 | G76: =IFERROR(F76/(F71-F66-F64),0) -> 0 | H76: =ROUND(IF(OR(H56=Bron!$B$8,H56=Bron!$B$9,H56=Bron!$B$15),'Bouwkost NB'!$AA$63,IF(H56=Bron!$B$10,'Bouwkost UITB'!$AA$63,IF(H56=Bron!$B$11,'Bouwkost VERB'!$AA$64,IF(H56=Bron!$B$12,'Bouwkost IER'!$AA$62,IF(H56=Bron!$B$16,'Bouwkost AK+VERB'!$AA$63,IF(OR(H56=Bron!$B$13,H56=Bron!$B$14),'Bouwkost VOLT'!$AA$63,0)))))),2) -> 0 | I76: =IFERROR(H76/(H71-H66-H64),0) -> 0 | J76: =B76+D76+F76+H76 -> 0
A77: 21% BTW op AO | B77: =ROUND(B76*C77,2) -> 0 | C77: 0.21 | D77: =ROUND(D76*E77,2) -> 0 | E77: 0.21 | F77: =ROUND(F76*G77,2) -> 0 | G77: 0.21 | H77: =ROUND(H76*I77,2) -> 0 | I77: 0.21 | J77: =B77+D77+F77+H77 -> 0
A78: Totaal BTW | B78: =SUM(B73:B77) -> 0 | D78: =SUM(D73:D77) -> 0 | F78: =SUM(F73:F77) -> 0 | H78: =SUM(H73:H77) -> 0 | J78: =B78+D78+F78+H78 -> 0
A79: Aankoopkosten all-in | B79: =B58+B57 -> 0 | D79: =D58+D57 -> 0 | F79: =F58+F57 -> 0 | H79: =H58+H57 -> 0 | J79: =J58+J57 -> 0
A80: bouwkost all-in | B80: =B78+B71 -> 0 | D80: =D78+D71 -> 0 | F80: =F78+F71 -> 0 | H80: =H78+H71 -> 0 | J80: =B80+D80+F80+H80 -> 0
A82: Totaal project (alle zorgvormen)
A83: AO op bouwwerken | B83: =J76+J49+J22 -> 0
A84: Totaal kunstwerk excl. BTW | B84: =J66+J39+J12 -> 0
A85: Totaal kunstwerk incl. BTW | B85: =J74+J66+J47+J39+J20+J12 -> 0
A86: Bouwkost excl. BTW | B86: =J69+J42+J15 -> 0
A87: Totaal BTW | B87: =J78+J51+J24 -> 0
A88: Aankoopkosten all-in | B88: =J79+J52+J25 -> 0
A89: Bouwkost all-in | B89: =J80+J53+J26 -> 0

Sheet kunst
A1: MODULE BEREKENING KUNSTWERK | L1: MODULE BEREKENING KUNSTWERK
A2: Initiële berekening | L2: Wijziging belofte
A4: TOTAAL PF1-3 | B4: ='uitgebreide raming'!J9+'uitgebreide raming'!J37+'uitgebreide raming'!J65 -> 0 | C4: (link) | L4: TOTAAL PF1-3 | M4: =B4 -> 0 | N4: (link)
A6: 1e schijf | B6: =IF(B4<=MROUND(Bouwindex_ABEX!H2/VLOOKUP(2019,ABEX[],2,FALSE)*500000,10),0,1.5%*MIN(MROUND(Bouwindex_ABEX!H2/VLOOKUP(2019,ABEX[],2,FALSE)*1000000,10),B4)) -> 0 | C6: 1,5% | D6: =CONCATENATE("1,5% voor schijf vanaf ", TEXT(MROUND(VLOOKUP(YEAR(TODAY()),Bouwindex_ABEX!$O$3:$P$514,2,FALSE)/VLOOKUP(2019,ABEX[],2,FALSE)*500000,10),"#.##0")," of lager dan of gelijk aan ", TEXT(MROUND(VLOOKUP(YEAR(TODAY()),Bouwindex_ABEX!$O$3:$P$514,2,FALSE)/VLOOKUP(2019,ABEX[],2,FALSE)*1000000,10),"#.##0")," EUR") -> 1,5% voor schijf vanaf 652.660 of lager dan of gelijk aan 1.305.320 EUR | L6: 1e schijf | M6: =B6 -> 0 | N6: 1,5% | O6: =D6 -> 1,5% voor schijf vanaf 652.660 of lager dan of gelijk aan 1.305.320 EUR
A7: 2e schijf | B7: =1%*(MIN(MROUND(Bouwindex_ABEX!H2/VLOOKUP(2019,ABEX[],2,FALSE)*3000000,10)-MROUND(Bouwindex_ABEX!H2/VLOOKUP(2019,ABEX[],2,FALSE)*1000000,10),MAX(B4-MROUND(Bouwindex_ABEX!H2/VLOOKUP(2019,ABEX[],2,FALSE)*1000000,10),0))) -> 0 | C7: 1% | D7: =CONCATENATE("1% voor schijf > ", TEXT(MROUND(VLOOKUP(YEAR(TODAY()),Bouwindex_ABEX!$O$3:$P$514,2,FALSE)/VLOOKUP(2019,ABEX[],2,FALSE)*1000000,10),"#.##0")," EUR en ",TEXT(MROUND(VLOOKUP(YEAR(TODAY()),Bouwindex_ABEX!$O$3:$P$514,2,FALSE)/VLOOKUP(2019,ABEX[],2,FALSE)*3000000,10),"#.##0"), " EUR") -> 1% voor schijf > 1.305.320 EUR en 3.915.950 EUR | L7: 2e schijf | M7: =B7 -> 0 | N7: 1% | O7: =D7 -> 1% voor schijf > 1.305.320 EUR en 3.915.950 EUR
A8: 3e schijf | B8: =0.5%*(MIN(MROUND(Bouwindex_ABEX!H2/VLOOKUP(2019,ABEX[],2,FALSE)*100000000,10)-MROUND(Bouwindex_ABEX!H2/VLOOKUP(2019,ABEX[],2,FALSE)*3000000,10),MAX(B4-MROUND(Bouwindex_ABEX!H2/VLOOKUP(2019,ABEX[],2,FALSE)*3000000,10),0))) -> 0 | C8: 0,5% | D8: =CONCATENATE("0,5% voor schijf > ", TEXT(MROUND(VLOOKUP(YEAR(TODAY()),Bouwindex_ABEX!$O$3:$P$514,2,FALSE)/VLOOKUP(2019,ABEX[],2,FALSE)*3000000,10),"#.##0")," EUR en ",TEXT(MROUND(VLOOKUP(YEAR(TODAY()),Bouwindex_ABEX!$O$3:$P$514,2,FALSE)/VLOOKUP(2019,ABEX[],2,FALSE)*100000000,10),"#.##0"), " EUR") -> 0,5% voor schijf > 3.915.950 EUR en 130.531.520 EUR | L8: 3e schijf | M8: 0 | N8: 0,5% | O8: 0,5% voor schijf > 3.915.950 EUR en 130.531.520 EUR
A9: 4e schijf | B9: =0.25%*MAX(B4-MROUND(Bouwindex_ABEX!H2/VLOOKUP(2019,ABEX[],2,FALSE)*100000000,10),0) -> 0 | C9: 0,25% | D9: =CONCATENATE("0,25% voor schijf > ", TEXT(MROUND(VLOOKUP(YEAR(TODAY()),Bouwindex_ABEX!$O$3:$P$514,2,FALSE)/VLOOKUP(2019,ABEX[],2,FALSE)*100000000,10),"#.##0"), " EUR") -> 0,25% voor schijf > 130.531.520 EUR | L9: 4e schijf | M9: 0 | N9: 0,25% | O9: 0,25% voor schijf > 130.531.520 EUR
A11: TOTAAL: | B11: =ROUND(B6+B7+B8+B9,2) -> 0 | C11: waarde kunstwerk | L11: TOTAAL: | M11: =ROUND(M6+M7+M8+M9,2) -> 0 | N11: waarde kunstwerk

Sheet NB 21% (hidden)
A1: Zorgvorm | B1: ='Overzicht BTA'!$C$3 -> Algemeen ziekenhuis | G1: Zorgvorm | H1: ='Overzicht BTA'!$H$3 -> Kies de zorgvorm | M1: Zorgvorm | N1: ='Overzicht BTA'!$N$3 -> Kies de zorgvorm
A2: Nieuwbouw BTW 21% | G2: Nieuwbouw BTW 21% | M2: Nieuwbouw BTW 21%
A3: subs. opp (m²) | B3: basisbedrag | C3: index | D3: subsidiebedrag | E3: /m² | G3: subs. opp (m²) | H3: basisbedrag | I3: index | J3: subsidiebedrag | K3: /m² | M3: subs. opp (m²) | N3: basisbedrag | O3: index | P3: subsidiebedrag | Q3: /m²
A4: =ROUND(IF('Overzicht BTA'!D13=0,0,IF(MATCH(Bron!$B$8,'Overzicht BTA'!$B$7:$B$10,0)=1,'Overzicht BTA'!$D$7,IF(MATCH(Bron!$B$8,'Overzicht BTA'!$B$7:$B$10,0)=2,'Overzicht BTA'!$D$8,IF(MATCH(Bron!$B$8,'Overzicht BTA'!$B$7:$B$10,0)=3,'Overzicht BTA'!$D$9,IF(MATCH(Bron!$B$8,'Overzicht BTA'!$B$7:$B$10,0)=4,'Overzicht BTA'!$D$10,0))))),2) -> 0 | B4: =VLOOKUP(B1,'Capaciteiten & forfaits'!$B$3:$H$76,4,FALSE) -> 550 | C4: ='Overzicht BTA'!$D$31 -> 2.28638 | D4: =ROUND(A4*B4*C4,2) -> 0 | E4: =ROUND(B4*C4*1,2) -> 1257.51 | G4: =ROUND(IF('Overzicht BTA'!J13=0,0,IF(MATCH(Bron!$B$8,'Overzicht BTA'!$H$7:$H$10,0)=1,'Overzicht BTA'!$J$7,IF(MATCH(Bron!$B$8,'Overzicht BTA'!$H$7:$H$10,0)=2,'Overzicht BTA'!$J$8,IF(MATCH(Bron!$B$8,'Overzicht BTA'!$H$7:$H$10,0)=3,'Overzicht BTA'!$J$9,IF(MATCH(Bron!$B$8,'Overzicht BTA'!$H$7:$H$10,0)=4,'Overzicht BTA'!$J$10,0))))),2) -> 0 | H4: =VLOOKUP(H1,'Capaciteiten & forfaits'!$B$3:$H$76,4,FALSE) -> 0 | I4: ='Overzicht BTA'!$I$31 -> 2.28638 | J4: =ROUND(G4*H4*I4,2) -> 0 | K4: =ROUND(H4*I4*1,2) -> 0 | M4: =ROUND(IF('Overzicht BTA'!P13=0,0,IF(MATCH(Bron!$B$8,'Overzicht BTA'!$N$7:$N$10,0)=1,'Overzicht BTA'!$P$7,IF(MATCH(Bron!$B$8,'Overzicht BTA'!$N$7:$N$10,0)=2,'Overzicht BTA'!$P$8,IF(MATCH(Bron!$B$8,'Overzicht BTA'!$N$7:$N$10,0)=3,'Overzicht BTA'!$P$9,IF(MATCH(Bron!$B$8,'Overzicht BTA'!$N$7:$N$10,0)=4,'Overzicht BTA'!$P$10,0))))),2) -> 0 | N4: =VLOOKUP(N1,'Capaciteiten & forfaits'!$B$3:$H$76,4,FALSE) -> 0 | O4: ='Overzicht BTA'!$O$31 -> 2.28638 | P4: =ROUND(M4*N4*O4,2) -> 0 | Q4: =ROUND(N4*O4*1,2) -> 0
A5: Algemene Onkosten (A.O.) | C5: 0.1 | D5: =ROUND(D4*C5,2) -> 0 | G5: Algemene Onkosten (A.O.) | I5: 0.1 | J5: =ROUND(J4*I5,2) -> 0 | M5: Algemene Onkosten (A.O.) | O5: 0.1 | P5: =ROUND(P4*O5,2) -> 0
A6: BTW | B6: op nieuwbouw | C6: 0.21 | D6: =ROUND(D4*C6,2) -> 0 | G6: BTW | H6: op nieuwbouw | I6: 0.21 | J6: =ROUND(J4*I6,2) -> 0 | M6: BTW | N6: op nieuwbouw | O6: 0.21 | P6: =ROUND(P4*O6,2) -> 0
A7: BTW | B7: op A.O. | C7: 0.21 | D7: =ROUND(D5*C7,2) -> 0 | G7: BTW | H7: op A.O. | I7: 0.21 | J7: =ROUND(J5*I7,2) -> 0 | M7: BTW | N7: op A.O. | O7: 0.21 | P7: =ROUND(P5*O7,2) -> 0
A8: Totaal | D8: =SUM(D4:D7) -> 0 | G8: Totaal | J8: =SUM(J4:J7) -> 0 | M8: Totaal | P8: =SUM(P4:P7) -> 0
A10: Inrichting van de omgeving en sportinfrastructuur (revalidatieovereenkomsten) | G10: Inrichting van de omgeving (revalidatieovereenkomsten) | M10: Inrichting van de omgeving (revalidatieovereenkomsten)
A11: subs. opp (m²) | B11: basisbedrag | C11: index | D11: subsidiebedrag | E11: /m² | G11: subs. opp (m²) | H11: basisbedrag | I11: index | J11: subsidiebedrag | K11: /m² | M11: subs. opp (m²) | N11: basisbedrag | O11: index | P11: subsidiebedrag | Q11: /m²
A12: =A4 -> 0 | B12: =IF($B$1=Bron!$E$40,55,0) -> 0 | C12: =$C$4 -> 2.28638 | D12: =ROUND(A12*B12*C12,2) -> 0 | E12: =ROUND(B12*C12*1,2) -> 0 | G12: =MIN($G$4,'Bouwkost NB'!$N$90) -> 0 | H12: =IF($H$1=Bron!$E$40,55,0) -> 0 | I12: =$C$4 -> 2.28638 | J12: =ROUND(G12*H12*I12,2) -> 0 | K12: =ROUND(H12*I12*1,2) -> 0 | M12: =MIN($M$4,'Bouwkost NB'!$Y$90) -> 0 | N12: =IF($N$1=Bron!$E$40,55,0) -> 0 | O12: =$C$4 -> 2.28638 | P12: =ROUND(M12*N12*O12,2) -> 0 | Q12: =ROUND(N12*O12*1,2) -> 0
A13: raming omgevingswerken | B13: ='Bouwkost NB'!$C$51 -> 0 | C13: 0.6 | D13: =B13*C13 -> 0 | G13: raming omgevingswerken | H13: ='Bouwkost NB'!$N$51 -> 0 | I13: 0.6 | J13: =H13*I13 -> 0 | M13: raming omgevingswerken | N13: ='Bouwkost NB'!$Y$51 -> 0 | O13: 0.6 | P13: =N13*O13 -> 0
A14: raming sportinfrastructuur | B14: ='Bouwkost NB'!$C$57 -> 0 | C14: 0.6 | D14: =B14*C14 -> 0 | G14: raming sportinfrastructuur | H14: ='Bouwkost NB'!$N$57 -> 0 | I14: 0.6 | J14: =H14*I14 -> 0 | M14: raming sportinfrastructuur | N14: ='Bouwkost NB'!$Y$57 -> 0 | O14: 0.6 | P14: =N14*O14 -> 0
A15: weerhouden bedrag | D15: =MIN(D12,D13+D14) -> 0 | G15: weerhouden bedrag | J15: =MIN(J12,J13+J14) -> 0 | M15: weerhouden bedrag | P15: =MIN(P12,P13+P14) -> 0
A17: Totaal | D17: =D15+D8 -> 0 | G17: Totaal | J17: =J15+J8 -> 0 | M17: Totaal | P17: =P15+P8 -> 0
A19: Berekend Bouwplafond excl. BTW | B19: =D4+D15 -> 0 | C19: 10/6 | D19: =ROUND((D4+D15)*10/6,2) -> 0 | E19: =ROUND(E4*10/6,2) -> 2095.85 | G19: Berekend Bouwplafond excl. BTW | H19: =J4+J15 -> 0 | I19: 10/6 | J19: =ROUND((J4+J15)*10/6,2) -> 0 | K19: =ROUND(K4*10/6,2) -> 0 | M19: Berekend Bouwplafond excl. BTW | N19: =P4+P15 -> 0 | O19: 10/6 | P19: =ROUND((P4+P15)*10/6,2) -> 0 | Q19: =ROUND(Q4*10/6,2) -> 0
A21: Samenvatting raming | G21: Samenvatting raming | M21: Samenvatting raming
A22: PF1 Ruwbouw | B22: =IF(MATCH(Bron!$B$8,'uitgebreide raming'!$B$2:$I$2,0)=1,'uitgebreide raming'!$B$6,IF(MATCH(Bron!$B$8,'uitgebreide raming'!$B$2:$I$2,0)=3,'uitgebreide raming'!$D$6,IF(MATCH(Bron!$B$8,'uitgebreide raming'!$B$2:$I$2,0)=5,'uitgebreide raming'!$F$6,IF(MATCH(Bron!$B$8,'uitgebreide raming'!$B$2:$I$2,0)=7,'uitgebreide raming'!$H$6,0)))) -> 0 | C22: =ROUND(B22/$B$27,2) ->  | G22: PF1 Ruwbouw | H22: =IF(MATCH(Bron!$B$8,'uitgebreide raming'!$B$30:$I$30,0)=1,'uitgebreide raming'!$B$34,IF(MATCH(Bron!$B$8,'uitgebreide raming'!$B$30:$I$30,0)=3,'uitgebreide raming'!$D$34,IF(MATCH(Bron!$B$8,'uitgebreide raming'!$B$30:$I$30,0)=5,'uitgebreide raming'!$F$34,IF(MATCH(Bron!$B$8,'uitgebreide raming'!$B$30:$I$30,0)=7,'uitgebreide raming'!H34,0)))) ->  | I22: =H22/H27 ->  | M22: PF1 Ruwbouw | N22: =IF(MATCH(Bron!$B$8,'uitgebreide raming'!$B$58:$I$58,0)=1,'uitgebreide raming'!B62,IF(MATCH(Bron!$B$8,'uitgebreide raming'!$B$58:$I$58,0)=3,'uitgebreide raming'!D62,IF(MATCH(Bron!$B$8,'uitgebreide raming'!$B$58:$I$58,0)=5,'uitgebreide raming'!F62,IF(MATCH(Bron!$B$8,'uitgebreide raming'!$B$58:$I$58,0)=7,'uitgebreide raming'!H62,0)))) ->  | O22: =N22/N27 -> 
A23: PF2 Techn. Uitrusting | B23: =IF(MATCH(Bron!$B$8,'uitgebreide raming'!$B$2:$I$2,0)=1,'uitgebreide raming'!$B$7,IF(MATCH(Bron!$B$8,'uitgebreide raming'!$B$2:$I$2,0)=3,'uitgebreide raming'!$D$7,IF(MATCH(Bron!$B$8,'uitgebreide raming'!$B$2:$I$2,0)=5,'uitgebreide raming'!$F$7,IF(MATCH(Bron!$B$8,'uitgebreide raming'!$B$2:$I$2,0)=7,'uitgebreide raming'!$H$7,0)))) -> 0 | C23: =ROUND(B23/$B$27,2) ->  | G23: PF2 Techn. Uitrusting | H23: =IF(MATCH(Bron!$B$8,'uitgebreide raming'!$B$30:$I$30,0)=1,'uitgebreide raming'!B35,IF(MATCH(Bron!$B$8,'uitgebreide raming'!$B$30:$I$30,0)=3,'uitgebreide raming'!D35,IF(MATCH(Bron!$B$8,'uitgebreide raming'!$B$30:$I$30,0)=5,'uitgebreide raming'!F35,IF(MATCH(Bron!$B$8,'uitgebreide raming'!$B$30:$I$30,0)=7,'uitgebreide raming'!H35,0)))) ->  | I23: =H23/H27 ->  | M23: PF2 Techn. Uitrusting | N23: =IF(MATCH(Bron!$B$8,'uitgebreide raming'!$B$58:$I$58,0)=1,'uitgebreide raming'!B63,IF(MATCH(Bron!$B$8,'uitgebreide raming'!$B$58:$I$58,0)=3,'uitgebreide raming'!D63,IF(MATCH(Bron!$B$8,'uitgebreide raming'!$B$58:$I$58,0)=5,'uitgebreide raming'!F63,IF(MATCH(Bron!$B$8,'uitgebreide raming'!$B$58:$I$58,0)=7,'uitgebreide raming'!H63,0)))) ->  | O23: =N23/N27 -> 
A24: PF3 Afwerking | B24: =IF(MATCH(Bron!$B$8,'uitgebreide raming'!$B$2:$I$2,0)=1,'uitgebreide raming'!$B$8,IF(MATCH(Bron!$B$8,'uitgebreide raming'!$B$2:$I$2,0)=3,'uitgebreide raming'!$D$8,IF(MATCH(Bron!$B$8,'uitgebreide raming'!$B$2:$I$2,0)=5,'uitgebreide raming'!$F$8,IF(MATCH(Bron!$B$8,'uitgebreide raming'!$B$2:$I$2,0)=7,'uitgebreide raming'!$H$8,0)))) -> 0 | G24: PF3 Afwerking | H24: =IF(MATCH(Bron!$B$8,'uitgebreide raming'!$B$30:$I$30,0)=1,'uitgebreide raming'!B36,IF(MATCH(Bron!$B$8,'uitgebreide raming'!$B$30:$I$30,0)=3,'uitgebreide raming'!D36,IF(MATCH(Bron!$B$8,'uitgebreide raming'!$B$30:$I$30,0)=5,'uitgebreide raming'!F36,IF(MATCH(Bron!$B$8,'uitgebreide raming'!$B$30:$I$30,0)=7,'uitgebreide raming'!H36,0)))) ->  | I24: =H24/H27 ->  | M24: PF3 Afwerking | N24: =IF(MATCH(Bron!$B$8,'uitgebreide raming'!$B$58:$I$58,0)=1,'uitgebreide raming'!B64,IF(MATCH(Bron!$B$8,'uitgebreide raming'!$B$58:$I$58,0)=3,'uitgebreide raming'!D64,IF(MATCH(Bron!$B$8,'uitgebreide raming'!$B$58:$I$58,0)=5,'uitgebreide raming'!F64,IF(MATCH(Bron!$B$8,'uitgebreide raming'!$B$58:$I$58,0)=7,'uitgebreide raming'!H64,0)))) ->  | O24: =N24/N27 -> 
A25: Subtotaal PF1-2-3 | B25: =IF(MATCH(Bron!$B$8,'uitgebreide raming'!$B$2:$I$2,0)=1,'uitgebreide raming'!$B$9,IF(MATCH(Bron!$B$8,'uitgebreide raming'!$B$2:$I$2,0)=3,'uitgebreide raming'!$D$9,IF(MATCH(Bron!$B$8,'uitgebreide raming'!$B$2:$I$2,0)=5,'uitgebreide raming'!$F$9,IF(MATCH(Bron!$B$8,'uitgebreide raming'!$B$2:$I$2,0)=7,'uitgebreide raming'!$H$9,0)))) -> 0 | G25: Subtotaal PF1-2-3 | H25: =IF(MATCH(Bron!$B$8,'uitgebreide raming'!$B$30:$I$30,0)=1,'uitgebreide raming'!B37,IF(MATCH(Bron!$B$8,'uitgebreide raming'!$B$30:$I$30,0)=3,'uitgebreide raming'!D37,IF(MATCH(Bron!$B$8,'uitgebreide raming'!$B$30:$I$30,0)=5,'uitgebreide raming'!F37,IF(MATCH(Bron!$B$8,'uitgebreide raming'!$B$30:$I$30,0)=7,'uitgebreide raming'!H37,0)))) ->  | I25: =H25/H27 ->  | M25: Subtotaal PF1-2-3 | N25: =IF(MATCH(Bron!$B$8,'uitgebreide raming'!$B$58:$I$58,0)=1,'uitgebreide raming'!B65,IF(MATCH(Bron!$B$8,'uitgebreide raming'!$B$58:$I$58,0)=3,'uitgebreide raming'!D65,IF(MATCH(Bron!$B$8,'uitgebreide raming'!$B$58:$I$58,0)=5,'uitgebreide raming'!F65,IF(MATCH(Bron!$B$8,'uitgebreide raming'!$B$58:$I$58,0)=7,'uitgebreide raming'!H65,0)))) ->  | O25: =N25/N27 -> 
A26: PF4 Losse uitrusting en meubilering | B26: =IF(MATCH(Bron!$B$8,'uitgebreide raming'!$B$2:$I$2,0)=1,'uitgebreide raming'!$B$10,IF(MATCH(Bron!$B$8,'uitgebreide raming'!$B$2:$I$2,0)=3,'uitgebreide raming'!$D$10,IF(MATCH(Bron!$B$8,'uitgebreide raming'!$B$2:$I$2,0)=5,'uitgebreide raming'!$F$10,IF(MATCH(Bron!$B$8,'uitgebreide raming'!$B$2:$I$2,0)=7,'uitgebreide raming'!$H$10,0)))) -> 0 | G26: PF4 Losse uitrusting en meubilering | H26: =IF(MATCH(Bron!$B$8,'uitgebreide raming'!$B$30:$I$30,0)=1,'uitgebreide raming'!B38,IF(MATCH(Bron!$B$8,'uitgebreide raming'!$B$30:$I$30,0)=3,'uitgebreide raming'!D38,IF(MATCH(Bron!$B$8,'uitgebreide raming'!$B$30:$I$30,0)=5,'uitgebreide raming'!F38,IF(MATCH(Bron!$B$8,'uitgebreide raming'!$B$30:$I$30,0)=7,'uitgebreide raming'!H38,0)))) ->  | I26: =H26/H27 ->  | M26: PF4 Losse uitrusting en meubilering | N26: =IF(MATCH(Bron!$B$8,'uitgebreide raming'!$B$58:$I$58,0)=1,'uitgebreide raming'!B66,IF(MATCH(Bron!$B$8,'uitgebreide raming'!$B$58:$I$58,0)=3,'uitgebreide raming'!D66,IF(MATCH(Bron!$B$8,'uitgebreide raming'!$B$58:$I$58,0)=5,'uitgebreide raming'!F66,IF(MATCH(Bron!$B$8,'uitgebreide raming'!$B$58:$I$58,0)=7,'uitgebreide raming'!H66,0)))) ->  | O26: =N26/N27 -> 
A27: Totaal | B27: =IF(MATCH(Bron!$B$8,'uitgebreide raming'!$B$2:$I$2,0)=1,'uitgebreide raming'!$B$12,IF(MATCH(Bron!$B$8,'uitgebreide raming'!$B$2:$I$2,0)=3,'uitgebreide raming'!$D$12,IF(MATCH(Bron!$B$8,'uitgebreide raming'!$B$2:$I$2,0)=5,'uitgebreide raming'!$F$12,IF(MATCH(Bron!$B$8,'uitgebreide raming'!$B$2:$I$2,0)=7,'uitgebreide raming'!$H$12,0)))) -> 0 | C27: =B27/B27 ->  | G27: Totaal | H27: =IF(MATCH(Bron!$B$8,'uitgebreide raming'!$B$30:$I$30,0)=1,'uitgebreide raming'!B40,IF(MATCH(Bron!$B$8,'uitgebreide raming'!$B$30:$I$30,0)=3,'uitgebreide raming'!D40,IF(MATCH(Bron!$B$8,'uitgebreide raming'!$B$30:$I$30,0)=5,'uitgebreide raming'!F40,IF(MATCH(Bron!$B$8,'uitgebreide raming'!$B$30:$I$30,0)=7,'uitgebreide raming'!H40,0)))) ->  | I27: =H27/H27 ->  | M27: Totaal | N27: =IF(MATCH(Bron!$B$8,'uitgebreide raming'!$B$58:$I$58,0)=1,'uitgebreide raming'!B68,IF(MATCH(Bron!$B$8,'uitgebreide raming'!$B$58:$I$58,0)=3,'uitgebreide raming'!D68,IF(MATCH(Bron!$B$8,'uitgebreide raming'!$B$58:$I$58,0)=5,'uitgebreide raming'!F68,IF(MATCH(Bron!$B$8,'uitgebreide raming'!$B$58:$I$58,0)=7,'uitgebreide raming'!H68,0)))) ->  | O27: =N27/N27 -> 
A29: Wijziging belofte
A30: Zorgvorm | B30: ='Overzicht BTA'!$C$3 -> Algemeen ziekenhuis | G30: Zorgvorm | H30: ='Overzicht BTA'!$H$3 -> Kies de zorgvorm | M30: Zorgvorm | N30: ='Overzicht BTA'!$N$3 -> Kies de zorgvorm
A31: Nieuwbouw BTW 21% | G31: Nieuwbouw BTW 21% | M31: Nieuwbouw BTW 21%
A32: subs. opp (m²) | B32: basisbedrag | C32: index | D32: subsidiebedrag | E32: /m² | G32: subs. opp (m²) | H32: basisbedrag | I32: index | J32: subsidiebedrag | K32: /m² | M32: subs. opp (m²) | N32: basisbedrag | O32: index | P32: subsidiebedrag | Q32: /m²
A33: =ROUND(IF('Overzicht BTA'!D48=0,0,IF(MATCH(Bron!$B$8,'Overzicht BTA'!$B$42:$B$45,0)=1,'Overzicht BTA'!$D$42,IF(MATCH(Bron!$B$8,'Overzicht BTA'!$B$42:$B$45,0)=2,'Overzicht BTA'!$D$43,IF(MATCH(Bron!$B$8,'Overzicht BTA'!$B$42:$B$45,0)=3,'Overzicht BTA'!$D$44,IF(MATCH(Bron!$B$8,'Overzicht BTA'!$B$42:$B$45,0)=4,'Overzicht BTA'!$D$45,0))))),2) -> 0 | B33: =VLOOKUP(B30,'Capaciteiten & forfaits'!$B$3:$H$76,4,FALSE) -> 550 | C33: ='Overzicht BTA'!$D$32 -> 2.28638 | D33: =ROUND(A33*B33*C33,2) -> 0 | E33: =ROUND(B33*C33*1,2) -> 1257.51 | G33: =ROUND(IF('Overzicht BTA'!J48=0,0,IF(MATCH(Bron!$B$8,'Overzicht BTA'!$H$42:$H$45,0)=1,'Overzicht BTA'!$J$42,IF(MATCH(Bron!$B$8,'Overzicht BTA'!$H$42:$H$45,0)=2,'Overzicht BTA'!$J$43,IF(MATCH(Bron!$B$8,'Overzicht BTA'!$H$42:$H$45,0)=3,'Overzicht BTA'!$J$44,IF(MATCH(Bron!$B$8,'Overzicht BTA'!$H$42:$H$45,0)=4,'Overzicht BTA'!$J$45,0))))),2) -> 0 | H33: =VLOOKUP(H30,'Capaciteiten & forfaits'!$B$3:$H$76,4,FALSE) -> 0 | I33: ='Overzicht BTA'!$I$32 -> 2.28638 | J33: =ROUND(G33*H33*I33,2) -> 0 | K33: =ROUND(H33*I33*1,2) -> 0 | M33: =ROUND(IF('Overzicht BTA'!P48=0,0,IF(MATCH(Bron!$B$8,'Overzicht BTA'!$N$42:$N$45,0)=1,'Overzicht BTA'!$P$42,IF(MATCH(Bron!$B$8,'Overzicht BTA'!$N$42:$N$45,0)=2,'Overzicht BTA'!$P$43,IF(MATCH(Bron!$B$8,'Overzicht BTA'!$N$42:$N$45,0)=3,'Overzicht BTA'!$P$44,IF(MATCH(Bron!$B$8,'Overzicht BTA'!$N$42:$N$45,0)=4,'Overzicht BTA'!$P$45,0))))),2) -> 0 | N33: =VLOOKUP(N30,'Capaciteiten & forfaits'!$B$3:$H$76,4,FALSE) -> 0 | O33: ='Overzicht BTA'!$O$32 -> 2.28638 | P33: =ROUND(M33*N33*O33,2) -> 0 | Q33: =ROUND(N33*O33*1,2) -> 0
A34: Algemene Onkosten (A.O.) | C34: 0.1 | D34: =ROUND(D33*C34,2) -> 0 | G34: Algemene Onkosten (A.O.) | I34: 0.1 | J34: =ROUND(J33*I34,2) -> 0 | M34: Algemene Onkosten (A.O.) | O34: 0.1 | P34: =ROUND(P33*O34,2) -> 0
A35: BTW | B35: op nieuwbouw | C35: 0.21 | D35: =ROUND(D33*C35,2) -> 0 | G35: BTW | H35: op nieuwbouw | I35: 0.21 | J35: =ROUND(J33*I35,2) -> 0 | M35: BTW | N35: op nieuwbouw | O35: 0.21 | P35: =ROUND(P33*O35,2) -> 0
A36: BTW | B36: op A.O. | C36: 0.21 | D36: =ROUND(D34*C36,2) -> 0 | G36: BTW | H36: op A.O. | I36: 0.21 | J36: =ROUND(J34*I36,2) -> 0 | M36: BTW | N36: op A.O. | O36: 0.21 | P36: =ROUND(P34*O36,2) -> 0
A37: Totaal | D37: =SUM(D33:D36) -> 0 | G37: Totaal | J37: =SUM(J33:J36) -> 0 | M37: Totaal | P37: =SUM(P33:P36) -> 0
A39: Inrichting van de omgeving (revalidatieovereenkomsten) | G39: Inrichting van de omgeving (revalidatieovereenkomsten) | M39: Inrichting van de omgeving (revalidatieovereenkomsten)
A40: subs. opp (m²) | B40: basisbedrag | C40: index | D40: subsidiebedrag | E40: /m² | G40: subs. opp (m²) | H40: basisbedrag | I40: index | J40: subsidiebedrag | K40: /m² | M40: subs. opp (m²) | N40: basisbedrag | O40: index | P40: subsidiebedrag | Q40: /m²
A41: =MIN($A$4,'Bouwkost NB'!$E$90) -> 0 | B41: =IF(B30=Bron!$E$40,55,0) -> 0 | C41: =C33 -> 2.28638 | D41: =ROUND(A41*B41*C41,2) -> 0 | E41: =ROUND(B41*C41*1,2) -> 0 | G41: =MIN($G$4,'Bouwkost NB'!$N$90) -> 0 | H41: =IF(H30=Bron!$E$40,55,0) -> 0 | I41: =I33 -> 2.28638 | J41: =ROUND(G41*H41*I41,2) -> 0 | K41: =ROUND(H41*I41*1,2) -> 0 | M41: =MIN($M$4,'Bouwkost NB'!$Y$90) -> 0 | N41: =IF(N30=Bron!$E$40,55,0) -> 0 | O41: =O33 -> 2.28638 | P41: =ROUND(M41*N41*O41,2) -> 0 | Q41: =ROUND(N41*O41*1,2) -> 0
A42: raming omgevingswerken | B42: ='Bouwkost NB'!$E$51 -> 0 | C42: 0.6 | D42: =B42*C42 -> 0 | G42: raming omgevingswerken | H42: ='Bouwkost NB'!$N$51 -> 0 | I42: 0.6 | J42: =H42*I42 -> 0 | M42: raming omgevingswerken | N42: ='Bouwkost NB'!$Y$51 -> 0 | O42: 0.6 | P42: =N42*O42 -> 0
A43: raming sportinfrastructuur | B43: ='Bouwkost NB'!$C$57 -> 0 | C43: 0.6 | D43: =B43*C43 -> 0 | G43: raming sportinfrastructuur | H43: ='Bouwkost NB'!$N$57 -> 0 | I43: 0.6 | J43: =H43*I43 -> 0 | M43: raming sportinfrastructuur | N43: ='Bouwkost NB'!$Y$57 -> 0 | O43: 0.6 | P43: =N43*O43 -> 0
A44: weerhouden bedrag | D44: =MIN(D41,D42+D43) -> 0 | G44: weerhouden bedrag | J44: =MIN(J41,J42+J43) -> 0 | M44: weerhouden bedrag | P44: =MIN(P41,P42+P43) -> 0
A46: Totaal | D46: =D44+D37 -> 0 | G46: Totaal | J46: =J44+J37 -> 0 | M46: Totaal | P46: =P44+P37 -> 0
A48: Berekend Bouwplafond excl. BTW | B48: =D33+D44 -> 0 | C48: 10/6 | D48: =ROUND((D33+D44)*10/6,2) -> 0 | E48: =ROUND(E33*10/6,2) -> 2095.85 | G48: Berekend Bouwplafond excl. BTW | H48: =J33+J44 -> 0 | I48: 10/6 | J48: =ROUND((J33+J44)*10/6,2) -> 0 | K48: =ROUND(K33*10/6,2) -> 0 | M48: Berekend Bouwplafond excl. BTW | N48: =P33+P44 -> 0 | O48: 10/6 | P48: =ROUND((P33+P44)*10/6,2) -> 0 | Q48: =ROUND(Q33*10/6,2) -> 0
A50: Samenvatting raming | G50: Samenvatting raming | M50: Samenvatting raming
A51: PF1 Ruwbouw | B51: =IF(MATCH(Bron!$B$8,'uitgebreide raming_gewijzigd'!$B$2:$I$2,0)=1,'uitgebreide raming_gewijzigd'!B6,IF(MATCH(Bron!$B$8,'uitgebreide raming_gewijzigd'!$B$2:$I$2,0)=3,'uitgebreide raming_gewijzigd'!D6,IF(MATCH(Bron!$B$8,'uitgebreide raming_gewijzigd'!$B$2:$I$2,0)=5,'uitgebreide raming_gewijzigd'!F6,IF(MATCH(Bron!$B$8,'uitgebreide raming_gewijzigd'!$B$2:$I$2,0)=7,'uitgebreide raming_gewijzigd'!H6,0)))) -> 0 | C51: =B51/B56 ->  | G51: PF1 Ruwbouw | H51: =IF(MATCH(Bron!$B$8,'uitgebreide raming_gewijzigd'!$B$29:$I$29,0)=1,'uitgebreide raming_gewijzigd'!B33,IF(MATCH(Bron!$B$8,'uitgebreide raming_gewijzigd'!$B$29:$I$29,0)=3,'uitgebreide raming_gewijzigd'!D33,IF(MATCH(Bron!$B$8,'uitgebreide raming_gewijzigd'!$B$29:$I$29,0)=5,'uitgebreide raming_gewijzigd'!F33,IF(MATCH(Bron!$B$8,'uitgebreide raming_gewijzigd'!$B$29:$I$29,0)=7,'uitgebreide raming_gewijzigd'!H33,0)))) ->  | I51: =H51/H56 ->  | M51: PF1 Ruwbouw | N51: =IF(MATCH(Bron!$B$8,'uitgebreide raming_gewijzigd'!$B$56:$I$56,0)=1,'uitgebreide raming'!B62,IF(MATCH(Bron!$B$8,'uitgebreide raming'!$B$58:$I$58,0)=3,'uitgebreide raming_gewijzigd'!D60,IF(MATCH(Bron!$B$8,'uitgebreide raming_gewijzigd'!$B$56:$I$56,0)=5,'uitgebreide raming_gewijzigd'!F60,IF(MATCH(Bron!$B$8,'uitgebreide raming_gewijzigd'!$B$56:$I$56,0)=7,'uitgebreide raming_gewijzigd'!H60,0)))) ->  | O51: =N51/N56 -> 
A52: PF2 Techn. Uitrusting | B52: =IF(MATCH(Bron!$B$8,'uitgebreide raming_gewijzigd'!$B$2:$I$2,0)=1,'uitgebreide raming_gewijzigd'!B7,IF(MATCH(Bron!$B$8,'uitgebreide raming_gewijzigd'!$B$2:$I$2,0)=3,'uitgebreide raming_gewijzigd'!D7,IF(MATCH(Bron!$B$8,'uitgebreide raming_gewijzigd'!$B$2:$I$2,0)=5,'uitgebreide raming_gewijzigd'!F7,IF(MATCH(Bron!$B$8,'uitgebreide raming_gewijzigd'!$B$2:$I$2,0)=7,'uitgebreide raming_gewijzigd'!H7,0)))) -> 0 | C52: =B52/B56 ->  | G52: PF2 Techn. Uitrusting | H52: =IF(MATCH(Bron!$B$8,'uitgebreide raming_gewijzigd'!$B$29:$I$29,0)=1,'uitgebreide raming_gewijzigd'!B34,IF(MATCH(Bron!$B$8,'uitgebreide raming_gewijzigd'!$B$29:$I$29,0)=3,'uitgebreide raming_gewijzigd'!D34,IF(MATCH(Bron!$B$8,'uitgebreide raming_gewijzigd'!$B$29:$I$29,0)=5,'uitgebreide raming_gewijzigd'!F34,IF(MATCH(Bron!$B$8,'uitgebreide raming_gewijzigd'!$B$29:$I$29,0)=7,'uitgebreide raming_gewijzigd'!H34,0)))) ->  | I52: =H52/H56 ->  | M52: PF2 Techn. Uitrusting | N52: =IF(MATCH(Bron!$B$8,'uitgebreide raming_gewijzigd'!$B$56:$I$56,0)=1,'uitgebreide raming'!B63,IF(MATCH(Bron!$B$8,'uitgebreide raming'!$B$58:$I$58,0)=3,'uitgebreide raming_gewijzigd'!D61,IF(MATCH(Bron!$B$8,'uitgebreide raming_gewijzigd'!$B$56:$I$56,0)=5,'uitgebreide raming_gewijzigd'!F61,IF(MATCH(Bron!$B$8,'uitgebreide raming_gewijzigd'!$B$56:$I$56,0)=7,'uitgebreide raming_gewijzigd'!H61,0)))) ->  | O52: =N52/N56 -> 
A53: PF3 Afwerking | B53: =IF(MATCH(Bron!$B$8,'uitgebreide raming_gewijzigd'!$B$2:$I$2,0)=1,'uitgebreide raming_gewijzigd'!B8,IF(MATCH(Bron!$B$8,'uitgebreide raming_gewijzigd'!$B$2:$I$2,0)=3,'uitgebreide raming_gewijzigd'!D8,IF(MATCH(Bron!$B$8,'uitgebreide raming_gewijzigd'!$B$2:$I$2,0)=5,'uitgebreide raming_gewijzigd'!F8,IF(MATCH(Bron!$B$8,'uitgebreide raming_gewijzigd'!$B$2:$I$2,0)=7,'uitgebreide raming_gewijzigd'!H8,0)))) -> 0 | C53: =B53/B56 ->  | G53: PF3 Afwerking | H53: =IF(MATCH(Bron!$B$8,'uitgebreide raming_gewijzigd'!$B$29:$I$29,0)=1,'uitgebreide raming_gewijzigd'!B35,IF(MATCH(Bron!$B$8,'uitgebreide raming_gewijzigd'!$B$29:$I$29,0)=3,'uitgebreide raming_gewijzigd'!D35,IF(MATCH(Bron!$B$8,'uitgebreide raming_gewijzigd'!$B$29:$I$29,0)=5,'uitgebreide raming_gewijzigd'!F35,IF(MATCH(Bron!$B$8,'uitgebreide raming_gewijzigd'!$B$29:$I$29,0)=7,'uitgebreide raming_gewijzigd'!H35,0)))) ->  | I53: =H53/H56 ->  | M53: PF3 Afwerking | N53: =IF(MATCH(Bron!$B$8,'uitgebreide raming_gewijzigd'!$B$56:$I$56,0)=1,'uitgebreide raming'!B64,IF(MATCH(Bron!$B$8,'uitgebreide raming'!$B$58:$I$58,0)=3,'uitgebreide raming_gewijzigd'!D62,IF(MATCH(Bron!$B$8,'uitgebreide raming_gewijzigd'!$B$56:$I$56,0)=5,'uitgebreide raming_gewijzigd'!F62,IF(MATCH(Bron!$B$8,'uitgebreide raming_gewijzigd'!$B$56:$I$56,0)=7,'uitgebreide raming_gewijzigd'!H62,0)))) ->  | O53: =N53/N56 -> 
A54: Subtotaal PF1-2-3 | B54: =IF(MATCH(Bron!$B$8,'uitgebreide raming_gewijzigd'!$B$2:$I$2,0)=1,'uitgebreide raming_gewijzigd'!B9,IF(MATCH(Bron!$B$8,'uitgebreide raming_gewijzigd'!$B$2:$I$2,0)=3,'uitgebreide raming_gewijzigd'!D9,IF(MATCH(Bron!$B$8,'uitgebreide raming_gewijzigd'!$B$2:$I$2,0)=5,'uitgebreide raming_gewijzigd'!F9,IF(MATCH(Bron!$B$8,'uitgebreide raming_gewijzigd'!$B$2:$I$2,0)=7,'uitgebreide raming_gewijzigd'!H9,0)))) -> 0 | C54: =B54/B56 ->  | G54: Subtotaal PF1-2-3 | H54: =IF(MATCH(Bron!$B$8,'uitgebreide raming_gewijzigd'!$B$29:$I$29,0)=1,'uitgebreide raming_gewijzigd'!B36,IF(MATCH(Bron!$B$8,'uitgebreide raming_gewijzigd'!$B$29:$I$29,0)=3,'uitgebreide raming_gewijzigd'!D36,IF(MATCH(Bron!$B$8,'uitgebreide raming_gewijzigd'!$B$29:$I$29,0)=5,'uitgebreide raming_gewijzigd'!F36,IF(MATCH(Bron!$B$8,'uitgebreide raming_gewijzigd'!$B$29:$I$29,0)=7,'uitgebreide raming_gewijzigd'!H36,0)))) ->  | I54: =H54/H56 ->  | M54: Subtotaal PF1-2-3 | N54: =IF(MATCH(Bron!$B$8,'uitgebreide raming_gewijzigd'!$B$56:$I$56,0)=1,'uitgebreide raming'!B65,IF(MATCH(Bron!$B$8,'uitgebreide raming'!$B$58:$I$58,0)=3,'uitgebreide raming_gewijzigd'!D63,IF(MATCH(Bron!$B$8,'uitgebreide raming_gewijzigd'!$B$56:$I$56,0)=5,'uitgebreide raming_gewijzigd'!F63,IF(MATCH(Bron!$B$8,'uitgebreide raming_gewijzigd'!$B$56:$I$56,0)=7,'uitgebreide raming_gewijzigd'!H63,0)))) ->  | O54: =N54/N56 -> 
A55: PF4 Losse uitrusting en meubilering | B55: =IF(MATCH(Bron!$B$8,'uitgebreide raming_gewijzigd'!$B$2:$I$2,0)=1,'uitgebreide raming_gewijzigd'!B10,IF(MATCH(Bron!$B$8,'uitgebreide raming_gewijzigd'!$B$2:$I$2,0)=3,'uitgebreide raming_gewijzigd'!D10,IF(MATCH(Bron!$B$8,'uitgebreide raming_gewijzigd'!$B$2:$I$2,0)=5,'uitgebreide raming_gewijzigd'!F10,IF(MATCH(Bron!$B$8,'uitgebreide raming_gewijzigd'!$B$2:$I$2,0)=7,'uitgebreide raming_gewijzigd'!H10,0)))) -> 0 | C55: =B55/B56 ->  | G55: PF4 Losse uitrusting en meubilering | H55: =IF(MATCH(Bron!$B$8,'uitgebreide raming_gewijzigd'!$B$29:$I$29,0)=1,'uitgebreide raming_gewijzigd'!B37,IF(MATCH(Bron!$B$8,'uitgebreide raming_gewijzigd'!$B$29:$I$29,0)=3,'uitgebreide raming_gewijzigd'!D37,IF(MATCH(Bron!$B$8,'uitgebreide raming_gewijzigd'!$B$29:$I$29,0)=5,'uitgebreide raming_gewijzigd'!F37,IF(MATCH(Bron!$B$8,'uitgebreide raming_gewijzigd'!$B$29:$I$29,0)=7,'uitgebreide raming_gewijzigd'!H37,0)))) ->  | I55: =H55/H56 ->  | M55: PF4 Losse uitrusting en meubilering | N55: =IF(MATCH(Bron!$B$8,'uitgebreide raming_gewijzigd'!$B$56:$I$56,0)=1,'uitgebreide raming'!B66,IF(MATCH(Bron!$B$8,'uitgebreide raming'!$B$58:$I$58,0)=3,'uitgebreide raming_gewijzigd'!D64,IF(MATCH(Bron!$B$8,'uitgebreide raming_gewijzigd'!$B$56:$I$56,0)=5,'uitgebreide raming_gewijzigd'!F64,IF(MATCH(Bron!$B$8,'uitgebreide raming_gewijzigd'!$B$56:$I$56,0)=7,'uitgebreide raming_gewijzigd'!H64,0)))) ->  | O55: =N55/N56 -> 
A56: Totaal | B56: =IF(MATCH(Bron!$B$8,'uitgebreide raming_gewijzigd'!$B$2:$I$2,0)=1,'uitgebreide raming_gewijzigd'!B11,IF(MATCH(Bron!$B$8,'uitgebreide raming_gewijzigd'!$B$2:$I$2,0)=3,'uitgebreide raming_gewijzigd'!D11,IF(MATCH(Bron!$B$8,'uitgebreide raming_gewijzigd'!$B$2:$I$2,0)=5,'uitgebreide raming_gewijzigd'!F11,IF(MATCH(Bron!$B$8,'uitgebreide raming_gewijzigd'!$B$2:$I$2,0)=7,'uitgebreide raming_gewijzigd'!H11,0)))) -> 0 | C56: =B56/B56 ->  | G56: Totaal | H56: =IF(MATCH(Bron!$B$8,'uitgebreide raming_gewijzigd'!$B$29:$I$29,0)=1,'uitgebreide raming_gewijzigd'!B38,IF(MATCH(Bron!$B$8,'uitgebreide raming_gewijzigd'!$B$29:$I$29,0)=3,'uitgebreide raming_gewijzigd'!D38,IF(MATCH(Bron!$B$8,'uitgebreide raming_gewijzigd'!$B$29:$I$29,0)=5,'uitgebreide raming_gewijzigd'!F38,IF(MATCH(Bron!$B$8,'uitgebreide raming_gewijzigd'!$B$29:$I$29,0)=7,'uitgebreide raming_gewijzigd'!H38,0)))) ->  | I56: =H56/H56 ->  | M56: Totaal | N56: =IF(MATCH(Bron!$B$8,'uitgebreide raming_gewijzigd'!$B$56:$I$56,0)=1,'uitgebreide raming'!B68,IF(MATCH(Bron!$B$8,'uitgebreide raming'!$B$58:$I$58,0)=3,'uitgebreide raming_gewijzigd'!D65,IF(MATCH(Bron!$B$8,'uitgebreide raming_gewijzigd'!$B$56:$I$56,0)=5,'uitgebreide raming_gewijzigd'!F65,IF(MATCH(Bron!$B$8,'uitgebreide raming_gewijzigd'!$B$56:$I$56,0)=7,'uitgebreide raming_gewijzigd'!H65,0)))) ->  | O56: =N56/N56 -> 
A58: Indexatie bevel van aanvang
A59: Zorgvorm | B59: ='Overzicht BTA'!$C$3 -> Algemeen ziekenhuis | G59: Zorgvorm | H59: ='Overzicht BTA'!$H$3 -> Kies de zorgvorm | M59: Zorgvorm | N59: ='Overzicht BTA'!$N$3 -> Kies de zorgvorm
A60: Nieuwbouw BTW 21% | G60: Nieuwbouw BTW 21% | M60: Nieuwbouw BTW 21%
A61: subs. opp (m²) | B61: basisbedrag | C61: index | D61: subsidiebedrag | E61: /m² | G61: subs. opp (m²) | H61: basisbedrag | I61: index | J61: subsidiebedrag | K61: /m² | M61: subs. opp (m²) | N61: basisbedrag | O61: index | P61: subsidiebedrag | Q61: /m²
A62: =A33 -> 0 | B62: =VLOOKUP(B59,'Capaciteiten & forfaits'!$B$3:$H$76,4,FALSE) -> 550 | C62: ='Overzicht BTA'!$D$33 -> 2.28638 | D62: =ROUND(A62*B62*C62,2) -> 0 | E62: =ROUND(B62*C62*1,2) -> 1257.51 | G62: =G33 -> 0 | H62: =VLOOKUP(H59,'Capaciteiten & forfaits'!$B$3:$H$76,4,FALSE) -> 0 | I62: ='Overzicht BTA'!$I$33 -> 2.28638 | J62: =ROUND(G62*H62*I62,2) -> 0 | K62: =ROUND(H62*I62*1,2) -> 0 | M62: =M33 -> 0 | N62: =VLOOKUP(N59,'Capaciteiten & forfaits'!$B$3:$H$76,4,FALSE) -> 0 | O62: ='Overzicht BTA'!$O$33 -> 2.28638 | P62: =ROUND(M62*N62*O62,2) -> 0 | Q62: =ROUND(N62*O62*1,2) -> 0
A63: Algemene Onkosten (A.O.) | C63: 0.1 | D63: =ROUND(D62*C63,2) -> 0 | G63: Algemene Onkosten (A.O.) | I63: 0.1 | J63: =ROUND(J62*I63,2) -> 0 | M63: Algemene Onkosten (A.O.) | O63: 0.1 | P63: =ROUND(P62*O63,2) -> 0
A64: BTW | B64: op nieuwbouw | C64: 0.21 | D64: =ROUND(D62*C64,2) -> 0 | G64: BTW | H64: op nieuwbouw | I64: 0.21 | J64: =ROUND(J62*I64,2) -> 0 | M64: BTW | N64: op nieuwbouw | O64: 0.21 | P64: =ROUND(P62*O64,2) -> 0
A65: BTW | B65: op A.O. | C65: 0.21 | D65: =ROUND(D63*C65,2) -> 0 | G65: BTW | H65: op A.O. | I65: 0.21 | J65: =ROUND(J63*I65,2) -> 0 | M65: BTW | N65: op A.O. | O65: 0.21 | P65: =ROUND(P63*O65,2) -> 0
A66: Totaal | D66: =SUM(D62:D65) -> 0 | G66: Totaal | J66: =SUM(J62:J65) -> 0 | M66: Totaal | P66: =SUM(P62:P65) -> 0
A68: Inrichting van de omgeving (revalidatieovereenkomsten) | G68: Inrichting van de omgeving (revalidatieovereenkomsten) | M68: Inrichting van de omgeving (revalidatieovereenkomsten)
A69: subs. opp (m²) | B69: basisbedrag | C69: index | D69: subsidiebedrag | E69: /m² | G69: subs. opp (m²) | H69: basisbedrag | I69: index | J69: subsidiebedrag | K69: /m² | M69: subs. opp (m²) | N69: basisbedrag | O69: index | P69: subsidiebedrag | Q69: /m²
A70: =A41 -> 0 | B70: =B41 -> 0 | C70: =C62 -> 2.28638 | D70: =ROUND(A70*B70*C70,2) -> 0 | E70: =ROUND(B70*C70*1,2) -> 0 | G70: =G41 -> 0 | H70: =H41 -> 0 | I70: =I62 -> 2.28638 | J70: =ROUND(G70*H70*I70,2) -> 0 | K70: =ROUND(H70*I70*1,2) -> 0 | M70: =M41 -> 0 | N70: =N41 -> 0 | O70: =O62 -> 2.28638 | P70: =ROUND(M70*N70*O70,2) -> 0 | Q70: =ROUND(N70*O70*1,2) -> 0
A71: raming omgevingswerken | B71: ='Bouwkost NB'!$E$51 -> 0 | C71: 0.6 | D71: =B71*C71 -> 0 | G71: raming omgevingswerken | H71: ='Bouwkost NB'!$E$51 -> 0 | I71: 0.6 | J71: =H71*I71 -> 0 | M71: raming omgevingswerken | N71: ='Bouwkost NB'!$E$51 -> 0 | O71: 0.6 | P71: =N71*O71 -> 0
A72: raming sporrtinfrastructuur | B72: ='Bouwkost NB'!$C$57 -> 0 | C72: 0.6 | D72: =B72*C72 -> 0 | G72: raming sporrtinfrastructuur | H72: ='Bouwkost NB'!$C$57 -> 0 | I72: 0.6 | J72: =H72*I72 -> 0 | M72: raming sporrtinfrastructuur | N72: ='Bouwkost NB'!$C$57 -> 0 | O72: 0.6 | P72: =N72*O72 -> 0
A73: weerhouden bedrag | D73: =MIN(D70,D71+D72) -> 0 | G73: weerhouden bedrag | J73: =MIN(J70,J71+J72) -> 0 | M73: weerhouden bedrag | P73: =MIN(P70,P71+P72) -> 0
A75: Totaal | D75: =D73+D66 -> 0 | G75: Totaal | J75: =J73+J66 -> 0 | M75: Totaal | P75: =P73+P66 -> 0
A77: Berekend Bouwplafond excl. BTW | B77: =D62+D73 -> 0 | C77: 10/6 | D77: =ROUND((D62+D73)*10/6,2) -> 0 | E77: =ROUND(E62*10/6,2) -> 2095.85 | G77: Berekend Bouwplafond excl. BTW | H77: =J62+J73 -> 0 | I77: 10/6 | J77: =ROUND((J62+J73)*10/6,2) -> 0 | K77: =ROUND(K62*10/6,2) -> 0 | M77: Berekend Bouwplafond excl. BTW | N77: =P62+P73 -> 0 | O77: 10/6 | P77: =ROUND((P62+P73)*10/6,2) -> 0 | Q77: =ROUND(Q62*10/6,2) -> 0

Sheet NB 6-12-21% (hidden)
A1: zorgvorm | B1: ='Overzicht BTA'!C3 -> Algemeen ziekenhuis | G1: zorgvorm | H1: ='Overzicht BTA'!H3 -> Kies de zorgvorm | M1: zorgvorm | N1: ='Overzicht BTA'!N3 -> Kies de zorgvorm
A2: Nieuwbouw 6-12-21% | G2: Nieuwbouw 6-12-21% | M2: Nieuwbouw 6-12-21%
A3: subs. opp (m²) | B3: basisbedrag | C3: index | E3: subsidiebedrag | G3: subs. opp (m²) | H3: basisbedrag | I3: index | K3: subsidiebedrag | M3: subs. opp (m²) | N3: basisbedrag | O3: index | Q3: subsidiebedrag
A4: =IF(ISNUMBER(MATCH(A2,'Overzicht BTA'!B7:B10,0)),MIN(VLOOKUP('Overzicht BTA'!#REF!,'Overzicht BTA'!B7:D10,3,FALSE),'Overzicht BTA'!#REF!),0) -> 0 | B4: =VLOOKUP(B1,'Capaciteiten & forfaits'!$B$3:$H$76,4,FALSE) -> 550 | C4: ='Overzicht BTA'!$D$31 -> 2.28638 | E4: =ROUND(A4*B4*C4,2) -> 0 | G4: =ROUND(IF(ISNUMBER(MATCH(G2,'Overzicht BTA'!H7:H10,0)),MIN(VLOOKUP('Overzicht BTA'!#REF!,'Overzicht BTA'!H7:J10,3,FALSE),'Overzicht BTA'!#REF!),0),2) -> 0 | H4: =VLOOKUP(H1,'Capaciteiten & forfaits'!$B$3:$H$76,4,FALSE) -> 0 | I4: ='Overzicht BTA'!$I$31 -> 2.28638 | K4: =ROUND(G4*H4*I4,2) -> 0 | M4: =ROUND(IF(ISNUMBER(MATCH(M2,'Overzicht BTA'!N7:N10,0)),MIN(VLOOKUP('Overzicht BTA'!#REF!,'Overzicht BTA'!N7:P10,3,FALSE),'Overzicht BTA'!#REF!),0),2) -> 0 | N4: =VLOOKUP(N1,'Capaciteiten & forfaits'!$B$3:$H$76,4,FALSE) -> 0 | O4: ='Overzicht BTA'!$O$31 -> 2.28638 | Q4: =ROUND(M4*N4*O4,2) -> 0
A5: Algemene Onkosten (A.O.) | C5: 0.1 | E5: =ROUND(E4*C5,2) -> 0 | G5: Algemene Onkosten (A.O.) | I5: 0.1 | K5: =ROUND(K4*I5,2) -> 0 | M5: Algemene Onkosten (A.O.) | O5: 0.1 | Q5: =ROUND(Q4*O5,2) -> 0
A6: BTW | B6: op werken | C6: ='Overzicht BTA'!#REF! ->  | D6: =IFERROR(C35,0) -> 0 | E6: =ROUND(E4*C6*D6,2) ->  | G6: BTW | H6: op werken | I6: ='Overzicht BTA'!#REF! ->  | J6: =IFERROR(I35,0) -> 0 | K6: =ROUND(K4*I6*J6,2) ->  | M6: BTW | N6: op werken | O6: ='Overzicht BTA'!#REF! ->  | P6: =IFERROR(O35,0) -> 0 | Q6: =ROUND(Q4*O6*P6,2) -> 
A7: BTW | B7: op uitrusting | C7: 0.21 | D7: =IFERROR(C36,0) -> 0 | E7: =ROUND(E4*C7*D7,2) -> 0 | G7: BTW | H7: op uitrusting | I7: 0.21 | J7: =IFERROR(I36,0) -> 0 | K7: =ROUND(K4*I7*J7,2) -> 0 | M7: BTW | N7: op uitrusting | O7: 0.21 | P7: =IFERROR(O36,0) -> 0 | Q7: =ROUND(Q4*O7*P7,2) -> 0
A8: BTW | B8: op A.O. | C8: 0.21 | E8: =ROUND(E5*C8,2) -> 0 | G8: BTW | H8: op A.O. | I8: 0.21 | K8: =ROUND(K5*I8,2) -> 0 | M8: BTW | N8: op A.O. | O8: 0.21 | Q8: =ROUND(Q5*O8,2) -> 0
A9: Totaal | E9: =SUM(E4:E8) ->  | G9: Totaal | K9: =SUM(K4:K8) ->  | M9: Totaal | Q9: =SUM(Q4:Q8) -> 
A10: Nieuwbouw 6-12-21% | G10: Nieuwbouw 6-12-21% | M10: Nieuwbouw 6-12-21%
A11: subs. opp (m²) | B11: basisbedrag | C11: index | E11: subsidiebedrag | G11: subs. opp (m²) | H11: basisbedrag | I11: index | K11: subsidiebedrag | M11: subs. opp (m²) | N11: basisbedrag | O11: index | Q11: subsidiebedrag
A12: =IFERROR(ROUND(MAX(VLOOKUP('Overzicht BTA'!#REF!,'Overzicht BTA'!B7:D10,3,FALSE)-A4,0),2),0) -> 0 | B12: =VLOOKUP(B1,'Capaciteiten & forfaits'!$B$3:$H$76,4,FALSE) -> 550 | C12: =C4 -> 2.28638 | E12: =ROUND(A12*B12*C12,2) -> 0 | G12: =ROUND(MAX(VLOOKUP('Overzicht BTA'!#REF!,'Overzicht BTA'!H7:J10,3)-G4,0),2) ->  | H12: =VLOOKUP(H1,'Capaciteiten & forfaits'!$B$3:$H$76,4,FALSE) -> 0 | I12: =I4 -> 2.28638 | K12: =ROUND(G12*H12*I12,2) ->  | M12: =ROUND(MAX(VLOOKUP('Overzicht BTA'!#REF!,'Overzicht BTA'!N7:P10,3)-M4,0),2) ->  | N12: =VLOOKUP(N1,'Capaciteiten & forfaits'!$B$3:$H$76,4,FALSE) -> 0 | O12: =O4 -> 2.28638 | Q12: =ROUND(M12*N12*O12,2) -> 
A13: Algemene Onkosten (A.O.) | C13: 0.1 | E13: =ROUND(E12*C13,2) -> 0 | G13: Algemene Onkosten (A.O.) | I13: 0.1 | K13: =ROUND(K12*I13,2) ->  | M13: Algemene Onkosten (A.O.) | O13: 0.1 | Q13: =ROUND(Q12*O13,2) -> 
A14: BTW | B14: op werken | C14: ='Overzicht BTA'!#REF! ->  | D14: =IFERROR(C35,0) -> 0 | E14: =ROUND(E12*C14*D14,2) ->  | G14: BTW | H14: op werken | I14: ='Overzicht BTA'!#REF! ->  | J14: =IFERROR(I35,0) -> 0 | K14: =ROUND(K12*I14*J14,2) ->  | M14: BTW | N14: op werken | O14: ='Overzicht BTA'!#REF! ->  | P14: =IFERROR(O35,0) -> 0 | Q14: =ROUND(Q12*O14*P14,2) -> 
A15: BTW | B15: op uitrusting | C15: 0.21 | D15: =IFERROR(C36,0) -> 0 | E15: =ROUND(E12*C15*D15,2) -> 0 | G15: BTW | H15: op uitrusting | I15: 0.21 | J15: =IFERROR(I36,0) -> 0 | K15: =ROUND(K12*I15*J15,2) ->  | M15: BTW | N15: op uitrusting | O15: 0.21 | P15: =IFERROR(O36,0) -> 0 | Q15: =ROUND(Q12*O15*P15,2) -> 
A16: BTW | B16: op A.O. | C16: 0.21 | E16: =ROUND(E13*C16,2) -> 0 | G16: BTW | H16: op A.O. | I16: 0.21 | K16: =ROUND(K13*I16,2) ->  | M16: BTW | N16: op A.O. | O16: 0.21 | Q16: =ROUND(Q13*O16,2) -> 
A17: Totaal | E17: =SUM(E12:E16) ->  | G17: Totaal | K17: =SUM(K12:K16) ->  | M17: Totaal | Q17: =SUM(Q12:Q16) -> 
A18: Totaal | E18: =E17+E9 ->  | G18: Algemeen Totaal | K18: =K9+K17 ->  | M18: Algemeen Totaal | Q18: =Q9+Q17 -> 
A20: Inrichting van de omgeving en sportinfrastructuur (revalidatieovereenkomsten) | G20: Inrichting van de omgeving en sportinfrastructuur (revalidatieovereenkomsten) | M20: Inrichting van de omgeving en sportinfrastructuur (revalidatieovereenkomsten)
A21: subs. opp (m²) | B21: basisbedrag | C21: index | E21: subsidiebedrag | G21: subs. opp (m²) | H21: basisbedrag | I21: index | K21: subsidiebedrag | M21: subs. opp (m²) | N21: basisbedrag | O21: index | Q21: subsidiebedrag
A22: =MIN($A$4,'Bouwkost NB'!$C$90) -> 0 | B22: =IF($B$1=Bron!$E$40,55,0) -> 0 | C22: =$C$4 -> 2.28638 | E22: =ROUND(A22*B22*C22,2) -> 0 | G22: =MIN($G$4,'Bouwkost NB'!$C$90) -> 0 | H22: =IF($H$1=Bron!$E$40,55,0) -> 0 | I22: =$C$4 -> 2.28638 | K22: =ROUND(G22*H22*I22,2) -> 0 | M22: =MIN($M$4,'Bouwkost NB'!$C$90) -> 0 | N22: =IF($N$1=Bron!$E$40,55,0) -> 0 | O22: =$C$4 -> 2.28638 | Q22: =ROUND(M22*N22*O22,2) -> 0
A23: raming omgevingswerken | B23: ='Bouwkost NB'!$C$51 -> 0 | C23: 0.6 | E23: =B23*C23 -> 0 | G23: raming omgevingswerken | H23: ='Bouwkost NB'!$N$51 -> 0 | I23: 0.6 | K23: =H23*I23 -> 0 | M23: raming omgevingswerken | N23: ='Bouwkost NB'!$Y$51 -> 0 | O23: 0.6 | Q23: =N23*O23 -> 0
A24: raming sportinfrastructuur | B24: ='Bouwkost NB'!$C$57 -> 0 | C24: 0.6 | E24: =B24*C24 -> 0 | G24: raming sportinfrastructuur | H24: ='Bouwkost NB'!$N$57 -> 0 | I24: 0.6 | K24: =H24*I24 -> 0 | M24: raming sportinfrastructuur | N24: ='Bouwkost NB'!$Y$57 -> 0 | O24: 0.6 | Q24: =N24*O24 -> 0
A25: weerhouden bedrag | E25: =MIN(E22,(E23+E24)) -> 0 | G25: weerhouden bedrag | K25: =MIN(K22,(K23+K24)) -> 0 | M25: weerhouden bedrag | Q25: =MIN(Q22,(Q23+Q24)) -> 0
A27: Algemeen Totaal | E27: =E25+E17+E9 ->  | G27: Totaal | K27: =K25+K17+K9 ->  | M27: Totaal | Q27: =Q25+Q17+Q9 -> 
A29: Berekend Bouwplafond excl. BTW | C29: =E4+E12+E25 -> 0 | D29: 10/6 | E29: =C29*10/6 -> 0 | G29: Berekend Bouwplafond excl. BTW | I29: =K4+K12+K25 ->  | J29: 10/6 | K29: =I29*10/6 ->  | M29: Berekend Bouwplafond excl. BTW | O29: =Q4+Q12+Q25 ->  | P29: 10/6 | Q29: =O29*10/6 -> 
A31: Samenvatting raming | G31: Samenvatting raming | M31: Samenvatting raming
A32: PF1 Ruwbouw | B32: =IF('Overzicht BTA'!#REF!=0,0,IF(MATCH(Bron!$B$9,'uitgebreide raming'!$B$2:$I$2,0)=1,'uitgebreide raming'!$B6,IF(MATCH(Bron!$B$9,'uitgebreide raming'!$B$2:$I$2,0)=3,'uitgebreide raming'!$D6,IF(MATCH(Bron!$B$9,'uitgebreide raming'!$B$2:$I$2,0)=5,'uitgebreide raming'!$F6,IF(MATCH(Bron!$B$9,'uitgebreide raming'!$B$2:$I$2,0)=7,'uitgebreide raming'!$H6,0))))) ->  | C32: =ROUND(B32/$B$37,2) ->  | G32: PF1 Ruwbouw | H32: =IF('Overzicht BTA'!#REF!=0,0,IF(MATCH(Bron!$B$9,'uitgebreide raming'!$B$30:$I$30,0)=1,'uitgebreide raming'!B34,IF(MATCH(Bron!$B$9,'uitgebreide raming'!$B$30:$I$30,0)=3,'uitgebreide raming'!D34,IF(MATCH(Bron!$B$9,'uitgebreide raming'!$B$30:$I$30,0)=5,'uitgebreide raming'!F34,IF(MATCH(Bron!$B$9,'uitgebreide raming'!$B$30:$I$30,0)=7,'uitgebreide raming'!H34,0))))) ->  | I32: =ROUND(H32/$H$37,2) ->  | M32: PF1 Ruwbouw | N32: =IF('Overzicht BTA'!#REF!=0,0,IF(MATCH(Bron!$B$9,'uitgebreide raming'!$B$58:$I$58,0)=1,'uitgebreide raming'!B62,IF(MATCH(Bron!$B$9,'uitgebreide raming'!$B$58:$I$58,0)=3,'uitgebreide raming'!D62,IF(MATCH(Bron!$B$9,'uitgebreide raming'!$B$58:$I$58,0)=5,'uitgebreide raming'!F62,IF(MATCH(Bron!$B$9,'uitgebreide raming'!$B$58:$I$58,0)=7,'uitgebreide raming'!H62,0))))) ->  | O32: =ROUND(N32/$N$37,2) -> 
A33: PF2 Techn. Uitrusting | B33: =IF('Overzicht BTA'!#REF!=0,0,IF(MATCH(Bron!$B$9,'uitgebreide raming'!$B$2:$I$2,0)=1,'uitgebreide raming'!$B7,IF(MATCH(Bron!$B$9,'uitgebreide raming'!$B$2:$I$2,0)=3,'uitgebreide raming'!$D7,IF(MATCH(Bron!$B$9,'uitgebreide raming'!$B$2:$I$2,0)=5,'uitgebreide raming'!$F7,IF(MATCH(Bron!$B$9,'uitgebreide raming'!$B$2:$I$2,0)=7,'uitgebreide raming'!$H7,0))))) ->  | C33: =ROUND(B33/$B$37,2) ->  | G33: PF2 Techn. Uitrusting | H33: =IF('Overzicht BTA'!#REF!=0,0,IF(MATCH(Bron!$B$9,'uitgebreide raming'!$B$30:$I$30,0)=1,'uitgebreide raming'!B35,IF(MATCH(Bron!$B$9,'uitgebreide raming'!$B$30:$I$30,0)=3,'uitgebreide raming'!D35,IF(MATCH(Bron!$B$9,'uitgebreide raming'!$B$30:$I$30,0)=5,'uitgebreide raming'!F35,IF(MATCH(Bron!$B$9,'uitgebreide raming'!$B$30:$I$30,0)=7,'uitgebreide raming'!H35,0))))) ->  | I33: =ROUND(H33/$H$37,2) ->  | M33: PF2 Techn. Uitrusting | N33: =IF('Overzicht BTA'!#REF!=0,0,IF(MATCH(Bron!$B$9,'uitgebreide raming'!$B$58:$I$58,0)=1,'uitgebreide raming'!B63,IF(MATCH(Bron!$B$9,'uitgebreide raming'!$B$58:$I$58,0)=3,'uitgebreide raming'!D63,IF(MATCH(Bron!$B$9,'uitgebreide raming'!$B$58:$I$58,0)=5,'uitgebreide raming'!F63,IF(MATCH(Bron!$B$9,'uitgebreide raming'!$B$58:$I$58,0)=7,'uitgebreide raming'!H63,0))))) ->  | O33: =ROUND(N33/$N$37,2) -> 
A34: PF3 Afwerking | B34: =IF('Overzicht BTA'!#REF!=0,0,IF(MATCH(Bron!$B$9,'uitgebreide raming'!$B$2:$I$2,0)=1,'uitgebreide raming'!$B8,IF(MATCH(Bron!$B$9,'uitgebreide raming'!$B$2:$I$2,0)=3,'uitgebreide raming'!$D8,IF(MATCH(Bron!$B$9,'uitgebreide raming'!$B$2:$I$2,0)=5,'uitgebreide raming'!$F8,IF(MATCH(Bron!$B$9,'uitgebreide raming'!$B$2:$I$2,0)=7,'uitgebreide raming'!$H8,0))))) ->  | G34: PF3 Afwerking | H34: =IF('Overzicht BTA'!#REF!=0,0,IF(MATCH(Bron!$B$9,'uitgebreide raming'!$B$30:$I$30,0)=1,'uitgebreide raming'!B36,IF(MATCH(Bron!$B$9,'uitgebreide raming'!$B$30:$I$30,0)=3,'uitgebreide raming'!D36,IF(MATCH(Bron!$B$9,'uitgebreide raming'!$B$30:$I$30,0)=5,'uitgebreide raming'!F36,IF(MATCH(Bron!$B$9,'uitgebreide raming'!$B$30:$I$30,0)=7,'uitgebreide raming'!H36,0))))) ->  | M34: PF3 Afwerking | N34: =IF('Overzicht BTA'!#REF!=0,0,IF(MATCH(Bron!$B$9,'uitgebreide raming'!$B$58:$I$58,0)=1,'uitgebreide raming'!B64,IF(MATCH(Bron!$B$9,'uitgebreide raming'!$B$58:$I$58,0)=3,'uitgebreide raming'!D64,IF(MATCH(Bron!$B$9,'uitgebreide raming'!$B$58:$I$58,0)=5,'uitgebreide raming'!F64,IF(MATCH(Bron!$B$9,'uitgebreide raming'!$B$58:$I$58,0)=7,'uitgebreide raming'!H64,0))))) -> 
A35: Subtotaal PF1-2-3 | B35: =IF('Overzicht BTA'!#REF!=0,0,IF(MATCH(Bron!$B$9,'uitgebreide raming'!$B$2:$I$2,0)=1,'uitgebreide raming'!$B9,IF(MATCH(Bron!$B$9,'uitgebreide raming'!$B$2:$I$2,0)=3,'uitgebreide raming'!$D9,IF(MATCH(Bron!$B$9,'uitgebreide raming'!$B$2:$I$2,0)=5,'uitgebreide raming'!$F9,IF(MATCH(Bron!$B$9,'uitgebreide raming'!$B$2:$I$2,0)=7,'uitgebreide raming'!$H9,0))))) ->  | G35: Subtotaal PF1-2-3 | H35: =IF('Overzicht BTA'!#REF!=0,0,IF(MATCH(Bron!$B$9,'uitgebreide raming'!$B$30:$I$30,0)=1,'uitgebreide raming'!B37,IF(MATCH(Bron!$B$9,'uitgebreide raming'!$B$30:$I$30,0)=3,'uitgebreide raming'!D37,IF(MATCH(Bron!$B$9,'uitgebreide raming'!$B$30:$I$30,0)=5,'uitgebreide raming'!F37,IF(MATCH(Bron!$B$9,'uitgebreide raming'!$B$30:$I$30,0)=7,'uitgebreide raming'!H37,0))))) ->  | M35: Subtotaal PF1-2-3 | N35: =IF('Overzicht BTA'!#REF!=0,0,IF(MATCH(Bron!$B$9,'uitgebreide raming'!$B$58:$I$58,0)=1,'uitgebreide raming'!B65,IF(MATCH(Bron!$B$9,'uitgebreide raming'!$B$58:$I$58,0)=3,'uitgebreide raming'!D65,IF(MATCH(Bron!$B$9,'uitgebreide raming'!$B$58:$I$58,0)=5,'uitgebreide raming'!F65,IF(MATCH(Bron!$B$9,'uitgebreide raming'!$B$58:$I$58,0)=7,'uitgebreide raming'!H65,0))))) -> 
A36: PF4 Losse uitrusting en meubilering | B36: =IF('Overzicht BTA'!#REF!=0,0,IF(MATCH(Bron!$B$9,'uitgebreide raming'!$B$2:$I$2,0)=1,'uitgebreide raming'!$B10,IF(MATCH(Bron!$B$9,'uitgebreide raming'!$B$2:$I$2,0)=3,'uitgebreide raming'!$D10,IF(MATCH(Bron!$B$9,'uitgebreide raming'!$B$2:$I$2,0)=5,'uitgebreide raming'!$F10,IF(MATCH(Bron!$B$9,'uitgebreide raming'!$B$2:$I$2,0)=7,'uitgebreide raming'!$H10,0))))) ->  | G36: PF4 Losse uitrusting en meubilering | H36: =IF('Overzicht BTA'!#REF!=0,0,IF(MATCH(Bron!$B$9,'uitgebreide raming'!$B$30:$I$30,0)=1,'uitgebreide raming'!B38,IF(MATCH(Bron!$B$9,'uitgebreide raming'!$B$30:$I$30,0)=3,'uitgebreide raming'!D38,IF(MATCH(Bron!$B$9,'uitgebreide raming'!$B$30:$I$30,0)=5,'uitgebreide raming'!F38,IF(MATCH(Bron!$B$9,'uitgebreide raming'!$B$30:$I$30,0)=7,'uitgebreide raming'!H38,0))))) ->  | M36: PF4 Losse uitrusting en meubilering | N36: =IF('Overzicht BTA'!#REF!=0,0,IF(MATCH(Bron!$B$9,'uitgebreide raming'!$B$58:$I$58,0)=1,'uitgebreide raming'!B66,IF(MATCH(Bron!$B$9,'uitgebreide raming'!$B$58:$I$58,0)=3,'uitgebreide raming'!D66,IF(MATCH(Bron!$B$9,'uitgebreide raming'!$B$58:$I$58,0)=5,'uitgebreide raming'!F66,IF(MATCH(Bron!$B$9,'uitgebreide raming'!$B$58:$I$58,0)=7,'uitgebreide raming'!H66,0))))) -> 
A37: Totaal | B37: =IF('Overzicht BTA'!#REF!=0,0,IF(MATCH(Bron!$B$9,'uitgebreide raming'!$B$2:$I$2,0)=1,'uitgebreide raming'!$B12,IF(MATCH(Bron!$B$9,'uitgebreide raming'!$B$2:$I$2,0)=3,'uitgebreide raming'!$D12,IF(MATCH(Bron!$B$9,'uitgebreide raming'!$B$2:$I$2,0)=5,'uitgebreide raming'!$F12,IF(MATCH(Bron!$B$9,'uitgebreide raming'!$B$2:$I$2,0)=7,'uitgebreide raming'!$H12,0))))) ->  | G37: Totaal | H37: =IF('Overzicht BTA'!#REF!=0,0,IF(MATCH(Bron!$B$9,'uitgebreide raming'!$B$30:$I$30,0)=1,'uitgebreide raming'!B40,IF(MATCH(Bron!$B$9,'uitgebreide raming'!$B$30:$I$30,0)=3,'uitgebreide raming'!D40,IF(MATCH(Bron!$B$9,'uitgebreide raming'!$B$30:$I$30,0)=5,'uitgebreide raming'!F40,IF(MATCH(Bron!$B$9,'uitgebreide raming'!$B$30:$I$30,0)=7,'uitgebreide raming'!H40,0))))) ->  | M37: Totaal | N37: =IF('Overzicht BTA'!#REF!=0,0,IF(MATCH(Bron!$B$9,'uitgebreide raming'!$B$58:$I$58,0)=1,'uitgebreide raming'!B68,IF(MATCH(Bron!$B$9,'uitgebreide raming'!$B$58:$I$58,0)=3,'uitgebreide raming'!D68,IF(MATCH(Bron!$B$9,'uitgebreide raming'!$B$58:$I$58,0)=5,'uitgebreide raming'!F68,IF(MATCH(Bron!$B$9,'uitgebreide raming'!$B$58:$I$58,0)=7,'uitgebreide raming'!H68,0))))) -> 
A39: Wijziging belofte
A40: zorgvorm | B40: =B1 -> Algemeen ziekenhuis | G40: zorgvorm | H40: =H1 -> Kies de zorgvorm | M40: zorgvorm | N40: =N1 -> Kies de zorgvorm
A41: Nieuwbouw 6-12-21% | G41: Nieuwbouw 6-12-21% | M41: Nieuwbouw 6-12-21%
A42: subs. opp (m²) | B42: basisbedrag | C42: index | E42: subsidiebedrag | G42: subs. opp (m²) | H42: basisbedrag | I42: index | K42: subsidiebedrag | M42: subs. opp (m²) | N42: basisbedrag | O42: index | Q42: subsidiebedrag
A43: =ROUND(IF(ISNUMBER(MATCH(A41,'Overzicht BTA'!B42:B45,0)),MIN(VLOOKUP('Overzicht BTA'!#REF!,'Overzicht BTA'!B42:D45,3,FALSE),'Overzicht BTA'!#REF!),0),2) -> 0 | B43: =VLOOKUP(B40,'Capaciteiten & forfaits'!$B$3:$H$76,4,FALSE) -> 550 | C43: ='Overzicht BTA'!$D$32 -> 2.28638 | E43: =ROUND(A43*B43*C43,2) -> 0 | G43: =ROUND(IF(ISNUMBER(MATCH(G41,'Overzicht BTA'!H42:H45,0)),MIN(VLOOKUP('Overzicht BTA'!#REF!,'Overzicht BTA'!H42:J45,3,FALSE),'Overzicht BTA'!#REF!),0),2) -> 0 | H43: =VLOOKUP(H40,'Capaciteiten & forfaits'!$B$3:$H$76,4,FALSE) -> 0 | I43: ='Overzicht BTA'!$I$32 -> 2.28638 | K43: =ROUND(G43*H43*I43,2) -> 0 | M43: =ROUND(IF(ISNUMBER(MATCH(M41,'Overzicht BTA'!N42:N45,0)),MIN(VLOOKUP('Overzicht BTA'!#REF!,'Overzicht BTA'!N42:P45,3,FALSE),'Overzicht BTA'!#REF!),0),2) -> 0 | N43: =VLOOKUP(N40,'Capaciteiten & forfaits'!$B$3:$H$76,4,FALSE) -> 0 | O43: ='Overzicht BTA'!$O$32 -> 2.28638 | Q43: =ROUND(M43*N43*O43,2) -> 0
A44: Algemene Onkosten (A.O.) | C44: 0.1 | E44: =ROUND(E43*C44,2) -> 0 | G44: Algemene Onkosten (A.O.) | I44: 0.1 | K44: =ROUND(K43*I44,2) -> 0 | M44: Algemene Onkosten (A.O.) | O44: 0.1 | Q44: =ROUND(Q43*O44,2) -> 0
A45: BTW | B45: op werken | C45: ='Overzicht BTA'!#REF! ->  | D45: =IFERROR(C74,0) -> 0 | E45: =ROUND(E43*C45*D45,2) ->  | G45: BTW | H45: op werken | I45: ='Overzicht BTA'!#REF! ->  | J45: =IFERROR(I74,0) -> 0 | K45: =ROUND(K43*I45*J45,2) ->  | M45: BTW | N45: op werken | O45: ='Overzicht BTA'!#REF! ->  | P45: =IFERROR(O74,0) -> 0 | Q45: =ROUND(Q43*O45*P45,2) -> 
A46: BTW | B46: op uitrusting | C46: 0.21 | D46: =IFERROR(C75,0) -> 0 | E46: =ROUND(E43*C46*D46,2) -> 0 | G46: BTW | H46: op uitrusting | I46: 0.21 | J46: =IFERROR(I75,0) -> 0 | K46: =ROUND(K43*I46*J46,2) -> 0 | M46: BTW | N46: op uitrusting | O46: 0.21 | P46: =IFERROR(O75,0) -> 0 | Q46: =ROUND(Q43*O46*P46,2) -> 0
A47: BTW | B47: op A.O. | C47: 0.21 | E47: =ROUND(E44*C47,2) -> 0 | G47: BTW | H47: op A.O. | I47: 0.21 | K47: =ROUND(K44*I47,2) -> 0 | M47: BTW | N47: op A.O. | O47: 0.21 | Q47: =ROUND(Q44*O47,2) -> 0
A48: Totaal | E48: =SUM(E43:E47) ->  | G48: Totaal | K48: =SUM(K43:K47) ->  | M48: Totaal | Q48: =SUM(Q43:Q47) -> 
A49: Nieuwbouw 6-12-21% | G49: Nieuwbouw 6-12-21% | M49: Nieuwbouw 6-12-21%
A50: subs. opp (m²) | B50: basisbedrag | C50: index | E50: subsidiebedrag | G50: subs. opp (m²) | H50: basisbedrag | I50: index | K50: subsidiebedrag | M50: subs. opp (m²) | N50: basisbedrag | O50: index | Q50: subsidiebedrag
A51: =IFERROR(ROUND(MAX(VLOOKUP('Overzicht BTA'!#REF!,'Overzicht BTA'!B42:D45,3,FALSE)-A43,0),2),0) -> 0 | B51: =VLOOKUP(B40,'Capaciteiten & forfaits'!$B$3:$H$76,4,FALSE) -> 550 | C51: ='Overzicht BTA'!$O$32 -> 2.28638 | E51: =ROUND(A51*B51*C51,2) -> 0 | G51: =ROUND(MAX(VLOOKUP('Overzicht BTA'!#REF!,'Overzicht BTA'!H42:J45,3)-G43,0),2) ->  | H51: =VLOOKUP(H40,'Capaciteiten & forfaits'!$B$3:$H$76,4,FALSE) -> 0 | I51: ='Overzicht BTA'!$O$32 -> 2.28638 | K51: =ROUND(G51*H51*I51,2) ->  | M51: =ROUND(MAX(VLOOKUP('Overzicht BTA'!#REF!,'Overzicht BTA'!N42:P45,3)-M43,0),2) ->  | N51: =VLOOKUP(N40,'Capaciteiten & forfaits'!$B$3:$H$76,4,FALSE) -> 0 | O51: ='Overzicht BTA'!$O$32 -> 2.28638 | Q51: =ROUND(M51*N51*O51,2) -> 
A52: Algemene Onkosten (A.O.) | C52: 0.1 | E52: =ROUND(E51*C52,2) -> 0 | G52: Algemene Onkosten (A.O.) | I52: 0.1 | K52: =ROUND(K51*I52,2) ->  | M52: Algemene Onkosten (A.O.) | O52: 0.1 | Q52: =ROUND(Q51*O52,2) -> 
A53: BTW | B53: op werken | C53: ='Overzicht BTA'!#REF! ->  | D53: =IFERROR(C74,0) -> 0 | E53: =ROUND(E51*C53*D53,2) ->  | G53: BTW | H53: op werken | I53: ='Overzicht BTA'!#REF! ->  | J53: =IFERROR(I74,0) -> 0 | K53: =ROUND(K51*I53*J53,2) ->  | M53: BTW | N53: op werken | O53: ='Overzicht BTA'!#REF! ->  | P53: =IFERROR(O74,0) -> 0 | Q53: =ROUND(Q51*O53*P53,2) -> 
A54: BTW | B54: op uitrusting | C54: 0.21 | D54: =IFERROR(C75,0) -> 0 | E54: =ROUND(E51*C54*D54,2) -> 0 | G54: BTW | H54: op uitrusting | I54: 0.21 | J54: =IFERROR(I75,0) -> 0 | K54: =ROUND(K51*I54*J54,2) ->  | M54: BTW | N54: op uitrusting | O54: 0.21 | P54: =IFERROR(O75,0) -> 0 | Q54: =ROUND(Q51*O54*P54,2) -> 
A55: BTW | B55: op A.O. | C55: 0.21 | E55: =ROUND(E52*C55,2) -> 0 | G55: BTW | H55: op A.O. | I55: 0.21 | K55: =ROUND(K52*I55,2) ->  | M55: BTW | N55: op A.O. | O55: 0.21 | Q55: =ROUND(Q52*O55,2) -> 
A56: Totaal | E56: =SUM(E51:E55) ->  | G56: Totaal | K56: =SUM(K51:K55) ->  | M56: Totaal | Q56: =SUM(Q51:Q55) -> 
A57: Totaal | E57: =E56+E48 ->  | G57: Totaal | K57: =K48+K56 ->  | M57: Totaal | Q57: =Q48+Q56 -> 
A59: Inrichting van de omgeving en sportinfrastructuur (revalidatieovereenkomsten) | G59: Inrichting van de omgeving en sportinfrastructuur (revalidatieovereenkomsten) | M59: Inrichting van de omgeving en sportinfrastructuur (revalidatieovereenkomsten)
A60: subs. opp (m²) | B60: basisbedrag | C60: index | E60: subsidiebedrag | G60: subs. opp (m²) | H60: basisbedrag | I60: index | K60: subsidiebedrag | M60: subs. opp (m²) | N60: basisbedrag | O60: index | Q60: subsidiebedrag
A61: =MIN($A$4,'Bouwkost NB'!$E$90) -> 0 | B61: =IF(B40=Bron!$E$40,55,0) -> 0 | C61: =C43 -> 2.28638 | E61: =ROUND(A61*B61*C61,2) -> 0 | G61: =MIN($G$4,'Bouwkost NB'!$N$90) -> 0 | H61: =IF(H40=Bron!$E$40,55,0) -> 0 | I61: =I43 -> 2.28638 | K61: =ROUND(G61*H61*I61,2) -> 0 | M61: =MIN($M$4,'Bouwkost NB'!$Y$90) -> 0 | N61: =IF(N40=Bron!$E$40,55,0) -> 0 | O61: =O43 -> 2.28638 | Q61: =ROUND(M61*N61*O61,2) -> 0
A62: raming omgevingswerken | B62: ='Bouwkost NB'!$E$51 -> 0 | C62: 0.6 | E62: =B62*C62 -> 0 | G62: raming omgevingswerken | H62: ='Bouwkost NB'!$N$51 -> 0 | I62: 0.6 | K62: =H62*I62 -> 0 | M62: raming omgevingswerken | N62: ='Bouwkost NB'!$Y$51 -> 0 | O62: 0.6 | Q62: =N62*O62 -> 0
A63: raming sportinfrastructuur | B63: ='Bouwkost NB'!$C$57 -> 0 | C63: 0.6 | E63: =B63*C63 -> 0 | G63: raming sportinfrastructuur | H63: ='Bouwkost NB'!$N$57 -> 0 | I63: 0.6 | K63: =H63*I63 -> 0 | M63: raming sportinfrastructuur | N63: ='Bouwkost NB'!$Y$57 -> 0 | O63: 0.6 | Q63: =N63*O63 -> 0
A64: weerhouden bedrag | E64: =MIN(E61,(E62+E63)) -> 0 | G64: weerhouden bedrag | K64: =MIN(K61,(K62+K63)) -> 0 | M64: weerhouden bedrag | Q64: =MIN(Q61,(Q62+Q63)) -> 0
A66: Algemeen Totaal | E66: =E64+E56+E48 ->  | G66: Algemeen Totaal | K66: =K64+K56+K48 ->  | M66: Algemeen Totaal | Q66: =Q64+Q56+Q48 -> 
A68: Berekend Bouwplafond excl. BTW | C68: =E43+E51+E64 -> 0 | D68: 10/6 | E68: =C68*10/6 -> 0 | G68: Berekend Bouwplafond excl. BTW | I68: =K43+K51+K64 ->  | J68: 10/6 | K68: =I68*10/6 ->  | M68: Berekend Bouwplafond excl. BTW | O68: =Q43+Q51+Q64 ->  | P68: 10/6 | Q68: =O68*10/6 -> 
A70: Samenvatting raming | G70: Samenvatting raming | M70: Samenvatting raming
A71: PF1 Ruwbouw | B71: =IF('Overzicht BTA'!#REF!=0,0,IF(MATCH(Bron!$B$9,'uitgebreide raming_gewijzigd'!$B$2:$I$2,0)=1,'uitgebreide raming_gewijzigd'!$B6,IF(MATCH(Bron!$B$9,'uitgebreide raming_gewijzigd'!$B$2:$I$2,0)=3,'uitgebreide raming_gewijzigd'!$D6,IF(MATCH(Bron!$B$9,'uitgebreide raming_gewijzigd'!$B$2:$I$2,0)=5,'uitgebreide raming_gewijzigd'!$F6,IF(MATCH(Bron!$B$9,'uitgebreide raming_gewijzigd'!$B$2:$I$2,0)=7,'uitgebreide raming_gewijzigd'!$H6,0))))) ->  | C71: =ROUND(B71/$B$76,2) ->  | G71: PF1 Ruwbouw | H71: =IF('Overzicht BTA'!#REF!=0,0,IF(MATCH(Bron!$B$9,'uitgebreide raming_gewijzigd'!$B$29:$I$29,0)=1,'uitgebreide raming_gewijzigd'!B33,IF(MATCH(Bron!$B$9,'uitgebreide raming_gewijzigd'!$B$29:$I$29,0)=3,'uitgebreide raming_gewijzigd'!D33,IF(MATCH(Bron!$B$9,'uitgebreide raming_gewijzigd'!$B$29:$I$29,0)=5,'uitgebreide raming_gewijzigd'!F33,IF(MATCH(Bron!$B$9,'uitgebreide raming_gewijzigd'!$B$29:$I$29,0)=7,'uitgebreide raming_gewijzigd'!H33,0))))) ->  | I71: =ROUND(H71/$H$76,2) ->  | M71: PF1 Ruwbouw | N71: =IF('Overzicht BTA'!#REF!=0,0,IF(MATCH(Bron!$B$9,'uitgebreide raming_gewijzigd'!$B$56:$I$56,0)=1,'uitgebreide raming_gewijzigd'!B60,IF(MATCH(Bron!$B$9,'uitgebreide raming_gewijzigd'!$B$56:$I$56,0)=3,'uitgebreide raming_gewijzigd'!D60,IF(MATCH(Bron!$B$9,'uitgebreide raming_gewijzigd'!$B$56:$I$56,0)=5,'uitgebreide raming_gewijzigd'!F60,IF(MATCH(Bron!$B$9,'uitgebreide raming_gewijzigd'!$B$56:$I$56,0)=7,'uitgebreide raming_gewijzigd'!H60,0))))) ->  | O71: =ROUND(N71/$N$76,2) -> 
A72: PF2 Techn. Uitrusting | B72: =IF('Overzicht BTA'!#REF!=0,0,IF(MATCH(Bron!$B$9,'uitgebreide raming_gewijzigd'!$B$2:$I$2,0)=1,'uitgebreide raming_gewijzigd'!$B7,IF(MATCH(Bron!$B$9,'uitgebreide raming_gewijzigd'!$B$2:$I$2,0)=3,'uitgebreide raming_gewijzigd'!$D7,IF(MATCH(Bron!$B$9,'uitgebreide raming_gewijzigd'!$B$2:$I$2,0)=5,'uitgebreide raming_gewijzigd'!$F7,IF(MATCH(Bron!$B$9,'uitgebreide raming_gewijzigd'!$B$2:$I$2,0)=7,'uitgebreide raming_gewijzigd'!$H7,0))))) ->  | C72: =ROUND(B72/$B$76,2) ->  | G72: PF2 Techn. Uitrusting | H72: =IF('Overzicht BTA'!#REF!=0,0,IF(MATCH(Bron!$B$9,'uitgebreide raming_gewijzigd'!$B$29:$I$29,0)=1,'uitgebreide raming_gewijzigd'!B34,IF(MATCH(Bron!$B$9,'uitgebreide raming_gewijzigd'!$B$29:$I$29,0)=3,'uitgebreide raming_gewijzigd'!D34,IF(MATCH(Bron!$B$9,'uitgebreide raming_gewijzigd'!$B$29:$I$29,0)=5,'uitgebreide raming_gewijzigd'!F34,IF(MATCH(Bron!$B$9,'uitgebreide raming_gewijzigd'!$B$29:$I$29,0)=7,'uitgebreide raming_gewijzigd'!H34,0))))) ->  | I72: =ROUND(H72/$H$76,2) ->  | M72: PF2 Techn. Uitrusting | N72: =IF('Overzicht BTA'!#REF!=0,0,IF(MATCH(Bron!$B$9,'uitgebreide raming_gewijzigd'!$B$56:$I$56,0)=1,'uitgebreide raming_gewijzigd'!B61,IF(MATCH(Bron!$B$9,'uitgebreide raming_gewijzigd'!$B$56:$I$56,0)=3,'uitgebreide raming_gewijzigd'!D61,IF(MATCH(Bron!$B$9,'uitgebreide raming_gewijzigd'!$B$56:$I$56,0)=5,'uitgebreide raming_gewijzigd'!F61,IF(MATCH(Bron!$B$9,'uitgebreide raming_gewijzigd'!$B$56:$I$56,0)=7,'uitgebreide raming_gewijzigd'!H61,0))))) ->  | O72: =ROUND(N72/$N$76,2) -> 
A73: PF3 Afwerking | B73: =IF('Overzicht BTA'!#REF!=0,0,IF(MATCH(Bron!$B$9,'uitgebreide raming_gewijzigd'!$B$2:$I$2,0)=1,'uitgebreide raming_gewijzigd'!$B8,IF(MATCH(Bron!$B$9,'uitgebreide raming_gewijzigd'!$B$2:$I$2,0)=3,'uitgebreide raming_gewijzigd'!$D8,IF(MATCH(Bron!$B$9,'uitgebreide raming_gewijzigd'!$B$2:$I$2,0)=5,'uitgebreide raming_gewijzigd'!$F8,IF(MATCH(Bron!$B$9,'uitgebreide raming_gewijzigd'!$B$2:$I$2,0)=7,'uitgebreide raming_gewijzigd'!$H8,0))))) ->  | G73: PF3 Afwerking | H73: =IF('Overzicht BTA'!#REF!=0,0,IF(MATCH(Bron!$B$9,'uitgebreide raming_gewijzigd'!$B$29:$I$29,0)=1,'uitgebreide raming_gewijzigd'!B35,IF(MATCH(Bron!$B$9,'uitgebreide raming_gewijzigd'!$B$29:$I$29,0)=3,'uitgebreide raming_gewijzigd'!D35,IF(MATCH(Bron!$B$9,'uitgebreide raming_gewijzigd'!$B$29:$I$29,0)=5,'uitgebreide raming_gewijzigd'!F35,IF(MATCH(Bron!$B$9,'uitgebreide raming_gewijzigd'!$B$29:$I$29,0)=7,'uitgebreide raming_gewijzigd'!H35,0))))) ->  | M73: PF3 Afwerking | N73: =IF('Overzicht BTA'!#REF!=0,0,IF(MATCH(Bron!$B$9,'uitgebreide raming_gewijzigd'!$B$56:$I$56,0)=1,'uitgebreide raming_gewijzigd'!B62,IF(MATCH(Bron!$B$9,'uitgebreide raming_gewijzigd'!$B$56:$I$56,0)=3,'uitgebreide raming_gewijzigd'!D62,IF(MATCH(Bron!$B$9,'uitgebreide raming_gewijzigd'!$B$56:$I$56,0)=5,'uitgebreide raming_gewijzigd'!F62,IF(MATCH(Bron!$B$9,'uitgebreide raming_gewijzigd'!$B$56:$I$56,0)=7,'uitgebreide raming_gewijzigd'!H62,0))))) -> 
A74: Subtotaal PF1-2-3 | B74: =IF('Overzicht BTA'!#REF!=0,0,IF(MATCH(Bron!$B$9,'uitgebreide raming_gewijzigd'!$B$2:$I$2,0)=1,'uitgebreide raming_gewijzigd'!$B9,IF(MATCH(Bron!$B$9,'uitgebreide raming_gewijzigd'!$B$2:$I$2,0)=3,'uitgebreide raming_gewijzigd'!$D9,IF(MATCH(Bron!$B$9,'uitgebreide raming_gewijzigd'!$B$2:$I$2,0)=5,'uitgebreide raming_gewijzigd'!$F9,IF(MATCH(Bron!$B$9,'uitgebreide raming_gewijzigd'!$B$2:$I$2,0)=7,'uitgebreide raming_gewijzigd'!$H9,0))))) ->  | G74: Subtotaal PF1-2-3 | H74: =IF('Overzicht BTA'!#REF!=0,0,IF(MATCH(Bron!$B$9,'uitgebreide raming_gewijzigd'!$B$29:$I$29,0)=1,'uitgebreide raming_gewijzigd'!B36,IF(MATCH(Bron!$B$9,'uitgebreide raming_gewijzigd'!$B$29:$I$29,0)=3,'uitgebreide raming_gewijzigd'!D36,IF(MATCH(Bron!$B$9,'uitgebreide raming_gewijzigd'!$B$29:$I$29,0)=5,'uitgebreide raming_gewijzigd'!F36,IF(MATCH(Bron!$B$9,'uitgebreide raming_gewijzigd'!$B$29:$I$29,0)=7,'uitgebreide raming_gewijzigd'!H36,0))))) ->  | M74: Subtotaal PF1-2-3 | N74: =IF('Overzicht BTA'!#REF!=0,0,IF(MATCH(Bron!$B$9,'uitgebreide raming_gewijzigd'!$B$56:$I$56,0)=1,'uitgebreide raming_gewijzigd'!B63,IF(MATCH(Bron!$B$9,'uitgebreide raming_gewijzigd'!$B$56:$I$56,0)=3,'uitgebreide raming_gewijzigd'!D63,IF(MATCH(Bron!$B$9,'uitgebreide raming_gewijzigd'!$B$56:$I$56,0)=5,'uitgebreide raming_gewijzigd'!F63,IF(MATCH(Bron!$B$9,'uitgebreide raming_gewijzigd'!$B$56:$I$56,0)=7,'uitgebreide raming_gewijzigd'!H63,0))))) -> 
A75: PF4 Losse uitrusting en meubilering | B75: =IF('Overzicht BTA'!#REF!=0,0,IF(MATCH(Bron!$B$9,'uitgebreide raming_gewijzigd'!$B$2:$I$2,0)=1,'uitgebreide raming_gewijzigd'!$B10,IF(MATCH(Bron!$B$9,'uitgebreide raming_gewijzigd'!$B$2:$I$2,0)=3,'uitgebreide raming_gewijzigd'!$D10,IF(MATCH(Bron!$B$9,'uitgebreide raming_gewijzigd'!$B$2:$I$2,0)=5,'uitgebreide raming_gewijzigd'!$F10,IF(MATCH(Bron!$B$9,'uitgebreide raming_gewijzigd'!$B$2:$I$2,0)=7,'uitgebreide raming_gewijzigd'!$H10,0))))) ->  | G75: PF4 Losse uitrusting en meubilering | H75: =IF('Overzicht BTA'!#REF!=0,0,IF(MATCH(Bron!$B$9,'uitgebreide raming_gewijzigd'!$B$29:$I$29,0)=1,'uitgebreide raming_gewijzigd'!B37,IF(MATCH(Bron!$B$9,'uitgebreide raming_gewijzigd'!$B$29:$I$29,0)=3,'uitgebreide raming_gewijzigd'!D37,IF(MATCH(Bron!$B$9,'uitgebreide raming_gewijzigd'!$B$29:$I$29,0)=5,'uitgebreide raming_gewijzigd'!F37,IF(MATCH(Bron!$B$9,'uitgebreide raming_gewijzigd'!$B$29:$I$29,0)=7,'uitgebreide raming_gewijzigd'!H37,0))))) ->  | M75: PF4 Losse uitrusting en meubilering | N75: =IF('Overzicht BTA'!#REF!=0,0,IF(MATCH(Bron!$B$9,'uitgebreide raming_gewijzigd'!$B$56:$I$56,0)=1,'uitgebreide raming_gewijzigd'!B64,IF(MATCH(Bron!$B$9,'uitgebreide raming_gewijzigd'!$B$56:$I$56,0)=3,'uitgebreide raming_gewijzigd'!D64,IF(MATCH(Bron!$B$9,'uitgebreide raming_gewijzigd'!$B$56:$I$56,0)=5,'uitgebreide raming_gewijzigd'!F64,IF(MATCH(Bron!$B$9,'uitgebreide raming_gewijzigd'!$B$56:$I$56,0)=7,'uitgebreide raming_gewijzigd'!H64,0))))) -> 
A76: Totaal | B76: =IF('Overzicht BTA'!#REF!=0,0,IF(MATCH(Bron!$B$9,'uitgebreide raming_gewijzigd'!$B$2:$I$2,0)=1,'uitgebreide raming_gewijzigd'!$B11,IF(MATCH(Bron!$B$9,'uitgebreide raming_gewijzigd'!$B$2:$I$2,0)=3,'uitgebreide raming_gewijzigd'!$D11,IF(MATCH(Bron!$B$9,'uitgebreide raming_gewijzigd'!$B$2:$I$2,0)=5,'uitgebreide raming_gewijzigd'!$F11,IF(MATCH(Bron!$B$9,'uitgebreide raming_gewijzigd'!$B$2:$I$2,0)=7,'uitgebreide raming_gewijzigd'!$H11,0))))) ->  | G76: Totaal | H76: =IF('Overzicht BTA'!#REF!=0,0,IF(MATCH(Bron!$B$9,'uitgebreide raming_gewijzigd'!$B$29:$I$29,0)=1,'uitgebreide raming_gewijzigd'!B38,IF(MATCH(Bron!$B$9,'uitgebreide raming_gewijzigd'!$B$29:$I$29,0)=3,'uitgebreide raming_gewijzigd'!D38,IF(MATCH(Bron!$B$9,'uitgebreide raming_gewijzigd'!$B$29:$I$29,0)=5,'uitgebreide raming_gewijzigd'!F38,IF(MATCH(Bron!$B$9,'uitgebreide raming_gewijzigd'!$B$29:$I$29,0)=7,'uitgebreide raming_gewijzigd'!H38,0))))) ->  | M76: Totaal | N76: =IF('Overzicht BTA'!#REF!=0,0,IF(MATCH(Bron!$B$9,'uitgebreide raming_gewijzigd'!$B$56:$I$56,0)=1,'uitgebreide raming_gewijzigd'!B65,IF(MATCH(Bron!$B$9,'uitgebreide raming_gewijzigd'!$B$56:$I$56,0)=3,'uitgebreide raming_gewijzigd'!D65,IF(MATCH(Bron!$B$9,'uitgebreide raming_gewijzigd'!$B$56:$I$56,0)=5,'uitgebreide raming_gewijzigd'!F65,IF(MATCH(Bron!$B$9,'uitgebreide raming_gewijzigd'!$B$56:$I$56,0)=7,'uitgebreide raming_gewijzigd'!H65,0))))) -> 
A78: Indexatie bevel van aanvang
A79: zorgvorm | B79: =B40 -> Algemeen ziekenhuis | G79: zorgvorm | H79: =H40 -> Kies de zorgvorm | M79: zorgvorm | N79: =N40 -> Kies de zorgvorm
A80: Nieuwbouw 6-12-21% | G80: Nieuwbouw 6-12-21% | M80: Nieuwbouw 6-12-21%
A81: subs. opp (m²) | B81: basisbedrag | C81: index | E81: subsidiebedrag | G81: subs. opp (m²) | H81: basisbedrag | I81: index | K81: subsidiebedrag | M81: subs. opp (m²) | N81: basisbedrag | O81: index | Q81: subsidiebedrag
A82: =A43 -> 0 | B82: =VLOOKUP(B79,'Capaciteiten & forfaits'!$B$3:$H$76,4,FALSE) -> 550 | C82: ='Overzicht BTA'!$D$33 -> 2.28638 | E82: =ROUND(A82*B82*C82,2) -> 0 | G82: =G43 -> 0 | H82: =VLOOKUP(H79,'Capaciteiten & forfaits'!$B$3:$H$76,4,FALSE) -> 0 | I82: ='Overzicht BTA'!$D$33 -> 2.28638 | K82: =ROUND(G82*H82*I82,2) -> 0 | M82: =M43 -> 0 | N82: =VLOOKUP(N79,'Capaciteiten & forfaits'!$B$3:$H$76,4,FALSE) -> 0 | O82: ='Overzicht BTA'!$D$33 -> 2.28638 | Q82: =ROUND(M82*N82*O82,2) -> 0
A83: Algemene Onkosten (A.O.) | C83: 0.1 | E83: =ROUND(E82*C83,2) -> 0 | G83: Algemene Onkosten (A.O.) | I83: 0.1 | K83: =ROUND(K82*I83,2) -> 0 | M83: Algemene Onkosten (A.O.) | O83: 0.1 | Q83: =ROUND(Q82*O83,2) -> 0
A84: BTW | B84: op werken | C84: =C45 ->  | D84: =D53 -> 0 | E84: =ROUND(E82*C84*D84,2) ->  | G84: BTW | H84: op werken | I84: =I45 ->  | J84: =J53 -> 0 | K84: =ROUND(K82*I84*J84,2) ->  | M84: BTW | N84: op werken | O84: =O45 ->  | P84: =P53 -> 0 | Q84: =ROUND(Q82*O84*P84,2) -> 
A85: BTW | B85: op uitrusting | C85: 0.21 | D85: =D54 -> 0 | E85: =ROUND(E82*C85*D85,2) -> 0 | G85: BTW | H85: op uitrusting | I85: 0.21 | J85: =J54 -> 0 | K85: =ROUND(K82*I85*J85,2) -> 0 | M85: BTW | N85: op uitrusting | O85: 0.21 | P85: =P54 -> 0 | Q85: =ROUND(Q82*O85*P85,2) -> 0
A86: BTW | B86: op A.O. | C86: 0.21 | E86: =ROUND(E83*C86,2) -> 0 | G86: BTW | H86: op A.O. | I86: 0.21 | K86: =ROUND(K83*I86,2) -> 0 | M86: BTW | N86: op A.O. | O86: 0.21 | Q86: =ROUND(Q83*O86,2) -> 0
A87: Totaal | E87: =SUM(E82:E86) ->  | G87: Totaal | K87: =SUM(K82:K86) ->  | M87: Totaal | Q87: =SUM(Q82:Q86) -> 
A88: Nieuwbouw 6-12-21% | G88: Nieuwbouw 6-12-21% | M88: Nieuwbouw 6-12-21%
A89: subs. opp (m²) | B89: basisbedrag | C89: index | E89: subsidiebedrag | G89: subs. opp (m²) | H89: basisbedrag | I89: index | K89: subsidiebedrag | M89: subs. opp (m²) | N89: basisbedrag | O89: index | Q89: subsidiebedrag
A90: =A51 -> 0 | B90: =VLOOKUP(B79,'Capaciteiten & forfaits'!$B$3:$H$76,4,FALSE) -> 550 | C90: ='Overzicht BTA'!$D$33 -> 2.28638 | E90: =ROUND(A90*B90*C90,2) -> 0 | G90: =G51 ->  | H90: =VLOOKUP(H79,'Capaciteiten & forfaits'!$B$3:$H$76,4,FALSE) -> 0 | I90: ='Overzicht BTA'!$D$33 -> 2.28638 | K90: =ROUND(G90*H90*I90,2) ->  | M90: =M51 ->  | N90: =VLOOKUP(N79,'Capaciteiten & forfaits'!$B$3:$H$76,4,FALSE) -> 0 | O90: ='Overzicht BTA'!$D$33 -> 2.28638 | Q90: =ROUND(M90*N90*O90,2) -> 
A91: Algemene Onkosten (A.O.) | C91: 0.1 | E91: =ROUND(E90*C91,2) -> 0 | G91: Algemene Onkosten (A.O.) | I91: 0.1 | K91: =ROUND(K90*I91,2) ->  | M91: Algemene Onkosten (A.O.) | O91: 0.1 | Q91: =ROUND(Q90*O91,2) -> 
A92: BTW | B92: op werken | C92: =C53 ->  | D92: =D84 -> 0 | E92: =ROUND(E90*C92*D92,2) ->  | G92: BTW | H92: op werken | I92: =I53 ->  | J92: =J84 -> 0 | K92: =ROUND(K90*I92*J92,2) ->  | M92: BTW | N92: op werken | O92: =O53 ->  | P92: =P84 -> 0 | Q92: =ROUND(Q90*O92*P92,2) -> 
A93: BTW | B93: op uitrusting | C93: 0.21 | D93: =D85 -> 0 | E93: =ROUND(E90*C93*D93,2) -> 0 | G93: BTW | H93: op uitrusting | I93: 0.21 | J93: =J85 -> 0 | K93: =ROUND(K90*I93*J93,2) ->  | M93: BTW | N93: op uitrusting | O93: 0.21 | P93: =P85 -> 0 | Q93: =ROUND(Q90*O93*P93,2) -> 
A94: BTW | B94: op A.O. | C94: 0.21 | E94: =ROUND(E91*C94,2) -> 0 | G94: BTW | H94: op A.O. | I94: 0.21 | K94: =ROUND(K91*I94,2) ->  | M94: BTW | N94: op A.O. | O94: 0.21 | Q94: =ROUND(Q91*O94,2) -> 
A95: Totaal | E95: =SUM(E90:E94) ->  | G95: Totaal | K95: =SUM(K90:K94) ->  | M95: Totaal | Q95: =SUM(Q90:Q94) -> 
A96: Totaal | E96: =E95+E87 ->  | G96: Totaal | K96: =K87+K95 ->  | M96: Totaal | Q96: =Q87+Q95 -> 
A98: Inrichting van de omgeving en sportinfrastructuur (revalidatieovereenkomsten) | G98: Inrichting van de omgeving en sportinfrastructuur (revalidatieovereenkomsten) | M98: Inrichting van de omgeving en sportinfrastructuur (revalidatieovereenkomsten)
A99: subs. opp (m²) | B99: basisbedrag | C99: index | E99: subsidiebedrag | G99: subs. opp (m²) | H99: basisbedrag | I99: index | K99: subsidiebedrag | M99: subs. opp (m²) | N99: basisbedrag | O99: index | Q99: subsidiebedrag
A100: =A61 -> 0 | B100: =IF(B79=Bron!$E$40,55,0) -> 0 | C100: =C90 -> 2.28638 | E100: =ROUND(A100*B100*C100,2) -> 0 | G100: =G61 -> 0 | H100: =IF(H89=Bron!$E$40,55,0) -> 0 | I100: =I90 -> 2.28638 | K100: =ROUND(G100*H100*I100,2) -> 0 | M100: =M61 -> 0 | N100: =IF(N89=Bron!$E$40,55,0) -> 0 | O100: =O90 -> 2.28638 | Q100: =ROUND(M100*N100*O100,2) -> 0
A101: raming omgevingswerken | B101: ='Bouwkost NB'!$E$51 -> 0 | C101: 0.6 | E101: =B101*C101 -> 0 | G101: raming omgevingswerken | H101: ='Bouwkost NB'!$N$51 -> 0 | I101: 0.6 | K101: =H101*I101 -> 0 | M101: raming omgevingswerken | N101: ='Bouwkost NB'!$Y$51 -> 0 | O101: 0.6 | Q101: =N101*O101 -> 0
A102: raming sportinfrastructuur | B102: ='Bouwkost NB'!$C$57 -> 0 | C102: 0.6 | E102: =B102*C102 -> 0 | G102: raming sportinfrastructuur | H102: ='Bouwkost NB'!$N$57 -> 0 | I102: 0.6 | K102: =H102*I102 -> 0 | M102: raming sportinfrastructuur | N102: ='Bouwkost NB'!$Y$57 -> 0 | O102: 0.6 | Q102: =N102*O102 -> 0
A103: weerhouden bedrag | E103: =MIN(E100,(E101+E102)) -> 0 | G103: weerhouden bedrag | K103: =MIN(K100,(K101+K102)) -> 0 | M103: weerhouden bedrag | Q103: =MIN(Q100,(Q101+Q102)) -> 0
A105: Algemeen Totaal | E105: =E103+E95+E87 ->  | G105: Algemeen Totaal | K105: =K103+K95+K87 ->  | M105: Algemeen Totaal | Q105: =Q103+Q95+Q87 -> 
A107: Berekend Bouwplafond excl. BTW | C107: =E82+E90+E103 -> 0 | D107: 10/6 | E107: =C107*10/6 -> 0 | G107: Berekend Bouwplafond excl. BTW | I107: =K82+K90+K103 ->  | J107: 10/6 | K107: =I107*10/6 ->  | M107: Berekend Bouwplafond excl. BTW | O107: =Q82+Q90+Q103 ->  | P107: 10/6 | Q107: =O107*10/6 -> 

Sheet NB 21% light (hidden)
A1: Zorgvorm | B1: ='Overzicht BTA'!C3 -> Algemeen ziekenhuis | G1: Zorgvorm | H1: ='Overzicht BTA'!H3 -> Kies de zorgvorm | M1: Zorgvorm | N1: ='Overzicht BTA'!N3 -> Kies de zorgvorm
A2: =IF(B2=TRUE," Nieuwbouw light 21%","Uitbreiding light 21%") -> Uitbreiding light 21% | B2: FALSE | C2: FALSE | G2: =IF(H2=TRUE," Nieuwbouw light 21%","Uitbreiding light 21%") -> Uitbreiding light 21% | H2: FALSE | I2: FALSE | M2: =IF(N2=TRUE," Nieuwbouw light 21%","Uitbreiding light 21%") -> Uitbreiding light 21% | N2: FALSE
A3: Onroerend (forfaitair) | G3: Onroerend (forfaitair) | M3: Onroerend (forfaitair) | T3: =550*0.65 -> 357.5
A4: subs. opp (m²) | B4: basisbedrag | C4: index | D4: subsidiebedrag | E4: /m² | G4: subs. opp (m²) | H4: basisbedrag | I4: index | J4: subsidiebedrag | K4: /m² | M4: subs. opp (m²) | N4: basisbedrag | O4: index | P4: subsidiebedrag | Q4: /m² | T4: =T3-B5 -> 82.5
A5: =IF(ISNUMBER(MATCH(A2,'Overzicht BTA'!B7:B10,0)),IF(MATCH(Bron!$B$13,'Overzicht BTA'!$B$7:$B$10,0)=1,'Overzicht BTA'!$D$7,IF(MATCH(Bron!$B$13,'Overzicht BTA'!$B$7:$B$10,0)=2,'Overzicht BTA'!$D$8,IF(MATCH(Bron!$B$13,'Overzicht BTA'!$B$7:$B$10,0)=3,'Overzicht BTA'!$D$9,IF(MATCH(Bron!$B$13,'Overzicht BTA'!$B$7:$B$10,0)=4,'Overzicht BTA'!$D$10,0)))),0) -> 0 | B5: =IF(B2=TRUE,VLOOKUP(B1,'Capaciteiten & forfaits'!$B$3:$H$76,4,FALSE)*0.65,(VLOOKUP(B1,'Capaciteiten & forfaits'!$B$3:$H$76,4,FALSE)-50)*0.55) -> 275 | C5: ='Overzicht BTA'!$D$31 -> 2.28638 | D5: =ROUND(A5*B5*C5,2) -> 0 | E5: =ROUND(B5*C5*1,2) -> 628.75 | G5: =IF(ISNUMBER(MATCH(G2,'Overzicht BTA'!H7:H10,0)),IF(MATCH(Bron!$B$13,'Overzicht BTA'!$H$7:$H$10,0)=1,'Overzicht BTA'!$J$7,IF(MATCH(Bron!$B$13,'Overzicht BTA'!$H$7:$H$10,0)=2,'Overzicht BTA'!$J$8,IF(MATCH(Bron!$B$13,'Overzicht BTA'!$H$7:$H$10,0)=3,'Overzicht BTA'!$J$9,IF(MATCH(Bron!$B$13,'Overzicht BTA'!$H$7:$H$10,0)=4,'Overzicht BTA'!$J$10,0)))),0) -> 0 | H5: =VLOOKUP(H1,'Capaciteiten & forfaits'!$B$3:$H$76,4,FALSE)*0.65 -> 0 | I5: ='Overzicht BTA'!$I$31 -> 2.28638 | J5: =ROUND(G5*H5*I5,2) -> 0 | K5: =ROUND(H5*I5*1,2) -> 0 | M5: =IF(ISNUMBER(MATCH(M2,'Overzicht BTA'!N7:N10,0)),IF('Overzicht BTA'!P13=0,0,IF(MATCH(Bron!$B$13,'Overzicht BTA'!$N$7:$N$10,0)=1,'Overzicht BTA'!$P$7,IF(MATCH(Bron!$B$13,'Overzicht BTA'!$N$7:$N$10,0)=2,'Overzicht BTA'!$P$8,IF(MATCH(Bron!$B$13,'Overzicht BTA'!$N$7:$N$10,0)=3,'Overzicht BTA'!$P$9,IF(MATCH(Bron!$B$13,'Overzicht BTA'!$N$7:$N$10,0)=4,'Overzicht BTA'!$P$10,0))))),0) -> 0 | N5: =VLOOKUP(N1,'Capaciteiten & forfaits'!$B$3:$H$76,4,FALSE)*0.65 -> 0 | O5: ='Overzicht BTA'!$O$31 -> 2.28638 | P5: =ROUND(M5*N5*O5,2) -> 0 | Q5: =ROUND(N5*O5*1,2) -> 0
A6: Algemene Onkosten (A.O.) | C6: 0.1 | D6: =ROUND(D5*C6,2) -> 0 | G6: Algemene Onkosten (A.O.) | I6: 0.1 | J6: =ROUND(J5*I6,2) -> 0 | M6: Algemene Onkosten (A.O.) | O6: 0.1 | P6: =ROUND(P5*O6,2) -> 0
A7: BTW | B7: op nieuwbouw | C7: 0.21 | D7: =ROUND(D5*C7,2) -> 0 | G7: BTW | H7: op nieuwbouw | I7: 0.21 | J7: =ROUND(J5*I7,2) -> 0 | M7: BTW | N7: op nieuwbouw | O7: 0.21 | P7: =ROUND(P5*O7,2) -> 0
A8: BTW | B8: op A.O. | C8: 0.21 | D8: =ROUND(D6*C8,2) -> 0 | G8: BTW | H8: op A.O. | I8: 0.21 | J8: =ROUND(J6*I8,2) -> 0 | M8: BTW | N8: op A.O. | O8: 0.21 | P8: =ROUND(P6*O8,2) -> 0
A9: Totaal | D9: =SUM(D5:D8) -> 0 | G9: Totaal | J9: =SUM(J5:J8) -> 0 | M9: Totaal | P9: =SUM(P5:P8) -> 0
A11: Roerend (op basis van de raming) | G11: Roerend (op basis van de raming) | M11: Roerend (op basis van de raming)
A12: Subsidieplafond | B12: basisbedrag | C12: index | D12: subsidiebedrag | G12: Subsidieplafond | H12: basisbedrag | I12: index | J12: subsidiebedrag | M12: Subsidieplafond | N12: basisbedrag | O12: index | P12: subsidiebedrag
A13: =IF(C1=TRUE,A5,0) -> 0 | B13: =IF(B2=TRUE,0,VLOOKUP(B1,'Capaciteiten & forfaits'!$B$3:$H$76,4,FALSE)*0.1) -> 55 | C13: 2,28638 | D13: =ROUND(A13*B13*C13,2) -> 0 | G13: =IF(I1=TRUE,G5,0) -> 0 | H13: 32.5 | I13: 2,28638 | J13: =ROUND(G13*H13*I13,2) -> 0 | M13: =IF(O1=TRUE,M5,0) -> 0 | N13: 32.5 | O13: 2,28638 | P13: =ROUND(M13*N13*O13,2) -> 0
A14: raming PF4 | B14: =IF($B$2=TRUE, "nvt", B38) -> 0 | C14: 0.6 | D14: =IFERROR(ROUND(B14*C14,2),"nvt") -> 0 | G14: raming PF4 | H14: =IF($H$2=TRUE, "nvt", H38) -> 0 | I14: 0.6 | J14: =IFERROR(ROUND(H14*I14,2),"nvt") -> 0 | M14: raming PF4 | N14: =IF($N$2=TRUE, "nvt", N38) -> 0 | O14: 0.6 | P14: =IFERROR(ROUND(N14*O14,2),"nvt") -> 0
A15: weerhouden bedrag | D15: =IF($B$2=TRUE,D13,MIN(D13,D14)) -> 0 | G15: weerhouden bedrag | J15: =IF($H$2=TRUE,J13,MIN(J13,J14)) -> 0 | M15: weerhouden bedrag | P15: =IF($N$2=TRUE,P13,MIN(P13,P14)) -> 0
A16: Algemene kosten | C16: 0.1 | D16: =ROUND(D15*C16,2) -> 0 | G16: Algemene kosten | I16: 0.1 | J16: =ROUND(J15*I16,2) -> 0 | M16: Algemene kosten | O16: 0.1 | P16: =ROUND(P15*O16,2) -> 0
A17: BTW | B17: uitrusting | C17: 0.21 | D17: =ROUND(D15*C17,2) -> 0 | G17: BTW | H17: uitrusting | I17: 0.21 | J17: =ROUND(J15*I17,2) -> 0 | M17: BTW | N17: uitrusting | O17: 0.21 | P17: =ROUND(P15*O17,2) -> 0
A18: BTW | B18: A.O. | C18: 0.21 | D18: =ROUND(D16*C18,2) -> 0 | G18: BTW | H18: A.O. | I18: 0.21 | J18: =ROUND(J16*I18,2) -> 0 | M18: BTW | N18: A.O. | O18: 0.21 | P18: =ROUND(P16*O18,2) -> 0
A19: Totaal | D19: =SUM(D16:D18)+D15 -> 0 | G19: Totaal | J19: =SUM(J16:J18)+J15 -> 0 | M19: Totaal | P19: =SUM(P16:P18)+P15 -> 0
A21: Inrichting van de omgeving en sportinfrastructuur (revalidatieovereenkomsten) | G21: Inrichting van de omgeving (revalidatieovereenkomsten) | M21: Inrichting van de omgeving (revalidatieovereenkomsten)
A22: subs. opp (m²) | B22: basisbedrag | C22: index | D22: subsidiebedrag | E22: /m² | G22: subs. opp (m²) | H22: basisbedrag | I22: index | J22: subsidiebedrag | K22: /m² | M22: subs. opp (m²) | N22: basisbedrag | O22: index | P22: subsidiebedrag | Q22: /m²
A23: =A5 -> 0 | B23: =IF(B1=Bron!$E$40,55,0) -> 0 | C23: =C5 -> 2.28638 | D23: =ROUND(A23*B23*C23,2) -> 0 | E23: =ROUND(B23*C23*1,2) -> 0 | G23: =G5 -> 0 | H23: =IF(H1=Bron!$E$40,55,0) -> 0 | I23: =I5 -> 2.28638 | J23: =ROUND(G23*H23*I23,2) -> 0 | K23: =ROUND(H23*I23*1,2) -> 0 | M23: =M5 -> 0 | N23: =IF(N1=Bron!$E$40,55,0) -> 0 | O23: =O5 -> 2.28638 | P23: =ROUND(M23*N23*O23,2) -> 0 | Q23: =ROUND(N23*O23*1,2) -> 0
A24: raming omgevingswerken | B24: ='Bouwkost NB'!$C$51 -> 0 | C24: 0.6 | D24: =B24*C24 -> 0 | G24: raming omgevingswerken | H24: ='Bouwkost NB'!$N$51 -> 0 | I24: 0.6 | J24: =H24*I24 -> 0 | M24: raming omgevingswerken | N24: ='Bouwkost NB'!$Y$51 -> 0 | O24: 0.6 | P24: =N24*O24 -> 0
A25: raming sportinfrastructuur | B25: ='Bouwkost NB'!$C$57 -> 0 | C25: 0.6 | D25: =B25*C25 -> 0 | G25: raming sportinfrastructuur | H25: ='Bouwkost NB'!$N$57 -> 0 | I25: 0.6 | J25: =H25*I25 -> 0 | M25: raming sportinfrastructuur | N25: ='Bouwkost NB'!$Y$57 -> 0 | O25: 0.6 | P25: =N25*O25 -> 0
A26: weerhouden bedrag | D26: =MIN(D23,D24+D25) -> 0 | G26: weerhouden bedrag | J26: =MIN(J23,J24+J25) -> 0 | M26: weerhouden bedrag | P26: =MIN(P23,P24+P25) -> 0
A28: Totaal | D28: =D26+D9+D19 -> 0 | G28: Totaal | J28: =J26+J9+J19 -> 0 | M28: Totaal | P28: =P26+P9+P19 -> 0
A30: Berekend Bouwplafond excl. BTW | B30: =D5+D26 -> 0 | C30: 10/6 | D30: =ROUND((D5+D26+D15)*10/6,2) -> 0 | E30: =ROUND(E5*10/6,2) -> 1047.92 | G30: Berekend Bouwplafond excl. BTW | H30: =J5+J26 -> 0 | I30: 10/6 | J30: =ROUND((J5+J26+J15)*10/6,2) -> 0 | K30: =ROUND(K5*10/6,2) -> 0 | M30: Berekend Bouwplafond excl. BTW | N30: =P5+P26 -> 0 | O30: 10/6 | P30: =ROUND((P5+P26+P15)*10/6,2) -> 0 | Q30: =ROUND(Q5*10/6,2) -> 0
A33: Samenvatting raming | G33: Samenvatting raming | M33: Samenvatting raming
A34: PF1 Ruwbouw | B34: =IF(ISNUMBER(MATCH($A$2,'Overzicht BTA'!$B$7:$B$10,0)),IF(MATCH(Bron!$B$13,'uitgebreide raming'!$B$2:$I$2,0)=1,'uitgebreide raming'!B6,IF(MATCH(Bron!$B$13,'uitgebreide raming'!$B$2:$I$2,0)=3,'uitgebreide raming'!D6,IF(MATCH(Bron!$B$13,'uitgebreide raming'!$B$2:$I$2,0)=5,'uitgebreide raming'!F6,IF(MATCH(Bron!$B$13,'uitgebreide raming'!$B$2:$I$2,0)=7,'uitgebreide raming'!H6,0)))),0) -> 0 | C34: =ROUND(B34/$B$39,2) ->  | G34: PF1 Ruwbouw | H34: =IF(ISNUMBER(MATCH($G$2,'Overzicht BTA'!$H$7:$H$10,0)),IF(MATCH(Bron!$B$13,'uitgebreide raming'!$B$30:$I$30,0)=1,'uitgebreide raming'!B33,IF(MATCH(Bron!$B$13,'uitgebreide raming'!$B$30:$I$30,0)=3,'uitgebreide raming'!D33,IF(MATCH(Bron!$B$13,'uitgebreide raming'!$B$30:$I$30,0)=5,'uitgebreide raming'!F33,IF(MATCH(Bron!$B$13,'uitgebreide raming'!$B$30:$I$30,0)=7,'uitgebreide raming'!H33,0)))),0) -> 0 | I34: =ROUND(H34/$H$39,2) ->  | M34: PF1 Ruwbouw | N34: =IF(ISNUMBER(MATCH($M$2,'Overzicht BTA'!$N$7:$N$10,0)),IF(MATCH(Bron!$B$13,'uitgebreide raming'!$B$58:$I$58,0)=1,'uitgebreide raming'!B61,IF(MATCH(Bron!$B$13,'uitgebreide raming'!$B$58:$I$58,0)=3,'uitgebreide raming'!D61,IF(MATCH(Bron!$B$13,'uitgebreide raming'!$B$58:$I$58,0)=5,'uitgebreide raming'!F61,IF(MATCH(Bron!$B$13,'uitgebreide raming'!$B$58:$I$58,0)=7,'uitgebreide raming'!H61,0)))),0) -> 0 | O34: =ROUND(N34/$N$39,2) -> 
A35: PF2 Techn. Uitrusting | B35: =IF(ISNUMBER(MATCH($A$2,'Overzicht BTA'!$B$7:$B$10,0)),IF(MATCH(Bron!$B$13,'uitgebreide raming'!$B$2:$I$2,0)=1,'uitgebreide raming'!B7,IF(MATCH(Bron!$B$13,'uitgebreide raming'!$B$2:$I$2,0)=3,'uitgebreide raming'!D7,IF(MATCH(Bron!$B$13,'uitgebreide raming'!$B$2:$I$2,0)=5,'uitgebreide raming'!F7,IF(MATCH(Bron!$B$13,'uitgebreide raming'!$B$2:$I$2,0)=7,'uitgebreide raming'!H7,0)))),0) -> 0 | C35: =ROUND(B35/$B$39,2) ->  | G35: PF2 Techn. Uitrusting | H35: =IF(ISNUMBER(MATCH($G$2,'Overzicht BTA'!$H$7:$H$10,0)),IF(MATCH(Bron!$B$13,'uitgebreide raming'!$B$30:$I$30,0)=1,'uitgebreide raming'!B34,IF(MATCH(Bron!$B$13,'uitgebreide raming'!$B$30:$I$30,0)=3,'uitgebreide raming'!D34,IF(MATCH(Bron!$B$13,'uitgebreide raming'!$B$30:$I$30,0)=5,'uitgebreide raming'!F34,IF(MATCH(Bron!$B$13,'uitgebreide raming'!$B$30:$I$30,0)=7,'uitgebreide raming'!H34,0)))),0) -> 0 | I35: =ROUND(H35/$H$39,2) ->  | M35: PF2 Techn. Uitrusting | N35: =IF(ISNUMBER(MATCH($M$2,'Overzicht BTA'!$N$7:$N$10,0)),IF(MATCH(Bron!$B$13,'uitgebreide raming'!$B$58:$I$58,0)=1,'uitgebreide raming'!B62,IF(MATCH(Bron!$B$13,'uitgebreide raming'!$B$58:$I$58,0)=3,'uitgebreide raming'!D62,IF(MATCH(Bron!$B$13,'uitgebreide raming'!$B$58:$I$58,0)=5,'uitgebreide raming'!F62,IF(MATCH(Bron!$B$13,'uitgebreide raming'!$B$58:$I$58,0)=7,'uitgebreide raming'!H62,0)))),0) -> 0 | O35: =ROUND(N35/$N$39,2) -> 
A36: PF3 Afwerking | B36: =IF(ISNUMBER(MATCH($A$2,'Overzicht BTA'!$B$7:$B$10,0)),IF(MATCH(Bron!$B$13,'uitgebreide raming'!$B$2:$I$2,0)=1,'uitgebreide raming'!B8,IF(MATCH(Bron!$B$13,'uitgebreide raming'!$B$2:$I$2,0)=3,'uitgebreide raming'!D8,IF(MATCH(Bron!$B$13,'uitgebreide raming'!$B$2:$I$2,0)=5,'uitgebreide raming'!F8,IF(MATCH(Bron!$B$13,'uitgebreide raming'!$B$2:$I$2,0)=7,'uitgebreide raming'!H8,0)))),0) -> 0 | G36: PF3 Afwerking | H36: =IF(ISNUMBER(MATCH($G$2,'Overzicht BTA'!$H$7:$H$10,0)),IF(MATCH(Bron!$B$13,'uitgebreide raming'!$B$30:$I$30,0)=1,'uitgebreide raming'!B35,IF(MATCH(Bron!$B$13,'uitgebreide raming'!$B$30:$I$30,0)=3,'uitgebreide raming'!D35,IF(MATCH(Bron!$B$13,'uitgebreide raming'!$B$30:$I$30,0)=5,'uitgebreide raming'!F35,IF(MATCH(Bron!$B$13,'uitgebreide raming'!$B$30:$I$30,0)=7,'uitgebreide raming'!H35,0)))),0) -> 0 | M36: PF3 Afwerking | N36: =IF(ISNUMBER(MATCH($M$2,'Overzicht BTA'!$N$7:$N$10,0)),IF(MATCH(Bron!$B$13,'uitgebreide raming'!$B$58:$I$58,0)=1,'uitgebreide raming'!B63,IF(MATCH(Bron!$B$13,'uitgebreide raming'!$B$58:$I$58,0)=3,'uitgebreide raming'!D63,IF(MATCH(Bron!$B$13,'uitgebreide raming'!$B$58:$I$58,0)=5,'uitgebreide raming'!F63,IF(MATCH(Bron!$B$13,'uitgebreide raming'!$B$58:$I$58,0)=7,'uitgebreide raming'!H63,0)))),0) -> 0
A37: Subtotaal PF1-2-3 | B37: =IF(ISNUMBER(MATCH($A$2,'Overzicht BTA'!$B$7:$B$10,0)),IF(MATCH(Bron!$B$13,'uitgebreide raming'!$B$2:$I$2,0)=1,'uitgebreide raming'!B9,IF(MATCH(Bron!$B$13,'uitgebreide raming'!$B$2:$I$2,0)=3,'uitgebreide raming'!D9,IF(MATCH(Bron!$B$13,'uitgebreide raming'!$B$2:$I$2,0)=5,'uitgebreide raming'!F9,IF(MATCH(Bron!$B$13,'uitgebreide raming'!$B$2:$I$2,0)=7,'uitgebreide raming'!H9,0)))),0) -> 0 | G37: Subtotaal PF1-2-3 | H37: =IF(ISNUMBER(MATCH($G$2,'Overzicht BTA'!$H$7:$H$10,0)),IF(MATCH(Bron!$B$13,'uitgebreide raming'!$B$30:$I$30,0)=1,'uitgebreide raming'!B36,IF(MATCH(Bron!$B$13,'uitgebreide raming'!$B$30:$I$30,0)=3,'uitgebreide raming'!D36,IF(MATCH(Bron!$B$13,'uitgebreide raming'!$B$30:$I$30,0)=5,'uitgebreide raming'!F36,IF(MATCH(Bron!$B$13,'uitgebreide raming'!$B$30:$I$30,0)=7,'uitgebreide raming'!H36,0)))),0) -> 0 | M37: Subtotaal PF1-2-3 | N37: =IF(ISNUMBER(MATCH($M$2,'Overzicht BTA'!$N$7:$N$10,0)),IF(MATCH(Bron!$B$13,'uitgebreide raming'!$B$58:$I$58,0)=1,'uitgebreide raming'!B64,IF(MATCH(Bron!$B$13,'uitgebreide raming'!$B$58:$I$58,0)=3,'uitgebreide raming'!D64,IF(MATCH(Bron!$B$13,'uitgebreide raming'!$B$58:$I$58,0)=5,'uitgebreide raming'!F64,IF(MATCH(Bron!$B$13,'uitgebreide raming'!$B$58:$I$58,0)=7,'uitgebreide raming'!H64,0)))),0) -> 0
A38: PF4 Losse uitrusting en meubilering | B38: =IF(ISNUMBER(MATCH($A$2,'Overzicht BTA'!$B$7:$B$10,0)),IF(MATCH(Bron!$B$13,'uitgebreide raming'!$B$2:$I$2,0)=1,'uitgebreide raming'!B10,IF(MATCH(Bron!$B$13,'uitgebreide raming'!$B$2:$I$2,0)=3,'uitgebreide raming'!D10,IF(MATCH(Bron!$B$13,'uitgebreide raming'!$B$2:$I$2,0)=5,'uitgebreide raming'!F10,IF(MATCH(Bron!$B$13,'uitgebreide raming'!$B$2:$I$2,0)=7,'uitgebreide raming'!H10,0)))),0) -> 0 | G38: PF4 Losse uitrusting en meubilering | H38: =IF(ISNUMBER(MATCH($G$2,'Overzicht BTA'!$H$7:$H$10,0)),IF(MATCH(Bron!$B$13,'uitgebreide raming'!$B$30:$I$30,0)=1,'uitgebreide raming'!B37,IF(MATCH(Bron!$B$13,'uitgebreide raming'!$B$30:$I$30,0)=3,'uitgebreide raming'!D37,IF(MATCH(Bron!$B$13,'uitgebreide raming'!$B$30:$I$30,0)=5,'uitgebreide raming'!F37,IF(MATCH(Bron!$B$13,'uitgebreide raming'!$B$30:$I$30,0)=7,'uitgebreide raming'!H37,0)))),0) -> 0 | M38: PF4 Losse uitrusting en meubilering | N38: =IF(ISNUMBER(MATCH($M$2,'Overzicht BTA'!$N$7:$N$10,0)),IF(MATCH(Bron!$B$13,'uitgebreide raming'!$B$58:$I$58,0)=1,'uitgebreide raming'!B65,IF(MATCH(Bron!$B$13,'uitgebreide raming'!$B$58:$I$58,0)=3,'uitgebreide raming'!D65,IF(MATCH(Bron!$B$13,'uitgebreide raming'!$B$58:$I$58,0)=5,'uitgebreide raming'!F65,IF(MATCH(Bron!$B$13,'uitgebreide raming'!$B$58:$I$58,0)=7,'uitgebreide raming'!H65,0)))),0) -> 0
A39: Totaal | B39: =IF(ISNUMBER(MATCH($A$2,'Overzicht BTA'!$B$7:$B$10,0)),IF(MATCH(Bron!$B$13,'uitgebreide raming'!$B$2:$I$2,0)=1,'uitgebreide raming'!B12,IF(MATCH(Bron!$B$13,'uitgebreide raming'!$B$2:$I$2,0)=3,'uitgebreide raming'!D12,IF(MATCH(Bron!$B$13,'uitgebreide raming'!$B$2:$I$2,0)=5,'uitgebreide raming'!F12,IF(MATCH(Bron!$B$13,'uitgebreide raming'!$B$2:$I$2,0)=7,'uitgebreide raming'!H12,0)))),0) -> 0 | G39: Totaal | H39: =IF(ISNUMBER(MATCH($G$2,'Overzicht BTA'!$H$7:$H$10,0)),IF(MATCH(Bron!$B$13,'uitgebreide raming'!$B$30:$I$30,0)=1,'uitgebreide raming'!B38,IF(MATCH(Bron!$B$13,'uitgebreide raming'!$B$30:$I$30,0)=3,'uitgebreide raming'!D38,IF(MATCH(Bron!$B$13,'uitgebreide raming'!$B$30:$I$30,0)=5,'uitgebreide raming'!F38,IF(MATCH(Bron!$B$13,'uitgebreide raming'!$B$30:$I$30,0)=7,'uitgebreide raming'!H38,0)))),0) -> 0 | M39: Totaal | N39: =IF(ISNUMBER(MATCH($M$2,'Overzicht BTA'!$N$7:$N$10,0)),IF(MATCH(Bron!$B$13,'uitgebreide raming'!$B$58:$I$58,0)=1,'uitgebreide raming'!B66,IF(MATCH(Bron!$B$13,'uitgebreide raming'!$B$58:$I$58,0)=3,'uitgebreide raming'!D66,IF(MATCH(Bron!$B$13,'uitgebreide raming'!$B$58:$I$58,0)=5,'uitgebreide raming'!F66,IF(MATCH(Bron!$B$13,'uitgebreide raming'!$B$58:$I$58,0)=7,'uitgebreide raming'!H66,0)))),0) -> 0
A41: Wijziging belofte
A42: Zorgvorm | B42: =B1 -> Algemeen ziekenhuis | G42: Zorgvorm | H42: =H1 -> Kies de zorgvorm | M42: Zorgvorm | N42: =N1 -> Kies de zorgvorm
A43: Nieuwbouw light 21% | G43: Nieuwbouw light 21% | M43: Nieuwbouw light 21%
A44: Onroerend (forfaitair) | G44: Onroerend (forfaitair) | M44: Onroerend (forfaitair)
A45: subs. opp (m²) | B45: basisbedrag | C45: index | D45: subsidiebedrag | E45: /m² | G45: subs. opp (m²) | H45: basisbedrag | I45: index | J45: subsidiebedrag | K45: /m² | M45: subs. opp (m²) | N45: basisbedrag | O45: index | P45: subsidiebedrag | Q45: /m²
A46: =IF(ISNUMBER(MATCH(A2,'Overzicht BTA'!B42:B45,0)),IF(MATCH(Bron!$B$13,'Overzicht BTA'!B42:B45,0)=1,'Overzicht BTA'!D42,IF(MATCH(Bron!$B$13,'Overzicht BTA'!B42:B45,0)=2,'Overzicht BTA'!D43,IF(MATCH(Bron!$B$13,'Overzicht BTA'!B42:B45,0)=3,'Overzicht BTA'!D44,IF(MATCH(Bron!$B$13,'Overzicht BTA'!$B$42:$B$45,0)=4,'Overzicht BTA'!D45,0)))),0) -> 0 | B46: =VLOOKUP(B42,'Capaciteiten & forfaits'!$B$3:$H$76,4,FALSE)*0.65 -> 357.5 | C46: ='Overzicht BTA'!$D$32 -> 2.28638 | D46: =ROUND(A46*B46*C46,2) -> 0 | E46: =ROUND(B46*C46*1,2) -> 817.38 | G46: =IF(ISNUMBER(MATCH(G2,'Overzicht BTA'!H42:H45,0)),IF(MATCH(Bron!$B$13,'Overzicht BTA'!H42:H45,0)=1,'Overzicht BTA'!J42,IF(MATCH(Bron!$B$13,'Overzicht BTA'!H42:H45,0)=2,'Overzicht BTA'!J43,IF(MATCH(Bron!$B$13,'Overzicht BTA'!H42:H45,0)=3,'Overzicht BTA'!J44,IF(MATCH(Bron!$B$13,'Overzicht BTA'!$B$42:$B$45,0)=4,'Overzicht BTA'!J45,0)))),0) -> 0 | H46: =VLOOKUP(H42,'Capaciteiten & forfaits'!$B$3:$H$76,4,FALSE)*0.65 -> 0 | I46: ='Overzicht BTA'!$I$33 -> 2.28638 | J46: =ROUND(G46*H46*I46,2) -> 0 | K46: =ROUND(H46*I46*1,2) -> 0 | M46: =IF(ISNUMBER(MATCH(M2,'Overzicht BTA'!N42:N45,0)),IF(MATCH(Bron!$B$13,'Overzicht BTA'!N42:N45,0)=1,'Overzicht BTA'!P42,IF(MATCH(Bron!$B$13,'Overzicht BTA'!N42:N45,0)=2,'Overzicht BTA'!P43,IF(MATCH(Bron!$B$13,'Overzicht BTA'!N42:N45,0)=3,'Overzicht BTA'!P44,IF(MATCH(Bron!$B$13,'Overzicht BTA'!$B$42:$B$45,0)=4,'Overzicht BTA'!P45,0)))),0) -> 0 | N46: =VLOOKUP(N42,'Capaciteiten & forfaits'!$B$3:$H$76,4,FALSE)*0.65 -> 0 | O46: ='Overzicht BTA'!$O$33 -> 2.28638 | P46: =ROUND(M46*N46*O46,2) -> 0 | Q46: =ROUND(N46*O46*1,2) -> 0
A47: Algemene Onkosten (A.O.) | C47: 0.1 | D47: =ROUND(D46*C47,2) -> 0 | G47: Algemene Onkosten (A.O.) | I47: 0.1 | J47: =ROUND(J46*I47,2) -> 0 | M47: Algemene Onkosten (A.O.) | O47: 0.1 | P47: =ROUND(P46*O47,2) -> 0
A48: BTW | B48: op nieuwbouw | C48: 0.21 | D48: =ROUND(D46*C48,2) -> 0 | G48: BTW | H48: op nieuwbouw | I48: 0.21 | J48: =ROUND(J46*I48,2) -> 0 | M48: BTW | N48: op nieuwbouw | O48: 0.21 | P48: =ROUND(P46*O48,2) -> 0
A49: BTW | B49: op A.O. | C49: 0.21 | D49: =ROUND(D47*C49,2) -> 0 | G49: BTW | H49: op A.O. | I49: 0.21 | J49: =ROUND(J47*I49,2) -> 0 | M49: BTW | N49: op A.O. | O49: 0.21 | P49: =ROUND(P47*O49,2) -> 0
A50: Totaal | D50: =SUM(D46:D49) -> 0 | G50: Totaal | J50: =SUM(J46:J49) -> 0 | M50: Totaal | P50: =SUM(P46:P49) -> 0
A52: Roerend (op basis van de raming) | G52: Roerend (op basis van de raming) | M52: Roerend (op basis van de raming)
A53: Subsidieplafond | B53: basisbedrag | C53: index | D53: subsidiebedrag | G53: Subsidieplafond | H53: basisbedrag | I53: index | J53: subsidiebedrag | M53: Subsidieplafond | N53: basisbedrag | O53: index | P53: subsidiebedrag
A54: =IF(C41=TRUE,A46,0) -> 0 | B54: 32.5 | C54: 2,28638 | D54: =ROUND(A54*B54*C54,2) -> 0 | G54: =IF(I41=TRUE,G46,0) -> 0 | H54: 32.5 | I54: 2,28638 | J54: =ROUND(G54*H54*I54,2) -> 0 | M54: =IF(O41=TRUE,M46,0) -> 0 | N54: 32.5 | O54: 2,28638 | P54: =ROUND(M54*N54*O54,2) -> 0
A55: raming PF4 | B55: =IF($B$2=TRUE, "nvt", B79) -> 0 | C55: 0.6 | D55: =IFERROR(ROUND(B55*C55,2),"nvt") -> 0 | G55: raming PF4 | H55: =IF($H$2=TRUE, "nvt", H79) -> 0 | I55: 0.6 | J55: =IFERROR(ROUND(H55*I55,2),"nvt") -> 0 | M55: raming PF4 | N55: =IF($N$2=TRUE, "nvt", N79) -> 0 | O55: 0.6 | P55: =IFERROR(ROUND(N55*O55,2),"nvt") -> 0
A56: weerhouden bedrag | D56: =IF($B$2=TRUE,D54,MIN(D54,D55)) -> 0 | G56: weerhouden bedrag | J56: =IF($H$2=TRUE,J54,MIN(J54,J55)) -> 0 | M56: weerhouden bedrag | P56: =IF($N$2=TRUE,P54,MIN(P54,P55)) -> 0
A57: Algemene kosten | C57: 0.1 | D57: =ROUND(D56*C57,2) -> 0 | G57: Algemene kosten | I57: 0.1 | J57: =ROUND(J56*I57,2) -> 0 | M57: Algemene kosten | O57: 0.1 | P57: =ROUND(P56*O57,2) -> 0
A58: BTW | B58: uitrusting | C58: 0.21 | D58: =ROUND(D56*C58,2) -> 0 | G58: BTW | H58: uitrusting | I58: 0.21 | J58: =ROUND(J56*I58,2) -> 0 | M58: BTW | N58: uitrusting | O58: 0.21 | P58: =ROUND(P56*O58,2) -> 0
A59: BTW | B59: A.O. | C59: 0.21 | D59: =ROUND(D57*C59,2) -> 0 | G59: BTW | H59: A.O. | I59: 0.21 | J59: =ROUND(J57*I59,2) -> 0 | M59: BTW | N59: A.O. | O59: 0.21 | P59: =ROUND(P57*O59,2) -> 0
A60: Totaal | D60: =SUM(D57:D59)+D56 -> 0 | G60: Totaal | J60: =SUM(J57:J59)+J56 -> 0 | M60: Totaal | P60: =SUM(P57:P59)+P56 -> 0
A62: Inrichting van de omgeving en sportinfrastructuur (revalidatieovereenkomsten) | G62: Inrichting van de omgeving (revalidatieovereenkomsten) | M62: Inrichting van de omgeving (revalidatieovereenkomsten)
A63: subs. opp (m²) | B63: basisbedrag | C63: index | D63: subsidiebedrag | E63: /m² | G63: subs. opp (m²) | H63: basisbedrag | I63: index | J63: subsidiebedrag | K63: /m² | M63: subs. opp (m²) | N63: basisbedrag | O63: index | P63: subsidiebedrag | Q63: /m²
A64: =A46 -> 0 | B64: =IF(B42=Bron!$E$40,55,0) -> 0 | C64: =C46 -> 2.28638 | D64: =ROUND(A64*B64*C64,2) -> 0 | E64: =ROUND(B64*C64*1,2) -> 0 | G64: =G46 -> 0 | H64: =IF(H42=Bron!$E$40,55,0) -> 0 | I64: =I46 -> 2.28638 | J64: =ROUND(G64*H64*I64,2) -> 0 | K64: =ROUND(H64*I64*1,2) -> 0 | M64: =M46 -> 0 | N64: =IF(N42=Bron!$E$40,55,0) -> 0 | O64: =O46 -> 2.28638 | P64: =ROUND(M64*N64*O64,2) -> 0 | Q64: =ROUND(N64*O64*1,2) -> 0
A65: raming omgevingswerken | B65: ='Bouwkost NB'!$E$51 -> 0 | C65: 0.6 | D65: =B65*C65 -> 0 | G65: raming omgevingswerken | H65: ='Bouwkost NB'!$P$51 -> 0 | I65: 0.6 | J65: =H65*I65 -> 0 | M65: raming omgevingswerken | N65: ='Bouwkost NB'!$AA$51 -> 0 | O65: 0.6 | P65: =N65*O65 -> 0
A66: raming sportinfrastructuur | B66: ='Bouwkost NB'!$E$57 -> 0 | C66: 0.6 | D66: =B66*C66 -> 0 | G66: raming sportinfrastructuur | H66: ='Bouwkost NB'!$P$57 -> 0 | I66: 0.6 | J66: =H66*I66 -> 0 | M66: raming sportinfrastructuur | N66: ='Bouwkost NB'!$AA$57 -> 0 | O66: 0.6 | P66: =N66*O66 -> 0
A67: weerhouden bedrag | D67: =MIN(D64,D65+D66) -> 0 | G67: weerhouden bedrag | J67: =MIN(J64,J65+J66) -> 0 | M67: weerhouden bedrag | P67: =MIN(P64,P65+P66) -> 0
A69: Totaal | D69: =D67+D50 -> 0 | G69: Totaal | J69: =J67+J50 -> 0 | M69: Totaal | P69: =P67+P50 -> 0
A71: Berekend Bouwplafond excl. BTW | B71: =D46+D67 -> 0 | C71: 10/6 | D71: =ROUND((D46+D67)*10/6,2) -> 0 | E71: =ROUND(E46*10/6,2) -> 1362.3 | G71: Berekend Bouwplafond excl. BTW | H71: =J46+J67 -> 0 | I71: 10/6 | J71: =ROUND((J46+J67)*10/6,2) -> 0 | K71: =ROUND(K46*10/6,2) -> 0 | M71: Berekend Bouwplafond excl. BTW | N71: =P46+P67 -> 0 | O71: 10/6 | P71: =ROUND((P46+P67)*10/6,2) -> 0 | Q71: =ROUND(Q46*10/6,2) -> 0
A73: Samenvatting raming | G73: Samenvatting raming | M73: Samenvatting raming
A74: PF1 Ruwbouw | B74: =IF(ISNUMBER(MATCH($A$2,'Overzicht BTA'!$B$7:$B$10,0)),IF(MATCH(Bron!$B$13,'uitgebreide raming_gewijzigd'!$B$2:$I$2,0)=1,'uitgebreide raming_gewijzigd'!$B6,IF(MATCH(Bron!$B$13,'uitgebreide raming_gewijzigd'!$B$2:$I$2,0)=3,'uitgebreide raming_gewijzigd'!$D6,IF(MATCH(Bron!$B$13,'uitgebreide raming_gewijzigd'!$B$2:$I$2,0)=5,'uitgebreide raming_gewijzigd'!$F6,IF(MATCH(Bron!$B$13,'uitgebreide raming_gewijzigd'!$B$2:$I$2,0)=7,'uitgebreide raming_gewijzigd'!$H6,0)))),0) -> 0 | C74: =ROUND(B74/$B$79,2) ->  | G74: PF1 Ruwbouw | H74: =IF(ISNUMBER(MATCH($G$2,'Overzicht BTA'!$H$7:$H$10,0)),IF(MATCH(Bron!$B$13,'uitgebreide raming_gewijzigd'!$B$29:$I$29,0)=1,'uitgebreide raming_gewijzigd'!B32,IF(MATCH(Bron!$B$13,'uitgebreide raming_gewijzigd'!$B$29:$I$29,0)=3,'uitgebreide raming_gewijzigd'!D32,IF(MATCH(Bron!$B$13,'uitgebreide raming_gewijzigd'!$B$29:$I$29,0)=5,'uitgebreide raming_gewijzigd'!F32,IF(MATCH(Bron!$B$13,'uitgebreide raming_gewijzigd'!$B$29:$I$29,0)=7,'uitgebreide raming_gewijzigd'!H32,0)))),0) -> 0 | I74: =ROUND(H74/$H$79,2) ->  | M74: PF1 Ruwbouw | N74: =IF(ISNUMBER(MATCH($M$2,'Overzicht BTA'!$N$7:$N$10,0)),IF(MATCH(Bron!$B$13,'uitgebreide raming_gewijzigd'!$B$56:$I$56,0)=1,'uitgebreide raming_gewijzigd'!B59,IF(MATCH(Bron!$B$13,'uitgebreide raming_gewijzigd'!$B$56:$I$56,0)=3,'uitgebreide raming_gewijzigd'!D59,IF(MATCH(Bron!$B$13,'uitgebreide raming_gewijzigd'!$B$56:$I$56,0)=5,'uitgebreide raming_gewijzigd'!F59,IF(MATCH(Bron!$B$13,'uitgebreide raming_gewijzigd'!$B$56:$I$56,0)=7,'uitgebreide raming_gewijzigd'!H59,0)))),0) -> 0 | O74: =ROUND(N74/$N$79,2) -> 
A75: PF2 Techn. Uitrusting | B75: =IF(ISNUMBER(MATCH($A$2,'Overzicht BTA'!$B$7:$B$10,0)),IF(MATCH(Bron!$B$13,'uitgebreide raming_gewijzigd'!$B$2:$I$2,0)=1,'uitgebreide raming_gewijzigd'!$B7,IF(MATCH(Bron!$B$13,'uitgebreide raming_gewijzigd'!$B$2:$I$2,0)=3,'uitgebreide raming_gewijzigd'!$D7,IF(MATCH(Bron!$B$13,'uitgebreide raming_gewijzigd'!$B$2:$I$2,0)=5,'uitgebreide raming_gewijzigd'!$F7,IF(MATCH(Bron!$B$13,'uitgebreide raming_gewijzigd'!$B$2:$I$2,0)=7,'uitgebreide raming_gewijzigd'!$H7,0)))),0) -> 0 | C75: =ROUND(B75/$B$79,2) ->  | G75: PF2 Techn. Uitrusting | H75: =IF(ISNUMBER(MATCH($G$2,'Overzicht BTA'!$H$7:$H$10,0)),IF(MATCH(Bron!$B$13,'uitgebreide raming_gewijzigd'!$B$29:$I$29,0)=1,'uitgebreide raming_gewijzigd'!B33,IF(MATCH(Bron!$B$13,'uitgebreide raming_gewijzigd'!$B$29:$I$29,0)=3,'uitgebreide raming_gewijzigd'!D33,IF(MATCH(Bron!$B$13,'uitgebreide raming_gewijzigd'!$B$29:$I$29,0)=5,'uitgebreide raming_gewijzigd'!F33,IF(MATCH(Bron!$B$13,'uitgebreide raming_gewijzigd'!$B$29:$I$29,0)=7,'uitgebreide raming_gewijzigd'!H33,0)))),0) -> 0 | I75: =ROUND(H75/$H$79,2) ->  | M75: PF2 Techn. Uitrusting | N75: =IF(ISNUMBER(MATCH($M$2,'Overzicht BTA'!$N$7:$N$10,0)),IF(MATCH(Bron!$B$13,'uitgebreide raming_gewijzigd'!$B$56:$I$56,0)=1,'uitgebreide raming_gewijzigd'!B60,IF(MATCH(Bron!$B$13,'uitgebreide raming_gewijzigd'!$B$56:$I$56,0)=3,'uitgebreide raming_gewijzigd'!D60,IF(MATCH(Bron!$B$13,'uitgebreide raming_gewijzigd'!$B$56:$I$56,0)=5,'uitgebreide raming_gewijzigd'!F60,IF(MATCH(Bron!$B$13,'uitgebreide raming_gewijzigd'!$B$56:$I$56,0)=7,'uitgebreide raming_gewijzigd'!H60,0)))),0) -> 0 | O75: =ROUND(N75/$N$79,2) -> 
A76: PF3 Afwerking | B76: =IF(ISNUMBER(MATCH($A$2,'Overzicht BTA'!$B$7:$B$10,0)),IF(MATCH(Bron!$B$13,'uitgebreide raming_gewijzigd'!$B$2:$I$2,0)=1,'uitgebreide raming_gewijzigd'!$B8,IF(MATCH(Bron!$B$13,'uitgebreide raming_gewijzigd'!$B$2:$I$2,0)=3,'uitgebreide raming_gewijzigd'!$D8,IF(MATCH(Bron!$B$13,'uitgebreide raming_gewijzigd'!$B$2:$I$2,0)=5,'uitgebreide raming_gewijzigd'!$F8,IF(MATCH(Bron!$B$13,'uitgebreide raming_gewijzigd'!$B$2:$I$2,0)=7,'uitgebreide raming_gewijzigd'!$H8,0)))),0) -> 0 | G76: PF3 Afwerking | H76: =IF(ISNUMBER(MATCH($G$2,'Overzicht BTA'!$H$7:$H$10,0)),IF(MATCH(Bron!$B$13,'uitgebreide raming_gewijzigd'!$B$29:$I$29,0)=1,'uitgebreide raming_gewijzigd'!B34,IF(MATCH(Bron!$B$13,'uitgebreide raming_gewijzigd'!$B$29:$I$29,0)=3,'uitgebreide raming_gewijzigd'!D34,IF(MATCH(Bron!$B$13,'uitgebreide raming_gewijzigd'!$B$29:$I$29,0)=5,'uitgebreide raming_gewijzigd'!F34,IF(MATCH(Bron!$B$13,'uitgebreide raming_gewijzigd'!$B$29:$I$29,0)=7,'uitgebreide raming_gewijzigd'!H34,0)))),0) -> 0 | M76: PF3 Afwerking | N76: =IF(ISNUMBER(MATCH($M$2,'Overzicht BTA'!$N$7:$N$10,0)),IF(MATCH(Bron!$B$13,'uitgebreide raming_gewijzigd'!$B$56:$I$56,0)=1,'uitgebreide raming_gewijzigd'!B61,IF(MATCH(Bron!$B$13,'uitgebreide raming_gewijzigd'!$B$56:$I$56,0)=3,'uitgebreide raming_gewijzigd'!D61,IF(MATCH(Bron!$B$13,'uitgebreide raming_gewijzigd'!$B$56:$I$56,0)=5,'uitgebreide raming_gewijzigd'!F61,IF(MATCH(Bron!$B$13,'uitgebreide raming_gewijzigd'!$B$56:$I$56,0)=7,'uitgebreide raming_gewijzigd'!H61,0)))),0) -> 0
A77: Subtotaal PF1-2-3 | B77: =IF(ISNUMBER(MATCH($A$2,'Overzicht BTA'!$B$7:$B$10,0)),IF(MATCH(Bron!$B$13,'uitgebreide raming_gewijzigd'!$B$2:$I$2,0)=1,'uitgebreide raming_gewijzigd'!$B9,IF(MATCH(Bron!$B$13,'uitgebreide raming_gewijzigd'!$B$2:$I$2,0)=3,'uitgebreide raming_gewijzigd'!$D9,IF(MATCH(Bron!$B$13,'uitgebreide raming_gewijzigd'!$B$2:$I$2,0)=5,'uitgebreide raming_gewijzigd'!$F9,IF(MATCH(Bron!$B$13,'uitgebreide raming_gewijzigd'!$B$2:$I$2,0)=7,'uitgebreide raming_gewijzigd'!$H9,0)))),0) -> 0 | G77: Subtotaal PF1-2-3 | H77: =IF(ISNUMBER(MATCH($G$2,'Overzicht BTA'!$H$7:$H$10,0)),IF(MATCH(Bron!$B$13,'uitgebreide raming_gewijzigd'!$B$29:$I$29,0)=1,'uitgebreide raming_gewijzigd'!B35,IF(MATCH(Bron!$B$13,'uitgebreide raming_gewijzigd'!$B$29:$I$29,0)=3,'uitgebreide raming_gewijzigd'!D35,IF(MATCH(Bron!$B$13,'uitgebreide raming_gewijzigd'!$B$29:$I$29,0)=5,'uitgebreide raming_gewijzigd'!F35,IF(MATCH(Bron!$B$13,'uitgebreide raming_gewijzigd'!$B$29:$I$29,0)=7,'uitgebreide raming_gewijzigd'!H35,0)))),0) -> 0 | M77: Subtotaal PF1-2-3 | N77: =IF(ISNUMBER(MATCH($M$2,'Overzicht BTA'!$N$7:$N$10,0)),IF(MATCH(Bron!$B$13,'uitgebreide raming_gewijzigd'!$B$56:$I$56,0)=1,'uitgebreide raming_gewijzigd'!B62,IF(MATCH(Bron!$B$13,'uitgebreide raming_gewijzigd'!$B$56:$I$56,0)=3,'uitgebreide raming_gewijzigd'!D62,IF(MATCH(Bron!$B$13,'uitgebreide raming_gewijzigd'!$B$56:$I$56,0)=5,'uitgebreide raming_gewijzigd'!F62,IF(MATCH(Bron!$B$13,'uitgebreide raming_gewijzigd'!$B$56:$I$56,0)=7,'uitgebreide raming_gewijzigd'!H62,0)))),0) -> 0
A78: PF4 Losse uitrusting en meubilering | B78: =IF(ISNUMBER(MATCH($A$2,'Overzicht BTA'!$B$7:$B$10,0)),IF(MATCH(Bron!$B$13,'uitgebreide raming_gewijzigd'!$B$2:$I$2,0)=1,'uitgebreide raming_gewijzigd'!$B10,IF(MATCH(Bron!$B$13,'uitgebreide raming_gewijzigd'!$B$2:$I$2,0)=3,'uitgebreide raming_gewijzigd'!$D10,IF(MATCH(Bron!$B$13,'uitgebreide raming_gewijzigd'!$B$2:$I$2,0)=5,'uitgebreide raming_gewijzigd'!$F10,IF(MATCH(Bron!$B$13,'uitgebreide raming_gewijzigd'!$B$2:$I$2,0)=7,'uitgebreide raming_gewijzigd'!$H10,0)))),0) -> 0 | G78: PF4 Losse uitrusting en meubilering | H78: =IF(ISNUMBER(MATCH($G$2,'Overzicht BTA'!$H$7:$H$10,0)),IF(MATCH(Bron!$B$13,'uitgebreide raming_gewijzigd'!$B$29:$I$29,0)=1,'uitgebreide raming_gewijzigd'!B36,IF(MATCH(Bron!$B$13,'uitgebreide raming_gewijzigd'!$B$29:$I$29,0)=3,'uitgebreide raming_gewijzigd'!D36,IF(MATCH(Bron!$B$13,'uitgebreide raming_gewijzigd'!$B$29:$I$29,0)=5,'uitgebreide raming_gewijzigd'!F36,IF(MATCH(Bron!$B$13,'uitgebreide raming_gewijzigd'!$B$29:$I$29,0)=7,'uitgebreide raming_gewijzigd'!H36,0)))),0) -> 0 | M78: PF4 Losse uitrusting en meubilering | N78: =IF(ISNUMBER(MATCH($M$2,'Overzicht BTA'!$N$7:$N$10,0)),IF(MATCH(Bron!$B$13,'uitgebreide raming_gewijzigd'!$B$56:$I$56,0)=1,'uitgebreide raming_gewijzigd'!B63,IF(MATCH(Bron!$B$13,'uitgebreide raming_gewijzigd'!$B$56:$I$56,0)=3,'uitgebreide raming_gewijzigd'!D63,IF(MATCH(Bron!$B$13,'uitgebreide raming_gewijzigd'!$B$56:$I$56,0)=5,'uitgebreide raming_gewijzigd'!F63,IF(MATCH(Bron!$B$13,'uitgebreide raming_gewijzigd'!$B$56:$I$56,0)=7,'uitgebreide raming_gewijzigd'!H63,0)))),0) -> 0
A79: Totaal | B79: =IF(ISNUMBER(MATCH($A$2,'Overzicht BTA'!$B$7:$B$10,0)),IF(MATCH(Bron!$B$13,'uitgebreide raming_gewijzigd'!$B$2:$I$2,0)=1,'uitgebreide raming_gewijzigd'!$B11,IF(MATCH(Bron!$B$13,'uitgebreide raming_gewijzigd'!$B$2:$I$2,0)=3,'uitgebreide raming_gewijzigd'!$D11,IF(MATCH(Bron!$B$13,'uitgebreide raming_gewijzigd'!$B$2:$I$2,0)=5,'uitgebreide raming_gewijzigd'!$F11,IF(MATCH(Bron!$B$13,'uitgebreide raming_gewijzigd'!$B$2:$I$2,0)=7,'uitgebreide raming_gewijzigd'!$H11,0)))),0) -> 0 | G79: Totaal | H79: =IF(ISNUMBER(MATCH($G$2,'Overzicht BTA'!$H$7:$H$10,0)),IF(MATCH(Bron!$B$13,'uitgebreide raming_gewijzigd'!$B$29:$I$29,0)=1,'uitgebreide raming_gewijzigd'!B37,IF(MATCH(Bron!$B$13,'uitgebreide raming_gewijzigd'!$B$29:$I$29,0)=3,'uitgebreide raming_gewijzigd'!D37,IF(MATCH(Bron!$B$13,'uitgebreide raming_gewijzigd'!$B$29:$I$29,0)=5,'uitgebreide raming_gewijzigd'!F37,IF(MATCH(Bron!$B$13,'uitgebreide raming_gewijzigd'!$B$29:$I$29,0)=7,'uitgebreide raming_gewijzigd'!H37,0)))),0) -> 0 | M79: Totaal | N79: =IF(ISNUMBER(MATCH($M$2,'Overzicht BTA'!$N$7:$N$10,0)),IF(MATCH(Bron!$B$13,'uitgebreide raming_gewijzigd'!$B$56:$I$56,0)=1,'uitgebreide raming_gewijzigd'!B64,IF(MATCH(Bron!$B$13,'uitgebreide raming_gewijzigd'!$B$56:$I$56,0)=3,'uitgebreide raming_gewijzigd'!D64,IF(MATCH(Bron!$B$13,'uitgebreide raming_gewijzigd'!$B$56:$I$56,0)=5,'uitgebreide raming_gewijzigd'!F64,IF(MATCH(Bron!$B$13,'uitgebreide raming_gewijzigd'!$B$56:$I$56,0)=7,'uitgebreide raming_gewijzigd'!H64,0)))),0) -> 0
A81: Indexatie bevel van aanvang
A82: Zorgvorm | B82: =B42 -> Algemeen ziekenhuis | G82: Zorgvorm | H82: =H42 -> Kies de zorgvorm | M82: Zorgvorm | N82: =N42 -> Kies de zorgvorm
A83: Nieuwbouw light 21% | G83: Nieuwbouw light 21% | M83: Nieuwbouw light 21%
A84: Onroerend (forfaitair) | G84: Onroerend (forfaitair) | M84: Onroerend (forfaitair)
A85: subs. opp (m²) | B85: basisbedrag | C85: index | D85: subsidiebedrag | E85: /m² | G85: subs. opp (m²) | H85: basisbedrag | I85: index | J85: subsidiebedrag | K85: /m² | M85: subs. opp (m²) | N85: basisbedrag | O85: index | P85: subsidiebedrag | Q85: /m²
A86: =A46 -> 0 | B86: =VLOOKUP(B82,'Capaciteiten & forfaits'!$B$3:$H$76,4,FALSE)*0.65 -> 357.5 | C86: ='Overzicht BTA'!$D$33 -> 2.28638 | D86: =ROUND(A86*B86*C86,2) -> 0 | E86: =ROUND(B86*C86*1,2) -> 817.38 | G86: =G46 -> 0 | H86: =VLOOKUP(H82,'Capaciteiten & forfaits'!$B$3:$H$76,4,FALSE)*0.65 -> 0 | I86: ='Overzicht BTA'!$D$33 -> 2.28638 | J86: =ROUND(G86*H86*I86,2) -> 0 | K86: =ROUND(H86*I86*1,2) -> 0 | M86: =M46 -> 0 | N86: =VLOOKUP(N82,'Capaciteiten & forfaits'!$B$3:$H$76,4,FALSE)*0.65 -> 0 | O86: ='Overzicht BTA'!$D$33 -> 2.28638 | P86: =ROUND(M86*N86*O86,2) -> 0 | Q86: =ROUND(N86*O86*1,2) -> 0
A87: Algemene Onkosten (A.O.) | C87: 0.1 | D87: =ROUND(D86*C87,2) -> 0 | G87: Algemene Onkosten (A.O.) | I87: 0.1 | J87: =ROUND(J86*I87,2) -> 0 | M87: Algemene Onkosten (A.O.) | O87: 0.1 | P87: =ROUND(P86*O87,2) -> 0
A88: BTW | B88: op nieuwbouw | C88: 0.21 | D88: =ROUND(D86*C88,2) -> 0 | G88: BTW | H88: op nieuwbouw | I88: 0.21 | J88: =ROUND(J86*I88,2) -> 0 | M88: BTW | N88: op nieuwbouw | O88: 0.21 | P88: =ROUND(P86*O88,2) -> 0
A89: BTW | B89: op A.O. | C89: 0.21 | D89: =ROUND(D87*C89,2) -> 0 | G89: BTW | H89: op A.O. | I89: 0.21 | J89: =ROUND(J87*I89,2) -> 0 | M89: BTW | N89: op A.O. | O89: 0.21 | P89: =ROUND(P87*O89,2) -> 0
A90: Totaal | D90: =SUM(D86:D89) -> 0 | G90: Totaal | J90: =SUM(J86:J89) -> 0 | M90: Totaal | P90: =SUM(P86:P89) -> 0
A92: Roerend (op basis van de raming) | G92: Roerend (op basis van de raming) | M92: Roerend (op basis van de raming)
A93: Subsidieplafond | B93: basisbedrag | C93: index | D93: subsidiebedrag | G93: Subsidieplafond | H93: basisbedrag | I93: index | J93: subsidiebedrag | M93: Subsidieplafond | N93: basisbedrag | O93: index | P93: subsidiebedrag
A94: =IF(C81=TRUE,A86,0) -> 0 | B94: 32.5 | C94: 2,28638 | D94: =ROUND(A94*B94*C94,2) -> 0 | G94: =IF(I81=TRUE,G86,0) -> 0 | H94: 32.5 | I94: 2,28638 | J94: =ROUND(G94*H94*I94,2) -> 0 | M94: =IF(O81=TRUE,M86,0) -> 0 | N94: 32.5 | O94: 2,28638 | P94: =ROUND(M94*N94*O94,2) -> 0
A95: raming PF4 | B95: =IF($B$2=TRUE, "nvt", B119) -> 0 | C95: 0.6 | D95: =IFERROR(ROUND(B95*C95,2),"nvt") -> 0 | G95: raming PF4 | H95: =IF($H$2=TRUE, "nvt", H119) -> 0 | I95: 0.6 | J95: =IFERROR(ROUND(H95*I95,2),"nvt") -> 0 | M95: raming PF4 | N95: =IF($N$2=TRUE, "nvt", N119) -> 0 | O95: 0.6 | P95: =IFERROR(ROUND(N95*O95,2),"nvt") -> 0
A96: weerhouden bedrag | D96: =IF($B$2=TRUE,D94,MIN(D94,D95)) -> 0 | G96: weerhouden bedrag | J96: =IF($H$2=TRUE,J94,MIN(J94,J95)) -> 0 | M96: weerhouden bedrag | P96: =IF($N$2=TRUE,P94,MIN(P94,P95)) -> 0
A97: Algemene kosten | C97: 0.1 | D97: =ROUND(D96*C97,2) -> 0 | G97: Algemene kosten | I97: 0.1 | J97: =ROUND(J96*I97,2) -> 0 | M97: Algemene kosten | O97: 0.1 | P97: =ROUND(P96*O97,2) -> 0
A98: BTW | B98: uitrusting | C98: 0.21 | D98: =ROUND(D96*C98,2) -> 0 | G98: BTW | H98: uitrusting | I98: 0.21 | J98: =ROUND(J96*I98,2) -> 0 | M98: BTW | N98: uitrusting | O98: 0.21 | P98: =ROUND(P96*O98,2) -> 0
A99: BTW | B99: A.O. | C99: 0.21 | D99: =ROUND(D97*C99,2) -> 0 | G99: BTW | H99: A.O. | I99: 0.21 | J99: =ROUND(J97*I99,2) -> 0 | M99: BTW | N99: A.O. | O99: 0.21 | P99: =ROUND(P97*O99,2) -> 0
A100: Totaal | D100: =SUM(D97:D99)+D96 -> 0 | G100: Totaal | J100: =SUM(J97:J99)+J96 -> 0 | M100: Totaal | P100: =SUM(P97:P99)+P96 -> 0
A102: Inrichting van de omgeving en sportinfrastructuur (revalidatieovereenkomsten) | G102: Inrichting van de omgeving (revalidatieovereenkomsten) | M102: Inrichting van de omgeving (revalidatieovereenkomsten)
A103: subs. opp (m²) | B103: basisbedrag | C103: index | D103: subsidiebedrag | E103: /m² | G103: subs. opp (m²) | H103: basisbedrag | I103: index | J103: subsidiebedrag | K103: /m² | M103: subs. opp (m²) | N103: basisbedrag | O103: index | P103: subsidiebedrag | Q103: /m²
A104: =A86 -> 0 | B104: =IF(B82=Bron!$E$40,55,0) -> 0 | C104: =C86 -> 2.28638 | D104: =ROUND(A104*B104*C104,2) -> 0 | E104: =ROUND(B104*C104*1,2) -> 0 | G104: =G86 -> 0 | H104: =IF(H82=Bron!$E$40,55,0) -> 0 | I104: =I86 -> 2.28638 | J104: =ROUND(G104*H104*I104,2) -> 0 | K104: =ROUND(H104*I104*1,2) -> 0 | M104: =M86 -> 0 | N104: =IF(N82=Bron!$E$40,55,0) -> 0 | O104: =O86 -> 2.28638 | P104: =ROUND(M104*N104*O104,2) -> 0 | Q104: =ROUND(N104*O104*1,2) -> 0
A105: raming omgevingswerken | B105: ='Bouwkost NB'!$E$51 -> 0 | C105: 0.6 | D105: =B105*C105 -> 0 | G105: raming omgevingswerken | H105: ='Bouwkost NB'!$P$51 -> 0 | I105: 0.6 | J105: =H105*I105 -> 0 | M105: raming omgevingswerken | N105: ='Bouwkost NB'!$AA$51 -> 0 | O105: 0.6 | P105: =N105*O105 -> 0
A106: raming sportinfrastructuur | B106: ='Bouwkost NB'!$E$57 -> 0 | C106: 0.6 | D106: =B106*C106 -> 0 | G106: raming sportinfrastructuur | H106: ='Bouwkost NB'!$P$57 -> 0 | I106: 0.6 | J106: =H106*I106 -> 0 | M106: raming sportinfrastructuur | N106: ='Bouwkost NB'!$AA$57 -> 0 | O106: 0.6 | P106: =N106*O106 -> 0
A107: weerhouden bedrag | D107: =MIN(D104,D105+D106) -> 0 | G107: weerhouden bedrag | J107: =MIN(J104,J105+J106) -> 0 | M107: weerhouden bedrag | P107: =MIN(P104,P105+P106) -> 0
A109: Totaal | D109: =D107+D90 -> 0 | G109: Totaal | J109: =J107+J90 -> 0 | M109: Totaal | P109: =P107+P90 -> 0
A111: Berekend Bouwplafond excl. BTW | B111: =D86+D107 -> 0 | C111: 10/6 | D111: =ROUND((D86+D107)*10/6,2) -> 0 | E111: =ROUND(E86*10/6,2) -> 1362.3 | G111: Berekend Bouwplafond excl. BTW | H111: =J86+J107 -> 0 | I111: 10/6 | J111: =ROUND((J86+J107)*10/6,2) -> 0 | K111: =ROUND(K86*10/6,2) -> 0 | M111: Berekend Bouwplafond excl. BTW | N111: =P86+P107 -> 0 | O111: 10/6 | P111: =ROUND((P86+P107)*10/6,2) -> 0 | Q111: =ROUND(Q86*10/6,2) -> 0

Sheet NB 6-12-21% light (hidden)
A1: zorgvorm | B1: ='Overzicht BTA'!C3 -> Algemeen ziekenhuis | G1: zorgvorm | H1: ='Overzicht BTA'!H3 -> Kies de zorgvorm | M1: zorgvorm | N1: ='Overzicht BTA'!N3 -> Kies de zorgvorm
A2: Nieuwbouw light 6-12-21% | G2: Nieuwbouw light 6-12-21% | M2: Nieuwbouw light 6-12-21%
A3: subs. opp (m²) | B3: basisbedrag | C3: index | E3: subsidiebedrag | G3: subs. opp (m²) | H3: basisbedrag | I3: index | K3: subsidiebedrag | M3: subs. opp (m²) | N3: basisbedrag | O3: index | Q3: subsidiebedrag
A4: =IF(ISNUMBER(MATCH(A2,'Overzicht BTA'!B7:B10,0)),MIN(VLOOKUP(A2,'Overzicht BTA'!B7:D10,3,FALSE),'Overzicht BTA'!#REF!),0) -> 0 | B4: =VLOOKUP(B1,'Capaciteiten & forfaits'!$B$3:$H$76,4,FALSE)*0.65 -> 357.5 | C4: ='Overzicht BTA'!$D$31 -> 2.28638 | E4: =ROUND(A4*B4*C4,2) -> 0 | G4: =IF(ISNUMBER(MATCH(G2,'Overzicht BTA'!H7:H10,0)),MIN(VLOOKUP(G2,'Overzicht BTA'!H7:J10,3,FALSE),'Overzicht BTA'!#REF!),0) -> 0 | H4: =VLOOKUP(H1,'Capaciteiten & forfaits'!$B$3:$H$76,4,FALSE)*0.65 -> 0 | I4: ='Overzicht BTA'!$I$31 -> 2.28638 | K4: =ROUND(G4*H4*I4,2) -> 0 | M4: =IF(ISNUMBER(MATCH(M2,'Overzicht BTA'!N7:N10,0)),MIN(VLOOKUP(M2,'Overzicht BTA'!N7:P10,3,FALSE),'Overzicht BTA'!#REF!),0) -> 0 | N4: =VLOOKUP(N1,'Capaciteiten & forfaits'!$B$3:$H$76,4,FALSE)*0.65 -> 0 | O4: ='Overzicht BTA'!$O$31 -> 2.28638 | Q4: =ROUND(M4*N4*O4,2) -> 0
A5: Algemene Onkosten (A.O.) | C5: 0.1 | E5: =ROUND(E4*C5,2) -> 0 | G5: Algemene Onkosten (A.O.) | I5: 0.1 | K5: =ROUND(K4*I5,2) -> 0 | M5: Algemene Onkosten (A.O.) | O5: 0.1 | Q5: =ROUND(Q4*O5,2) -> 0
A6: BTW | B6: op werken | C6: ='Overzicht BTA'!#REF! ->  | D6: =IF(ISNUMBER(MATCH($A$2,'Overzicht BTA'!$B$7:$B$10,0)),IF(MATCH(Bron!$B$14,'uitgebreide raming'!$B$2:$I$2,0)=1,'uitgebreide raming'!C9,IF(MATCH(Bron!$B$14,'uitgebreide raming'!$B$2:$I$2,0)=3,'uitgebreide raming'!E9,IF(MATCH(Bron!$B$14,'uitgebreide raming'!$B$2:$I$2,0)=5,'uitgebreide raming'!G9,IF(MATCH(Bron!$B$14,'uitgebreide raming'!$B$2:$I$2,0)=7,'uitgebreide raming'!I9,0)))),0) -> 0 | E6: =ROUND(E4*C6*D6,2) ->  | G6: BTW | H6: op werken | I6: ='Overzicht BTA'!#REF! ->  | J6: =IF(ISNUMBER(MATCH($G$2,'Overzicht BTA'!$H$7:$H$10,0)),IF(MATCH(Bron!$B$9,'uitgebreide raming'!$B$2:$I$2,0)=1,'uitgebreide raming'!C37,IF(MATCH(Bron!$B$9,'uitgebreide raming'!$B$2:$I$2,0)=3,'uitgebreide raming'!C37,IF(MATCH(Bron!$B$9,'uitgebreide raming'!$B$2:$I$2,0)=5,'uitgebreide raming'!C37,IF(MATCH(Bron!$B$9,'uitgebreide raming'!$B$2:$I$2,0)=7,'uitgebreide raming'!C37,0)))),0) -> 0 | K6: =ROUND(K4*I6*J6,2) ->  | M6: BTW | N6: op werken | O6: ='Overzicht BTA'!#REF! ->  | P6: =IF(ISNUMBER(MATCH($M$2,'Overzicht BTA'!$N$7:$N$10,0)),IF(MATCH(Bron!$B$9,'uitgebreide raming'!$B$2:$I$2,0)=1,'uitgebreide raming'!C65,IF(MATCH(Bron!$B$9,'uitgebreide raming'!$B$2:$I$2,0)=3,'uitgebreide raming'!C65,IF(MATCH(Bron!$B$9,'uitgebreide raming'!$B$2:$I$2,0)=5,'uitgebreide raming'!C65,IF(MATCH(Bron!$B$9,'uitgebreide raming'!$B$2:$I$2,0)=7,'uitgebreide raming'!C65,0)))),0) -> 0 | Q6: =ROUND(Q4*O6*P6,2) -> 
A7: BTW | B7: op uitrusting | C7: 0.21 | D7: =IF(ISNUMBER(MATCH($A$2,'Overzicht BTA'!$B$7:$B$10,0)),IF(MATCH(Bron!$B$14,'uitgebreide raming'!$B$2:$I$2,0)=1,'uitgebreide raming'!C10,IF(MATCH(Bron!$B$14,'uitgebreide raming'!$B$2:$I$2,0)=3,'uitgebreide raming'!E10,IF(MATCH(Bron!$B$14,'uitgebreide raming'!$B$2:$I$2,0)=5,'uitgebreide raming'!G10,IF(MATCH(Bron!$B$14,'uitgebreide raming'!$B$2:$I$2,0)=7,'uitgebreide raming'!I10,0)))),0) -> 0 | E7: =ROUND(E4*C7*D7,2) -> 0 | G7: BTW | H7: op uitrusting | I7: 0.21 | J7: =IF(ISNUMBER(MATCH($G$2,'Overzicht BTA'!$H$7:$H$10,0)),IF(MATCH(Bron!$B$9,'uitgebreide raming'!$B$2:$I$2,0)=1,'uitgebreide raming'!C38,IF(MATCH(Bron!$B$9,'uitgebreide raming'!$B$2:$I$2,0)=3,'uitgebreide raming'!C38,IF(MATCH(Bron!$B$9,'uitgebreide raming'!$B$2:$I$2,0)=5,'uitgebreide raming'!C38,IF(MATCH(Bron!$B$9,'uitgebreide raming'!$B$2:$I$2,0)=7,'uitgebreide raming'!C38,0)))),0) -> 0 | K7: =ROUND(K4*I7*J7,2) -> 0 | M7: BTW | N7: op uitrusting | O7: 0.21 | P7: =IF(ISNUMBER(MATCH($M$2,'Overzicht BTA'!$N$7:$N$10,0)),IF(MATCH(Bron!$B$9,'uitgebreide raming'!$B$2:$I$2,0)=1,'uitgebreide raming'!C66,IF(MATCH(Bron!$B$9,'uitgebreide raming'!$B$2:$I$2,0)=3,'uitgebreide raming'!C66,IF(MATCH(Bron!$B$9,'uitgebreide raming'!$B$2:$I$2,0)=5,'uitgebreide raming'!C66,IF(MATCH(Bron!$B$9,'uitgebreide raming'!$B$2:$I$2,0)=7,'uitgebreide raming'!C66,0)))),0) -> 0 | Q7: =ROUND(Q4*O7*P7,2) -> 0
A8: BTW | B8: op A.O. | C8: 0.21 | E8: =ROUND(E5*C8,2) -> 0 | G8: BTW | H8: op A.O. | I8: 0.21 | K8: =ROUND(K5*I8,2) -> 0 | M8: BTW | N8: op A.O. | O8: 0.21 | Q8: =ROUND(Q5*O8,2) -> 0
A9: Totaal | E9: =SUM(E4:E8) ->  | G9: Totaal | K9: =SUM(K4:K8) ->  | M9: Totaal | Q9: =SUM(Q4:Q8) -> 
A10: Nieuwbouw light 6-12-21% | G10: Nieuwbouw light 6-12-21% | M10: Nieuwbouw light 6-12-21%
A11: subs. opp (m²) | B11: basisbedrag | C11: index | E11: subsidiebedrag | G11: subs. opp (m²) | H11: basisbedrag | I11: index | K11: subsidiebedrag | M11: subs. opp (m²) | N11: basisbedrag | O11: index | Q11: subsidiebedrag
A12: =IF(ISNUMBER(MATCH(A10,'Overzicht BTA'!B7:B10,0)),MAX(VLOOKUP('Overzicht BTA'!#REF!,'Overzicht BTA'!B7:D10,3)-A4,0),0) -> 0 | B12: =VLOOKUP(B1,'Capaciteiten & forfaits'!$B$3:$H$76,4,FALSE)*0.65 -> 357.5 | C12: 1.68429 | E12: =ROUND(A12*B12*C12,2) -> 0 | G12: =IF(ISNUMBER(MATCH(G10,'Overzicht BTA'!H7:H10,0)),MAX(VLOOKUP('Overzicht BTA'!#REF!,'Overzicht BTA'!H7:J10,3)-G4,0),0) -> 0 | H12: =VLOOKUP(H1,'Capaciteiten & forfaits'!$B$3:$H$76,4,FALSE)*0.65 -> 0 | I12: ='Overzicht BTA'!$I$31 -> 2.28638 | K12: =ROUND(G12*H12*I12,2) -> 0 | M12: =IF(ISNUMBER(MATCH(M10,'Overzicht BTA'!N7:N10,0)),MAX(VLOOKUP('Overzicht BTA'!#REF!,'Overzicht BTA'!N7:P10,3)-M4,0),0) -> 0 | N12: =VLOOKUP(N1,'Capaciteiten & forfaits'!$B$3:$H$76,4,FALSE)*0.65 -> 0 | O12: ='Overzicht BTA'!$O$31 -> 2.28638 | Q12: =ROUND(M12*N12*O12,2) -> 0
A13: Algemene Onkosten (A.O.) | C13: 0.1 | E13: =ROUND(E12*C13,2) -> 0 | G13: Algemene Onkosten (A.O.) | I13: 0.1 | K13: =ROUND(K12*I13,2) -> 0 | M13: Algemene Onkosten (A.O.) | O13: 0.1 | Q13: =ROUND(Q12*O13,2) -> 0
A14: BTW | B14: op werken | C14: ='Overzicht BTA'!#REF! ->  | D14: =D6 -> 0 | E14: =ROUND(E12*C14*D14,2) ->  | G14: BTW | H14: op werken | I14: ='Overzicht BTA'!#REF! ->  | J14: =J6 -> 0 | K14: =ROUND(K12*I14*J14,2) ->  | M14: BTW | N14: op werken | O14: ='Overzicht BTA'!#REF! ->  | P14: =P6 -> 0 | Q14: =ROUND(Q12*O14*P14,2) -> 
A15: BTW | B15: op uitrusting | C15: 0.21 | D15: =D7 -> 0 | E15: =ROUND(E12*C15*D15,2) -> 0 | G15: BTW | H15: op uitrusting | I15: 0.21 | J15: =J7 -> 0 | K15: =ROUND(K12*I15*J15,2) -> 0 | M15: BTW | N15: op uitrusting | O15: 0.21 | P15: =P7 -> 0 | Q15: =ROUND(Q12*O15*P15,2) -> 0
A16: BTW | B16: op A.O. | C16: 0.21 | E16: =ROUND(E13*C16,2) -> 0 | G16: BTW | H16: op A.O. | I16: 0.21 | K16: =ROUND(K13*I16,2) -> 0 | M16: BTW | N16: op A.O. | O16: 0.21 | Q16: =ROUND(Q13*O16,2) -> 0
A17: Totaal | E17: =SUM(E12:E16) ->  | G17: Totaal | K17: =SUM(K12:K16) ->  | M17: Totaal | Q17: =SUM(Q12:Q16) -> 
A19: Inrichting van de omgeving en sportinfrastructuur (revalidatieovereenkomsten) | G19: Inrichting van de omgeving en sportinfrastructuur (revalidatieovereenkomsten) | M19: Inrichting van de omgeving en sportinfrastructuur (revalidatieovereenkomsten)
A20: subs. opp (m²) | B20: basisbedrag | C20: index | E20: subsidiebedrag | G20: subs. opp (m²) | H20: basisbedrag | I20: index | K20: subsidiebedrag | M20: subs. opp (m²) | N20: basisbedrag | O20: index | Q20: subsidiebedrag
A21: =MIN($A$4,'Bouwkost NB'!$C$90) -> 0 | B21: =IF($B$1=Bron!$E$40,55,0) -> 0 | C21: =$C$4 -> 2.28638 | E21: =ROUND(A21*B21*C21,2) -> 0 | G21: =MIN($G$4,'Bouwkost NB'!$C$90) -> 0 | H21: =IF($H$1=Bron!$E$40,55,0) -> 0 | I21: =$C$4 -> 2.28638 | K21: =ROUND(G21*H21*I21,2) -> 0 | M21: =MIN($M$4,'Bouwkost NB'!$C$90) -> 0 | N21: =IF($N$1=Bron!$E$40,55,0) -> 0 | O21: =$C$4 -> 2.28638 | Q21: =ROUND(M21*N21*O21,2) -> 0
A22: raming omgevingswerken | B22: ='Bouwkost NB'!$C$51 -> 0 | C22: 0.6 | E22: =B22*C22 -> 0 | G22: raming omgevingswerken | H22: ='Bouwkost NB'!$N$51 -> 0 | I22: 0.6 | K22: =H22*I22 -> 0 | M22: raming omgevingswerken | N22: ='Bouwkost NB'!$Y$51 -> 0 | O22: 0.6 | Q22: =N22*O22 -> 0
A23: raming sportinfrastructuur | B23: ='Bouwkost NB'!$C$57 -> 0 | C23: 0.6 | E23: =B23*C23 -> 0 | G23: raming sportinfrastructuur | H23: ='Bouwkost NB'!$N$57 -> 0 | I23: 0.6 | K23: =H23*I23 -> 0 | M23: raming sportinfrastructuur | N23: ='Bouwkost NB'!$Y$57 -> 0 | O23: 0.6 | Q23: =N23*O23 -> 0
A24: weerhouden bedrag | E24: =MIN(E21,(E22+E23)) -> 0 | G24: weerhouden bedrag | K24: =MIN(K21,(K22+K23)) -> 0 | M24: weerhouden bedrag | Q24: =MIN(Q21,(Q22+Q23)) -> 0
A26: Algemeen Totaal | E26: =E24+E16+E8 -> 0 | G26: Totaal | K26: =K24+K16+K8 -> 0 | M26: Totaal | Q26: =Q24+Q16+Q8 -> 0
A28: Berekend Bouwplafond excl. BTW | C28: =E4+E12+E24 -> 0 | D28: 10/6 | E28: =C28*10/6 -> 0 | G28: Berekend Bouwplafond excl. BTW | I28: =K4+K12+K24 -> 0 | J28: 10/6 | K28: =I28*10/6 -> 0 | M28: Berekend Bouwplafond excl. BTW | O28: =Q4+Q12+Q24 -> 0 | P28: 10/6 | Q28: =O28*10/6 -> 0
A30: Samenvatting raming | G30: Samenvatting raming | M30: Samenvatting raming
A31: PF1 Ruwbouw | B31: =IF(ISNUMBER(MATCH($A$2,'Overzicht BTA'!$B$7:$B$10,0)),IF(MATCH(Bron!$B$14,'uitgebreide raming'!$B$2:$I$2,0)=1,'uitgebreide raming'!B6,IF(MATCH(Bron!$B$14,'uitgebreide raming'!$B$2:$I$2,0)=3,'uitgebreide raming'!D6,IF(MATCH(Bron!$B$14,'uitgebreide raming'!$B$2:$I$2,0)=5,'uitgebreide raming'!F6,IF(MATCH(Bron!$B$14,'uitgebreide raming'!$B$2:$I$2,0)=7,'uitgebreide raming'!H6,0)))),0) -> 0 | C31: =ROUND(B31/$B$36,2) ->  | G31: PF1 Ruwbouw | H31: =IF(ISNUMBER(MATCH($G$2,'Overzicht BTA'!$H$7:$H$10,0)),IF(MATCH(Bron!$B$14,'uitgebreide raming'!$B$30:$I$30,0)=1,'uitgebreide raming'!B33,IF(MATCH(Bron!$B$14,'uitgebreide raming'!$B$30:$I$30,0)=3,'uitgebreide raming'!D33,IF(MATCH(Bron!$B$14,'uitgebreide raming'!$B$30:$I$30,0)=5,'uitgebreide raming'!F33,IF(MATCH(Bron!$B$14,'uitgebreide raming'!$B$30:$I$30,0)=7,'uitgebreide raming'!H33,0)))),0) -> 0 | I31: =ROUND(H31/$H$36,2) ->  | M31: PF1 Ruwbouw | N31: =IF(ISNUMBER(MATCH($M$2,'Overzicht BTA'!$N$7:$N$10,0)),IF(MATCH(Bron!$B$14,'uitgebreide raming'!$B$58:$I$58,0)=1,'uitgebreide raming'!B61,IF(MATCH(Bron!$B$14,'uitgebreide raming'!$B$58:$I$58,0)=3,'uitgebreide raming'!D61,IF(MATCH(Bron!$B$14,'uitgebreide raming'!$B$58:$I$58,0)=5,'uitgebreide raming'!F61,IF(MATCH(Bron!$B$14,'uitgebreide raming'!$B$58:$I$58,0)=7,'uitgebreide raming'!H61,0)))),0) -> 0 | O31: =ROUND(N31/$N$36,2) -> 
A32: PF2 Techn. Uitrusting | B32: =IF(ISNUMBER(MATCH($A$2,'Overzicht BTA'!$B$7:$B$10,0)),IF(MATCH(Bron!$B$14,'uitgebreide raming'!$B$2:$I$2,0)=1,'uitgebreide raming'!B7,IF(MATCH(Bron!$B$14,'uitgebreide raming'!$B$2:$I$2,0)=3,'uitgebreide raming'!D7,IF(MATCH(Bron!$B$14,'uitgebreide raming'!$B$2:$I$2,0)=5,'uitgebreide raming'!F7,IF(MATCH(Bron!$B$14,'uitgebreide raming'!$B$2:$I$2,0)=7,'uitgebreide raming'!H7,0)))),0) -> 0 | C32: =ROUND(B32/$B$36,2) ->  | G32: PF2 Techn. Uitrusting | H32: =IF(ISNUMBER(MATCH($G$2,'Overzicht BTA'!$H$7:$H$10,0)),IF(MATCH(Bron!$B$14,'uitgebreide raming'!$B$30:$I$30,0)=1,'uitgebreide raming'!B34,IF(MATCH(Bron!$B$14,'uitgebreide raming'!$B$30:$I$30,0)=3,'uitgebreide raming'!D34,IF(MATCH(Bron!$B$14,'uitgebreide raming'!$B$30:$I$30,0)=5,'uitgebreide raming'!F34,IF(MATCH(Bron!$B$14,'uitgebreide raming'!$B$30:$I$30,0)=7,'uitgebreide raming'!H34,0)))),0) -> 0 | I32: =ROUND(H32/$H$36,2) ->  | M32: PF2 Techn. Uitrusting | N32: =IF(ISNUMBER(MATCH($M$2,'Overzicht BTA'!$N$7:$N$10,0)),IF(MATCH(Bron!$B$14,'uitgebreide raming'!$B$58:$I$58,0)=1,'uitgebreide raming'!B62,IF(MATCH(Bron!$B$14,'uitgebreide raming'!$B$58:$I$58,0)=3,'uitgebreide raming'!D62,IF(MATCH(Bron!$B$14,'uitgebreide raming'!$B$58:$I$58,0)=5,'uitgebreide raming'!F62,IF(MATCH(Bron!$B$14,'uitgebreide raming'!$B$58:$I$58,0)=7,'uitgebreide raming'!H62,0)))),0) -> 0 | O32: =ROUND(N32/$N$36,2) -> 
A33: PF3 Afwerking | B33: =IF(ISNUMBER(MATCH($A$2,'Overzicht BTA'!$B$7:$B$10,0)),IF(MATCH(Bron!$B$14,'uitgebreide raming'!$B$2:$I$2,0)=1,'uitgebreide raming'!B8,IF(MATCH(Bron!$B$14,'uitgebreide raming'!$B$2:$I$2,0)=3,'uitgebreide raming'!D8,IF(MATCH(Bron!$B$14,'uitgebreide raming'!$B$2:$I$2,0)=5,'uitgebreide raming'!F8,IF(MATCH(Bron!$B$14,'uitgebreide raming'!$B$2:$I$2,0)=7,'uitgebreide raming'!H8,0)))),0) -> 0 | G33: PF3 Afwerking | H33: =IF(ISNUMBER(MATCH($G$2,'Overzicht BTA'!$H$7:$H$10,0)),IF(MATCH(Bron!$B$14,'uitgebreide raming'!$B$30:$I$30,0)=1,'uitgebreide raming'!B35,IF(MATCH(Bron!$B$14,'uitgebreide raming'!$B$30:$I$30,0)=3,'uitgebreide raming'!D35,IF(MATCH(Bron!$B$14,'uitgebreide raming'!$B$30:$I$30,0)=5,'uitgebreide raming'!F35,IF(MATCH(Bron!$B$14,'uitgebreide raming'!$B$30:$I$30,0)=7,'uitgebreide raming'!H35,0)))),0) -> 0 | M33: PF3 Afwerking | N33: =IF(ISNUMBER(MATCH($M$2,'Overzicht BTA'!$N$7:$N$10,0)),IF(MATCH(Bron!$B$14,'uitgebreide raming'!$B$58:$I$58,0)=1,'uitgebreide raming'!B63,IF(MATCH(Bron!$B$14,'uitgebreide raming'!$B$58:$I$58,0)=3,'uitgebreide raming'!D63,IF(MATCH(Bron!$B$14,'uitgebreide raming'!$B$58:$I$58,0)=5,'uitgebreide raming'!F63,IF(MATCH(Bron!$B$14,'uitgebreide raming'!$B$58:$I$58,0)=7,'uitgebreide raming'!H63,0)))),0) -> 0
A34: Subtotaal PF1-2-3 | B34: =IF(ISNUMBER(MATCH($A$2,'Overzicht BTA'!$B$7:$B$10,0)),IF(MATCH(Bron!$B$14,'uitgebreide raming'!$B$2:$I$2,0)=1,'uitgebreide raming'!B9,IF(MATCH(Bron!$B$14,'uitgebreide raming'!$B$2:$I$2,0)=3,'uitgebreide raming'!D9,IF(MATCH(Bron!$B$14,'uitgebreide raming'!$B$2:$I$2,0)=5,'uitgebreide raming'!F9,IF(MATCH(Bron!$B$14,'uitgebreide raming'!$B$2:$I$2,0)=7,'uitgebreide raming'!H9,0)))),0) -> 0 | G34: Subtotaal PF1-2-3 | H34: =IF(ISNUMBER(MATCH($G$2,'Overzicht BTA'!$H$7:$H$10,0)),IF(MATCH(Bron!$B$14,'uitgebreide raming'!$B$30:$I$30,0)=1,'uitgebreide raming'!B36,IF(MATCH(Bron!$B$14,'uitgebreide raming'!$B$30:$I$30,0)=3,'uitgebreide raming'!D36,IF(MATCH(Bron!$B$14,'uitgebreide raming'!$B$30:$I$30,0)=5,'uitgebreide raming'!F36,IF(MATCH(Bron!$B$14,'uitgebreide raming'!$B$30:$I$30,0)=7,'uitgebreide raming'!H36,0)))),0) -> 0 | M34: Subtotaal PF1-2-3 | N34: =IF(ISNUMBER(MATCH($M$2,'Overzicht BTA'!$N$7:$N$10,0)),IF(MATCH(Bron!$B$14,'uitgebreide raming'!$B$58:$I$58,0)=1,'uitgebreide raming'!B64,IF(MATCH(Bron!$B$14,'uitgebreide raming'!$B$58:$I$58,0)=3,'uitgebreide raming'!D64,IF(MATCH(Bron!$B$14,'uitgebreide raming'!$B$58:$I$58,0)=5,'uitgebreide raming'!F64,IF(MATCH(Bron!$B$14,'uitgebreide raming'!$B$58:$I$58,0)=7,'uitgebreide raming'!H64,0)))),0) -> 0
